Workbook

Sheet Study Summary
A1: CLASS COST OF SERVICE STUDY: SUMMARY
A2: LINE | G2: PUBLIC | I2: ELEC. | J2: COM. | K2: IND. | L2: PUB. AUTH. | M2: CNG | N2: ELEC. GEN. | O2: FORT
A3: NO. | B3: ='Allocation Factors'!C4 -> DESCRIPTION | C3: TOTAL | D3: RESIDENTIAL | E3: COMMERCIAL | F3: INDUSTRIAL | G3: AUTHORITY | H3: CNG | I3: GEN. | J3: TRANS. | K3: TRANS. | L3: TRANS. | M3: TRANS. | N3: TRANS. | O3: BLISS
B4: (a) | C4: (b) | D4: (c) | E4: (d) | F4: (e) | G4: (f) | H4: (g) | I4: (h) | J4: (i) | K4: (j) | L4: (k) | M4: (l) | N4: (m) | O4: (n)
A6: 1 | B6: Customer Costs | C6: =+'Allocated Cost of Service'!G529 -> 35726640.1 | D6: =+'Allocated Cost of Service'!I529 -> 32591789.66 | E6: =+'Allocated Cost of Service'!K529 -> 2728156.421 | F6: =+'Allocated Cost of Service'!M529 -> 39057.70801 | G6: =+'Allocated Cost of Service'!O529 -> 295268.2392 | H6: =+'Allocated Cost of Service'!Q529 -> 0 | I6: =+'Allocated Cost of Service'!S529 -> 0 | J6: =+'Allocated Cost of Service'!U529 -> 28140.16914 | K6: =+'Allocated Cost of Service'!W529 -> 37528.99999 | L6: =+'Allocated Cost of Service'!Y529 -> 6698.901868 | M6: =+'Allocated Cost of Service'!AA529 -> 0 | N6: =+'Allocated Cost of Service'!AC529 -> 0 | O6: =+'Allocated Cost of Service'!AE529 -> 0
A7: =A6+1 -> 2 | B7: Demand Costs | C7: =+'Allocated Cost of Service'!G530 -> 22766964.25 | D7: =+'Allocated Cost of Service'!I530 -> 6769597.825 | E7: =+'Allocated Cost of Service'!K530 -> 10291495.91 | F7: =+'Allocated Cost of Service'!M530 -> 301424.7789 | G7: =+'Allocated Cost of Service'!O530 -> 1640276.856 | H7: =+'Allocated Cost of Service'!Q530 -> 0 | I7: =+'Allocated Cost of Service'!S530 -> 0 | J7: =+'Allocated Cost of Service'!U530 -> 1049298.506 | K7: =+'Allocated Cost of Service'!W530 -> 1922071.566 | L7: =+'Allocated Cost of Service'!Y530 -> 792798.8093 | M7: =+'Allocated Cost of Service'!AA530 -> 0 | N7: =+'Allocated Cost of Service'!AC530 -> 0 | O7: =+'Allocated Cost of Service'!AE530 -> 0
A8: =A7+1 -> 3 | B8: Commodity Costs | C8: =+'Allocated Cost of Service'!G531 -> 354767.8324 | D8: =+'Allocated Cost of Service'!I531 -> 57887.04986 | E8: =+'Allocated Cost of Service'!K531 -> 162239.592 | F8: =+'Allocated Cost of Service'!M531 -> 18899.57446 | G8: =+'Allocated Cost of Service'!O531 -> 12063.51889 | H8: =+'Allocated Cost of Service'!Q531 -> 0 | I8: =+'Allocated Cost of Service'!S531 -> 0 | J8: =+'Allocated Cost of Service'!U531 -> 36628.89033 | K8: =+'Allocated Cost of Service'!W531 -> 59792.20729 | L8: =+'Allocated Cost of Service'!Y531 -> 7256.99961 | M8: =+'Allocated Cost of Service'!AA531 -> 0 | N8: =+'Allocated Cost of Service'!AC531 -> 0 | O8: =+'Allocated Cost of Service'!AE531 -> 0
A9: =A8+1 -> 4 | B9: Cost of Service Before Revenue Credits | C9: =SUM(C6:C8) -> 58848372.19 | D9: 39419274.53 | E9: 13181891.93 | F9: 359382.0614 | G9: 1947608.614 | H9: 0 | I9: 0 | J9: 1114067.566 | K9: 2019392.773 | L9: 806754.7107 | M9: 0 | N9: 0 | O9: 0
A11: =+A9+1 -> 5 | B11: Revenues Credited to Cost of Service (1) | C11: =+E30 -> 1227512.79 | D11: =D32+D33 -> 918439.8873 | E11: 216759.3864 | F11: 5429.931268 | G11: 28985.71589 | H11: 0 | I11: 0 | J11: 16340.06146 | K11: 29725.11286 | L11: 11832.69486 | M11: 0 | N11: 0 | O11: 0
A13: =+A11+1 -> 6 | B13: Total Cost of Service | C13: =C9-C11 -> 57620859.4 | D13: 38500834.65 | E13: 12965132.54 | F13: 353952.1301 | G13: 1918622.898 | H13: 0 | I13: 0 | J13: 1097727.504 | K13: 1989667.661 | L13: 794922.0159 | M13: 0 | N13: 0 | O13: 0
A15: =+A13+1 -> 7 | B15: Revenue at Current Rates | C15: =SUM(D15:O15) -> 50545919.44 | D15: 29692844.5 | E15: 15822650.26 | F15: 1231259.072 | G15: 1706200.869 | H15: 0 | I15: 0 | J15: 680833.8201 | K15: 1221564.5 | L15: 190566.4255 | M15: 0 | N15: 0 | O15: 0
A17: =A15+1 -> 8 | B17: Revenue Deficiency | C17: =C13-C15 -> 7074939.952 | D17: 8807990.146 | E17: -2857517.717 | F17: -877306.9415 | G17: 212422.0288 | H17: 0 | I17: 0 | J17: 416893.6842 | K17: 768103.1606 | L17: 604355.5904 | M17: 0 | N17: 0 | O17: 0
A19: =A17+1 -> 9 | B19: Revenue-to-Cost Ratios:
A20: =A19+1 -> 10 | B20: Current Revenue | C20: =+(C11+C15)/C9 -> 0.8797767943 | D20: =+(D11+D15)/D9 -> 0.7765562596 | E20: =+(E11+E15)/E9 -> 1.216775993 | F20: =+(F11+F15)/F9 -> 3.441153958 | G20: =+(G11+G15)/G9 -> 0.8909318703 | H20: =IFERROR(+(H11+H15)/H9,0) -> 0 | I20: =IFERROR(+(I11+I15)/I9,0) -> 0 | J20: =+(J11+J15)/J9 -> 0.6257913819 | K20: =+(K11+K15)/K9 -> 0.6196365706 | L20: =+(L11+L15)/L9 -> 0.2508806179 | M20: =IFERROR(+(M11+M15)/M9,0) -> 0 | N20: =IFERROR(+(N11+N15)/N9,0) -> 0 | O20: =IFERROR(+(O11+O15)/O9,0) -> 0
A21: =A20+1 -> 11 | B21: Required Revenue | C21: =+(C11+C15+C17)/C9 -> 1 | D21: =+(D11+D15+D17)/D9 -> 1 | E21: =+(E11+E15+E17)/E9 -> 1 | F21: =+(F11+F15+F17)/F9 -> 1 | G21: =+(G11+G15+G17)/G9 -> 1 | H21: =IFERROR(+(H11+H15+H17)/H9,0) -> 0 | I21: =IFERROR(+(I11+I15+I17)/I9,0) -> 0 | J21: =+(J11+J15+J17)/J9 -> 1 | K21: =+(K11+K15+K17)/K9 -> 1 | L21: =+(L11+L15+L17)/L9 -> 1 | M21: =IFERROR(+(M11+M15+M17)/M9,0) -> 0 | N21: =IFERROR(+(N11+N15+N17)/N9,0) -> 0 | O21: =IFERROR(+(O11+O15+O17)/O9,0) -> 0
A23: (1) Service charge revenue including Company recommended changes, special contract, irrigation, unmetered gas service, and other revenue are used to offset each class' cost of service. Service charge revenue is directly assigned to classes and is included in the revenue credit on line 5. Allocation of the remaining revenues to be credited is based on each class' cost of service relative to the total cost of service on line 4. The components of the total revenue credit are as follows:
D25: Service Charges | E25: 364382
D26: Special Contract | E26: 779884.43
D27: Irrigation | E27: 83246.36
D28: Unmetered Gas Service | E28: 0
D29: Other Revenue | E29: 0
E30: =SUM(E25:E29) -> 1227512.79
B32: Service Charges | C32: =SUM(D32:O32) -> 364382 | D32: 340276.2388 | E32: 23420.19333 | F32: 158.8640993 | G32: 420.0835916 | H32: 0 | I32: 0 | J32: 0 | K32: 106.6202009 | L32: 0 | M32: 0 | N32: 0 | O32: 0
B33: Special Contract + Irrigation + Other+Unmetered Gas Service | C33: =E26+E27+E28+E29 -> 863130.79 | D33: =$C$33*D9/$C$9 -> 578163.6485 | E33: 193339.1931 | F33: 5271.067168 | G33: 28565.6323 | H33: 0 | I33: 0 | J33: 16340.06146 | K33: 29618.49266 | L33: 11832.69486 | M33: 0 | N33: 0 | O33: 0
B35: Service Charges Allocation | D35: =+D32/$C$32 -> 0.9338448079 | E35: 0.06427373836 | F35: 0.0004359822915 | G35: 0.001152865925 | H35: 0 | I35: 0 | J35: 0 | K35: 0.0002926055648 | L35: 0 | M35: 0 | N35: 0 | O35: 0
D37: 55.42454948 | E37: 267.0730069 | F37: 776.6828574 | G37: 326.008505 | H37: 0 | I37: 0 | J37: 3305.026612 | K37: 4973.605498 | L37: 11104.13488 | M37: 0 | N37: 0 | O37: 0

Sheet Classified Rate Base
A1: CLASS COST OF SERVICE STUDY: CLASSIFIED RATE BASE
A3: LINE NO. | B3: ACCT. | D3: DESCRIPTION | E3: CLASSIFICATION FACTOR | G3: TOTAL | I3: CUSTOMER | K3: DEMAND | M3: COMMODITY
B4: (a) | D4: (b) | E4: (c) | G4: (d) | I4: (e) | K4: (f) | M4: (g)
D5: Intangible Plant
A6: 1 | B6: 301 | D6: Organization | E6: NONINTPLT | G6: 0 | I6: =+$G6*INDEX('Classification Factors'!H$5:H$205,MATCH($E6,'Classification Factors'!$C$5:$C$205,0)) -> 0 | K6: =+$G6*INDEX('Classification Factors'!J$5:J$205,MATCH($E6,'Classification Factors'!$C$5:$C$205,0)) -> 0 | M6: =+$G6*INDEX('Classification Factors'!L$5:L$205,MATCH($E6,'Classification Factors'!$C$5:$C$205,0)) -> 0
A7: =+A6+1 -> 2 | B7: 302 | D7: Franchises and Consents | E7: NONINTPLT | G7: 0 | I7: =+$G7*INDEX('Classification Factors'!H$5:H$205,MATCH($E7,'Classification Factors'!$C$5:$C$205,0)) -> 0 | K7: =+$G7*INDEX('Classification Factors'!J$5:J$205,MATCH($E7,'Classification Factors'!$C$5:$C$205,0)) -> 0 | M7: =+$G7*INDEX('Classification Factors'!L$5:L$205,MATCH($E7,'Classification Factors'!$C$5:$C$205,0)) -> 0
A8: 3 | B8: 303 | D8: Miscellaneous Intangible Plant | E8: NONINTPLT | G8: 0 | I8: =+$G8*INDEX('Classification Factors'!H$5:H$205,MATCH($E8,'Classification Factors'!$C$5:$C$205,0)) -> 0 | K8: =+$G8*INDEX('Classification Factors'!J$5:J$205,MATCH($E8,'Classification Factors'!$C$5:$C$205,0)) -> 0 | M8: =+$G8*INDEX('Classification Factors'!L$5:L$205,MATCH($E8,'Classification Factors'!$C$5:$C$205,0)) -> 0
A9: 4 | D9: Total Intangible Plant | G9: =SUM(G6:G8) -> 0 | I9: =SUM(I6:I8) -> 0 | K9: =SUM(K6:K8) -> 0 | M9: =SUM(M6:M8) -> 0
A10: 5
A11: 6 | D11: Transmission Plant
A12: 7 | B12: 365 | D12: Land and Land Rights | E12: DEM | G12: 60932.31 | I12: =+$G12*INDEX('Classification Factors'!H$5:H$205,MATCH($E12,'Classification Factors'!$C$5:$C$205,0)) -> 0 | K12: =+$G12*INDEX('Classification Factors'!J$5:J$205,MATCH($E12,'Classification Factors'!$C$5:$C$205,0)) -> 60932.31 | M12: =+$G12*INDEX('Classification Factors'!L$5:L$205,MATCH($E12,'Classification Factors'!$C$5:$C$205,0)) -> 0
A13: 8 | B13: 366 | D13: Meas. and Reg. Station Structures | E13: DEM | G13: 1812970.69 | I13: =+$G13*INDEX('Classification Factors'!H$5:H$205,MATCH($E13,'Classification Factors'!$C$5:$C$205,0)) -> 0 | K13: =+$G13*INDEX('Classification Factors'!J$5:J$205,MATCH($E13,'Classification Factors'!$C$5:$C$205,0)) -> 1812970.69 | M13: =+$G13*INDEX('Classification Factors'!L$5:L$205,MATCH($E13,'Classification Factors'!$C$5:$C$205,0)) -> 0
A14: 9 | B14: 367 | D14: Transmission Mains | E14: DEM | G14: 34430899.93 | I14: =+$G14*INDEX('Classification Factors'!H$5:H$205,MATCH($E14,'Classification Factors'!$C$5:$C$205,0)) -> 0 | K14: =+$G14*INDEX('Classification Factors'!J$5:J$205,MATCH($E14,'Classification Factors'!$C$5:$C$205,0)) -> 34430899.93 | M14: =+$G14*INDEX('Classification Factors'!L$5:L$205,MATCH($E14,'Classification Factors'!$C$5:$C$205,0)) -> 0
A15: 10 | B15: 368 | D15: Compression Station Equipment | E15: DEM | G15: 157464.27 | I15: =+$G15*INDEX('Classification Factors'!H$5:H$205,MATCH($E15,'Classification Factors'!$C$5:$C$205,0)) -> 0 | K15: =+$G15*INDEX('Classification Factors'!J$5:J$205,MATCH($E15,'Classification Factors'!$C$5:$C$205,0)) -> 157464.27 | M15: =+$G15*INDEX('Classification Factors'!L$5:L$205,MATCH($E15,'Classification Factors'!$C$5:$C$205,0)) -> 0
A16: 11 | B16: 369 | D16: Measuring and Reg. Station Equipment | E16: DEM | G16: 13393102.49 | I16: =+$G16*INDEX('Classification Factors'!H$5:H$205,MATCH($E16,'Classification Factors'!$C$5:$C$205,0)) -> 0 | K16: =+$G16*INDEX('Classification Factors'!J$5:J$205,MATCH($E16,'Classification Factors'!$C$5:$C$205,0)) -> 13393102.49 | M16: =+$G16*INDEX('Classification Factors'!L$5:L$205,MATCH($E16,'Classification Factors'!$C$5:$C$205,0)) -> 0
A17: 12 | B17: 369 | D17: Odorization | E17: COM | G17: 185791.4 | I17: =+$G17*INDEX('Classification Factors'!H$5:H$205,MATCH($E17,'Classification Factors'!$C$5:$C$205,0)) -> 0 | K17: =+$G17*INDEX('Classification Factors'!J$5:J$205,MATCH($E17,'Classification Factors'!$C$5:$C$205,0)) -> 0 | M17: =+$G17*INDEX('Classification Factors'!L$5:L$205,MATCH($E17,'Classification Factors'!$C$5:$C$205,0)) -> 185791.4
A18: 13 | B18: 371 | D18: Other Equipment | E18: DEM | G18: 53986.49 | I18: =+$G18*INDEX('Classification Factors'!H$5:H$205,MATCH($E18,'Classification Factors'!$C$5:$C$205,0)) -> 0 | K18: =+$G18*INDEX('Classification Factors'!J$5:J$205,MATCH($E18,'Classification Factors'!$C$5:$C$205,0)) -> 53986.49 | M18: =+$G18*INDEX('Classification Factors'!L$5:L$205,MATCH($E18,'Classification Factors'!$C$5:$C$205,0)) -> 0
A19: 14 | D19: Total Transmission Plant | G19: =SUM(G12:G18) -> 50095147.58 | I19: =SUM(I12:I18) -> 0 | K19: =SUM(K12:K18) -> 49909356.18 | M19: =SUM(M12:M18) -> 185791.4
A20: 15
A21: 16 | D21: Distribution Plant
A22: 17 | B22: 374 | D22: Land & Land Rights - Allocated | E22: DIS376-379-ALL | G22: 40448 | I22: =+$G22*INDEX('Classification Factors'!H$5:H$205,MATCH($E22,'Classification Factors'!$C$5:$C$205,0)) -> 20707.84778 | K22: =+$G22*INDEX('Classification Factors'!J$5:J$205,MATCH($E22,'Classification Factors'!$C$5:$C$205,0)) -> 19740.15222 | M22: =+$G22*INDEX('Classification Factors'!L$5:L$205,MATCH($E22,'Classification Factors'!$C$5:$C$205,0)) -> 0
A23: 18 | B23: 374 | D23: Land & Land Rights - Directly Assn. | E23: DIS376-379-DA | G23: 0 | I23: =+$G23*INDEX('Classification Factors'!H$5:H$205,MATCH($E23,'Classification Factors'!$C$5:$C$205,0)) -> 0 | K23: =+$G23*INDEX('Classification Factors'!J$5:J$205,MATCH($E23,'Classification Factors'!$C$5:$C$205,0)) -> 0 | M23: =+$G23*INDEX('Classification Factors'!L$5:L$205,MATCH($E23,'Classification Factors'!$C$5:$C$205,0)) -> 0
A24: 19 | B24: 375 | D24: Structures and Improvements | E24: DIS376-379-ALL | G24: 114218.05 | I24: =+$G24*INDEX('Classification Factors'!H$5:H$205,MATCH($E24,'Classification Factors'!$C$5:$C$205,0)) -> 58475.32617 | K24: =+$G24*INDEX('Classification Factors'!J$5:J$205,MATCH($E24,'Classification Factors'!$C$5:$C$205,0)) -> 55742.72383 | M24: =+$G24*INDEX('Classification Factors'!L$5:L$205,MATCH($E24,'Classification Factors'!$C$5:$C$205,0)) -> 0
A25: 20 | B25: 376 | D25: Distribution Mains-Allocated | E25: MAINS-ALLOC | G25: 84125462.8 | I25: =+$G25*INDEX('Classification Factors'!H$5:H$205,MATCH($E25,'Classification Factors'!$C$5:$C$205,0)) -> 47163394.42 | K25: =+$G25*INDEX('Classification Factors'!J$5:J$205,MATCH($E25,'Classification Factors'!$C$5:$C$205,0)) -> 36962068.38 | M25: =+$G25*INDEX('Classification Factors'!L$5:L$205,MATCH($E25,'Classification Factors'!$C$5:$C$205,0)) -> 0
A26: 21 | B26: 376 | D26: Distribution Mains-Directly Assigned | E26: MAINS-DA | G26: 0 | I26: =+$G26*INDEX('Classification Factors'!H$5:H$205,MATCH($E26,'Classification Factors'!$C$5:$C$205,0)) -> 0 | K26: =+$G26*INDEX('Classification Factors'!J$5:J$205,MATCH($E26,'Classification Factors'!$C$5:$C$205,0)) -> 0 | M26: =+$G26*INDEX('Classification Factors'!L$5:L$205,MATCH($E26,'Classification Factors'!$C$5:$C$205,0)) -> 0
A27: 22 | B27: 376 | D27: Odorization | E27: COM | G27: 0 | I27: =+$G27*INDEX('Classification Factors'!H$5:H$205,MATCH($E27,'Classification Factors'!$C$5:$C$205,0)) -> 0 | K27: =+$G27*INDEX('Classification Factors'!J$5:J$205,MATCH($E27,'Classification Factors'!$C$5:$C$205,0)) -> 0 | M27: =+$G27*INDEX('Classification Factors'!L$5:L$205,MATCH($E27,'Classification Factors'!$C$5:$C$205,0)) -> 0
A28: 23 | B28: 377 | D28: Compressor Station Equipment | E28: DEM | G28: 0 | I28: =+$G28*INDEX('Classification Factors'!H$5:H$205,MATCH($E28,'Classification Factors'!$C$5:$C$205,0)) -> 0 | K28: =+$G28*INDEX('Classification Factors'!J$5:J$205,MATCH($E28,'Classification Factors'!$C$5:$C$205,0)) -> 0 | M28: =+$G28*INDEX('Classification Factors'!L$5:L$205,MATCH($E28,'Classification Factors'!$C$5:$C$205,0)) -> 0
A29: 24 | B29: 378 | D29: Meas. & Reg. Sta. Equip.- Gen. - Allocated | E29: DEM | G29: 4788436.92 | I29: =+$G29*INDEX('Classification Factors'!H$5:H$205,MATCH($E29,'Classification Factors'!$C$5:$C$205,0)) -> 0 | K29: =+$G29*INDEX('Classification Factors'!J$5:J$205,MATCH($E29,'Classification Factors'!$C$5:$C$205,0)) -> 4788436.92 | M29: =+$G29*INDEX('Classification Factors'!L$5:L$205,MATCH($E29,'Classification Factors'!$C$5:$C$205,0)) -> 0
A30: 25 | B30: 378 | D30: Meas. & Reg. Sta. Equip.- Gen. - Dir. Assn. | E30: DEM | G30: 0 | I30: =+$G30*INDEX('Classification Factors'!H$5:H$205,MATCH($E30,'Classification Factors'!$C$5:$C$205,0)) -> 0 | K30: =+$G30*INDEX('Classification Factors'!J$5:J$205,MATCH($E30,'Classification Factors'!$C$5:$C$205,0)) -> 0 | M30: =+$G30*INDEX('Classification Factors'!L$5:L$205,MATCH($E30,'Classification Factors'!$C$5:$C$205,0)) -> 0
A31: 26 | B31: 378 | D31: Odorization | E31: COM | G31: 79345.37 | I31: =+$G31*INDEX('Classification Factors'!H$5:H$205,MATCH($E31,'Classification Factors'!$C$5:$C$205,0)) -> 0 | K31: =+$G31*INDEX('Classification Factors'!J$5:J$205,MATCH($E31,'Classification Factors'!$C$5:$C$205,0)) -> 0 | M31: =+$G31*INDEX('Classification Factors'!L$5:L$205,MATCH($E31,'Classification Factors'!$C$5:$C$205,0)) -> 79345.37
A32: 27 | B32: 379 | D32: Meas. & Reg. Sta. Equip.- City Gate | E32: DEM | G32: 3208903.09 | I32: =+$G32*INDEX('Classification Factors'!H$5:H$205,MATCH($E32,'Classification Factors'!$C$5:$C$205,0)) -> 0 | K32: =+$G32*INDEX('Classification Factors'!J$5:J$205,MATCH($E32,'Classification Factors'!$C$5:$C$205,0)) -> 3208903.09 | M32: =+$G32*INDEX('Classification Factors'!L$5:L$205,MATCH($E32,'Classification Factors'!$C$5:$C$205,0)) -> 0
A33: 28 | B33: 379 | D33: Odorization | E33: COM | G33: 17080.46 | I33: =+$G33*INDEX('Classification Factors'!H$5:H$205,MATCH($E33,'Classification Factors'!$C$5:$C$205,0)) -> 0 | K33: =+$G33*INDEX('Classification Factors'!J$5:J$205,MATCH($E33,'Classification Factors'!$C$5:$C$205,0)) -> 0 | M33: =+$G33*INDEX('Classification Factors'!L$5:L$205,MATCH($E33,'Classification Factors'!$C$5:$C$205,0)) -> 17080.46
A34: 29 | B34: 380 | D34: Services - Allocated | E34: CUS | G34: 74573290.68 | I34: =+$G34*INDEX('Classification Factors'!H$5:H$205,MATCH($E34,'Classification Factors'!$C$5:$C$205,0)) -> 74573290.68 | K34: =+$G34*INDEX('Classification Factors'!J$5:J$205,MATCH($E34,'Classification Factors'!$C$5:$C$205,0)) -> 0 | M34: =+$G34*INDEX('Classification Factors'!L$5:L$205,MATCH($E34,'Classification Factors'!$C$5:$C$205,0)) -> 0
A35: 30 | B35: 380 | D35: Services - Directly Assigned | E35: CUS | G35: 0 | I35: =+$G35*INDEX('Classification Factors'!H$5:H$205,MATCH($E35,'Classification Factors'!$C$5:$C$205,0)) -> 0 | K35: =+$G35*INDEX('Classification Factors'!J$5:J$205,MATCH($E35,'Classification Factors'!$C$5:$C$205,0)) -> 0 | M35: =+$G35*INDEX('Classification Factors'!L$5:L$205,MATCH($E35,'Classification Factors'!$C$5:$C$205,0)) -> 0
A36: 31 | B36: 381 | D36: Meters - Allocated | E36: CUS | G36: 21960475.32 | I36: =+$G36*INDEX('Classification Factors'!H$5:H$205,MATCH($E36,'Classification Factors'!$C$5:$C$205,0)) -> 21960475.32 | K36: =+$G36*INDEX('Classification Factors'!J$5:J$205,MATCH($E36,'Classification Factors'!$C$5:$C$205,0)) -> 0 | M36: =+$G36*INDEX('Classification Factors'!L$5:L$205,MATCH($E36,'Classification Factors'!$C$5:$C$205,0)) -> 0
A37: 32 | B37: 381 | D37: Meters - Directly Assigned | E37: CUS | G37: 0 | I37: =+$G37*INDEX('Classification Factors'!H$5:H$205,MATCH($E37,'Classification Factors'!$C$5:$C$205,0)) -> 0 | K37: =+$G37*INDEX('Classification Factors'!J$5:J$205,MATCH($E37,'Classification Factors'!$C$5:$C$205,0)) -> 0 | M37: =+$G37*INDEX('Classification Factors'!L$5:L$205,MATCH($E37,'Classification Factors'!$C$5:$C$205,0)) -> 0
A38: 33 | B38: 382 | D38: Meter Installations | E38: CUS | G38: 0 | I38: =+$G38*INDEX('Classification Factors'!H$5:H$205,MATCH($E38,'Classification Factors'!$C$5:$C$205,0)) -> 0 | K38: =+$G38*INDEX('Classification Factors'!J$5:J$205,MATCH($E38,'Classification Factors'!$C$5:$C$205,0)) -> 0 | M38: =+$G38*INDEX('Classification Factors'!L$5:L$205,MATCH($E38,'Classification Factors'!$C$5:$C$205,0)) -> 0
A39: 34 | B39: 383 | D39: House Regulators - Allocated | E39: CUS | G39: 5134242.96 | I39: =+$G39*INDEX('Classification Factors'!H$5:H$205,MATCH($E39,'Classification Factors'!$C$5:$C$205,0)) -> 5134242.96 | K39: =+$G39*INDEX('Classification Factors'!J$5:J$205,MATCH($E39,'Classification Factors'!$C$5:$C$205,0)) -> 0 | M39: =+$G39*INDEX('Classification Factors'!L$5:L$205,MATCH($E39,'Classification Factors'!$C$5:$C$205,0)) -> 0
A40: 35 | B40: 383 | D40: House Regulators - Directly Assigned | E40: CUS | G40: 0 | I40: =+$G40*INDEX('Classification Factors'!H$5:H$205,MATCH($E40,'Classification Factors'!$C$5:$C$205,0)) -> 0 | K40: =+$G40*INDEX('Classification Factors'!J$5:J$205,MATCH($E40,'Classification Factors'!$C$5:$C$205,0)) -> 0 | M40: =+$G40*INDEX('Classification Factors'!L$5:L$205,MATCH($E40,'Classification Factors'!$C$5:$C$205,0)) -> 0
A41: 36 | B41: 385 | D41: Meas. & Reg. Sta. Equip. - Ind. - Allocated | E41: DEM | G41: 3323547.49 | I41: =+$G41*INDEX('Classification Factors'!H$5:H$205,MATCH($E41,'Classification Factors'!$C$5:$C$205,0)) -> 0 | K41: =+$G41*INDEX('Classification Factors'!J$5:J$205,MATCH($E41,'Classification Factors'!$C$5:$C$205,0)) -> 3323547.49 | M41: =+$G41*INDEX('Classification Factors'!L$5:L$205,MATCH($E41,'Classification Factors'!$C$5:$C$205,0)) -> 0
A42: 37 | B42: 385 | D42: Meas. & Reg. Sta. Equip. - Ind. - Dir. Assn. | E42: DEM | G42: 0 | I42: =+$G42*INDEX('Classification Factors'!H$5:H$205,MATCH($E42,'Classification Factors'!$C$5:$C$205,0)) -> 0 | K42: =+$G42*INDEX('Classification Factors'!J$5:J$205,MATCH($E42,'Classification Factors'!$C$5:$C$205,0)) -> 0 | M42: =+$G42*INDEX('Classification Factors'!L$5:L$205,MATCH($E42,'Classification Factors'!$C$5:$C$205,0)) -> 0
A43: 38 | B43: 385 | D43: Odorization | E43: COM | G43: 0 | I43: =+$G43*INDEX('Classification Factors'!H$5:H$205,MATCH($E43,'Classification Factors'!$C$5:$C$205,0)) -> 0 | K43: =+$G43*INDEX('Classification Factors'!J$5:J$205,MATCH($E43,'Classification Factors'!$C$5:$C$205,0)) -> 0 | M43: =+$G43*INDEX('Classification Factors'!L$5:L$205,MATCH($E43,'Classification Factors'!$C$5:$C$205,0)) -> 0
A44: 39 | B44: 386 | D44: Other Property - Customer Premises | E44: CUS | G44: 6144.09 | I44: =+$G44*INDEX('Classification Factors'!H$5:H$205,MATCH($E44,'Classification Factors'!$C$5:$C$205,0)) -> 6144.09 | K44: =+$G44*INDEX('Classification Factors'!J$5:J$205,MATCH($E44,'Classification Factors'!$C$5:$C$205,0)) -> 0 | M44: =+$G44*INDEX('Classification Factors'!L$5:L$205,MATCH($E44,'Classification Factors'!$C$5:$C$205,0)) -> 0
A45: 40 | B45: 387 | D45: Other Equipment | E45: DIS376-379-ALL | G45: 0 | I45: =+$G45*INDEX('Classification Factors'!H$5:H$205,MATCH($E45,'Classification Factors'!$C$5:$C$205,0)) -> 0 | K45: =+$G45*INDEX('Classification Factors'!J$5:J$205,MATCH($E45,'Classification Factors'!$C$5:$C$205,0)) -> 0 | M45: =+$G45*INDEX('Classification Factors'!L$5:L$205,MATCH($E45,'Classification Factors'!$C$5:$C$205,0)) -> 0
A46: 41 | D46: Total Distribution Plant | G46: =SUM(G22:G45) -> 197371595.2 | I46: =SUM(I22:I45) -> 148916730.6 | K46: =SUM(K22:K45) -> 48358438.76 | M46: =SUM(M22:M45) -> 96425.83
A47: 42
A48: 43 | D48: General Plant
A49: 44 | B49: 389 | D49: Land & Land Rights | E49: GENPLT | G49: 168071.4288 | I49: 136802.6136 | K49: 31206.58983 | M49: 62.22536134
A50: 45 | B50: 390 | D50: Structures & Improvements | E50: GENPLT | G50: 4940842.464 | I50: 3919634.805 | K50: 1019175.442 | M50: 2032.21693
A51: 46 | B51: 391 | D51: Office Furniture and Equipment | E51: GENPLT | G51: 9414874.104 | I51: 9183351.152 | K51: 231062.2184 | M51: 460.7337781
A52: 47 | B52: 392 | D52: Transportation Equipment | E52: GENPLT | G52: 7633484.361 | I52: 5765575.836 | K52: 1864191.361 | M52: 3717.163
A53: 48 | B53: 393 | D53: Stores Equipment | E53: GENPLT | G53: 7313.48 | I53: 5518.015548 | K53: 1791.891454 | M53: 3.572998325
A54: 49 | B54: 394 | D54: Tools, Shop & Garage - Allocated | E54: GENPLT | G54: 6203522.364 | I54: 4686900.773 | K54: 1513603.494 | M54: 3018.097295
A55: 50 | B55: 394 | D55: Tools, Shop & Garage - Dir. Assn. | E55: GENPLT | G55: 0 | I55: 0 | K55: 0 | M55: 0
A56: 51 | B56: 394 | D56: Odorization | E56: COM | G56: 68075.27 | I56: 0 | K56: 0 | M56: 68075.27
A57: 52 | B57: 395 | D57: CNG Equipment | E57: GENPLT | G57: 0 | I57: 0 | K57: 0 | M57: 0
A58: 53 | B58: 396 | D58: Major Work Equipment | E58: GENPLT | G58: 502270.02 | I58: 378962.379 | K58: 123062.2571 | M58: 245.3838583
A59: 54 | B59: 397 | D59: Communication Equipment - Allocated | E59: GENPLT | G59: 11026954.4 | I59: 8340431.667 | K59: 2681176.515 | M59: 5346.216245
A60: 55 | B60: 397 | D60: Communication Equipment - Dir. Assn. | E60: GENPLT | G60: 0 | I60: 0 | K60: 0 | M60: 0
A61: 56 | B61: 398 | D61: Miscellaneous General Plant | E61: GENPLT | G61: 0 | I61: 0 | K61: 0 | M61: 0
A62: 57 | D62: Total General Plant | G62: =SUM(G49:G61) -> 39965407.89 | I62: =SUM(I49:I61) -> 32417177.24 | K62: =SUM(K49:K61) -> 7465269.77 | M62: =SUM(M49:M61) -> 82960.87947
A63: 58
A64: 59 | D64: Total Plant in Service | G64: =+G46+G62+G19+G9 -> 287432150.7 | I64: =+I46+I62+I19+I9 -> 181333907.9 | K64: =+K46+K62+K19+K9 -> 105733064.7 | M64: =+M46+M62+M19+M9 -> 365178.1095
A65: 60
A66: 61 | D66: Depreciation & Amortization Reserve
A67: 62 | B67: 301-303 | D67: Intangible Plant | E67: DISPLTRES-ALLOC | G67: 0 | I67: =+$G67*INDEX('Classification Factors'!H$5:H$205,MATCH($E67,'Classification Factors'!$C$5:$C$205,0)) -> 0 | K67: =+$G67*INDEX('Classification Factors'!J$5:J$205,MATCH($E67,'Classification Factors'!$C$5:$C$205,0)) -> 0 | M67: =+$G67*INDEX('Classification Factors'!L$5:L$205,MATCH($E67,'Classification Factors'!$C$5:$C$205,0)) -> 0
A68: 63 | B68: 325-371 | D68: Transmission Plant | E68: DEM | G68: -2718742.584 | I68: =+$G68*INDEX('Classification Factors'!H$5:H$205,MATCH($E68,'Classification Factors'!$C$5:$C$205,0)) -> 0 | K68: =+$G68*INDEX('Classification Factors'!J$5:J$205,MATCH($E68,'Classification Factors'!$C$5:$C$205,0)) -> -2718742.584 | M68: =+$G68*INDEX('Classification Factors'!L$5:L$205,MATCH($E68,'Classification Factors'!$C$5:$C$205,0)) -> 0
A69: 64 | B69: 369 | D69: Odorization | E69: COM | G69: -36620.95577 | I69: =+$G69*INDEX('Classification Factors'!H$5:H$205,MATCH($E69,'Classification Factors'!$C$5:$C$205,0)) -> 0 | K69: =+$G69*INDEX('Classification Factors'!J$5:J$205,MATCH($E69,'Classification Factors'!$C$5:$C$205,0)) -> 0 | M69: =+$G69*INDEX('Classification Factors'!L$5:L$205,MATCH($E69,'Classification Factors'!$C$5:$C$205,0)) -> -36620.95577
A70: 65 | B70: 374-387 | D70: Distribution Plant - Allocated | E70: DISPLTRES-ALLOC | G70: -29006791.7 | I70: =+$G70*INDEX('Classification Factors'!H$5:H$205,MATCH($E70,'Classification Factors'!$C$5:$C$205,0)) -> -22513367.12 | K70: =+$G70*INDEX('Classification Factors'!J$5:J$205,MATCH($E70,'Classification Factors'!$C$5:$C$205,0)) -> -6492746.319 | M70: =+$G70*INDEX('Classification Factors'!L$5:L$205,MATCH($E70,'Classification Factors'!$C$5:$C$205,0)) -> -678.2559965
A71: =+A70+1 -> 66 | B71: 374 | D71: Land & Land Rights - Directly Assigned | E71: DIS376-379-DA | G71: 0 | I71: =+$G71*INDEX('Classification Factors'!H$5:H$205,MATCH($E71,'Classification Factors'!$C$5:$C$205,0)) -> 0 | K71: =+$G71*INDEX('Classification Factors'!J$5:J$205,MATCH($E71,'Classification Factors'!$C$5:$C$205,0)) -> 0 | M71: =+$G71*INDEX('Classification Factors'!L$5:L$205,MATCH($E71,'Classification Factors'!$C$5:$C$205,0)) -> 0
A72: 67 | B72: 376 | D72: Distribution Mains - Directly Assigned | E72: MAINSRES-DA | G72: 0 | I72: =+$G72*INDEX('Classification Factors'!H$5:H$205,MATCH($E72,'Classification Factors'!$C$5:$C$205,0)) -> 0 | K72: =+$G72*INDEX('Classification Factors'!J$5:J$205,MATCH($E72,'Classification Factors'!$C$5:$C$205,0)) -> 0 | M72: =+$G72*INDEX('Classification Factors'!L$5:L$205,MATCH($E72,'Classification Factors'!$C$5:$C$205,0)) -> 0
A73: 68 | B73: 378 | D73: Meas. & Reg. Sta. Equip.- Gen. - Dir. Assn. | E73: DEM | G73: 0 | I73: =+$G73*INDEX('Classification Factors'!H$5:H$205,MATCH($E73,'Classification Factors'!$C$5:$C$205,0)) -> 0 | K73: =+$G73*INDEX('Classification Factors'!J$5:J$205,MATCH($E73,'Classification Factors'!$C$5:$C$205,0)) -> 0 | M73: =+$G73*INDEX('Classification Factors'!L$5:L$205,MATCH($E73,'Classification Factors'!$C$5:$C$205,0)) -> 0
A74: 69 | B74: 380 | D74: Services - Directly Assigned | E74: CUS | G74: 0 | I74: =+$G74*INDEX('Classification Factors'!H$5:H$205,MATCH($E74,'Classification Factors'!$C$5:$C$205,0)) -> 0 | K74: =+$G74*INDEX('Classification Factors'!J$5:J$205,MATCH($E74,'Classification Factors'!$C$5:$C$205,0)) -> 0 | M74: =+$G74*INDEX('Classification Factors'!L$5:L$205,MATCH($E74,'Classification Factors'!$C$5:$C$205,0)) -> 0
A75: 70 | B75: 381 | D75: Meters - Directly Assigned | E75: CUS | G75: 0 | I75: =+$G75*INDEX('Classification Factors'!H$5:H$205,MATCH($E75,'Classification Factors'!$C$5:$C$205,0)) -> 0 | K75: =+$G75*INDEX('Classification Factors'!J$5:J$205,MATCH($E75,'Classification Factors'!$C$5:$C$205,0)) -> 0 | M75: =+$G75*INDEX('Classification Factors'!L$5:L$205,MATCH($E75,'Classification Factors'!$C$5:$C$205,0)) -> 0
A76: 71 | B76: 383 | D76: House Regulators - Directly Assigned | E76: CUS | G76: 0 | I76: =+$G76*INDEX('Classification Factors'!H$5:H$205,MATCH($E76,'Classification Factors'!$C$5:$C$205,0)) -> 0 | K76: =+$G76*INDEX('Classification Factors'!J$5:J$205,MATCH($E76,'Classification Factors'!$C$5:$C$205,0)) -> 0 | M76: =+$G76*INDEX('Classification Factors'!L$5:L$205,MATCH($E76,'Classification Factors'!$C$5:$C$205,0)) -> 0
A77: 72 | B77: 385 | D77: Meas. & Reg. Sta. Equip. - Ind. - Dir. Assn. | E77: DEM | G77: 0 | I77: =+$G77*INDEX('Classification Factors'!H$5:H$205,MATCH($E77,'Classification Factors'!$C$5:$C$205,0)) -> 0 | K77: =+$G77*INDEX('Classification Factors'!J$5:J$205,MATCH($E77,'Classification Factors'!$C$5:$C$205,0)) -> 0 | M77: =+$G77*INDEX('Classification Factors'!L$5:L$205,MATCH($E77,'Classification Factors'!$C$5:$C$205,0)) -> 0
A78: 73 | B78: 389-398 | D78: General Plant -Allocated | E78: GEN-ALLOCRES | G78: -13310563.26 | I78: =+$G78*INDEX('Classification Factors'!H$5:H$205,MATCH($E78,'Classification Factors'!$C$5:$C$205,0)) -> -11134077 | K78: =+$G78*INDEX('Classification Factors'!J$5:J$205,MATCH($E78,'Classification Factors'!$C$5:$C$205,0)) -> -2160440.794 | M78: =+$G78*INDEX('Classification Factors'!L$5:L$205,MATCH($E78,'Classification Factors'!$C$5:$C$205,0)) -> -16045.4688
A79: 74 | B79: 389-398 | D79: General Plant - Directly Assigned | E79: GEN-DARES | G79: 0 | I79: =+$G79*INDEX('Classification Factors'!H$5:H$205,MATCH($E79,'Classification Factors'!$C$5:$C$205,0)) -> 0 | K79: =+$G79*INDEX('Classification Factors'!J$5:J$205,MATCH($E79,'Classification Factors'!$C$5:$C$205,0)) -> 0 | M79: =+$G79*INDEX('Classification Factors'!L$5:L$205,MATCH($E79,'Classification Factors'!$C$5:$C$205,0)) -> 0
A80: 75 | D80: Total Depreciation & Amortization Reserve | G80: =SUM(G67:G79) -> -45072718.5 | I80: =SUM(I67:I79) -> -33647444.12 | K80: =SUM(K67:K79) -> -11371929.7 | M80: =SUM(M67:M79) -> -53344.68056
A81: 76
A82: 77 | D82: Net Plant in Service | G82: =+G64+G80 -> 242359432.2 | I82: =+I64+I80 -> 147686463.8 | K82: =+K64+K80 -> 94361135.01 | M82: =+M64+M80 -> 311833.4289
A83: 78
A84: 79 | D84: Customer Deposits | E84: CUS | G84: -2514038 | I84: =+$G84*INDEX('Classification Factors'!H$5:H$205,MATCH($E84,'Classification Factors'!$C$5:$C$205,0)) -> -2514038 | K84: =+$G84*INDEX('Classification Factors'!J$5:J$205,MATCH($E84,'Classification Factors'!$C$5:$C$205,0)) -> 0 | M84: =+$G84*INDEX('Classification Factors'!L$5:L$205,MATCH($E84,'Classification Factors'!$C$5:$C$205,0)) -> 0
A85: 80
A86: 81 | D86: Customer Advances | E86: MAINS/SVCS | G86: -137980.6 | I86: =+$G86*INDEX('Classification Factors'!H$5:H$205,MATCH($E86,'Classification Factors'!$C$5:$C$205,0)) -> -105843.9369 | K86: =+$G86*INDEX('Classification Factors'!J$5:J$205,MATCH($E86,'Classification Factors'!$C$5:$C$205,0)) -> -32136.66309 | M86: =+$G86*INDEX('Classification Factors'!L$5:L$205,MATCH($E86,'Classification Factors'!$C$5:$C$205,0)) -> 0
A87: 82
A88: 83 | D88: Accumulated Deferred Income Taxes | E88: TOTPLT | G88: -22456815.91 | I88: =+$G88*INDEX('Classification Factors'!H$5:H$205,MATCH($E88,'Classification Factors'!$C$5:$C$205,0)) -> -14167455.44 | K88: =+$G88*INDEX('Classification Factors'!J$5:J$205,MATCH($E88,'Classification Factors'!$C$5:$C$205,0)) -> -8260829.431 | M88: =+$G88*INDEX('Classification Factors'!L$5:L$205,MATCH($E88,'Classification Factors'!$C$5:$C$205,0)) -> -28531.03788
A89: 84
A90: 85 | D90: Excess Deferred Income Taxes | E90: TOTPLT | G90: -2695938.8 | I90: =+$G90*INDEX('Classification Factors'!H$5:H$205,MATCH($E90,'Classification Factors'!$C$5:$C$205,0)) -> -1700801.796 | K90: =+$G90*INDEX('Classification Factors'!J$5:J$205,MATCH($E90,'Classification Factors'!$C$5:$C$205,0)) -> -991711.8558 | M90: =+$G90*INDEX('Classification Factors'!L$5:L$205,MATCH($E90,'Classification Factors'!$C$5:$C$205,0)) -> -3425.14862
A91: 86
A92: 87 | D92: Negative Acquisition Adjustment on OPC Assets | E92: MAINS-ALLOC | G92: 0 | I92: =+$G92*INDEX('Classification Factors'!H$5:H$205,MATCH($E92,'Classification Factors'!$C$5:$C$205,0)) -> 0 | K92: =+$G92*INDEX('Classification Factors'!J$5:J$205,MATCH($E92,'Classification Factors'!$C$5:$C$205,0)) -> 0 | M92: =+$G92*INDEX('Classification Factors'!L$5:L$205,MATCH($E92,'Classification Factors'!$C$5:$C$205,0)) -> 0
A93: 88
A94: 89 | D94: Materials and Supplies | E94: TOTPLT | G94: 3060677.276 | I94: =+$G94*INDEX('Classification Factors'!H$5:H$205,MATCH($E94,'Classification Factors'!$C$5:$C$205,0)) -> 1930906.372 | K94: =+$G94*INDEX('Classification Factors'!J$5:J$205,MATCH($E94,'Classification Factors'!$C$5:$C$205,0)) -> 1125882.361 | M94: =+$G94*INDEX('Classification Factors'!L$5:L$205,MATCH($E94,'Classification Factors'!$C$5:$C$205,0)) -> 3888.543222
A95: 90
A96: 91 | D96: Prepayments | E96: OPEXP | G96: 1006867.16 | I96: =+$G96*INDEX('Classification Factors'!H$5:H$205,MATCH($E96,'Classification Factors'!$C$5:$C$205,0)) -> 571296.8014 | K96: =+$G96*INDEX('Classification Factors'!J$5:J$205,MATCH($E96,'Classification Factors'!$C$5:$C$205,0)) -> 423349.3466 | M96: =+$G96*INDEX('Classification Factors'!L$5:L$205,MATCH($E96,'Classification Factors'!$C$5:$C$205,0)) -> 12221.01208
A97: 92
A98: 93 | D98: Pension & FAS 106 Regulatory Asset | E98: OPEXP | G98: 4101307.063 | I98: =+$G98*INDEX('Classification Factors'!H$5:H$205,MATCH($E98,'Classification Factors'!$C$5:$C$205,0)) -> 2327083.154 | K98: =+$G98*INDEX('Classification Factors'!J$5:J$205,MATCH($E98,'Classification Factors'!$C$5:$C$205,0)) -> 1724443.635 | M98: =+$G98*INDEX('Classification Factors'!L$5:L$205,MATCH($E98,'Classification Factors'!$C$5:$C$205,0)) -> 49780.27403
A99: 94
A100: 95 | D100: DIMP Deferrals | E100: OPEXP | G100: 319028.81 | I100: =+$G100*INDEX('Classification Factors'!H$5:H$205,MATCH($E100,'Classification Factors'!$C$5:$C$205,0)) -> 181017.0655 | K100: =+$G100*INDEX('Classification Factors'!J$5:J$205,MATCH($E100,'Classification Factors'!$C$5:$C$205,0)) -> 134139.481 | M100: =+$G100*INDEX('Classification Factors'!L$5:L$205,MATCH($E100,'Classification Factors'!$C$5:$C$205,0)) -> 3872.263486
A101: 96
A102: 97 | D102: Regulatory Assets | E102: OPEXP | G102: 101179.53 | I102: =+$G102*INDEX('Classification Factors'!H$5:H$205,MATCH($E102,'Classification Factors'!$C$5:$C$205,0)) -> 57409.30298 | K102: =+$G102*INDEX('Classification Factors'!J$5:J$205,MATCH($E102,'Classification Factors'!$C$5:$C$205,0)) -> 42542.1442 | M102: =+$G102*INDEX('Classification Factors'!L$5:L$205,MATCH($E102,'Classification Factors'!$C$5:$C$205,0)) -> 1228.082817
A103: 98
A104: 99 | D104: Cash Working Capital | E104: OPEXP | G104: -1227198.707 | I104: =+$G104*INDEX('Classification Factors'!H$5:H$205,MATCH($E104,'Classification Factors'!$C$5:$C$205,0)) -> -696313.003 | K104: =+$G104*INDEX('Classification Factors'!J$5:J$205,MATCH($E104,'Classification Factors'!$C$5:$C$205,0)) -> -515990.3822 | M104: =+$G104*INDEX('Classification Factors'!L$5:L$205,MATCH($E104,'Classification Factors'!$C$5:$C$205,0)) -> -14895.32166
A105: 100
A106: 101 | D106: Total Rate Base | G106: =G82+G84+G86+G88+G90+G92+G94+G96+G98+G100+G102+G104 -> 221916520 | I106: =I82+I84+I86+I88+I90+I92+I94+I96+I98+I100+I102+I104 -> 133569724.3 | K106: =K82+K84+K86+K88+K90+K92+K94+K96+K98+K100+K102+K104 -> 88010823.65 | M106: =M82+M84+M86+M88+M90+M92+M94+M96+M98+M100+M102+M104 -> 335972.0964

Sheet Classified Cost of Service
A1: CLASS COST OF SERVICE STUDY: CLASSIFIED COST OF SERVICE
A3: LINE NO. | B3: ='Classified Rate Base'!B3 -> ACCT. | D3: ='Classified Rate Base'!D3 -> DESCRIPTION | E3: ='Classified Rate Base'!E3 -> CLASSIFICATION FACTOR | G3: ='Classified Rate Base'!G3 -> TOTAL | I3: ='Classified Rate Base'!I3 -> CUSTOMER | K3: ='Classified Rate Base'!K3 -> DEMAND | M3: ='Classified Rate Base'!M3 -> COMMODITY
B4: ='Classified Rate Base'!B4 -> (a) | D4: ='Classified Rate Base'!D4 -> (b) | E4: ='Classified Rate Base'!E4 -> (c) | G4: ='Classified Rate Base'!G4 -> (d) | I4: ='Classified Rate Base'!I4 -> (e) | K4: ='Classified Rate Base'!K4 -> (f) | M4: ='Classified Rate Base'!M4 -> (g)
A5: 1 | D5: Transmission & Distribution Operations Exp.
A6: =+A5+1 -> 2 | B6: 814-865 | D6: Transmission Expenses | E6: DEM | G6: 5488388.461 | I6: =+$G6*INDEX('Classification Factors'!H$5:H$205,MATCH($E6,'Classification Factors'!$C$5:$C$205,0)) -> 0 | K6: =+$G6*INDEX('Classification Factors'!J$5:J$205,MATCH($E6,'Classification Factors'!$C$5:$C$205,0)) -> 5488388.461 | M6: =+$G6*INDEX('Classification Factors'!L$5:L$205,MATCH($E6,'Classification Factors'!$C$5:$C$205,0)) -> 0
A7: 3 | B7: 8650 | D7: Odorization | E7: COM | G7: 0 | I7: =+$G7*INDEX('Classification Factors'!H$5:H$205,MATCH($E7,'Classification Factors'!$C$5:$C$205,0)) -> 0 | K7: =+$G7*INDEX('Classification Factors'!J$5:J$205,MATCH($E7,'Classification Factors'!$C$5:$C$205,0)) -> 0 | M7: =+$G7*INDEX('Classification Factors'!L$5:L$205,MATCH($E7,'Classification Factors'!$C$5:$C$205,0)) -> 0
A8: 4 | B8: 8700 | D8: Operation Supervision & Engineering | E8: DIS871-879 | G8: 431617.6605 | I8: =+$G8*INDEX('Classification Factors'!H$5:H$205,MATCH($E8,'Classification Factors'!$C$5:$C$205,0)) -> 344705.7987 | K8: =+$G8*INDEX('Classification Factors'!J$5:J$205,MATCH($E8,'Classification Factors'!$C$5:$C$205,0)) -> 82252.16318 | M8: =+$G8*INDEX('Classification Factors'!L$5:L$205,MATCH($E8,'Classification Factors'!$C$5:$C$205,0)) -> 4659.698703
A9: 5 | B9: 8710 | D9: Distribution Load Dispatch | E9: COM | G9: 53185.43873 | I9: =+$G9*INDEX('Classification Factors'!H$5:H$205,MATCH($E9,'Classification Factors'!$C$5:$C$205,0)) -> 0 | K9: =+$G9*INDEX('Classification Factors'!J$5:J$205,MATCH($E9,'Classification Factors'!$C$5:$C$205,0)) -> 0 | M9: =+$G9*INDEX('Classification Factors'!L$5:L$205,MATCH($E9,'Classification Factors'!$C$5:$C$205,0)) -> 53185.43873 | Q9: Mains & Services
A10: 6 | B10: 8740 | D10: Mains & Services - Allocated | E10: MAINS/SVCS-ALLOC | G10: 2816761.801 | I10: =+$G10*INDEX('Classification Factors'!H$5:H$205,MATCH($E10,'Classification Factors'!$C$5:$C$205,0)) -> 2160717.944 | K10: =+$G10*INDEX('Classification Factors'!J$5:J$205,MATCH($E10,'Classification Factors'!$C$5:$C$205,0)) -> 656043.8569 | M10: =+$G10*INDEX('Classification Factors'!L$5:L$205,MATCH($E10,'Classification Factors'!$C$5:$C$205,0)) -> 0 | P10: Allocated | Q10: =('Classified Rate Base'!G25+'Classified Rate Base'!G34)/('Classified Rate Base'!G25+'Classified Rate Base'!G26+'Classified Rate Base'!G34+'Classified Rate Base'!G35) -> 1
A11: 7 | B11: 8740 | D11: Mains & Services - Dir. Assn. | E11: MAINS/SVCS-DA | G11: 0 | I11: =+$G11*INDEX('Classification Factors'!H$5:H$205,MATCH($E11,'Classification Factors'!$C$5:$C$205,0)) -> 0 | K11: =+$G11*INDEX('Classification Factors'!J$5:J$205,MATCH($E11,'Classification Factors'!$C$5:$C$205,0)) -> 0 | M11: =+$G11*INDEX('Classification Factors'!L$5:L$205,MATCH($E11,'Classification Factors'!$C$5:$C$205,0)) -> 0 | P11: DA | Q11: =1-Q10 -> 0
A12: 8 | B12: 8740 | D12: Odorization | E12: COM | G12: 0 | I12: =+$G12*INDEX('Classification Factors'!H$5:H$205,MATCH($E12,'Classification Factors'!$C$5:$C$205,0)) -> 0 | K12: =+$G12*INDEX('Classification Factors'!J$5:J$205,MATCH($E12,'Classification Factors'!$C$5:$C$205,0)) -> 0 | M12: =+$G12*INDEX('Classification Factors'!L$5:L$205,MATCH($E12,'Classification Factors'!$C$5:$C$205,0)) -> 0 | Q12: Measuring & Reg.
A13: 9 | B13: 8750 | D13: Measuring & Reg. Stat. Exp.-Gen.-Allocated | E13: DEM | G13: 213445.4584 | I13: =+$G13*INDEX('Classification Factors'!H$5:H$205,MATCH($E13,'Classification Factors'!$C$5:$C$205,0)) -> 0 | K13: =+$G13*INDEX('Classification Factors'!J$5:J$205,MATCH($E13,'Classification Factors'!$C$5:$C$205,0)) -> 213445.4584 | M13: =+$G13*INDEX('Classification Factors'!L$5:L$205,MATCH($E13,'Classification Factors'!$C$5:$C$205,0)) -> 0 | P13: Allocated | Q13: ='Classified Rate Base'!G29/('Classified Rate Base'!G29+'Classified Rate Base'!G30) -> 1
A14: 10 | B14: 8750 | D14: Measuring & Reg. Stat. Exp.-Gen.-Dir. Assn. | E14: DEM | G14: 0 | I14: =+$G14*INDEX('Classification Factors'!H$5:H$205,MATCH($E14,'Classification Factors'!$C$5:$C$205,0)) -> 0 | K14: =+$G14*INDEX('Classification Factors'!J$5:J$205,MATCH($E14,'Classification Factors'!$C$5:$C$205,0)) -> 0 | M14: =+$G14*INDEX('Classification Factors'!L$5:L$205,MATCH($E14,'Classification Factors'!$C$5:$C$205,0)) -> 0 | P14: DA | Q14: =1-Q13 -> 0
A15: 11 | B15: 8750 | D15: Odorization | E15: COM | G15: 95703.27 | I15: =+$G15*INDEX('Classification Factors'!H$5:H$205,MATCH($E15,'Classification Factors'!$C$5:$C$205,0)) -> 0 | K15: =+$G15*INDEX('Classification Factors'!J$5:J$205,MATCH($E15,'Classification Factors'!$C$5:$C$205,0)) -> 0 | M15: =+$G15*INDEX('Classification Factors'!L$5:L$205,MATCH($E15,'Classification Factors'!$C$5:$C$205,0)) -> 95703.27 | Q15: Measuring & Reg. - Ind.
A16: 12 | B16: 8760 | D16: Meas. & Reg. Stat. Exp.- Ind.- Allocated | E16: DEM | G16: 25374.12812 | I16: =+$G16*INDEX('Classification Factors'!H$5:H$205,MATCH($E16,'Classification Factors'!$C$5:$C$205,0)) -> 0 | K16: =+$G16*INDEX('Classification Factors'!J$5:J$205,MATCH($E16,'Classification Factors'!$C$5:$C$205,0)) -> 25374.12812 | M16: =+$G16*INDEX('Classification Factors'!L$5:L$205,MATCH($E16,'Classification Factors'!$C$5:$C$205,0)) -> 0 | P16: Allocated | Q16: ='Classified Rate Base'!G41/('Classified Rate Base'!G41+'Classified Rate Base'!G42) -> 1
A17: 13 | B17: 8760 | D17: Meas. & Reg. Stat. Exp.- Ind.- Dir. Assn. | E17: DEM | G17: 0 | I17: =+$G17*INDEX('Classification Factors'!H$5:H$205,MATCH($E17,'Classification Factors'!$C$5:$C$205,0)) -> 0 | K17: =+$G17*INDEX('Classification Factors'!J$5:J$205,MATCH($E17,'Classification Factors'!$C$5:$C$205,0)) -> 0 | M17: =+$G17*INDEX('Classification Factors'!L$5:L$205,MATCH($E17,'Classification Factors'!$C$5:$C$205,0)) -> 0 | P17: DA | Q17: =1-Q16 -> 0
A18: 14 | B18: 8770 | D18: Meas. & Regulating Station Exp.- City Gate | E18: DEM | G18: 43956.35235 | I18: =+$G18*INDEX('Classification Factors'!H$5:H$205,MATCH($E18,'Classification Factors'!$C$5:$C$205,0)) -> 0 | K18: =+$G18*INDEX('Classification Factors'!J$5:J$205,MATCH($E18,'Classification Factors'!$C$5:$C$205,0)) -> 43956.35235 | M18: =+$G18*INDEX('Classification Factors'!L$5:L$205,MATCH($E18,'Classification Factors'!$C$5:$C$205,0)) -> 0 | Q18: Meter and House Reg.
A19: 15 | B19: 8780 | D19: Meter and House Regulator Exp.- Allocated | E19: CUS | G19: 1771500.379 | I19: =+$G19*INDEX('Classification Factors'!H$5:H$205,MATCH($E19,'Classification Factors'!$C$5:$C$205,0)) -> 1771500.379 | K19: =+$G19*INDEX('Classification Factors'!J$5:J$205,MATCH($E19,'Classification Factors'!$C$5:$C$205,0)) -> 0 | M19: =+$G19*INDEX('Classification Factors'!L$5:L$205,MATCH($E19,'Classification Factors'!$C$5:$C$205,0)) -> 0 | P19: Allocated | Q19: =('Classified Rate Base'!G36+'Classified Rate Base'!G39)/('Classified Rate Base'!G36+'Classified Rate Base'!G37+'Classified Rate Base'!G39+'Classified Rate Base'!G40) -> 1
A20: 16 | B20: 8780 | D20: Meter and House Regulator Exp.- Dir. Assn. | E20: CUS | G20: 0 | I20: =+$G20*INDEX('Classification Factors'!H$5:H$205,MATCH($E20,'Classification Factors'!$C$5:$C$205,0)) -> 0 | K20: =+$G20*INDEX('Classification Factors'!J$5:J$205,MATCH($E20,'Classification Factors'!$C$5:$C$205,0)) -> 0 | M20: =+$G20*INDEX('Classification Factors'!L$5:L$205,MATCH($E20,'Classification Factors'!$C$5:$C$205,0)) -> 0 | P20: DA | Q20: =1-Q19 -> 0
A21: 17 | B21: 8780 | D21: Odorization | E21: COM | G21: 0 | I21: =+$G21*INDEX('Classification Factors'!H$5:H$205,MATCH($E21,'Classification Factors'!$C$5:$C$205,0)) -> 0 | K21: =+$G21*INDEX('Classification Factors'!J$5:J$205,MATCH($E21,'Classification Factors'!$C$5:$C$205,0)) -> 0 | M21: =+$G21*INDEX('Classification Factors'!L$5:L$205,MATCH($E21,'Classification Factors'!$C$5:$C$205,0)) -> 0
A22: 18 | B22: 8790 | D22: Customer Installation Expenses | E22: CUS | G22: 2226.86266 | I22: =+$G22*INDEX('Classification Factors'!H$5:H$205,MATCH($E22,'Classification Factors'!$C$5:$C$205,0)) -> 2226.86266 | K22: =+$G22*INDEX('Classification Factors'!J$5:J$205,MATCH($E22,'Classification Factors'!$C$5:$C$205,0)) -> 0 | M22: =+$G22*INDEX('Classification Factors'!L$5:L$205,MATCH($E22,'Classification Factors'!$C$5:$C$205,0)) -> 0
A23: 19 | B23: 8800 | D23: Other Expenses | E23: DIS871-879 | G23: 351827.4034 | I23: =+$G23*INDEX('Classification Factors'!H$5:H$205,MATCH($E23,'Classification Factors'!$C$5:$C$205,0)) -> 280982.3535 | K23: =+$G23*INDEX('Classification Factors'!J$5:J$205,MATCH($E23,'Classification Factors'!$C$5:$C$205,0)) -> 67046.75838 | M23: =+$G23*INDEX('Classification Factors'!L$5:L$205,MATCH($E23,'Classification Factors'!$C$5:$C$205,0)) -> 3798.29151
A24: 20 | B24: 8800 | D24: Odorization | E24: COM | G24: 651.91 | I24: =+$G24*INDEX('Classification Factors'!H$5:H$205,MATCH($E24,'Classification Factors'!$C$5:$C$205,0)) -> 0 | K24: =+$G24*INDEX('Classification Factors'!J$5:J$205,MATCH($E24,'Classification Factors'!$C$5:$C$205,0)) -> 0 | M24: =+$G24*INDEX('Classification Factors'!L$5:L$205,MATCH($E24,'Classification Factors'!$C$5:$C$205,0)) -> 651.91
A25: 21 | B25: 8810 | D25: Rents | E25: DIS871-879 | G25: 15454.61 | I25: =+$G25*INDEX('Classification Factors'!H$5:H$205,MATCH($E25,'Classification Factors'!$C$5:$C$205,0)) -> 12342.62212 | K25: =+$G25*INDEX('Classification Factors'!J$5:J$205,MATCH($E25,'Classification Factors'!$C$5:$C$205,0)) -> 2945.141545 | M25: =+$G25*INDEX('Classification Factors'!L$5:L$205,MATCH($E25,'Classification Factors'!$C$5:$C$205,0)) -> 166.8463382
A26: 22 | B26: 8820 | D26: Corporate & Div. Exp. | E26: DEM | G26: 0 | I26: =+$G26*INDEX('Classification Factors'!H$5:H$205,MATCH($E26,'Classification Factors'!$C$5:$C$205,0)) -> 0 | K26: =+$G26*INDEX('Classification Factors'!J$5:J$205,MATCH($E26,'Classification Factors'!$C$5:$C$205,0)) -> 0 | M26: =+$G26*INDEX('Classification Factors'!L$5:L$205,MATCH($E26,'Classification Factors'!$C$5:$C$205,0)) -> 0
A27: 23 | D27: Total Transmission & Distribution Oper. Exp. | G27: =SUM(G6:G26) -> 11310093.74 | I27: =SUM(I6:I26) -> 4572475.961 | K27: =SUM(K6:K26) -> 6579452.319 | M27: =SUM(M6:M26) -> 158165.4553
A28: 24
A29: 25 | D29: Distribution Maintenance Expenses
A30: 26 | B30: 8850 | D30: Maintenance Supervision and Engineering | E30: DIS887-893 | G30: 0 | I30: =+$G30*INDEX('Classification Factors'!H$5:H$205,MATCH($E30,'Classification Factors'!$C$5:$C$205,0)) -> 0 | K30: =+$G30*INDEX('Classification Factors'!J$5:J$205,MATCH($E30,'Classification Factors'!$C$5:$C$205,0)) -> 0 | M30: =+$G30*INDEX('Classification Factors'!L$5:L$205,MATCH($E30,'Classification Factors'!$C$5:$C$205,0)) -> 0
A31: 27 | B31: 8860 | D31: Structures and Improvements | E31: DIS887-893 | G31: 437038.6344 | I31: =+$G31*INDEX('Classification Factors'!H$5:H$205,MATCH($E31,'Classification Factors'!$C$5:$C$205,0)) -> 173850.6456 | K31: =+$G31*INDEX('Classification Factors'!J$5:J$205,MATCH($E31,'Classification Factors'!$C$5:$C$205,0)) -> 252023.2623 | M31: =+$G31*INDEX('Classification Factors'!L$5:L$205,MATCH($E31,'Classification Factors'!$C$5:$C$205,0)) -> 11164.72652 | Q31: Mains
A32: 28 | B32: 8870 | D32: Maintenance of Mains-Allocated | E32: MAINS-ALLOC | G32: 1325262.369 | I32: =+$G32*INDEX('Classification Factors'!H$5:H$205,MATCH($E32,'Classification Factors'!$C$5:$C$205,0)) -> 742983.9876 | K32: =+$G32*INDEX('Classification Factors'!J$5:J$205,MATCH($E32,'Classification Factors'!$C$5:$C$205,0)) -> 582278.3813 | M32: =+$G32*INDEX('Classification Factors'!L$5:L$205,MATCH($E32,'Classification Factors'!$C$5:$C$205,0)) -> 0 | P32: Allocated | Q32: =+('Classified Rate Base'!G25/('Classified Rate Base'!G25+'Classified Rate Base'!G26)) -> 1
A33: 29 | B33: 8870 | D33: Maintenance of Mains - Directly Assn. | E33: MAINS-DA | G33: 0 | I33: =+$G33*INDEX('Classification Factors'!H$5:H$205,MATCH($E33,'Classification Factors'!$C$5:$C$205,0)) -> 0 | K33: =+$G33*INDEX('Classification Factors'!J$5:J$205,MATCH($E33,'Classification Factors'!$C$5:$C$205,0)) -> 0 | M33: =+$G33*INDEX('Classification Factors'!L$5:L$205,MATCH($E33,'Classification Factors'!$C$5:$C$205,0)) -> 0 | P33: DA | Q33: =1-Q32 -> 0
A34: 30 | B34: 8890 | D34: Maint. of Meas. & Reg. Sta. Equip.- Gen. - Alloc. | E34: DEM | G34: 854497.5237 | I34: =+$G34*INDEX('Classification Factors'!H$5:H$205,MATCH($E34,'Classification Factors'!$C$5:$C$205,0)) -> 0 | K34: =+$G34*INDEX('Classification Factors'!J$5:J$205,MATCH($E34,'Classification Factors'!$C$5:$C$205,0)) -> 854497.5237 | M34: =+$G34*INDEX('Classification Factors'!L$5:L$205,MATCH($E34,'Classification Factors'!$C$5:$C$205,0)) -> 0
A35: 31 | B35: 8890 | D35: Maint. of Meas. & Reg. Sta. Equip. - Gen. - Dir. Assn. | E35: DEM | G35: 0 | I35: =+$G35*INDEX('Classification Factors'!H$5:H$205,MATCH($E35,'Classification Factors'!$C$5:$C$205,0)) -> 0 | K35: =+$G35*INDEX('Classification Factors'!J$5:J$205,MATCH($E35,'Classification Factors'!$C$5:$C$205,0)) -> 0 | M35: =+$G35*INDEX('Classification Factors'!L$5:L$205,MATCH($E35,'Classification Factors'!$C$5:$C$205,0)) -> 0
A36: 32 | B36: 8890 | D36: Odorization | E36: COM | G36: 80021.25 | I36: =+$G36*INDEX('Classification Factors'!H$5:H$205,MATCH($E36,'Classification Factors'!$C$5:$C$205,0)) -> 0 | K36: =+$G36*INDEX('Classification Factors'!J$5:J$205,MATCH($E36,'Classification Factors'!$C$5:$C$205,0)) -> 0 | M36: =+$G36*INDEX('Classification Factors'!L$5:L$205,MATCH($E36,'Classification Factors'!$C$5:$C$205,0)) -> 80021.25
A37: 33 | B37: 8900 | D37: Maint. of Meas. & Reg. Sta. Equip. - Ind. - Alloc. | E37: DEM | G37: 351992.9206 | I37: =+$G37*INDEX('Classification Factors'!H$5:H$205,MATCH($E37,'Classification Factors'!$C$5:$C$205,0)) -> 0 | K37: =+$G37*INDEX('Classification Factors'!J$5:J$205,MATCH($E37,'Classification Factors'!$C$5:$C$205,0)) -> 351992.9206 | M37: =+$G37*INDEX('Classification Factors'!L$5:L$205,MATCH($E37,'Classification Factors'!$C$5:$C$205,0)) -> 0
A38: 34 | B38: 8900 | D38: Maint. of Meas. & Reg. Sta. Equip - Ind. - Dir. Assn. | E38: DEM | G38: 0 | I38: =+$G38*INDEX('Classification Factors'!H$5:H$205,MATCH($E38,'Classification Factors'!$C$5:$C$205,0)) -> 0 | K38: =+$G38*INDEX('Classification Factors'!J$5:J$205,MATCH($E38,'Classification Factors'!$C$5:$C$205,0)) -> 0 | M38: =+$G38*INDEX('Classification Factors'!L$5:L$205,MATCH($E38,'Classification Factors'!$C$5:$C$205,0)) -> 0
A39: 35 | B39: 8910 | D39: Maint. of Meas. & Reg. Sta. Equip. - City Gate | E39: DEM | G39: 17564.4 | I39: =+$G39*INDEX('Classification Factors'!H$5:H$205,MATCH($E39,'Classification Factors'!$C$5:$C$205,0)) -> 0 | K39: =+$G39*INDEX('Classification Factors'!J$5:J$205,MATCH($E39,'Classification Factors'!$C$5:$C$205,0)) -> 17564.4 | M39: =+$G39*INDEX('Classification Factors'!L$5:L$205,MATCH($E39,'Classification Factors'!$C$5:$C$205,0)) -> 0
A40: 36 | B40: 8910 | D40: Odorization | E40: COM | G40: 0 | I40: =+$G40*INDEX('Classification Factors'!H$5:H$205,MATCH($E40,'Classification Factors'!$C$5:$C$205,0)) -> 0 | K40: =+$G40*INDEX('Classification Factors'!J$5:J$205,MATCH($E40,'Classification Factors'!$C$5:$C$205,0)) -> 0 | M40: =+$G40*INDEX('Classification Factors'!L$5:L$205,MATCH($E40,'Classification Factors'!$C$5:$C$205,0)) -> 0 | Q40: Services
A41: 37 | B41: 8920 | D41: Maintenance of Services - Allocated | E41: CUS | G41: 503060.5028 | I41: =+$G41*INDEX('Classification Factors'!H$5:H$205,MATCH($E41,'Classification Factors'!$C$5:$C$205,0)) -> 503060.5028 | K41: =+$G41*INDEX('Classification Factors'!J$5:J$205,MATCH($E41,'Classification Factors'!$C$5:$C$205,0)) -> 0 | M41: =+$G41*INDEX('Classification Factors'!L$5:L$205,MATCH($E41,'Classification Factors'!$C$5:$C$205,0)) -> 0 | P41: Allocated | Q41: ='Classified Rate Base'!G34/('Classified Rate Base'!G34+'Classified Rate Base'!G35) -> 1
A42: 38 | B42: 8920 | D42: Maintenance of Services - Directly Assn. | E42: CUS | G42: 0 | I42: =+$G42*INDEX('Classification Factors'!H$5:H$205,MATCH($E42,'Classification Factors'!$C$5:$C$205,0)) -> 0 | K42: =+$G42*INDEX('Classification Factors'!J$5:J$205,MATCH($E42,'Classification Factors'!$C$5:$C$205,0)) -> 0 | M42: =+$G42*INDEX('Classification Factors'!L$5:L$205,MATCH($E42,'Classification Factors'!$C$5:$C$205,0)) -> 0 | P42: DA | Q42: =1-Q41 -> 0
A43: 39 | B43: 8930 | D43: Main. of Meters & House Reg. - Allocated | E43: CUS | G43: 0 | I43: =+$G43*INDEX('Classification Factors'!H$5:H$205,MATCH($E43,'Classification Factors'!$C$5:$C$205,0)) -> 0 | K43: =+$G43*INDEX('Classification Factors'!J$5:J$205,MATCH($E43,'Classification Factors'!$C$5:$C$205,0)) -> 0 | M43: =+$G43*INDEX('Classification Factors'!L$5:L$205,MATCH($E43,'Classification Factors'!$C$5:$C$205,0)) -> 0 | Q43: Meters & House Reg.
A44: 40 | B44: 8930 | D44: Main. of Meters & House Reg. - Dir. Assn. | E44: CUS | G44: 0 | I44: =+$G44*INDEX('Classification Factors'!H$5:H$205,MATCH($E44,'Classification Factors'!$C$5:$C$205,0)) -> 0 | K44: =+$G44*INDEX('Classification Factors'!J$5:J$205,MATCH($E44,'Classification Factors'!$C$5:$C$205,0)) -> 0 | M44: =+$G44*INDEX('Classification Factors'!L$5:L$205,MATCH($E44,'Classification Factors'!$C$5:$C$205,0)) -> 0 | P44: Allocated | Q44: =('Classified Rate Base'!G36+'Classified Rate Base'!G39)/('Classified Rate Base'!G36+'Classified Rate Base'!G37+'Classified Rate Base'!G39+'Classified Rate Base'!G40) -> 1
A45: 41 | B45: 8940 | D45: Maintenance of Other Equipment | E45: DIS887-893 | G45: 0 | I45: =+$G45*INDEX('Classification Factors'!H$5:H$205,MATCH($E45,'Classification Factors'!$C$5:$C$205,0)) -> 0 | K45: =+$G45*INDEX('Classification Factors'!J$5:J$205,MATCH($E45,'Classification Factors'!$C$5:$C$205,0)) -> 0 | M45: =+$G45*INDEX('Classification Factors'!L$5:L$205,MATCH($E45,'Classification Factors'!$C$5:$C$205,0)) -> 0 | P45: DA | Q45: =1-Q44 -> 0
A46: 42 | B46: 8950 | D46: Clearing - Meter Shop - Small Meters | E46: CUS | G46: 0 | I46: =+$G46*INDEX('Classification Factors'!H$5:H$205,MATCH($E46,'Classification Factors'!$C$5:$C$205,0)) -> 0 | K46: =+$G46*INDEX('Classification Factors'!J$5:J$205,MATCH($E46,'Classification Factors'!$C$5:$C$205,0)) -> 0 | M46: =+$G46*INDEX('Classification Factors'!L$5:L$205,MATCH($E46,'Classification Factors'!$C$5:$C$205,0)) -> 0
A47: 43 | B47: 8960 | D47: Clearing - Meter Shop - Large Meters | E47: CUS | G47: 0 | I47: =+$G47*INDEX('Classification Factors'!H$5:H$205,MATCH($E47,'Classification Factors'!$C$5:$C$205,0)) -> 0 | K47: =+$G47*INDEX('Classification Factors'!J$5:J$205,MATCH($E47,'Classification Factors'!$C$5:$C$205,0)) -> 0 | M47: =+$G47*INDEX('Classification Factors'!L$5:L$205,MATCH($E47,'Classification Factors'!$C$5:$C$205,0)) -> 0
A48: 44 | D48: Total Distribution Maintenance Expenses | G48: =SUM(G30:G47) -> 3569437.6 | I48: =SUM(I30:I47) -> 1419895.136 | K48: =SUM(K30:K47) -> 2058356.488 | M48: =SUM(M30:M47) -> 91185.97652
A49: 45
A50: 46 | D50: Total Operations & Maintenance Expenses | G50: =+G27+G48 -> 14879531.34 | I50: =+I27+I48 -> 5992371.097 | K50: =+K27+K48 -> 8637808.807 | M50: =+M27+M48 -> 249351.4318
A51: 47
A52: 48 | D52: Customer Accounting Expenses
A53: 49 | B53: 9010 | D53: Supervision | E53: CUS | G53: 58.6284153 | I53: =+$G53*INDEX('Classification Factors'!H$5:H$205,MATCH($E53,'Classification Factors'!$C$5:$C$205,0)) -> 58.6284153 | K53: =+$G53*INDEX('Classification Factors'!J$5:J$205,MATCH($E53,'Classification Factors'!$C$5:$C$205,0)) -> 0 | M53: =+$G53*INDEX('Classification Factors'!L$5:L$205,MATCH($E53,'Classification Factors'!$C$5:$C$205,0)) -> 0
A54: 50 | B54: 9020 | D54: Meter Reading Expense | E54: CUS | G54: 403017.5067 | I54: =+$G54*INDEX('Classification Factors'!H$5:H$205,MATCH($E54,'Classification Factors'!$C$5:$C$205,0)) -> 403017.5067 | K54: =+$G54*INDEX('Classification Factors'!J$5:J$205,MATCH($E54,'Classification Factors'!$C$5:$C$205,0)) -> 0 | M54: =+$G54*INDEX('Classification Factors'!L$5:L$205,MATCH($E54,'Classification Factors'!$C$5:$C$205,0)) -> 0
A55: 51 | B55: 9030 | D55: Customer Accounting | E55: CUS | G55: 1059614.358 | I55: =+$G55*INDEX('Classification Factors'!H$5:H$205,MATCH($E55,'Classification Factors'!$C$5:$C$205,0)) -> 1059614.358 | K55: =+$G55*INDEX('Classification Factors'!J$5:J$205,MATCH($E55,'Classification Factors'!$C$5:$C$205,0)) -> 0 | M55: =+$G55*INDEX('Classification Factors'!L$5:L$205,MATCH($E55,'Classification Factors'!$C$5:$C$205,0)) -> 0 | N55: Gross Up
A56: 52 | B56: 9040 | D56: Bad Debts (includes gross up) | E56: CUS | G56: 593603.5302 | I56: =+$G56*INDEX('Classification Factors'!H$5:H$205,MATCH($E56,'Classification Factors'!$C$5:$C$205,0)) -> 593603.5302 | K56: =+$G56*INDEX('Classification Factors'!J$5:J$205,MATCH($E56,'Classification Factors'!$C$5:$C$205,0)) -> 0 | M56: =+$G56*INDEX('Classification Factors'!L$5:L$205,MATCH($E56,'Classification Factors'!$C$5:$C$205,0)) -> 0 | N56: 71364.91929
A57: 53 | B57: 9050 | D57: Miscellaneous Customer Accounts Expenses | E57: CUS | G57: 79907.90397 | I57: =+$G57*INDEX('Classification Factors'!H$5:H$205,MATCH($E57,'Classification Factors'!$C$5:$C$205,0)) -> 79907.90397 | K57: =+$G57*INDEX('Classification Factors'!J$5:J$205,MATCH($E57,'Classification Factors'!$C$5:$C$205,0)) -> 0 | M57: =+$G57*INDEX('Classification Factors'!L$5:L$205,MATCH($E57,'Classification Factors'!$C$5:$C$205,0)) -> 0
A58: 54 | D58: Total Customer Accounts Expenses | G58: =SUM(G53:G57) -> 2136201.927 | I58: =SUM(I53:I57) -> 2136201.927 | K58: =SUM(K53:K57) -> 0 | M58: =SUM(M53:M57) -> 0
A59: 55
A60: 56 | D60: Customer Information Expenses
A61: 57 | B61: 9070 | D61: Supervision | E61: CUS | G61: 0 | I61: =+$G61*INDEX('Classification Factors'!H$5:H$205,MATCH($E61,'Classification Factors'!$C$5:$C$205,0)) -> 0 | K61: =+$G61*INDEX('Classification Factors'!J$5:J$205,MATCH($E61,'Classification Factors'!$C$5:$C$205,0)) -> 0 | M61: =+$G61*INDEX('Classification Factors'!L$5:L$205,MATCH($E61,'Classification Factors'!$C$5:$C$205,0)) -> 0
A62: 58 | B62: 9080 | D62: Customer Assistance | E62: CUS | G62: 223102.1625 | I62: =+$G62*INDEX('Classification Factors'!H$5:H$205,MATCH($E62,'Classification Factors'!$C$5:$C$205,0)) -> 223102.1625 | K62: =+$G62*INDEX('Classification Factors'!J$5:J$205,MATCH($E62,'Classification Factors'!$C$5:$C$205,0)) -> 0 | M62: =+$G62*INDEX('Classification Factors'!L$5:L$205,MATCH($E62,'Classification Factors'!$C$5:$C$205,0)) -> 0
A63: 59 | B63: 9090 | D63: Informational and Instructional Advertising | E63: CUS | G63: 14583.49004 | I63: =+$G63*INDEX('Classification Factors'!H$5:H$205,MATCH($E63,'Classification Factors'!$C$5:$C$205,0)) -> 14583.49004 | K63: =+$G63*INDEX('Classification Factors'!J$5:J$205,MATCH($E63,'Classification Factors'!$C$5:$C$205,0)) -> 0 | M63: =+$G63*INDEX('Classification Factors'!L$5:L$205,MATCH($E63,'Classification Factors'!$C$5:$C$205,0)) -> 0
A64: 60 | B64: 9100 | D64: Customer Service & Informational Svc. | E64: CUS | G64: 0 | I64: =+$G64*INDEX('Classification Factors'!H$5:H$205,MATCH($E64,'Classification Factors'!$C$5:$C$205,0)) -> 0 | K64: =+$G64*INDEX('Classification Factors'!J$5:J$205,MATCH($E64,'Classification Factors'!$C$5:$C$205,0)) -> 0 | M64: =+$G64*INDEX('Classification Factors'!L$5:L$205,MATCH($E64,'Classification Factors'!$C$5:$C$205,0)) -> 0
A65: 61 | D65: Total Customer Information Expenses | G65: =SUM(G61:G64) -> 237685.6525 | I65: =SUM(I61:I64) -> 237685.6525 | K65: =SUM(K61:K64) -> 0 | M65: =SUM(M61:M64) -> 0
A66: 62
A67: 63 | D67: Sales and Advertising Expenses
A68: 64 | B68: 9110 | D68: Supervision | E68: CUS | G68: 0 | I68: =+$G68*INDEX('Classification Factors'!H$5:H$205,MATCH($E68,'Classification Factors'!$C$5:$C$205,0)) -> 0 | K68: =+$G68*INDEX('Classification Factors'!J$5:J$205,MATCH($E68,'Classification Factors'!$C$5:$C$205,0)) -> 0 | M68: =+$G68*INDEX('Classification Factors'!L$5:L$205,MATCH($E68,'Classification Factors'!$C$5:$C$205,0)) -> 0
A69: 65 | B69: 9120 | D69: Demonstrating and Selling | E69: CUS | G69: 0 | I69: =+$G69*INDEX('Classification Factors'!H$5:H$205,MATCH($E69,'Classification Factors'!$C$5:$C$205,0)) -> 0 | K69: =+$G69*INDEX('Classification Factors'!J$5:J$205,MATCH($E69,'Classification Factors'!$C$5:$C$205,0)) -> 0 | M69: =+$G69*INDEX('Classification Factors'!L$5:L$205,MATCH($E69,'Classification Factors'!$C$5:$C$205,0)) -> 0
A70: =+A69+1 -> 66 | B70: 9130 | D70: Advertising | E70: CUS | G70: 7711.331415 | I70: =+$G70*INDEX('Classification Factors'!H$5:H$205,MATCH($E70,'Classification Factors'!$C$5:$C$205,0)) -> 7711.331415 | K70: =+$G70*INDEX('Classification Factors'!J$5:J$205,MATCH($E70,'Classification Factors'!$C$5:$C$205,0)) -> 0 | M70: =+$G70*INDEX('Classification Factors'!L$5:L$205,MATCH($E70,'Classification Factors'!$C$5:$C$205,0)) -> 0
A71: 67 | B71: 9140 | D71: Employee Sales Referrals | E71: CUS | G71: 0 | I71: =+$G71*INDEX('Classification Factors'!H$5:H$205,MATCH($E71,'Classification Factors'!$C$5:$C$205,0)) -> 0 | K71: =+$G71*INDEX('Classification Factors'!J$5:J$205,MATCH($E71,'Classification Factors'!$C$5:$C$205,0)) -> 0 | M71: =+$G71*INDEX('Classification Factors'!L$5:L$205,MATCH($E71,'Classification Factors'!$C$5:$C$205,0)) -> 0
A72: 68 | B72: 9163 | D72: Misc. Gas Sales Expense | E72: CUS | G72: 0 | I72: =+$G72*INDEX('Classification Factors'!H$5:H$205,MATCH($E72,'Classification Factors'!$C$5:$C$205,0)) -> 0 | K72: =+$G72*INDEX('Classification Factors'!J$5:J$205,MATCH($E72,'Classification Factors'!$C$5:$C$205,0)) -> 0 | M72: =+$G72*INDEX('Classification Factors'!L$5:L$205,MATCH($E72,'Classification Factors'!$C$5:$C$205,0)) -> 0
A73: 69 | D73: Total Sales and Advertising Expenses | G73: =SUM(G68:G72) -> 7711.331415 | I73: =SUM(I68:I72) -> 7711.331415 | K73: =SUM(K68:K72) -> 0 | M73: =SUM(M68:M72) -> 0
A74: 70
A75: 71 | D75: Administrative & General Expenses
A76: 72 | B76: 920-940 | D76: Administrative & General Expenses | E76: ADMINGEN | G76: 7040936.866 | I76: =+$G76*INDEX('Classification Factors'!H$5:H$205,MATCH($E76,'Classification Factors'!$C$5:$C$205,0)) -> 5415031.917 | K76: =+$G76*INDEX('Classification Factors'!J$5:J$205,MATCH($E76,'Classification Factors'!$C$5:$C$205,0)) -> 1580286.133 | M76: =+$G76*INDEX('Classification Factors'!L$5:L$205,MATCH($E76,'Classification Factors'!$C$5:$C$205,0)) -> 45618.81592
A77: 73 | D77: Total Administrative & General Expenses | G77: =+G76 -> 7040936.866 | I77: =+I76 -> 5415031.917 | K77: =+K76 -> 1580286.133 | M77: =+M76 -> 45618.81592
A78: 74
A79: 75 | D79: Depreciation and Amortization Expense
A80: 76 | B80: 301-303 | D80: Intangible Plant - Allocated | E80: PLT301-03 | G80: 0 | I80: =+$G80*INDEX('Classification Factors'!H$5:H$205,MATCH($E80,'Classification Factors'!$C$5:$C$205,0)) -> 0 | K80: =+$G80*INDEX('Classification Factors'!J$5:J$205,MATCH($E80,'Classification Factors'!$C$5:$C$205,0)) -> 0 | M80: =+$G80*INDEX('Classification Factors'!L$5:L$205,MATCH($E80,'Classification Factors'!$C$5:$C$205,0)) -> 0
A81: 77 | B81: 301-303 | D81: Intangible Plant - Directly Assigned | E81: PLT301-03 | G81: 0 | I81: =+$G81*INDEX('Classification Factors'!H$5:H$205,MATCH($E81,'Classification Factors'!$C$5:$C$205,0)) -> 0 | K81: =+$G81*INDEX('Classification Factors'!J$5:J$205,MATCH($E81,'Classification Factors'!$C$5:$C$205,0)) -> 0 | M81: =+$G81*INDEX('Classification Factors'!L$5:L$205,MATCH($E81,'Classification Factors'!$C$5:$C$205,0)) -> 0
A82: 78 | B82: 365 | D82: Land and Land Rights | E82: DEM | G82: 0 | I82: =+$G82*INDEX('Classification Factors'!H$5:H$205,MATCH($E82,'Classification Factors'!$C$5:$C$205,0)) -> 0 | K82: =+$G82*INDEX('Classification Factors'!J$5:J$205,MATCH($E82,'Classification Factors'!$C$5:$C$205,0)) -> 0 | M82: =+$G82*INDEX('Classification Factors'!L$5:L$205,MATCH($E82,'Classification Factors'!$C$5:$C$205,0)) -> 0
A83: 79 | B83: 366 | D83: Meas. and Reg. Station Structures | E83: PLT366 | G83: 49856.69398 | I83: =+$G83*INDEX('Classification Factors'!H$5:H$205,MATCH($E83,'Classification Factors'!$C$5:$C$205,0)) -> 0 | K83: =+$G83*INDEX('Classification Factors'!J$5:J$205,MATCH($E83,'Classification Factors'!$C$5:$C$205,0)) -> 49856.69398 | M83: =+$G83*INDEX('Classification Factors'!L$5:L$205,MATCH($E83,'Classification Factors'!$C$5:$C$205,0)) -> 0
A84: 80 | B84: 367 | D84: Transmission Mains | E84: PLT367 | G84: 1022630.686 | I84: =+$G84*INDEX('Classification Factors'!H$5:H$205,MATCH($E84,'Classification Factors'!$C$5:$C$205,0)) -> 0 | K84: =+$G84*INDEX('Classification Factors'!J$5:J$205,MATCH($E84,'Classification Factors'!$C$5:$C$205,0)) -> 1022630.686 | M84: =+$G84*INDEX('Classification Factors'!L$5:L$205,MATCH($E84,'Classification Factors'!$C$5:$C$205,0)) -> 0
A85: 81 | B85: 368 | D85: Compression Station Equipment | E85: PLT368 | G85: 3936.60675 | I85: =+$G85*INDEX('Classification Factors'!H$5:H$205,MATCH($E85,'Classification Factors'!$C$5:$C$205,0)) -> 0 | K85: =+$G85*INDEX('Classification Factors'!J$5:J$205,MATCH($E85,'Classification Factors'!$C$5:$C$205,0)) -> 3936.60675 | M85: =+$G85*INDEX('Classification Factors'!L$5:L$205,MATCH($E85,'Classification Factors'!$C$5:$C$205,0)) -> 0
A86: 82 | B86: 369 | D86: Measuring and Reg. Station Equipment | E86: PLT369 | G86: 471437.2076 | I86: =+$G86*INDEX('Classification Factors'!H$5:H$205,MATCH($E86,'Classification Factors'!$C$5:$C$205,0)) -> 0 | K86: =+$G86*INDEX('Classification Factors'!J$5:J$205,MATCH($E86,'Classification Factors'!$C$5:$C$205,0)) -> 471437.2076 | M86: =+$G86*INDEX('Classification Factors'!L$5:L$205,MATCH($E86,'Classification Factors'!$C$5:$C$205,0)) -> 0
A87: 83 | B87: 369 | D87: Odorization | E87: COM | G87: 6539.85728 | I87: =+$G87*INDEX('Classification Factors'!H$5:H$205,MATCH($E87,'Classification Factors'!$C$5:$C$205,0)) -> 0 | K87: =+$G87*INDEX('Classification Factors'!J$5:J$205,MATCH($E87,'Classification Factors'!$C$5:$C$205,0)) -> 0 | M87: =+$G87*INDEX('Classification Factors'!L$5:L$205,MATCH($E87,'Classification Factors'!$C$5:$C$205,0)) -> 6539.85728
A88: 84 | B88: 371 | D88: Other Equipment | E88: PLT371 | G88: 2818.094778 | I88: =+$G88*INDEX('Classification Factors'!H$5:H$205,MATCH($E88,'Classification Factors'!$C$5:$C$205,0)) -> 0 | K88: =+$G88*INDEX('Classification Factors'!J$5:J$205,MATCH($E88,'Classification Factors'!$C$5:$C$205,0)) -> 2818.094778 | M88: =+$G88*INDEX('Classification Factors'!L$5:L$205,MATCH($E88,'Classification Factors'!$C$5:$C$205,0)) -> 0
A89: 85 | B89: 375 | D89: Structures and Improvements | E89: PLT375 | G89: 5333.982935 | I89: =+$G89*INDEX('Classification Factors'!H$5:H$205,MATCH($E89,'Classification Factors'!$C$5:$C$205,0)) -> 2730.797732 | K89: =+$G89*INDEX('Classification Factors'!J$5:J$205,MATCH($E89,'Classification Factors'!$C$5:$C$205,0)) -> 2603.185203 | M89: =+$G89*INDEX('Classification Factors'!L$5:L$205,MATCH($E89,'Classification Factors'!$C$5:$C$205,0)) -> 0
A90: 86 | B90: 376 | D90: Mains - Allocated | E90: MAINS-ALLOC | G90: 2521203.717 | I90: =+$G90*INDEX('Classification Factors'!H$5:H$205,MATCH($E90,'Classification Factors'!$C$5:$C$205,0)) -> 1413466.522 | K90: =+$G90*INDEX('Classification Factors'!J$5:J$205,MATCH($E90,'Classification Factors'!$C$5:$C$205,0)) -> 1107737.195 | M90: =+$G90*INDEX('Classification Factors'!L$5:L$205,MATCH($E90,'Classification Factors'!$C$5:$C$205,0)) -> 0
A91: 87 | B91: 376 | D91: Mains - Directly Assigned | E91: MAINS-DA | G91: 0 | I91: =+$G91*INDEX('Classification Factors'!H$5:H$205,MATCH($E91,'Classification Factors'!$C$5:$C$205,0)) -> 0 | K91: =+$G91*INDEX('Classification Factors'!J$5:J$205,MATCH($E91,'Classification Factors'!$C$5:$C$205,0)) -> 0 | M91: =+$G91*INDEX('Classification Factors'!L$5:L$205,MATCH($E91,'Classification Factors'!$C$5:$C$205,0)) -> 0
A92: 88 | B92: 376 | D92: Odorization | E92: COM | G92: 0 | I92: =+$G92*INDEX('Classification Factors'!H$5:H$205,MATCH($E92,'Classification Factors'!$C$5:$C$205,0)) -> 0 | K92: =+$G92*INDEX('Classification Factors'!J$5:J$205,MATCH($E92,'Classification Factors'!$C$5:$C$205,0)) -> 0 | M92: =+$G92*INDEX('Classification Factors'!L$5:L$205,MATCH($E92,'Classification Factors'!$C$5:$C$205,0)) -> 0
A93: 89 | B93: 377 | D93: Compressor Station Equipment | E93: DEM | G93: 0 | I93: =+$G93*INDEX('Classification Factors'!H$5:H$205,MATCH($E93,'Classification Factors'!$C$5:$C$205,0)) -> 0 | K93: =+$G93*INDEX('Classification Factors'!J$5:J$205,MATCH($E93,'Classification Factors'!$C$5:$C$205,0)) -> 0 | M93: =+$G93*INDEX('Classification Factors'!L$5:L$205,MATCH($E93,'Classification Factors'!$C$5:$C$205,0)) -> 0
A94: 90 | B94: 378 | D94: Meas. & Reg. Sta. Equip. - General - Alloc. | E94: PLT378 | G94: 127760.9104 | I94: =+$G94*INDEX('Classification Factors'!H$5:H$205,MATCH($E94,'Classification Factors'!$C$5:$C$205,0)) -> 0 | K94: =+$G94*INDEX('Classification Factors'!J$5:J$205,MATCH($E94,'Classification Factors'!$C$5:$C$205,0)) -> 127760.9104 | M94: =+$G94*INDEX('Classification Factors'!L$5:L$205,MATCH($E94,'Classification Factors'!$C$5:$C$205,0)) -> 0
A95: 91 | B95: 378 | D95: Meas. & Reg. Sta. Equip.- General - Dir. Assn. | E95: PLT378 | G95: 0 | I95: =+$G95*INDEX('Classification Factors'!H$5:H$205,MATCH($E95,'Classification Factors'!$C$5:$C$205,0)) -> 0 | K95: =+$G95*INDEX('Classification Factors'!J$5:J$205,MATCH($E95,'Classification Factors'!$C$5:$C$205,0)) -> 0 | M95: =+$G95*INDEX('Classification Factors'!L$5:L$205,MATCH($E95,'Classification Factors'!$C$5:$C$205,0)) -> 0
A96: 92 | B96: 378 | D96: Odorization | E96: COM | G96: 4540.620509 | I96: =+$G96*INDEX('Classification Factors'!H$5:H$205,MATCH($E96,'Classification Factors'!$C$5:$C$205,0)) -> 0 | K96: =+$G96*INDEX('Classification Factors'!J$5:J$205,MATCH($E96,'Classification Factors'!$C$5:$C$205,0)) -> 0 | M96: =+$G96*INDEX('Classification Factors'!L$5:L$205,MATCH($E96,'Classification Factors'!$C$5:$C$205,0)) -> 4540.620509
A97: 93 | B97: 379 | D97: Meas. & Reg. Sta. Equipment - City Gate - Alloc. | E97: PLT379 | G97: 70918.05998 | I97: =+$G97*INDEX('Classification Factors'!H$5:H$205,MATCH($E97,'Classification Factors'!$C$5:$C$205,0)) -> 0 | K97: =+$G97*INDEX('Classification Factors'!J$5:J$205,MATCH($E97,'Classification Factors'!$C$5:$C$205,0)) -> 70918.05998 | M97: =+$G97*INDEX('Classification Factors'!L$5:L$205,MATCH($E97,'Classification Factors'!$C$5:$C$205,0)) -> 0
A98: 94 | B98: 379 | D98: Meas. & Reg. Sta. Equipment - City Gate - Dir. Assn. | E98: PLT379 | G98: 0 | I98: =+$G98*INDEX('Classification Factors'!H$5:H$205,MATCH($E98,'Classification Factors'!$C$5:$C$205,0)) -> 0 | K98: =+$G98*INDEX('Classification Factors'!J$5:J$205,MATCH($E98,'Classification Factors'!$C$5:$C$205,0)) -> 0 | M98: =+$G98*INDEX('Classification Factors'!L$5:L$205,MATCH($E98,'Classification Factors'!$C$5:$C$205,0)) -> 0
A99: 95 | B99: 379 | D99: Odorization | E99: COM | G99: 377.478166 | I99: =+$G99*INDEX('Classification Factors'!H$5:H$205,MATCH($E99,'Classification Factors'!$C$5:$C$205,0)) -> 0 | K99: =+$G99*INDEX('Classification Factors'!J$5:J$205,MATCH($E99,'Classification Factors'!$C$5:$C$205,0)) -> 0 | M99: =+$G99*INDEX('Classification Factors'!L$5:L$205,MATCH($E99,'Classification Factors'!$C$5:$C$205,0)) -> 377.478166
A100: 96 | B100: 380 | D100: Services - Allocated | E100: PLT380 | G100: 2798442.263 | I100: =+$G100*INDEX('Classification Factors'!H$5:H$205,MATCH($E100,'Classification Factors'!$C$5:$C$205,0)) -> 2798442.263 | K100: =+$G100*INDEX('Classification Factors'!J$5:J$205,MATCH($E100,'Classification Factors'!$C$5:$C$205,0)) -> 0 | M100: =+$G100*INDEX('Classification Factors'!L$5:L$205,MATCH($E100,'Classification Factors'!$C$5:$C$205,0)) -> 0
A101: 97 | B101: 380 | D101: Services - Directly Assigned | E101: PLT380 | G101: 0 | I101: =+$G101*INDEX('Classification Factors'!H$5:H$205,MATCH($E101,'Classification Factors'!$C$5:$C$205,0)) -> 0 | K101: =+$G101*INDEX('Classification Factors'!J$5:J$205,MATCH($E101,'Classification Factors'!$C$5:$C$205,0)) -> 0 | M101: =+$G101*INDEX('Classification Factors'!L$5:L$205,MATCH($E101,'Classification Factors'!$C$5:$C$205,0)) -> 0
A102: 98 | B102: 381 | D102: Meters - Allocated | E102: PLT381 | G102: 959673.7316 | I102: =+$G102*INDEX('Classification Factors'!H$5:H$205,MATCH($E102,'Classification Factors'!$C$5:$C$205,0)) -> 959673.7316 | K102: =+$G102*INDEX('Classification Factors'!J$5:J$205,MATCH($E102,'Classification Factors'!$C$5:$C$205,0)) -> 0 | M102: =+$G102*INDEX('Classification Factors'!L$5:L$205,MATCH($E102,'Classification Factors'!$C$5:$C$205,0)) -> 0
A103: 99 | B103: 381 | D103: Meters - Directly Assigned | E103: PLT381 | G103: 0 | I103: =+$G103*INDEX('Classification Factors'!H$5:H$205,MATCH($E103,'Classification Factors'!$C$5:$C$205,0)) -> 0 | K103: =+$G103*INDEX('Classification Factors'!J$5:J$205,MATCH($E103,'Classification Factors'!$C$5:$C$205,0)) -> 0 | M103: =+$G103*INDEX('Classification Factors'!L$5:L$205,MATCH($E103,'Classification Factors'!$C$5:$C$205,0)) -> 0
A104: 100 | B104: 382 | D104: Meter Installations | E104: PLT382 | G104: 0 | I104: =+$G104*INDEX('Classification Factors'!H$5:H$205,MATCH($E104,'Classification Factors'!$C$5:$C$205,0)) -> 0 | K104: =+$G104*INDEX('Classification Factors'!J$5:J$205,MATCH($E104,'Classification Factors'!$C$5:$C$205,0)) -> 0 | M104: =+$G104*INDEX('Classification Factors'!L$5:L$205,MATCH($E104,'Classification Factors'!$C$5:$C$205,0)) -> 0
A105: 101 | B105: 383 | D105: House Regulators - Allocated | E105: PLT383 | G105: 213071.0949 | I105: =+$G105*INDEX('Classification Factors'!H$5:H$205,MATCH($E105,'Classification Factors'!$C$5:$C$205,0)) -> 213071.0949 | K105: =+$G105*INDEX('Classification Factors'!J$5:J$205,MATCH($E105,'Classification Factors'!$C$5:$C$205,0)) -> 0 | M105: =+$G105*INDEX('Classification Factors'!L$5:L$205,MATCH($E105,'Classification Factors'!$C$5:$C$205,0)) -> 0
A106: 102 | B106: 383 | D106: House Regulators - Directly Assigned | E106: PLT383 | G106: 0 | I106: =+$G106*INDEX('Classification Factors'!H$5:H$205,MATCH($E106,'Classification Factors'!$C$5:$C$205,0)) -> 0 | K106: =+$G106*INDEX('Classification Factors'!J$5:J$205,MATCH($E106,'Classification Factors'!$C$5:$C$205,0)) -> 0 | M106: =+$G106*INDEX('Classification Factors'!L$5:L$205,MATCH($E106,'Classification Factors'!$C$5:$C$205,0)) -> 0
A107: 103 | B107: 385 | D107: Meas. & Reg. Sta. Equip. - Ind. - Allocated | E107: PLT385 | G107: 74664.76815 | I107: =+$G107*INDEX('Classification Factors'!H$5:H$205,MATCH($E107,'Classification Factors'!$C$5:$C$205,0)) -> 0 | K107: =+$G107*INDEX('Classification Factors'!J$5:J$205,MATCH($E107,'Classification Factors'!$C$5:$C$205,0)) -> 74664.76815 | M107: =+$G107*INDEX('Classification Factors'!L$5:L$205,MATCH($E107,'Classification Factors'!$C$5:$C$205,0)) -> 0
A108: 104 | B108: 385 | D108: Meas. & Reg. Sta. Equip. - Ind. - Dir. Assn. | E108: PLT385 | G108: 0 | I108: =+$G108*INDEX('Classification Factors'!H$5:H$205,MATCH($E108,'Classification Factors'!$C$5:$C$205,0)) -> 0 | K108: =+$G108*INDEX('Classification Factors'!J$5:J$205,MATCH($E108,'Classification Factors'!$C$5:$C$205,0)) -> 0 | M108: =+$G108*INDEX('Classification Factors'!L$5:L$205,MATCH($E108,'Classification Factors'!$C$5:$C$205,0)) -> 0
A109: 105 | B109: 385 | D109: Odorization | E109: COM | G109: 0 | I109: =+$G109*INDEX('Classification Factors'!H$5:H$205,MATCH($E109,'Classification Factors'!$C$5:$C$205,0)) -> 0 | K109: =+$G109*INDEX('Classification Factors'!J$5:J$205,MATCH($E109,'Classification Factors'!$C$5:$C$205,0)) -> 0 | M109: =+$G109*INDEX('Classification Factors'!L$5:L$205,MATCH($E109,'Classification Factors'!$C$5:$C$205,0)) -> 0
A110: 106 | B110: 386 | D110: Other Property - Customer Premises | E110: PLT386 | G110: 1371.360888 | I110: =+$G110*INDEX('Classification Factors'!H$5:H$205,MATCH($E110,'Classification Factors'!$C$5:$C$205,0)) -> 1371.360888 | K110: =+$G110*INDEX('Classification Factors'!J$5:J$205,MATCH($E110,'Classification Factors'!$C$5:$C$205,0)) -> 0 | M110: =+$G110*INDEX('Classification Factors'!L$5:L$205,MATCH($E110,'Classification Factors'!$C$5:$C$205,0)) -> 0
A111: 107 | B111: 387 | D111: Other Equipment | E111: PLT387 | G111: 0 | I111: =+$G111*INDEX('Classification Factors'!H$5:H$205,MATCH($E111,'Classification Factors'!$C$5:$C$205,0)) -> 0 | K111: =+$G111*INDEX('Classification Factors'!J$5:J$205,MATCH($E111,'Classification Factors'!$C$5:$C$205,0)) -> 0 | M111: =+$G111*INDEX('Classification Factors'!L$5:L$205,MATCH($E111,'Classification Factors'!$C$5:$C$205,0)) -> 0
A112: 108 | B112: 389-398 | D112: General Plant - Allocated | E112: GENDEP | G112: 2147288.578 | I112: =+$G112*INDEX('Classification Factors'!H$5:H$205,MATCH($E112,'Classification Factors'!$C$5:$C$205,0)) -> 1809243.717 | K112: =+$G112*INDEX('Classification Factors'!J$5:J$205,MATCH($E112,'Classification Factors'!$C$5:$C$205,0)) -> 332850.1248 | M112: =+$G112*INDEX('Classification Factors'!L$5:L$205,MATCH($E112,'Classification Factors'!$C$5:$C$205,0)) -> 5194.736225
A113: 109 | B113: 389-398 | D113: General Plant - Directly Assigned | E113: GENDEP | G113: 0 | I113: =+$G113*INDEX('Classification Factors'!H$5:H$205,MATCH($E113,'Classification Factors'!$C$5:$C$205,0)) -> 0 | K113: =+$G113*INDEX('Classification Factors'!J$5:J$205,MATCH($E113,'Classification Factors'!$C$5:$C$205,0)) -> 0 | M113: =+$G113*INDEX('Classification Factors'!L$5:L$205,MATCH($E113,'Classification Factors'!$C$5:$C$205,0)) -> 0
A114: 110 | B114: 389-398 | D114: General Plant - Odorization | E114: COM | G114: 4540.620509 | I114: =+$G114*INDEX('Classification Factors'!H$5:H$205,MATCH($E114,'Classification Factors'!$C$5:$C$205,0)) -> 0 | K114: =+$G114*INDEX('Classification Factors'!J$5:J$205,MATCH($E114,'Classification Factors'!$C$5:$C$205,0)) -> 0 | M114: =+$G114*INDEX('Classification Factors'!L$5:L$205,MATCH($E114,'Classification Factors'!$C$5:$C$205,0)) -> 4540.620509
A115: 111 | B115: 40730 | D115: Pension & FAS 106 Amortization Expense | E115: OPEXP | G115: 22999.42167 | I115: =+$G115*INDEX('Classification Factors'!H$5:H$205,MATCH($E115,'Classification Factors'!$C$5:$C$205,0)) -> 13049.88041 | K115: =+$G115*INDEX('Classification Factors'!J$5:J$205,MATCH($E115,'Classification Factors'!$C$5:$C$205,0)) -> 9670.382074 | M115: =+$G115*INDEX('Classification Factors'!L$5:L$205,MATCH($E115,'Classification Factors'!$C$5:$C$205,0)) -> 279.1591791
A116: 112 | D116: Total Depreciation and Amortization Expense | G116: =SUM(G80:G115) -> 10509405.75 | I116: =SUM(I80:I115) -> 7211049.368 | K116: =SUM(K80:K115) -> 3276883.915 | M116: =SUM(M80:M115) -> 21472.47187
A117: 113
A118: 114 | D118: Taxes Other Than Income
A119: 115 | B119: 4080 | D119: Payroll and Other | E119: OPEXP | G119: 705784.7486 | I119: =+$G119*INDEX('Classification Factors'!H$5:H$205,MATCH($E119,'Classification Factors'!$C$5:$C$205,0)) -> 400462.529 | K119: =+$G119*INDEX('Classification Factors'!J$5:J$205,MATCH($E119,'Classification Factors'!$C$5:$C$205,0)) -> 296755.6437 | M119: =+$G119*INDEX('Classification Factors'!L$5:L$205,MATCH($E119,'Classification Factors'!$C$5:$C$205,0)) -> 8566.575887 | Q119: Total Plant
A120: 116 | B120: 4080 | D120: Ad Valorem - Allocated | E120: TPLT-ALLOC | G120: 1791750 | I120: =+$G120*INDEX('Classification Factors'!H$5:H$205,MATCH($E120,'Classification Factors'!$C$5:$C$205,0)) -> 1130371.215 | K120: =+$G120*INDEX('Classification Factors'!J$5:J$205,MATCH($E120,'Classification Factors'!$C$5:$C$205,0)) -> 659102.3942 | M120: =+$G120*INDEX('Classification Factors'!L$5:L$205,MATCH($E120,'Classification Factors'!$C$5:$C$205,0)) -> 2276.39071 | P120: Allocated | Q120: =Q122-Q121 -> 287432150.7 | R120: =Q120/$Q$122 -> 1
A121: 117 | B121: 4080 | D121: Ad Valorem - Directly Assigned | E121: TPLT-DA | G121: 0 | I121: =+$G121*INDEX('Classification Factors'!H$5:H$205,MATCH($E121,'Classification Factors'!$C$5:$C$205,0)) -> 0 | K121: =+$G121*INDEX('Classification Factors'!J$5:J$205,MATCH($E121,'Classification Factors'!$C$5:$C$205,0)) -> 0 | M121: =+$G121*INDEX('Classification Factors'!L$5:L$205,MATCH($E121,'Classification Factors'!$C$5:$C$205,0)) -> 0 | N121: Gross Up | P121: DA | Q121: ='Classified Rate Base'!G60+'Classified Rate Base'!G42+'Classified Rate Base'!G40+'Classified Rate Base'!G37+'Classified Rate Base'!G30+'Classified Rate Base'!G26+'Classified Rate Base'!G23+'Classified Rate Base'!G35+'Classified Rate Base'!G55 -> 0 | R121: =Q121/$Q$122 -> 0
A122: 118 | B122: 4080 | D122: Revenue Related (includes gross up) | E122: CUS | G122: 53062.04964 | I122: =+$G122*INDEX('Classification Factors'!H$5:H$205,MATCH($E122,'Classification Factors'!$C$5:$C$205,0)) -> 53062.04964 | K122: =+$G122*INDEX('Classification Factors'!J$5:J$205,MATCH($E122,'Classification Factors'!$C$5:$C$205,0)) -> 0 | M122: =+$G122*INDEX('Classification Factors'!L$5:L$205,MATCH($E122,'Classification Factors'!$C$5:$C$205,0)) -> 0 | N122: 53062.04964 | Q122: ='Classified Rate Base'!G64 -> 287432150.7
A123: 119 | D123: Total Taxes Other Than Income | G123: =SUM(G119:G122) -> 2550596.798 | I123: =SUM(I119:I122) -> 1583895.794 | K123: =SUM(K119:K122) -> 955858.0378 | M123: =SUM(M119:M122) -> 10842.9666
A124: 120
A125: 121 | B125: 4101 | D125: Excess Deferred Income Tax Amort. - Dir. Assn. | E125: RB-DA | G125: 0 | I125: =+$G125*INDEX('Classification Factors'!H$5:H$205,MATCH($E125,'Classification Factors'!$C$5:$C$205,0)) -> 0 | K125: =+$G125*INDEX('Classification Factors'!J$5:J$205,MATCH($E125,'Classification Factors'!$C$5:$C$205,0)) -> 0 | M125: =+$G125*INDEX('Classification Factors'!L$5:L$205,MATCH($E125,'Classification Factors'!$C$5:$C$205,0)) -> 0
A126: 122 | B126: 4101 | D126: Excess Deferred Income Tax Amort. - Allocated | E126: RB-ALLOC | G126: -110971.3684 | I126: =+$G126*INDEX('Classification Factors'!H$5:H$205,MATCH($E126,'Classification Factors'!$C$5:$C$205,0)) -> -67622.57537 | K126: =+$G126*INDEX('Classification Factors'!J$5:J$205,MATCH($E126,'Classification Factors'!$C$5:$C$205,0)) -> -43206.01091 | M126: =+$G126*INDEX('Classification Factors'!L$5:L$205,MATCH($E126,'Classification Factors'!$C$5:$C$205,0)) -> -142.7820737
A127: 123
A128: 124 | B128: 4310 | D128: Interest on Customer Deposits | E128: CUS | G128: 126958.919 | I128: =+$G128*INDEX('Classification Factors'!H$5:H$205,MATCH($E128,'Classification Factors'!$C$5:$C$205,0)) -> 126958.919 | K128: =+$G128*INDEX('Classification Factors'!J$5:J$205,MATCH($E128,'Classification Factors'!$C$5:$C$205,0)) -> 0 | M128: =+$G128*INDEX('Classification Factors'!L$5:L$205,MATCH($E128,'Classification Factors'!$C$5:$C$205,0)) -> 0
A129: 125 | Q129: Net Plant
A130: 126 | D130: Required Return - Other Than Directly Assigned | E130: RB-ALLOC | G130: 17789255 | I130: =+$G130*INDEX('Classification Factors'!H$5:H$205,MATCH($E130,'Classification Factors'!$C$5:$C$205,0)) -> 10840230.73 | K130: =+$G130*INDEX('Classification Factors'!J$5:J$205,MATCH($E130,'Classification Factors'!$C$5:$C$205,0)) -> 6926135.606 | M130: =+$G130*INDEX('Classification Factors'!L$5:L$205,MATCH($E130,'Classification Factors'!$C$5:$C$205,0)) -> 22888.66719 | P130: Allocated | Q130: ='Classified Rate Base'!G82-Q131 -> 242359432.2 | R130: =Q130/(Q130+Q131) -> 1
A131: 127 | D131: Required Return - Directly Assigned | E131: RB-DA | G131: 0 | I131: =+$G131*INDEX('Classification Factors'!H$5:H$205,MATCH($E131,'Classification Factors'!$C$5:$C$205,0)) -> 0 | K131: =+$G131*INDEX('Classification Factors'!J$5:J$205,MATCH($E131,'Classification Factors'!$C$5:$C$205,0)) -> 0 | M131: =+$G131*INDEX('Classification Factors'!L$5:L$205,MATCH($E131,'Classification Factors'!$C$5:$C$205,0)) -> 0 | P131: DA | Q131: =Q121+SUM('Classified Rate Base'!G71:G77)+'Classified Rate Base'!G79 -> 0 | R131: =1-R130 -> 0
A132: 128 | D132: Income Taxes - Other Than Directly Assigned | E132: RB-ALLOC | G132: 3681059.97 | I132: =+$G132*INDEX('Classification Factors'!H$5:H$205,MATCH($E132,'Classification Factors'!$C$5:$C$205,0)) -> 2243125.943 | K132: =+$G132*INDEX('Classification Factors'!J$5:J$205,MATCH($E132,'Classification Factors'!$C$5:$C$205,0)) -> 1433197.766 | M132: =+$G132*INDEX('Classification Factors'!L$5:L$205,MATCH($E132,'Classification Factors'!$C$5:$C$205,0)) -> 4736.261106
A133: 129 | D133: Income Taxes - Directly Assigned | E133: RB-DA | G133: 0 | I133: =+$G133*INDEX('Classification Factors'!H$5:H$205,MATCH($E133,'Classification Factors'!$C$5:$C$205,0)) -> 0 | K133: =+$G133*INDEX('Classification Factors'!J$5:J$205,MATCH($E133,'Classification Factors'!$C$5:$C$205,0)) -> 0 | M133: =+$G133*INDEX('Classification Factors'!L$5:L$205,MATCH($E133,'Classification Factors'!$C$5:$C$205,0)) -> 0 | Q133: Rate Base
A134: =+A133+1 -> 130 | D134: Total Cost of Service Before Revenue Credits | G134: =+G50+G58+G65+G73+G77+G116+G123+G125+G126+G128+SUM(G130:G133) -> 58848372.19 | I134: =+I50+I58+I65+I73+I77+I116+I123+I125+I126+I128+SUM(I130:I133) -> 35726640.1 | K134: =+K50+K58+K65+K73+K77+K116+K123+K125+K126+K128+SUM(K130:K133) -> 22766964.25 | M134: =+M50+M58+M65+M73+M77+M116+M123+M125+M126+M128+SUM(M130:M133) -> 354767.8324 | P134: Allocated | Q134: ='Classification Factors'!F198 -> 221916520 | R134: =Q134/(Q134+Q135) -> 1
P135: DA | Q135: ='Classification Factors'!F195 -> 0 | R135: =1-R134 -> 0

Sheet Classification Factors
A1: CLASS COST OF SERVICE STUDY: CLASSIFICATION FACTORS
A3: LINE NO. | B3: ACCOUNT | C3: CLASSIFICATION FACTOR | D3: DESCRIPTION | F3: TOTAL | H3: CUSTOMER | J3: DEMAND | L3: COMMODITY
B4: (a) | C4: (b) | D4: (c) | F4: (d) | H4: (e) | J4: (f) | L4: (g)
A5: 1 | C5: CUS | D5: Customer Factor | H5: 1 | J5: 0 | L5: 0
A6: =+A5+1 -> 2
A7: 3 | C7: DEM | D7: Demand Factor | H7: 0 | J7: 1 | L7: 0
A8: 4
A9: 5 | C9: COM | D9: Commodity Factor | H9: 0 | J9: 0 | L9: 1
A10: 6
A11: 7 | D11: Total Transmission Plant | F11: =+'Classified Rate Base'!G19 -> 50095147.58 | H11: ='Classified Rate Base'!I19 -> 0 | J11: =+'Classified Rate Base'!K19 -> 49909356.18 | L11: =+'Classified Rate Base'!M19 -> 185791.4
A12: 8 | D12: Total Distribution Plant | F12: =+'Classified Rate Base'!G46 -> 197371595.2 | H12: =+'Classified Rate Base'!I46 -> 148916730.6 | J12: =+'Classified Rate Base'!K46 -> 48358438.76 | L12: =+'Classified Rate Base'!M46 -> 96425.83
A13: 9 | D13: Total General Plant | F13: =+'Classified Rate Base'!G62 -> 39965407.89 | H13: =+'Classified Rate Base'!I62 -> 32417177.24 | J13: =+'Classified Rate Base'!K62 -> 7465269.77 | L13: =+'Classified Rate Base'!M62 -> 82960.87947
A14: 10 | D14: Total Non-Intangible Plant | F14: =SUM(F11:F13) -> 287432150.7 | H14: =SUM(H11:H13) -> 181333907.9 | J14: =SUM(J11:J13) -> 105733064.7 | L14: =SUM(L11:L13) -> 365178.1095
A15: 11 | C15: NONINTPLT | D15: Non-Intangible Plant Factor | F15: =+H15+J15+L15 -> 1 | H15: =+H14/$F$14 -> 0.6308755212 | J15: =+J14/$F$14 -> 0.3678539942 | L15: =+L14/$F$14 -> 0.00127048456
A16: 12
A17: 13 | B17: 376 | D17: Distribution Mains-Allocated | F17: ='Classified Rate Base'!G25 -> 84125462.8 | H17: =+'Classified Rate Base'!I25 -> 47163394.42 | J17: =+'Classified Rate Base'!K25 -> 36962068.38 | L17: =+'Classified Rate Base'!M25 -> 0
A18: 14 | B18: 377 | D18: Compressor Station Equipment | F18: =+'Classified Rate Base'!G28 -> 0 | H18: =+'Classified Rate Base'!I28 -> 0 | J18: =+'Classified Rate Base'!K28 -> 0 | L18: =+'Classified Rate Base'!M28 -> 0
A19: 15 | B19: 378 | D19: Meas. & Reg. Sta. Equip.- Gen. - Allocated | F19: ='Classified Rate Base'!G29 -> 4788436.92 | H19: =+'Classified Rate Base'!I29 -> 0 | J19: =+'Classified Rate Base'!K29 -> 4788436.92 | L19: =+'Classified Rate Base'!M29 -> 0
A20: 16 | B20: 379 | D20: Meas. & Reg. Sta. Equip.- City Gate | F20: =+'Classified Rate Base'!G32 -> 3208903.09 | H20: =+'Classified Rate Base'!I32 -> 0 | J20: =+'Classified Rate Base'!K32 -> 3208903.09 | L20: =+'Classified Rate Base'!M32 -> 0
A21: 17 | D21: Total Accounts 376-379 | F21: =SUM(F17:F20) -> 92122802.81 | H21: =SUM(H17:H20) -> 47163394.42 | J21: =SUM(J17:J20) -> 44959408.39 | L21: =SUM(L17:L20) -> 0
A22: 18 | C22: DIS376-379-ALL | D22: Accounts 376-379 Allocated Factor | F22: =H22+J22+L22 -> 1 | H22: =H21/F21 -> 0.5119622176 | J22: =J21/F21 -> 0.4880377824 | L22: =L21/F21 -> 0
A23: 19
A24: 20 | B24: 376 | D24: Distribution Mains-Directly Assigned | F24: ='Classified Rate Base'!G26 -> 0 | H24: ='Classified Rate Base'!I26 -> 0 | J24: ='Classified Rate Base'!K26 -> 0 | L24: ='Classified Rate Base'!M26 -> 0
A25: 21 | B25: 378 | D25: Meas. & Reg. Sta. Equip.-Gen. - Dir. Assn | F25: ='Classified Rate Base'!G30 -> 0 | H25: ='Classified Rate Base'!I30 -> 0 | J25: ='Classified Rate Base'!K30 -> 0 | L25: ='Classified Rate Base'!M30 -> 0
A26: 22 | D26: Total Accounts 376-379 Directly Assigned | F26: =SUM(F24:F25) -> 0 | H26: =SUM(H24:H25) -> 0 | J26: =SUM(J24:J25) -> 0 | L26: =SUM(L24:L25) -> 0
A27: 23 | C27: DIS376-379-DA | D27: Accounts 376-379 Directly Assigned Factor | F27: =H27+J27+L27 -> 0 | H27: =IFERROR(H26/$F$26,0) -> 0 | J27: =IFERROR(J26/$F$26,0) -> 0 | L27: =IFERROR(L26/$F$26,0) -> 0
A28: 24
A29: 25 | B29: 376 | D29: Mains-Allocated | F29: ='Classified Rate Base'!G25 -> 84125462.8 | H29: ='Classified Rate Base'!I25 -> 47163394.42 | J29: ='Classified Rate Base'!K25 -> 36962068.38 | L29: ='Classified Rate Base'!M25 -> 0
A30: 26 | C30: MAINS-ALLOC | D30: Distribution Mains Allocated Factor | F30: =L30+J30+H30 -> 1 | H30: 0.5606316191 | J30: =1-H30 -> 0.4393683809 | L30: 0
A31: 27
A32: 28 | B32: 376 | D32: Mains-Directly Assigned | F32: ='Classified Rate Base'!G26 -> 0 | H32: ='Classified Rate Base'!I26 -> 0 | J32: ='Classified Rate Base'!K26 -> 0 | L32: ='Classified Rate Base'!M26 -> 0
A33: 29 | C33: MAINS-DA | D33: Distribution Mains Directly Assigned Factor | F33: =H33+J33+L33 -> 1 | H33: 0.5594819396 | J33: =1-H33 -> 0.4405180604 | L33: 0
A34: 30
A35: 31 | B35: 376/380 | D35: Mains and Services-Directly Assigned | F35: ='Classified Rate Base'!G26+'Classified Rate Base'!G35 -> 0 | H35: ='Classified Rate Base'!I26+'Classified Rate Base'!I35 -> 0 | J35: ='Classified Rate Base'!K26+'Classified Rate Base'!K35 -> 0 | L35: ='Classified Rate Base'!M26+'Classified Rate Base'!M35 -> 0
A36: 32 | C36: MAINS/SVCS-DA | D36: Mains and Services Directly Assigned Factor | F36: =+H36+J36+L36 -> 0 | H36: =IFERROR(H35/$F$35,0) -> 0 | J36: =IFERROR(J35/$F$35,0) -> 0 | L36: =IFERROR(L35/$F$35,0) -> 0
A37: 33
A38: 34 | B38: 376/380 | D38: Mains and Services-Allocated | F38: ='Classified Rate Base'!G25+'Classified Rate Base'!G34 -> 158698753.5 | H38: ='Classified Rate Base'!I25+'Classified Rate Base'!I34 -> 121736685.1 | J38: ='Classified Rate Base'!K25+'Classified Rate Base'!K34 -> 36962068.38 | L38: ='Classified Rate Base'!M25+'Classified Rate Base'!M34 -> 0
A39: 35 | C39: MAINS/SVCS-ALLOC | D39: Mains and Services Allocated Factor | F39: =H39+J39+L39 -> 1 | H39: =H38/$F$38 -> 0.7670928878 | J39: =J38/$F$38 -> 0.2329071122 | L39: =L38/$F$38 -> 0
A40: 36
A41: 37 | B41: 376/380 | D41: Mains and Services | F41: =F38+F35 -> 158698753.5 | H41: =H38+H35 -> 121736685.1 | J41: =J38+J35 -> 36962068.38 | L41: =L38+L35 -> 0
A42: 38 | C42: MAINS/SVCS | D42: Mains and Services Factor | F42: =H42+J42+L42 -> 1 | H42: =H41/$F$41 -> 0.7670928878 | J42: =J41/$F$41 -> 0.2329071122 | L42: =L41/$F$41 -> 0
A43: 39
A44: 40 | B44: 374-387 | D44: Total Distribution Plant | F44: =+'Classified Rate Base'!G46 -> 197371595.2 | H44: =+'Classified Rate Base'!I46 -> 148916730.6 | J44: =+'Classified Rate Base'!K46 -> 48358438.76 | L44: =+'Classified Rate Base'!M46 -> 96425.83
A45: 41 | C45: DISPLT | D45: Distribution Plant Factor | F45: =+H45+J45+L45 -> 1 | H45: =+H44/$F$44 -> 0.754499301 | J45: =+J44/$F$44 -> 0.2450121493 | L45: =+L44/$F$44 -> 0.0004885496816
A46: 42
A47: 43 | B47: 374 | D47: Land & Land Rights - Directly Assigned | F47: ='Classified Rate Base'!G23 -> 0 | H47: ='Classified Rate Base'!I23 -> 0 | J47: ='Classified Rate Base'!K23 -> 0 | L47: ='Classified Rate Base'!M23 -> 0
A48: 44 | B48: 376 | D48: Mains - Directly Assigned | F48: ='Classified Rate Base'!G26 -> 0 | H48: ='Classified Rate Base'!I26 -> 0 | J48: ='Classified Rate Base'!K26 -> 0 | L48: ='Classified Rate Base'!M26 -> 0
A49: 45 | B49: 378 | D49: Meas. & Reg. Sta. Equip.- Gen. - Dir. Assn. | F49: ='Classified Rate Base'!G30 -> 0 | H49: ='Classified Rate Base'!I30 -> 0 | J49: ='Classified Rate Base'!K30 -> 0 | L49: ='Classified Rate Base'!M30 -> 0
A50: 46 | B50: 380 | D50: Service - Directly Assigned | F50: ='Classified Rate Base'!G35 -> 0 | H50: ='Classified Rate Base'!I35 -> 0 | J50: ='Classified Rate Base'!K35 -> 0 | L50: ='Classified Rate Base'!M35 -> 0
A51: 47 | B51: 381 | D51: Meters - Directly Assigned | F51: ='Classified Rate Base'!G37 -> 0 | H51: ='Classified Rate Base'!I37 -> 0 | J51: ='Classified Rate Base'!K37 -> 0 | L51: ='Classified Rate Base'!M37 -> 0
A52: 48 | B52: 383 | D52: House Regulators - Directly Assigned | F52: ='Classified Rate Base'!G40 -> 0 | H52: ='Classified Rate Base'!I40 -> 0 | J52: ='Classified Rate Base'!K40 -> 0 | L52: ='Classified Rate Base'!M40 -> 0
A53: 49 | B53: 385 | D53: Meas. & Reg. Sta. Equip.-Ind. - Dir. Assn. | F53: ='Classified Rate Base'!G42 -> 0 | H53: ='Classified Rate Base'!I42 -> 0 | J53: ='Classified Rate Base'!K42 -> 0 | L53: ='Classified Rate Base'!M42 -> 0
A54: 50 | D54: Total Distribution Plant - Directly Assigned | F54: =SUM(F47:F53) -> 0 | H54: =SUM(H47:H53) -> 0 | J54: =SUM(J47:J53) -> 0 | L54: =SUM(L47:L53) -> 0
A55: 51 | C55: DISPLT-DA | D55: Distribution Plant - Directly Assn. Factor | F55: =H55+J55+L55 -> 0 | H55: =IFERROR(H54/$F$54,0) -> 0 | J55: =IFERROR(J54/$F$54,0) -> 0 | L55: =IFERROR(L54/$F$54,0) -> 0
A56: 52
A57: 53 | B57: 374 | D57: Land & Land Rights - Allocated | F57: -35456.98 | H57: -18152.63411 | J57: -17304.34589 | L57: 0
A58: 54 | B58: 375 | D58: Structures and Improvements | F58: -38287.24 | H58: -19601.6203 | J58: -18685.6197 | L58: 0
A59: 55 | B59: 376 | D59: Distribution Mains - Allocated | F59: -12542556.15 | H59: -7031753.562 | J59: -5510802.588 | L59: 0
A60: 56 | B60: 377 | D60: Compressor Station Equipment | F60: 0 | H60: 0 | J60: 0 | L60: 0
A61: 57 | B61: 378 | D61: Meas. & Reg. Sta. Equip.-Gen. - Alloc. | F61: -656731.3474 | H61: 0 | J61: -656731.3474 | L61: 0
A62: 58 | B62: 379 | D62: Meas. & Reg. Sta. Equip.-City Gate | F62: -81352.98659 | H62: 0 | J62: -81352.98659 | L62: 0
A63: 59 | B63: 378-379 | D63: Odorization Tank | F63: -678.2559965 | H63: 0 | J63: 0 | L63: -678.2559965
A64: 60 | B64: 380 | D64: Services - Allocated | F64: -9175100.97 | H64: -9175100.97 | J64: 0 | L64: 0
A65: 61 | B65: 381 | D65: Meters - Allocated | F65: -4060570.69 | H65: -4060570.69 | J65: 0 | L65: 0
A66: 62 | B66: 382 | D66: Meter Installations | F66: -22173.09 | H66: -22173.09 | J66: 0 | L66: 0
A67: 63 | B67: 383 | D67: House Regulators - Allocated | F67: -2184498.07 | H67: -2184498.07 | J67: 0 | L67: 0
A68: 64 | B68: 385 | D68: Meas. & Reg. Sta. Equip.-Ind. - Allocated | F68: -206423.81 | H68: 0 | J68: -206423.81 | L68: 0
A69: 65 | B69: 386 | D69: Other Property-Customer Premises | F69: -2962.11 | H69: -1516.488404 | J69: -1445.621596 | L69: 0
A70: =+A69+1 -> 66 | B70: 387 | D70: Other Equipment | F70: 0 | H70: 0 | J70: 0 | L70: 0
A71: 67 | D71: Total Distribution Plant - Allocated Reserve | F71: =SUM(F57:F70) -> -29006791.7 | H71: =SUM(H57:H70) -> -22513367.12 | J71: =SUM(J57:J70) -> -6492746.319 | L71: =SUM(L57:L70) -> -678.2559965
A72: 68 | C72: DISPLTRES-ALLOC | D72: Distribution Plant Allocated Reserve Factor | F72: =H72+J72+L72 -> 1 | H72: =H71/$F$71 -> 0.7761412347 | J72: =J71/$F$71 -> 0.2238353826 | L72: =L71/$F$71 -> 2.338266167e-05
A73: 69
A74: 70 | B74: 376 | D74: Distribution Mains - Directly Assigned | F74: 0 | H74: 0 | J74: 0 | L74: 0
A75: 71 | C75: MAINSRES-DA | D75: Distribution Mains Dir. Assn. Reserve Factor | F75: =H75+J75+L75 -> 0 | H75: =IFERROR(H74/$F$74,0) -> 0 | J75: =IFERROR(J74/$F$54,0) -> 0 | L75: =IFERROR(L74/$F$54,0) -> 0
A76: 72
A77: 73 | D77: General Plant - Allocated Reserve | F77: -13310563.26 | H77: -11134077 | J77: -2160440.794 | L77: -16045.4688
A78: 74 | C78: GEN-ALLOCRES | D78: General Plant Alloc. Reserve Factor | F78: =H78+J78+L78 -> 1 | H78: =H77/$F$77 -> 0.8364842854 | J78: =J77/$F$77 -> 0.1623102458 | L78: =L77/$F$77 -> 0.001205468806
A79: 75
A80: 76 | D80: General Plant - Directly Assigned Reserve | F80: 0 | H80: 0 | J80: 0 | L80: 0
A81: 77 | C81: GEN-DARES | D81: General Plant Directly Assn. Reserve Factor | F81: =H81+J81+L81 -> 0 | H81: =IFERROR(H80/$F$80,0) -> 0 | J81: =IFERROR(J80/$F$80,0) -> 0 | L81: =IFERROR(L80/$F$80,0) -> 0
A82: 78
A83: 79 | D83: Total Plant - Allocated | F83: ='Classified Rate Base'!G64-F86 -> 287432150.7 | H83: ='Classified Rate Base'!I64-H86 -> 181333907.9 | J83: ='Classified Rate Base'!K64-J86 -> 105733064.7 | L83: ='Classified Rate Base'!M64-L86 -> 365178.1095
A84: 80 | C84: TPLT-ALLOC | D84: Total Plant Allocated Factor | F84: =+H84+J84+L84 -> 1 | H84: =+H83/$F$83 -> 0.6308755212 | J84: =+J83/$F$83 -> 0.3678539942 | L84: =+L83/$F$83 -> 0.00127048456
A85: 81
A86: 82 | D86: Total Plant - Directly Assigned | F86: ='Classified Rate Base'!G23+'Classified Rate Base'!G26+'Classified Rate Base'!G30+'Classified Rate Base'!G35+'Classified Rate Base'!G37+'Classified Rate Base'!G40+'Classified Rate Base'!G42+'Classified Rate Base'!G60+'Classified Rate Base'!G55 -> 0 | H86: ='Classified Rate Base'!I23+'Classified Rate Base'!I26+'Classified Rate Base'!I30+'Classified Rate Base'!I35+'Classified Rate Base'!I37+'Classified Rate Base'!I40+'Classified Rate Base'!I42+'Classified Rate Base'!I60+'Classified Rate Base'!I55 -> 0 | J86: ='Classified Rate Base'!K23+'Classified Rate Base'!K26+'Classified Rate Base'!K30+'Classified Rate Base'!K35+'Classified Rate Base'!K37+'Classified Rate Base'!K40+'Classified Rate Base'!K42+'Classified Rate Base'!K60+'Classified Rate Base'!K55 -> 0 | L86: ='Classified Rate Base'!M23+'Classified Rate Base'!M26+'Classified Rate Base'!M30+'Classified Rate Base'!M35+'Classified Rate Base'!M37+'Classified Rate Base'!M40+'Classified Rate Base'!M42+'Classified Rate Base'!M60+'Classified Rate Base'!M55 -> 0
A87: 83 | C87: TPLT-DA | D87: Total Plant Directly Assigned Factor | F87: =H87+J87+L87 -> 0 | H87: =IFERROR(H86/$F$86,0) -> 0 | J87: =IFERROR(J86/$F$86,0) -> 0 | L87: =IFERROR(L86/$F$86,0) -> 0
A88: 84
A89: 85 | D89: Total Plant | F89: =+'Classified Rate Base'!G64 -> 287432150.7 | H89: =+'Classified Rate Base'!I64 -> 181333907.9 | J89: =+'Classified Rate Base'!K64 -> 105733064.7 | L89: =+'Classified Rate Base'!M64 -> 365178.1095
A90: 86 | C90: TOTPLT | D90: Total Plant Factor | F90: =L90+J90+H90 -> 1 | H90: =+H89/$F$89 -> 0.6308755212 | J90: =+J89/$F$89 -> 0.3678539942 | L90: =+L89/$F$89 -> 0.00127048456
A91: 87
A92: 88 | D92: Total Operations and Maintenance Expenses | F92: =+'Classified Cost of Service'!$G$50 -> 14879531.34 | H92: =+'Classified Cost of Service'!$I$50 -> 5992371.097 | J92: =+'Classified Cost of Service'!$K$50 -> 8637808.807 | L92: =+'Classified Cost of Service'!$M$50 -> 249351.4318
A93: 89 | D93: Total Customer Accounts Expenses | F93: =+'Classified Cost of Service'!G58 -> 2136201.927 | H93: =+'Classified Cost of Service'!I58 -> 2136201.927 | J93: =+'Classified Cost of Service'!K58 -> 0 | L93: =+'Classified Cost of Service'!M58 -> 0
A94: 90 | D94: Total Customer Information Expenses | F94: =+'Classified Cost of Service'!G65 -> 237685.6525 | H94: =+'Classified Cost of Service'!I65 -> 237685.6525 | J94: =+'Classified Cost of Service'!K65 -> 0 | L94: =+'Classified Cost of Service'!M65 -> 0
A95: 91 | D95: Total Sales and Advertising Expenses | F95: =+'Classified Cost of Service'!G73 -> 7711.331415 | H95: =+'Classified Cost of Service'!I73 -> 7711.331415 | J95: =+'Classified Cost of Service'!K73 -> 0 | L95: =+'Classified Cost of Service'!M73 -> 0
A96: 92 | D96: Administrative and General Expenses | F96: =+'Classified Cost of Service'!G77 -> 7040936.866 | H96: =+'Classified Cost of Service'!I77 -> 5415031.917 | J96: =+'Classified Cost of Service'!K77 -> 1580286.133 | L96: =+'Classified Cost of Service'!M77 -> 45618.81592
A97: 93 | D97: Total Operating Expenses | F97: =SUM(F92:F96) -> 24302067.11 | H97: =SUM(H92:H96) -> 13789001.92 | J97: =SUM(J92:J96) -> 10218094.94 | L97: =SUM(L92:L96) -> 294970.2477
A98: 94 | C98: OPEXP | D98: Operating Expense Factor | F98: =L98+J98+H98 -> 1 | H98: =+H97/F97 -> 0.5674003722 | J98: =+J97/F97 -> 0.420461967 | L98: =+L97/F97 -> 0.01213766082
A99: 95
A100: 96 | B100: 8710 | D100: Distribution Load Dispatch | F100: =+'Classified Cost of Service'!G9 -> 53185.43873 | H100: =+'Classified Cost of Service'!I9 -> 0 | J100: =+'Classified Cost of Service'!K9 -> 0 | L100: =+'Classified Cost of Service'!M9 -> 53185.43873
A101: 97 | B101: 8740 | D101: Mains and Services Expenses - Allocated | F101: =+'Classified Cost of Service'!G10 -> 2816761.801 | H101: =+'Classified Cost of Service'!I10 -> 2160717.944 | J101: =+'Classified Cost of Service'!K10 -> 656043.8569 | L101: =+'Classified Cost of Service'!M10 -> 0
A102: 98 | B102: 8740 | D102: Mains and Services Expenses - Dir. Assn. | F102: =+'Classified Cost of Service'!G11 -> 0 | H102: =+'Classified Cost of Service'!I11 -> 0 | J102: =+'Classified Cost of Service'!K11 -> 0 | L102: =+'Classified Cost of Service'!M11 -> 0
A103: 99 | B103: 8750 | D103: Measuring & Reg. Stat. Exp.-Gen.-Allocated | F103: =+'Classified Cost of Service'!G13 -> 213445.4584 | H103: =+'Classified Cost of Service'!I13 -> 0 | J103: =+'Classified Cost of Service'!K13 -> 213445.4584 | L103: =+'Classified Cost of Service'!M13 -> 0
A104: 100 | B104: 8750 | D104: Measuring & Reg. Stat. Exp.-Gen.-Dir. Assn. | F104: =+'Classified Cost of Service'!G14 -> 0 | H104: =+'Classified Cost of Service'!I14 -> 0 | J104: =+'Classified Cost of Service'!K14 -> 0 | L104: =+'Classified Cost of Service'!M14 -> 0
A105: 101 | B105: 8760 | D105: Meas. & Reg. Stat. Exp.- Ind.- Allocated | F105: =+'Classified Cost of Service'!G16 -> 25374.12812 | H105: =+'Classified Cost of Service'!I16 -> 0 | J105: =+'Classified Cost of Service'!K16 -> 25374.12812 | L105: =+'Classified Cost of Service'!M16 -> 0
A106: 102 | B106: 8760 | D106: Meas. & Reg. Stat. Exp.- Ind.- Dir. Assn. | F106: =+'Classified Cost of Service'!G17 -> 0 | H106: =+'Classified Cost of Service'!I17 -> 0 | J106: =+'Classified Cost of Service'!K17 -> 0 | L106: =+'Classified Cost of Service'!M17 -> 0
A107: 103 | B107: 8770 | D107: Meas. & Regulating Station Exp.- City Gate | F107: =+'Classified Cost of Service'!G18 -> 43956.35235 | H107: =+'Classified Cost of Service'!I18 -> 0 | J107: =+'Classified Cost of Service'!K18 -> 43956.35235 | L107: =+'Classified Cost of Service'!M18 -> 0
A108: 104 | B108: 8780 | D108: Meter and House Regulator Exp.- Allocated | F108: =+'Classified Cost of Service'!G19 -> 1771500.379 | H108: =+'Classified Cost of Service'!I19 -> 1771500.379 | J108: =+'Classified Cost of Service'!K19 -> 0 | L108: =+'Classified Cost of Service'!M19 -> 0
A109: 105 | B109: 8780 | D109: Meter and House Regulator Exp.- Dir. Assn. | F109: =+'Classified Cost of Service'!G20 -> 0 | H109: =+'Classified Cost of Service'!I20 -> 0 | J109: =+'Classified Cost of Service'!K20 -> 0 | L109: =+'Classified Cost of Service'!M20 -> 0
A110: 106 | B110: 8790 | D110: Customer Installation Expenses | F110: =+'Classified Cost of Service'!G22 -> 2226.86266 | H110: =+'Classified Cost of Service'!I22 -> 2226.86266 | J110: =+'Classified Cost of Service'!K22 -> 0 | L110: =+'Classified Cost of Service'!M22 -> 0
A111: 107 | D111: Total Accounts 871-879 | F111: =SUM(F100:F110) -> 4926450.421 | H111: =SUM(H100:H110) -> 3934445.187 | J111: =SUM(J100:J110) -> 938819.7958 | L111: =SUM(L100:L110) -> 53185.43873
A112: 108 | C112: DIS871-879 | D112: Accounts 871-879 Factor | F112: =+H112+J112+L112 -> 1 | H112: =+H111/F111 -> 0.7986369191 | J112: =+J111/F111 -> 0.1905671864 | L112: =+L111/F111 -> 0.01079589444
A113: 109
A114: 110 | B114: 8870 | D114: Maintenance of Mains-Allocated | F114: =+'Classified Cost of Service'!G32 -> 1325262.369 | H114: =+'Classified Cost of Service'!I32 -> 742983.9876 | J114: =+'Classified Cost of Service'!K32 -> 582278.3813 | L114: =+'Classified Cost of Service'!M32 -> 0
A115: 111 | B115: 8870 | D115: Maintenance of Mains - Directly Assn. | F115: ='Classified Cost of Service'!G33 -> 0 | H115: ='Classified Cost of Service'!I33 -> 0 | J115: ='Classified Cost of Service'!K33 -> 0 | L115: ='Classified Cost of Service'!M33 -> 0
A116: 112 | B116: 8890 | D116: Maint. of Meas. & Reg. Sta. Equip.- Gen. - Alloc. | F116: =+'Classified Cost of Service'!G34+'Classified Cost of Service'!G36 -> 934518.7737 | H116: =+'Classified Cost of Service'!I34+'Classified Cost of Service'!I36 -> 0 | J116: =+'Classified Cost of Service'!K34+'Classified Cost of Service'!K36 -> 854497.5237 | L116: =+'Classified Cost of Service'!M34+'Classified Cost of Service'!M36 -> 80021.25
A117: 113 | B117: 8890 | D117: Maint. of Meas. & Reg. Sta. Equip. - Gen. - Dir. Assn. | F117: =+'Classified Cost of Service'!G35 -> 0 | H117: =+'Classified Cost of Service'!I35 -> 0 | J117: =+'Classified Cost of Service'!K35 -> 0 | L117: =+'Classified Cost of Service'!M35 -> 0
A118: 114 | B118: 8900 | D118: Maint. of Meas. & Reg. Sta. Equip. - Ind. - Alloc. | F118: =+'Classified Cost of Service'!G37 -> 351992.9206 | H118: =+'Classified Cost of Service'!I37 -> 0 | J118: =+'Classified Cost of Service'!K37 -> 351992.9206 | L118: =+'Classified Cost of Service'!M37 -> 0
A119: 115 | B119: 8900 | D119: Maint. of Meas. & Reg. Sta. Equip - Ind. - Dir. Assn. | F119: =+'Classified Cost of Service'!G38 -> 0 | H119: =+'Classified Cost of Service'!I38 -> 0 | J119: =+'Classified Cost of Service'!K38 -> 0 | L119: =+'Classified Cost of Service'!M38 -> 0
A120: 116 | B120: 8910 | D120: Maint. of Meas. & Reg. Sta. Equip. - City Gate | F120: =+'Classified Cost of Service'!G39+'Classified Cost of Service'!G40 -> 17564.4 | H120: =+'Classified Cost of Service'!I39+'Classified Cost of Service'!I40 -> 0 | J120: =+'Classified Cost of Service'!K39+'Classified Cost of Service'!K40 -> 17564.4 | L120: =+'Classified Cost of Service'!M39+'Classified Cost of Service'!M40 -> 0
A121: 117 | B121: 8920 | D121: Maintenance of Services - Allocated | F121: =+'Classified Cost of Service'!G41 -> 503060.5028 | H121: =+'Classified Cost of Service'!I41 -> 503060.5028 | J121: =+'Classified Cost of Service'!K41 -> 0 | L121: =+'Classified Cost of Service'!M41 -> 0
A122: 118 | B122: 8920 | D122: Maintenance of Services - Directly Assn. | F122: =+'Classified Cost of Service'!G42 -> 0 | H122: =+'Classified Cost of Service'!I42 -> 0 | J122: =+'Classified Cost of Service'!K42 -> 0 | L122: =+'Classified Cost of Service'!M42 -> 0
A123: 119 | B123: 8930 | D123: Main. of Meters & House Reg. - Allocated | F123: =+'Classified Cost of Service'!G43 -> 0 | H123: =+'Classified Cost of Service'!I43 -> 0 | J123: =+'Classified Cost of Service'!K43 -> 0 | L123: =+'Classified Cost of Service'!M43 -> 0
A124: 120 | B124: 8930 | D124: Main. of Meters & House Reg. - Dir. Assn. | F124: =+'Classified Cost of Service'!G44 -> 0 | H124: =+'Classified Cost of Service'!I44 -> 0 | J124: =+'Classified Cost of Service'!K44 -> 0 | L124: =+'Classified Cost of Service'!M44 -> 0
A125: 121 | D125: Total Accounts 887-893 | F125: =SUM(F114:F124) -> 3132398.966 | H125: =SUM(H114:H124) -> 1246044.49 | J125: =SUM(J114:J124) -> 1806333.226 | L125: =SUM(L114:L124) -> 80021.25
A126: 122 | C126: DIS887-893 | D126: Accounts 887-893 Factor | F126: =L126+J126+H126 -> 1 | H126: =H125/F125 -> 0.3977923962 | J126: =J125/F125 -> 0.5766612891 | L126: =L125/F125 -> 0.02554631478
A127: 123
A128: 124 | D128: Total Operations and Maintenance Expenses | F128: =+'Classified Cost of Service'!G50 -> 14879531.34 | H128: =+'Classified Cost of Service'!I50 -> 5992371.097 | J128: =+'Classified Cost of Service'!K50 -> 8637808.807 | L128: =+'Classified Cost of Service'!M50 -> 249351.4318
A129: 125 | D129: Total Customer Accounts Expenses | F129: =+'Classified Cost of Service'!G58 -> 2136201.927 | H129: =+'Classified Cost of Service'!I58 -> 2136201.927 | J129: =+'Classified Cost of Service'!K58 -> 0 | L129: =+'Classified Cost of Service'!M58 -> 0
A130: 126 | D130: Total Customer Service Expenses | F130: =+'Classified Cost of Service'!G65 -> 237685.6525 | H130: =+'Classified Cost of Service'!I65 -> 237685.6525 | J130: =+'Classified Cost of Service'!K65 -> 0 | L130: =+'Classified Cost of Service'!M65 -> 0
A131: 127 | D131: Total Sales and Advertising Expenses | F131: =+'Classified Cost of Service'!G73 -> 7711.331415 | H131: =+'Classified Cost of Service'!I73 -> 7711.331415 | J131: =+'Classified Cost of Service'!K73 -> 0 | L131: =+'Classified Cost of Service'!M73 -> 0
A132: 128 | D132: Total Operating Exp. Without A&G Expenses | F132: =SUM(F128:F131) -> 17261130.25 | H132: =SUM(H128:H131) -> 8373970.008 | J132: =SUM(J128:J131) -> 8637808.807 | L132: =SUM(L128:L131) -> 249351.4318
A133: 129 | C133: NONAGOPEXP | D133: Non-A&G Operating Expenses Factor | F133: =+H133+J133+L133 -> 1 | H133: =+H132/F132 -> 0.4851345125 | J133: =+J132/F132 -> 0.5004196529 | L133: =+L132/F132 -> 0.01444583456
A134: =+A133+1 -> 130
A135: 131 | B135: 920-932 | D135: Administrative and General Expenses | F135: 7040936.866 | H135: 5415031.917 | J135: 1580286.133 | L135: 45618.81592
A136: 132 | C136: ADMINGEN | D136: Administrative and General Expenses Factor | F136: =+H136+J136+L136 -> 1 | H136: =+H135/$F$135 -> 0.769078323 | J136: =+J135/$F$135 -> 0.2244425938 | L136: =+L135/$F$135 -> 0.006479083223
A137: 133
A138: 134 | B138: 366 | D138: Meas. and Reg. Station Structures | F138: =+'Classified Rate Base'!G13 -> 1812970.69 | H138: =+'Classified Rate Base'!I13 -> 0 | J138: =+'Classified Rate Base'!K13 -> 1812970.69 | L138: =+'Classified Rate Base'!M13 -> 0
A139: 135 | C139: PLT366 | D139: Measuring and Reg. Station Structures Factor | F139: =+H139+J139+L139 -> 1 | H139: =IFERROR(H138/$F$138,0) -> 0 | J139: =IFERROR(J138/$F$138,0) -> 1 | L139: =IFERROR(L138/$F$138,0) -> 0
A140: 136
A141: 137 | B141: 367 | D141: Transmission Mains | F141: =+'Classified Rate Base'!G14 -> 34430899.93 | H141: =+'Classified Rate Base'!I14 -> 0 | J141: =+'Classified Rate Base'!K14 -> 34430899.93 | L141: =+'Classified Rate Base'!M14 -> 0
A142: 138 | C142: PLT367 | D142: Transmission Mains | F142: =+H142+J142+L142 -> 1 | H142: =H141/$F$141 -> 0 | J142: =J141/$F$141 -> 1 | L142: =L141/$F$141 -> 0
A143: 139
A144: 140 | B144: 368 | D144: Compression Station Equipment | F144: =+'Classified Rate Base'!G15 -> 157464.27 | H144: =+'Classified Rate Base'!I15 -> 0 | J144: =+'Classified Rate Base'!K15 -> 157464.27 | L144: =+'Classified Rate Base'!M15 -> 0
A145: 141 | C145: PLT368 | D145: Compression Station Equipment Factor | F145: =H145+J145+L145 -> 1 | H145: =IFERROR(H144/$F$144,0) -> 0 | J145: =IFERROR(J144/$F$144,0) -> 1 | L145: =IFERROR(L144/$F$144,0) -> 0
A146: 142
A147: 143 | B147: 369 | D147: Measuring and Reg. Station Equipment | F147: =+'Classified Rate Base'!G16 -> 13393102.49 | H147: =+'Classified Rate Base'!I16 -> 0 | J147: =+'Classified Rate Base'!K16 -> 13393102.49 | L147: =+'Classified Rate Base'!M16 -> 0
A148: 144 | C148: PLT369 | D148: Measuring & Reg, Station Equipment Factor | F148: =+H148+J148+L148 -> 1 | H148: =+H147/$F$147 -> 0 | J148: =+J147/$F$147 -> 1 | L148: =+L147/$F$147 -> 0
A149: 145
A150: 146 | B150: 371 | D150: Other Equipment | F150: =+'Classified Rate Base'!G18 -> 53986.49 | H150: =+'Classified Rate Base'!I18 -> 0 | J150: =+'Classified Rate Base'!K18 -> 53986.49 | L150: =+'Classified Rate Base'!M18 -> 0
A151: 147 | C151: PLT371 | D151: Other Equipment Factor | F151: =+H151+J151+L151 -> 1 | H151: =IFERROR(H150/$F$150,0) -> 0 | J151: =IFERROR(J150/$F$150,0) -> 1 | L151: =IFERROR(L150/$F$150,0) -> 0
A152: 148
A153: 149 | B153: 375 | D153: Structures and Improvements | F153: =+'Classified Rate Base'!G24 -> 114218.05 | H153: =+'Classified Rate Base'!I24 -> 58475.32617 | J153: =+'Classified Rate Base'!K24 -> 55742.72383 | L153: =+'Classified Rate Base'!M24 -> 0
A154: 150 | C154: PLT375 | D154: Structures and Improvements Factor | F154: =+H154+J154+L154 -> 1 | H154: =+H153/$F$153 -> 0.5119622176 | J154: =+J153/$F$153 -> 0.4880377824 | L154: =+L153/$F$153 -> 0
A155: 151
A156: 152 | B156: 378 | D156: Meas. & Reg. Sta. Equip.- Gen. - Allocated | F156: ='Classified Rate Base'!G29 -> 4788436.92 | H156: ='Classified Rate Base'!I29 -> 0 | J156: ='Classified Rate Base'!K29 -> 4788436.92 | L156: ='Classified Rate Base'!M29 -> 0
A157: 153 | C157: PLT378 | D157: Meas. & Reg. Station Equip. - General Factor | F157: =L157+J157+H157 -> 1 | H157: =H156/F156 -> 0 | J157: =J156/F156 -> 1 | L157: =L156/F156 -> 0
A158: 154
A159: 155 | B159: 379 | D159: Meas. & Reg. Sta. Equip.- City Gate | F159: ='Classified Rate Base'!G32 -> 3208903.09 | H159: ='Classified Rate Base'!I32 -> 0 | J159: ='Classified Rate Base'!K32 -> 3208903.09 | L159: ='Classified Rate Base'!M32 -> 0
A160: 156 | C160: PLT379 | D160: Meas. & Reg. Station Equip. - City Gate Factor | F160: =L160+J160+H160 -> 1 | H160: =H159/$F$159 -> 0 | J160: =J159/$F$159 -> 1 | L160: =L159/$F$159 -> 0
A161: 157
A162: 158 | B162: 380 | D162: Services - Allocated | F162: ='Classified Rate Base'!G34 -> 74573290.68 | H162: ='Classified Rate Base'!I34 -> 74573290.68 | J162: ='Classified Rate Base'!K34 -> 0 | L162: ='Classified Rate Base'!M34 -> 0
A163: 159 | C163: PLT380 | D163: Services Factor | F163: =L163+J163+H163 -> 1 | H163: =H162/$F$162 -> 1 | J163: =J162/$F$162 -> 0 | L163: =L162/$F$162 -> 0
A164: 160
A165: 161 | B165: 381 | D165: Meters - Allocated | F165: ='Classified Rate Base'!G36 -> 21960475.32 | H165: ='Classified Rate Base'!I36 -> 21960475.32 | J165: ='Classified Rate Base'!K36 -> 0 | L165: ='Classified Rate Base'!M36 -> 0
A166: 162 | C166: PLT381 | D166: Meters Factor | F166: =L166+J166+H166 -> 1 | H166: =H165/$F$165 -> 1 | J166: =J165/$F$165 -> 0 | L166: =L165/$F$165 -> 0
A167: 163
A168: 164 | B168: 382 | D168: Meter Installations | F168: =+'Classified Rate Base'!G38 -> 0 | H168: =+'Classified Rate Base'!I38 -> 0 | J168: =+'Classified Rate Base'!K38 -> 0 | L168: =+'Classified Rate Base'!M38 -> 0
A169: 165 | C169: PLT382 | D169: Meter Installations Factor | F169: =+H169+J169+L169 -> 0 | H169: =IFERROR(H168/$F$168,0) -> 0 | J169: =IFERROR(J168/$F$168,0) -> 0 | L169: =IFERROR(L168/$F$168,0) -> 0
A170: 166
A171: 167 | B171: 383 | D171: House Regulators - Allocated | F171: ='Classified Rate Base'!G39 -> 5134242.96 | H171: ='Classified Rate Base'!I39 -> 5134242.96 | J171: ='Classified Rate Base'!K39 -> 0 | L171: ='Classified Rate Base'!M39 -> 0
A172: 168 | C172: PLT383 | D172: House Regulators Factor | F172: =L172+J172+H172 -> 1 | H172: =H171/$F$171 -> 1 | J172: =J171/$F$171 -> 0 | L172: =L171/$F$171 -> 0
A173: 169
A174: 170 | B174: 385 | D174: Meas. & Reg. Sta. Equip. - Ind. - Allocated | F174: ='Classified Rate Base'!G41 -> 3323547.49 | H174: ='Classified Rate Base'!I41 -> 0 | J174: ='Classified Rate Base'!K41 -> 3323547.49 | L174: ='Classified Rate Base'!M41 -> 0
A175: 171 | C175: PLT385 | D175: Meas. & Reg. Sta. Equip.-Industrial Factor | F175: =L175+J175+H175 -> 1 | H175: =H174/$F$174 -> 0 | J175: =J174/$F$174 -> 1 | L175: =L174/$F$174 -> 0
A176: 172
A177: 173 | B177: 386 | D177: Other Property - Customer Premises | F177: =+'Classified Rate Base'!G44 -> 6144.09 | H177: =+'Classified Rate Base'!I44 -> 6144.09 | J177: =+'Classified Rate Base'!K44 -> 0 | L177: =+'Classified Rate Base'!M44 -> 0
A178: 174 | C178: PLT386 | D178: Other Property-Customer Premises Factor | F178: =+H178+J178+L178 -> 1 | H178: =+H177/$F$177 -> 1 | J178: =+J177/$F$177 -> 0 | L178: =+L177/$F$177 -> 0
A179: 175
A180: 176 | B180: 387 | D180: Other Equipment | F180: ='Classified Rate Base'!G45 -> 0 | H180: ='Classified Rate Base'!I45 -> 0 | J180: ='Classified Rate Base'!K45 -> 0 | L180: ='Classified Rate Base'!M45 -> 0
A181: 177 | C181: PLT387 | D181: Other Equipment Factor | F181: =H181+J181+L181 -> 0 | H181: =IFERROR(H180/$F$180,0) -> 0 | J181: =IFERROR(J180/$F$180,0) -> 0 | L181: =IFERROR(L180/$F$180,0) -> 0
A182: 178
A183: 179 | B183: 301-303 | D183: Intangible Plant | F183: ='Classified Rate Base'!G9 -> 0 | H183: =+'Classified Rate Base'!I9 -> 0 | J183: =+'Classified Rate Base'!K9 -> 0 | L183: =+'Classified Rate Base'!M9 -> 0
A184: 180 | C184: PLT301-03 | D184: Intangible Plant | F184: =+H184+J184+L184 -> 0 | H184: =IFERROR(+H183/$F$183,0) -> 0 | J184: =IFERROR(+J183/$F$183,0) -> 0 | L184: =IFERROR(+L183/$F$183,0) -> 0
A185: 181
A186: 182 | B186: 389-398 | D186: General Plant Depreciation Expense | F186: 2151829.198 | H186: 1813069.513 | J186: 333553.9641 | L186: 5205.720927
A187: 183 | C187: GENDEP | D187: General Plant Depreciation Expense Factor | F187: =+H187+J187+L187 -> 1 | H187: =+H186/$F$186 -> 0.8425712946 | J187: =+J186/$F$186 -> 0.1550094981 | L187: =+L186/$F$186 -> 0.00241920731
A188: 184
A189: 185 | D189: Net Plant Directly Assigned | F189: ='Classified Rate Base'!G23+'Classified Rate Base'!G26+'Classified Rate Base'!G30+'Classified Rate Base'!G35+'Classified Rate Base'!G37+'Classified Rate Base'!G40+'Classified Rate Base'!G42+'Classified Rate Base'!G55+'Classified Rate Base'!G60+'Classified Rate Base'!G71+'Classified Rate Base'!G72+'Classified Rate Base'!G75+'Classified Rate Base'!G77+'Classified Rate Base'!G79+'Classified Rate Base'!G73+'Classified Rate Base'!G74 -> 0 | H189: ='Classified Rate Base'!I23+'Classified Rate Base'!I26+'Classified Rate Base'!I30+'Classified Rate Base'!I35+'Classified Rate Base'!I37+'Classified Rate Base'!I40+'Classified Rate Base'!I42+'Classified Rate Base'!I55+'Classified Rate Base'!I60+'Classified Rate Base'!I71+'Classified Rate Base'!I72+'Classified Rate Base'!I75+'Classified Rate Base'!I77+'Classified Rate Base'!I79+'Classified Rate Base'!I73+'Classified Rate Base'!I74 -> 0 | J189: ='Classified Rate Base'!K23+'Classified Rate Base'!K26+'Classified Rate Base'!K30+'Classified Rate Base'!K35+'Classified Rate Base'!K37+'Classified Rate Base'!K40+'Classified Rate Base'!K42+'Classified Rate Base'!K55+'Classified Rate Base'!K60+'Classified Rate Base'!K71+'Classified Rate Base'!K72+'Classified Rate Base'!K75+'Classified Rate Base'!K77+'Classified Rate Base'!K79+'Classified Rate Base'!K73+'Classified Rate Base'!K74 -> 0 | L189: ='Classified Rate Base'!M23+'Classified Rate Base'!M26+'Classified Rate Base'!M30+'Classified Rate Base'!M35+'Classified Rate Base'!M37+'Classified Rate Base'!M40+'Classified Rate Base'!M42+'Classified Rate Base'!M55+'Classified Rate Base'!M60+'Classified Rate Base'!M71+'Classified Rate Base'!M72+'Classified Rate Base'!M75+'Classified Rate Base'!M77+'Classified Rate Base'!M79+'Classified Rate Base'!M73+'Classified Rate Base'!M74 -> 0
A190: 186 | C190: NETPLT-DA | D190: Net Plant Directly Assigned Factor | F190: =H190+J190+L190 -> 0 | H190: =IFERROR(H189/$F$189,0) -> 0 | J190: =IFERROR(J189/$F$189,0) -> 0 | L190: =IFERROR(L189/$F$189,0) -> 0
A191: 187
A192: 188 | D192: Net Plant Allocated | F192: ='Classified Rate Base'!G82-F189 -> 242359432.2 | H192: ='Classified Rate Base'!I82-H189 -> 147686463.8 | J192: ='Classified Rate Base'!K82-J189 -> 94361135.01 | L192: ='Classified Rate Base'!M82-L189 -> 311833.4289
A193: 189 | C193: NETPLT-ALLOC | D193: Net Plant Allocated Assigned Factor | F193: =H193+J193+L193 -> 1 | H193: =H192/$F$192 -> 0.6093695732 | J193: =J192/$F$192 -> 0.3893437699 | L193: =L192/$F$192 -> 0.001286656872
A194: 190
A195: 191 | D195: Rate Base Directly Assigned | F195: =F189+F204*F189/(F189+F192) -> 0 | H195: =$F$195*H190 -> 0 | J195: =$F$195*J190 -> 0 | L195: =$F$195*L190 -> 0
A196: 192 | C196: RB-DA | D196: Rate Base Directly Assigned Factor | F196: =L196+J196+H196 -> 0 | H196: =IFERROR(H195/$F$195,0) -> 0 | J196: =IFERROR(J195/$F$195,0) -> 0 | L196: =IFERROR(L195/$F$195,0) -> 0
A197: 193
A198: =+A197+1 -> 194 | D198: Rate Base Allocated | F198: =F192+F204*F192/(F189+F192) -> 221916520 | H198: =$F$198*H193 -> 135229175.1 | J198: =$F$198*J193 -> 86401814.51 | L198: =$F$198*L193 -> 285530.4155
A199: 195 | C199: RB-ALLOC | D199: Rate Base Allocated Factor | F199: =H199+J199+L199 -> 1 | H199: =H198/$F$198 -> 0.6093695732 | J199: =J198/$F$198 -> 0.3893437699 | L199: =L198/$F$198 -> 0.001286656872
A200: 196
A201: 197 | D201: Required Return | F201: ='Classified Cost of Service'!G130+'Classified Cost of Service'!G131 -> 17789255 | H201: ='Classified Cost of Service'!I130+'Classified Cost of Service'!I131 -> 10840230.73 | J201: ='Classified Cost of Service'!K130+'Classified Cost of Service'!K131 -> 6926135.606 | L201: ='Classified Cost of Service'!M130+'Classified Cost of Service'!M131 -> 22888.66719
... 4 more rows

Sheet Allocated Rate Base
A1: CLASS COST OF SERVICE STUDY: ALLOCATED RATE BASE
A2: ='Study Summary'!A2 -> LINE | F2: ALLOCATION | P2: =+'Study Summary'!G2 -> PUBLIC | T2: ='Study Summary'!I2 -> ELEC. | V2: =+'Study Summary'!J2 -> COM. | X2: =+'Study Summary'!K2 -> IND. | Z2: =+'Study Summary'!L2 -> PUB. AUTH. | AB2: =+'Study Summary'!M2 -> CNG | AD2: ='Study Summary'!N2 -> ELEC. GEN. | AF2: =+'Study Summary'!O2 -> FORT
A3: =+'Study Summary'!A3 -> NO. | C3: ACCT. | E3: DESCRIPTION | F3: FACTOR | H3: TOTAL | J3: =+'Study Summary'!D3 -> RESIDENTIAL | L3: =+'Study Summary'!E3 -> COMMERCIAL | N3: =+'Study Summary'!F3 -> INDUSTRIAL | P3: =+'Study Summary'!G3 -> AUTHORITY | R3: ='Study Summary'!H3 -> CNG | T3: ='Study Summary'!I3 -> GEN. | V3: =+'Study Summary'!J3 -> TRANS. | X3: =+'Study Summary'!K3 -> TRANS. | Z3: =+'Study Summary'!L3 -> TRANS. | AB3: =+'Study Summary'!M3 -> TRANS. | AD3: ='Study Summary'!N3 -> TRANS. | AF3: =+'Study Summary'!O3 -> BLISS
C4: (a) | E4: (b) | F4: (c) | H4: (d) | J4: (e) | L4: (f) | N4: (g) | P4: (h) | R4: (i) | T4: (j) | V4: (k) | X4: (l) | Z4: (m) | AB4: (n) | AD4: (o) | AF4: (m)
A5: 1 | C5: 301-303 | E5: Intangible Plant
A6: =+A5+1 -> 2 | E6: Customer | F6: NONINCUS | H6: =+'Classified Rate Base'!I9 -> 0 | J6: =+$H6*INDEX('Allocation Factors'!H$9:H$126,MATCH($F6,'Allocation Factors'!$D$9:$D$126,0)) -> 0 | L6: =+$H6*INDEX('Allocation Factors'!J$9:J$126,MATCH($F6,'Allocation Factors'!$D$9:$D$126,0)) -> 0 | N6: =+$H6*INDEX('Allocation Factors'!L$9:L$126,MATCH($F6,'Allocation Factors'!$D$9:$D$126,0)) -> 0 | P6: =+$H6*INDEX('Allocation Factors'!N$9:N$126,MATCH($F6,'Allocation Factors'!$D$9:$D$126,0)) -> 0 | R6: =+$H6*INDEX('Allocation Factors'!P$9:P$126,MATCH($F6,'Allocation Factors'!$D$9:$D$126,0)) -> 0 | T6: =+$H6*INDEX('Allocation Factors'!R$9:R$126,MATCH($F6,'Allocation Factors'!$D$9:$D$126,0)) -> 0 | V6: =+$H6*INDEX('Allocation Factors'!T$9:T$126,MATCH($F6,'Allocation Factors'!$D$9:$D$126,0)) -> 0 | X6: =+$H6*INDEX('Allocation Factors'!V$9:V$126,MATCH($F6,'Allocation Factors'!$D$9:$D$126,0)) -> 0 | Z6: =+$H6*INDEX('Allocation Factors'!X$9:X$126,MATCH($F6,'Allocation Factors'!$D$9:$D$126,0)) -> 0 | AB6: =+$H6*INDEX('Allocation Factors'!Z$9:Z$126,MATCH($F6,'Allocation Factors'!$D$9:$D$126,0)) -> 0 | AD6: =+$H6*INDEX('Allocation Factors'!AB$9:AB$126,MATCH($F6,'Allocation Factors'!$D$9:$D$126,0)) -> 0 | AF6: =+$H6*INDEX('Allocation Factors'!AD$9:AD$126,MATCH($F6,'Allocation Factors'!$D$9:$D$126,0)) -> 0
A7: 3 | E7: Demand | F7: NONINDEM | H7: =+'Classified Rate Base'!K9 -> 0 | J7: =+$H7*INDEX('Allocation Factors'!H$9:H$126,MATCH($F7,'Allocation Factors'!$D$9:$D$126,0)) -> 0 | L7: =+$H7*INDEX('Allocation Factors'!J$9:J$126,MATCH($F7,'Allocation Factors'!$D$9:$D$126,0)) -> 0 | N7: =+$H7*INDEX('Allocation Factors'!L$9:L$126,MATCH($F7,'Allocation Factors'!$D$9:$D$126,0)) -> 0 | P7: =+$H7*INDEX('Allocation Factors'!N$9:N$126,MATCH($F7,'Allocation Factors'!$D$9:$D$126,0)) -> 0 | R7: =+$H7*INDEX('Allocation Factors'!P$9:P$126,MATCH($F7,'Allocation Factors'!$D$9:$D$126,0)) -> 0 | T7: =+$H7*INDEX('Allocation Factors'!R$9:R$126,MATCH($F7,'Allocation Factors'!$D$9:$D$126,0)) -> 0 | V7: =+$H7*INDEX('Allocation Factors'!T$9:T$126,MATCH($F7,'Allocation Factors'!$D$9:$D$126,0)) -> 0 | X7: =+$H7*INDEX('Allocation Factors'!V$9:V$126,MATCH($F7,'Allocation Factors'!$D$9:$D$126,0)) -> 0 | Z7: =+$H7*INDEX('Allocation Factors'!X$9:X$126,MATCH($F7,'Allocation Factors'!$D$9:$D$126,0)) -> 0 | AB7: =+$H7*INDEX('Allocation Factors'!Z$9:Z$126,MATCH($F7,'Allocation Factors'!$D$9:$D$126,0)) -> 0 | AD7: =+$H7*INDEX('Allocation Factors'!AB$9:AB$126,MATCH($F7,'Allocation Factors'!$D$9:$D$126,0)) -> 0 | AF7: =+$H7*INDEX('Allocation Factors'!AD$9:AD$126,MATCH($F7,'Allocation Factors'!$D$9:$D$126,0)) -> 0
A8: 4 | E8: Commodity | F8: COM | H8: =+'Classified Rate Base'!M9 -> 0 | J8: =+$H8*INDEX('Allocation Factors'!H$9:H$126,MATCH($F8,'Allocation Factors'!$D$9:$D$126,0)) -> 0 | L8: =+$H8*INDEX('Allocation Factors'!J$9:J$126,MATCH($F8,'Allocation Factors'!$D$9:$D$126,0)) -> 0 | N8: =+$H8*INDEX('Allocation Factors'!L$9:L$126,MATCH($F8,'Allocation Factors'!$D$9:$D$126,0)) -> 0 | P8: =+$H8*INDEX('Allocation Factors'!N$9:N$126,MATCH($F8,'Allocation Factors'!$D$9:$D$126,0)) -> 0 | R8: =+$H8*INDEX('Allocation Factors'!P$9:P$126,MATCH($F8,'Allocation Factors'!$D$9:$D$126,0)) -> 0 | T8: =+$H8*INDEX('Allocation Factors'!R$9:R$126,MATCH($F8,'Allocation Factors'!$D$9:$D$126,0)) -> 0 | V8: =+$H8*INDEX('Allocation Factors'!T$9:T$126,MATCH($F8,'Allocation Factors'!$D$9:$D$126,0)) -> 0 | X8: =+$H8*INDEX('Allocation Factors'!V$9:V$126,MATCH($F8,'Allocation Factors'!$D$9:$D$126,0)) -> 0 | Z8: =+$H8*INDEX('Allocation Factors'!X$9:X$126,MATCH($F8,'Allocation Factors'!$D$9:$D$126,0)) -> 0 | AB8: =+$H8*INDEX('Allocation Factors'!Z$9:Z$126,MATCH($F8,'Allocation Factors'!$D$9:$D$126,0)) -> 0 | AD8: =+$H8*INDEX('Allocation Factors'!AB$9:AB$126,MATCH($F8,'Allocation Factors'!$D$9:$D$126,0)) -> 0 | AF8: =+$H8*INDEX('Allocation Factors'!AD$9:AD$126,MATCH($F8,'Allocation Factors'!$D$9:$D$126,0)) -> 0
A9: 5 | E9: Total Intangible Plant | H9: =SUM(H6:H8) -> 0 | J9: =SUM(J6:J8) -> 0 | L9: =SUM(L6:L8) -> 0 | N9: =SUM(N6:N8) -> 0 | P9: =SUM(P6:P8) -> 0 | R9: =SUM(R6:R8) -> 0 | T9: =SUM(T6:T8) -> 0 | V9: =SUM(V6:V8) -> 0 | X9: =SUM(X6:X8) -> 0 | Z9: =SUM(Z6:Z8) -> 0 | AB9: =SUM(AB6:AB8) -> 0 | AD9: =SUM(AD6:AD8) -> 0 | AF9: =SUM(AF6:AF8) -> 0
A10: 6 | C10: 365-371 | E10: Transmission Plant
A11: 7 | E11: Customer | F11: CUS | H11: ='Classified Rate Base'!I19 -> 0 | J11: =+$H11*INDEX('Allocation Factors'!H$9:H$126,MATCH($F11,'Allocation Factors'!$D$9:$D$126,0)) -> 0 | L11: =+$H11*INDEX('Allocation Factors'!J$9:J$126,MATCH($F11,'Allocation Factors'!$D$9:$D$126,0)) -> 0 | N11: =+$H11*INDEX('Allocation Factors'!L$9:L$126,MATCH($F11,'Allocation Factors'!$D$9:$D$126,0)) -> 0 | P11: =+$H11*INDEX('Allocation Factors'!N$9:N$126,MATCH($F11,'Allocation Factors'!$D$9:$D$126,0)) -> 0 | R11: =+$H11*INDEX('Allocation Factors'!P$9:P$126,MATCH($F11,'Allocation Factors'!$D$9:$D$126,0)) -> 0 | T11: =+$H11*INDEX('Allocation Factors'!R$9:R$126,MATCH($F11,'Allocation Factors'!$D$9:$D$126,0)) -> 0 | V11: =+$H11*INDEX('Allocation Factors'!T$9:T$126,MATCH($F11,'Allocation Factors'!$D$9:$D$126,0)) -> 0 | X11: =+$H11*INDEX('Allocation Factors'!V$9:V$126,MATCH($F11,'Allocation Factors'!$D$9:$D$126,0)) -> 0 | Z11: =+$H11*INDEX('Allocation Factors'!X$9:X$126,MATCH($F11,'Allocation Factors'!$D$9:$D$126,0)) -> 0 | AB11: =+$H11*INDEX('Allocation Factors'!Z$9:Z$126,MATCH($F11,'Allocation Factors'!$D$9:$D$126,0)) -> 0 | AD11: =+$H11*INDEX('Allocation Factors'!AB$9:AB$126,MATCH($F11,'Allocation Factors'!$D$9:$D$126,0)) -> 0 | AF11: =+$H11*INDEX('Allocation Factors'!AD$9:AD$126,MATCH($F11,'Allocation Factors'!$D$9:$D$126,0)) -> 0
A12: 8 | E12: Demand | F12: DEM | H12: =+'Classified Rate Base'!K19 -> 49909356.18 | J12: =+$H12*INDEX('Allocation Factors'!H$9:H$126,MATCH($F12,'Allocation Factors'!$D$9:$D$126,0)) -> 15246403.2 | L12: =+$H12*INDEX('Allocation Factors'!J$9:J$126,MATCH($F12,'Allocation Factors'!$D$9:$D$126,0)) -> 22299522.9 | N12: =+$H12*INDEX('Allocation Factors'!L$9:L$126,MATCH($F12,'Allocation Factors'!$D$9:$D$126,0)) -> 653124.5618 | P12: =+$H12*INDEX('Allocation Factors'!N$9:N$126,MATCH($F12,'Allocation Factors'!$D$9:$D$126,0)) -> 3554137.475 | R12: =+$H12*INDEX('Allocation Factors'!P$9:P$126,MATCH($F12,'Allocation Factors'!$D$9:$D$126,0)) -> 0 | T12: =+$H12*INDEX('Allocation Factors'!R$9:R$126,MATCH($F12,'Allocation Factors'!$D$9:$D$126,0)) -> 0 | V12: =+$H12*INDEX('Allocation Factors'!T$9:T$126,MATCH($F12,'Allocation Factors'!$D$9:$D$126,0)) -> 2273610.782 | X12: =+$H12*INDEX('Allocation Factors'!V$9:V$126,MATCH($F12,'Allocation Factors'!$D$9:$D$126,0)) -> 4164727.777 | Z12: =+$H12*INDEX('Allocation Factors'!X$9:X$126,MATCH($F12,'Allocation Factors'!$D$9:$D$126,0)) -> 1717829.492 | AB12: =+$H12*INDEX('Allocation Factors'!Z$9:Z$126,MATCH($F12,'Allocation Factors'!$D$9:$D$126,0)) -> 0 | AD12: =+$H12*INDEX('Allocation Factors'!AB$9:AB$126,MATCH($F12,'Allocation Factors'!$D$9:$D$126,0)) -> 0 | AF12: =+$H12*INDEX('Allocation Factors'!AD$9:AD$126,MATCH($F12,'Allocation Factors'!$D$9:$D$126,0)) -> 0
A13: 9 | E13: Commodity | F13: COM | H13: =+'Classified Rate Base'!M19 -> 185791.4 | J13: =+$H13*INDEX('Allocation Factors'!H$9:H$126,MATCH($F13,'Allocation Factors'!$D$9:$D$126,0)) -> 30315.36417 | L13: =+$H13*INDEX('Allocation Factors'!J$9:J$126,MATCH($F13,'Allocation Factors'!$D$9:$D$126,0)) -> 84964.63934 | N13: =+$H13*INDEX('Allocation Factors'!L$9:L$126,MATCH($F13,'Allocation Factors'!$D$9:$D$126,0)) -> 9897.679772 | P13: =+$H13*INDEX('Allocation Factors'!N$9:N$126,MATCH($F13,'Allocation Factors'!$D$9:$D$126,0)) -> 6317.647372 | R13: =+$H13*INDEX('Allocation Factors'!P$9:P$126,MATCH($F13,'Allocation Factors'!$D$9:$D$126,0)) -> 0 | T13: =+$H13*INDEX('Allocation Factors'!R$9:R$126,MATCH($F13,'Allocation Factors'!$D$9:$D$126,0)) -> 0 | V13: =+$H13*INDEX('Allocation Factors'!T$9:T$126,MATCH($F13,'Allocation Factors'!$D$9:$D$126,0)) -> 19182.49681 | X13: =+$H13*INDEX('Allocation Factors'!V$9:V$126,MATCH($F13,'Allocation Factors'!$D$9:$D$126,0)) -> 31313.09236 | Z13: =+$H13*INDEX('Allocation Factors'!X$9:X$126,MATCH($F13,'Allocation Factors'!$D$9:$D$126,0)) -> 3800.480185 | AB13: =+$H13*INDEX('Allocation Factors'!Z$9:Z$126,MATCH($F13,'Allocation Factors'!$D$9:$D$126,0)) -> 0 | AD13: =+$H13*INDEX('Allocation Factors'!AB$9:AB$126,MATCH($F13,'Allocation Factors'!$D$9:$D$126,0)) -> 0 | AF13: =+$H13*INDEX('Allocation Factors'!AD$9:AD$126,MATCH($F13,'Allocation Factors'!$D$9:$D$126,0)) -> 0
A14: 10 | E14: Total Transmission Plant | H14: =+H11+H12+H13 -> 50095147.58 | J14: =+J11+J12+J13 -> 15276718.56 | L14: =+L11+L12+L13 -> 22384487.54 | N14: =+N11+N12+N13 -> 663022.2416 | P14: =+P11+P12+P13 -> 3560455.122 | R14: =+R11+R12+R13 -> 0 | T14: =+T11+T12+T13 -> 0 | V14: =+V11+V12+V13 -> 2292793.278 | X14: =+X11+X12+X13 -> 4196040.87 | Z14: =+Z11+Z12+Z13 -> 1721629.972 | AB14: =+AB11+AB12+AB13 -> 0 | AD14: =+AD11+AD12+AD13 -> 0 | AF14: =+AF11+AF12+AF13 -> 0
A15: 11 | E15: Distribution Plant
A16: 12 | C16: 374 | E16: Land & Land Rights - Allocated
A17: 13 | E17: Customer | F17: 376-379CUS | H17: ='Classified Rate Base'!I22 -> 20707.84778 | J17: =+$H17*INDEX('Allocation Factors'!H$9:H$126,MATCH($F17,'Allocation Factors'!$D$9:$D$126,0)) -> 19196.39531 | L17: =+$H17*INDEX('Allocation Factors'!J$9:J$126,MATCH($F17,'Allocation Factors'!$D$9:$D$126,0)) -> 1317.713056 | N17: =+$H17*INDEX('Allocation Factors'!L$9:L$126,MATCH($F17,'Allocation Factors'!$D$9:$D$126,0)) -> 11.84956796 | P17: =+$H17*INDEX('Allocation Factors'!N$9:N$126,MATCH($F17,'Allocation Factors'!$D$9:$D$126,0)) -> 160.4818128 | R17: =+$H17*INDEX('Allocation Factors'!P$9:P$126,MATCH($F17,'Allocation Factors'!$D$9:$D$126,0)) -> 0 | T17: =+$H17*INDEX('Allocation Factors'!R$9:R$126,MATCH($F17,'Allocation Factors'!$D$9:$D$126,0)) -> 0 | V17: =+$H17*INDEX('Allocation Factors'!T$9:T$126,MATCH($F17,'Allocation Factors'!$D$9:$D$126,0)) -> 8.811889807 | X17: =+$H17*INDEX('Allocation Factors'!V$9:V$126,MATCH($F17,'Allocation Factors'!$D$9:$D$126,0)) -> 10.64995271 | Z17: =+$H17*INDEX('Allocation Factors'!X$9:X$126,MATCH($F17,'Allocation Factors'!$D$9:$D$126,0)) -> 1.946184252 | AB17: =+$H17*INDEX('Allocation Factors'!Z$9:Z$126,MATCH($F17,'Allocation Factors'!$D$9:$D$126,0)) -> 0 | AD17: =+$H17*INDEX('Allocation Factors'!AB$9:AB$126,MATCH($F17,'Allocation Factors'!$D$9:$D$126,0)) -> 0 | AF17: =+$H17*INDEX('Allocation Factors'!AD$9:AD$126,MATCH($F17,'Allocation Factors'!$D$9:$D$126,0)) -> 0
A18: 14 | E18: Demand | F18: DEM | H18: ='Classified Rate Base'!K22 -> 19740.15222 | J18: =+$H18*INDEX('Allocation Factors'!H$9:H$126,MATCH($F18,'Allocation Factors'!$D$9:$D$126,0)) -> 6030.258512 | L18: =+$H18*INDEX('Allocation Factors'!J$9:J$126,MATCH($F18,'Allocation Factors'!$D$9:$D$126,0)) -> 8819.908934 | N18: =+$H18*INDEX('Allocation Factors'!L$9:L$126,MATCH($F18,'Allocation Factors'!$D$9:$D$126,0)) -> 258.3238747 | P18: =+$H18*INDEX('Allocation Factors'!N$9:N$126,MATCH($F18,'Allocation Factors'!$D$9:$D$126,0)) -> 1405.732715 | R18: =+$H18*INDEX('Allocation Factors'!P$9:P$126,MATCH($F18,'Allocation Factors'!$D$9:$D$126,0)) -> 0 | T18: =+$H18*INDEX('Allocation Factors'!R$9:R$126,MATCH($F18,'Allocation Factors'!$D$9:$D$126,0)) -> 0 | V18: =+$H18*INDEX('Allocation Factors'!T$9:T$126,MATCH($F18,'Allocation Factors'!$D$9:$D$126,0)) -> 899.2587033 | X18: =+$H18*INDEX('Allocation Factors'!V$9:V$126,MATCH($F18,'Allocation Factors'!$D$9:$D$126,0)) -> 1647.233436 | Z18: =+$H18*INDEX('Allocation Factors'!X$9:X$126,MATCH($F18,'Allocation Factors'!$D$9:$D$126,0)) -> 679.436047 | AB18: =+$H18*INDEX('Allocation Factors'!Z$9:Z$126,MATCH($F18,'Allocation Factors'!$D$9:$D$126,0)) -> 0 | AD18: =+$H18*INDEX('Allocation Factors'!AB$9:AB$126,MATCH($F18,'Allocation Factors'!$D$9:$D$126,0)) -> 0 | AF18: =+$H18*INDEX('Allocation Factors'!AD$9:AD$126,MATCH($F18,'Allocation Factors'!$D$9:$D$126,0)) -> 0
A19: 15 | E19: Commodity | F19: COM | H19: ='Classified Rate Base'!M22 -> 0 | J19: =+$H19*INDEX('Allocation Factors'!H$9:H$126,MATCH($F19,'Allocation Factors'!$D$9:$D$126,0)) -> 0 | L19: =+$H19*INDEX('Allocation Factors'!J$9:J$126,MATCH($F19,'Allocation Factors'!$D$9:$D$126,0)) -> 0 | N19: =+$H19*INDEX('Allocation Factors'!L$9:L$126,MATCH($F19,'Allocation Factors'!$D$9:$D$126,0)) -> 0 | P19: =+$H19*INDEX('Allocation Factors'!N$9:N$126,MATCH($F19,'Allocation Factors'!$D$9:$D$126,0)) -> 0 | R19: =+$H19*INDEX('Allocation Factors'!P$9:P$126,MATCH($F19,'Allocation Factors'!$D$9:$D$126,0)) -> 0 | T19: =+$H19*INDEX('Allocation Factors'!R$9:R$126,MATCH($F19,'Allocation Factors'!$D$9:$D$126,0)) -> 0 | V19: =+$H19*INDEX('Allocation Factors'!T$9:T$126,MATCH($F19,'Allocation Factors'!$D$9:$D$126,0)) -> 0 | X19: =+$H19*INDEX('Allocation Factors'!V$9:V$126,MATCH($F19,'Allocation Factors'!$D$9:$D$126,0)) -> 0 | Z19: =+$H19*INDEX('Allocation Factors'!X$9:X$126,MATCH($F19,'Allocation Factors'!$D$9:$D$126,0)) -> 0 | AB19: =+$H19*INDEX('Allocation Factors'!Z$9:Z$126,MATCH($F19,'Allocation Factors'!$D$9:$D$126,0)) -> 0 | AD19: =+$H19*INDEX('Allocation Factors'!AB$9:AB$126,MATCH($F19,'Allocation Factors'!$D$9:$D$126,0)) -> 0 | AF19: =+$H19*INDEX('Allocation Factors'!AD$9:AD$126,MATCH($F19,'Allocation Factors'!$D$9:$D$126,0)) -> 0
A20: 16 | E20: Total Land & Land Rights - Allocated | H20: =SUM(H17:H19) -> 40448 | J20: =SUM(J17:J19) -> 25226.65383 | L20: =SUM(L17:L19) -> 10137.62199 | N20: =SUM(N17:N19) -> 270.1734426 | P20: =SUM(P17:P19) -> 1566.214528 | R20: =SUM(R17:R19) -> 0 | T20: =SUM(T17:T19) -> 0 | V20: =SUM(V17:V19) -> 908.0705931 | X20: =SUM(X17:X19) -> 1657.883389 | Z20: =SUM(Z17:Z19) -> 681.3822312 | AB20: =SUM(AB17:AB19) -> 0 | AD20: =SUM(AD17:AD19) -> 0 | AF20: =SUM(AF17:AF19) -> 0
A21: 17 | C21: 374 | E21: Land & Land Rights - DA
A22: 18 | E22: Customer | F22: CUS-DA | H22: ='Classified Rate Base'!I23 -> 0 | J22: =$H22*INDEX('Allocation Factors'!H$9:H$126,MATCH($F22,'Allocation Factors'!$D$9:$D$126,0)) -> 0 | L22: =$H22*INDEX('Allocation Factors'!J$9:J$126,MATCH($F22,'Allocation Factors'!$D$9:$D$126,0)) -> 0 | N22: =$H22*INDEX('Allocation Factors'!L$9:L$126,MATCH($F22,'Allocation Factors'!$D$9:$D$126,0)) -> 0 | P22: =$H22*INDEX('Allocation Factors'!N$9:N$126,MATCH($F22,'Allocation Factors'!$D$9:$D$126,0)) -> 0 | R22: =$H22*INDEX('Allocation Factors'!P$9:P$126,MATCH($F22,'Allocation Factors'!$D$9:$D$126,0)) -> 0 | T22: =$H22*INDEX('Allocation Factors'!R$9:R$126,MATCH($F22,'Allocation Factors'!$D$9:$D$126,0)) -> 0 | V22: =$H22*INDEX('Allocation Factors'!T$9:T$126,MATCH($F22,'Allocation Factors'!$D$9:$D$126,0)) -> 0 | X22: =$H22*INDEX('Allocation Factors'!V$9:V$126,MATCH($F22,'Allocation Factors'!$D$9:$D$126,0)) -> 0 | Z22: =$H22*INDEX('Allocation Factors'!X$9:X$126,MATCH($F22,'Allocation Factors'!$D$9:$D$126,0)) -> 0 | AB22: =$H22*INDEX('Allocation Factors'!Z$9:Z$126,MATCH($F22,'Allocation Factors'!$D$9:$D$126,0)) -> 0 | AD22: =$H22*INDEX('Allocation Factors'!AB$9:AB$126,MATCH($F22,'Allocation Factors'!$D$9:$D$126,0)) -> 0 | AF22: =$H22*INDEX('Allocation Factors'!AD$9:AD$126,MATCH($F22,'Allocation Factors'!$D$9:$D$126,0)) -> 0
A23: 19 | E23: Demand | F23: DEM-DA | H23: ='Classified Rate Base'!K23 -> 0 | J23: =$H23*INDEX('Allocation Factors'!H$9:H$126,MATCH($F23,'Allocation Factors'!$D$9:$D$126,0)) -> 0 | L23: =$H23*INDEX('Allocation Factors'!J$9:J$126,MATCH($F23,'Allocation Factors'!$D$9:$D$126,0)) -> 0 | N23: =$H23*INDEX('Allocation Factors'!L$9:L$126,MATCH($F23,'Allocation Factors'!$D$9:$D$126,0)) -> 0 | P23: =$H23*INDEX('Allocation Factors'!N$9:N$126,MATCH($F23,'Allocation Factors'!$D$9:$D$126,0)) -> 0 | R23: =$H23*INDEX('Allocation Factors'!P$9:P$126,MATCH($F23,'Allocation Factors'!$D$9:$D$126,0)) -> 0 | T23: =$H23*INDEX('Allocation Factors'!R$9:R$126,MATCH($F23,'Allocation Factors'!$D$9:$D$126,0)) -> 0 | V23: =$H23*INDEX('Allocation Factors'!T$9:T$126,MATCH($F23,'Allocation Factors'!$D$9:$D$126,0)) -> 0 | X23: =$H23*INDEX('Allocation Factors'!V$9:V$126,MATCH($F23,'Allocation Factors'!$D$9:$D$126,0)) -> 0 | Z23: =$H23*INDEX('Allocation Factors'!X$9:X$126,MATCH($F23,'Allocation Factors'!$D$9:$D$126,0)) -> 0 | AB23: =$H23*INDEX('Allocation Factors'!Z$9:Z$126,MATCH($F23,'Allocation Factors'!$D$9:$D$126,0)) -> 0 | AD23: =$H23*INDEX('Allocation Factors'!AB$9:AB$126,MATCH($F23,'Allocation Factors'!$D$9:$D$126,0)) -> 0 | AF23: =$H23*INDEX('Allocation Factors'!AD$9:AD$126,MATCH($F23,'Allocation Factors'!$D$9:$D$126,0)) -> 0
A24: 20 | E24: Commodity | F24: COM-DA | H24: ='Classified Rate Base'!M23 -> 0 | J24: =$H24*INDEX('Allocation Factors'!H$9:H$126,MATCH($F24,'Allocation Factors'!$D$9:$D$126,0)) -> 0 | L24: =$H24*INDEX('Allocation Factors'!J$9:J$126,MATCH($F24,'Allocation Factors'!$D$9:$D$126,0)) -> 0 | N24: =$H24*INDEX('Allocation Factors'!L$9:L$126,MATCH($F24,'Allocation Factors'!$D$9:$D$126,0)) -> 0 | P24: =$H24*INDEX('Allocation Factors'!N$9:N$126,MATCH($F24,'Allocation Factors'!$D$9:$D$126,0)) -> 0 | R24: =$H24*INDEX('Allocation Factors'!P$9:P$126,MATCH($F24,'Allocation Factors'!$D$9:$D$126,0)) -> 0 | T24: =$H24*INDEX('Allocation Factors'!R$9:R$126,MATCH($F24,'Allocation Factors'!$D$9:$D$126,0)) -> 0 | V24: =$H24*INDEX('Allocation Factors'!T$9:T$126,MATCH($F24,'Allocation Factors'!$D$9:$D$126,0)) -> 0 | X24: =$H24*INDEX('Allocation Factors'!V$9:V$126,MATCH($F24,'Allocation Factors'!$D$9:$D$126,0)) -> 0 | Z24: =$H24*INDEX('Allocation Factors'!X$9:X$126,MATCH($F24,'Allocation Factors'!$D$9:$D$126,0)) -> 0 | AB24: =$H24*INDEX('Allocation Factors'!Z$9:Z$126,MATCH($F24,'Allocation Factors'!$D$9:$D$126,0)) -> 0 | AD24: =$H24*INDEX('Allocation Factors'!AB$9:AB$126,MATCH($F24,'Allocation Factors'!$D$9:$D$126,0)) -> 0 | AF24: =$H24*INDEX('Allocation Factors'!AD$9:AD$126,MATCH($F24,'Allocation Factors'!$D$9:$D$126,0)) -> 0
A25: 21 | E25: Total Land & Rights - DA | H25: =SUM(H22:H24) -> 0 | J25: =SUM(J22:J24) -> 0 | L25: =SUM(L22:L24) -> 0 | N25: =SUM(N22:N24) -> 0 | P25: =SUM(P22:P24) -> 0 | R25: =SUM(R22:R24) -> 0 | T25: =SUM(T22:T24) -> 0 | V25: =SUM(V22:V24) -> 0 | X25: =SUM(X22:X24) -> 0 | Z25: =SUM(Z22:Z24) -> 0 | AB25: =SUM(AB22:AB24) -> 0 | AD25: =SUM(AD22:AD24) -> 0 | AF25: =SUM(AF22:AF24) -> 0
A26: 22 | C26: 375 | E26: Structures and Improvements
A27: 23 | E27: Customer | F27: 376-379CUS | H27: =+'Classified Rate Base'!I24 -> 58475.32617 | J27: =+$H27*INDEX('Allocation Factors'!H$9:H$126,MATCH($F27,'Allocation Factors'!$D$9:$D$126,0)) -> 54207.2498 | L27: =+$H27*INDEX('Allocation Factors'!J$9:J$126,MATCH($F27,'Allocation Factors'!$D$9:$D$126,0)) -> 3720.9903 | N27: =+$H27*INDEX('Allocation Factors'!L$9:L$126,MATCH($F27,'Allocation Factors'!$D$9:$D$126,0)) -> 33.46109934 | P27: =+$H27*INDEX('Allocation Factors'!N$9:N$126,MATCH($F27,'Allocation Factors'!$D$9:$D$126,0)) -> 453.1724614 | R27: =+$H27*INDEX('Allocation Factors'!P$9:P$126,MATCH($F27,'Allocation Factors'!$D$9:$D$126,0)) -> 0 | T27: =+$H27*INDEX('Allocation Factors'!R$9:R$126,MATCH($F27,'Allocation Factors'!$D$9:$D$126,0)) -> 0 | V27: =+$H27*INDEX('Allocation Factors'!T$9:T$126,MATCH($F27,'Allocation Factors'!$D$9:$D$126,0)) -> 24.88322959 | X27: =+$H27*INDEX('Allocation Factors'!V$9:V$126,MATCH($F27,'Allocation Factors'!$D$9:$D$126,0)) -> 30.0735965 | Z27: =+$H27*INDEX('Allocation Factors'!X$9:X$126,MATCH($F27,'Allocation Factors'!$D$9:$D$126,0)) -> 5.49568261 | AB27: =+$H27*INDEX('Allocation Factors'!Z$9:Z$126,MATCH($F27,'Allocation Factors'!$D$9:$D$126,0)) -> 0 | AD27: =+$H27*INDEX('Allocation Factors'!AB$9:AB$126,MATCH($F27,'Allocation Factors'!$D$9:$D$126,0)) -> 0 | AF27: =+$H27*INDEX('Allocation Factors'!AD$9:AD$126,MATCH($F27,'Allocation Factors'!$D$9:$D$126,0)) -> 0
A28: 24 | E28: Demand | F28: DEM | H28: =+'Classified Rate Base'!K24 -> 55742.72383 | J28: =+$H28*INDEX('Allocation Factors'!H$9:H$126,MATCH($F28,'Allocation Factors'!$D$9:$D$126,0)) -> 17028.39122 | L28: =+$H28*INDEX('Allocation Factors'!J$9:J$126,MATCH($F28,'Allocation Factors'!$D$9:$D$126,0)) -> 24905.8742 | N28: =+$H28*INDEX('Allocation Factors'!L$9:L$126,MATCH($F28,'Allocation Factors'!$D$9:$D$126,0)) -> 729.4612646 | P28: =+$H28*INDEX('Allocation Factors'!N$9:N$126,MATCH($F28,'Allocation Factors'!$D$9:$D$126,0)) -> 3969.542364 | R28: =+$H28*INDEX('Allocation Factors'!P$9:P$126,MATCH($F28,'Allocation Factors'!$D$9:$D$126,0)) -> 0 | T28: =+$H28*INDEX('Allocation Factors'!R$9:R$126,MATCH($F28,'Allocation Factors'!$D$9:$D$126,0)) -> 0 | V28: =+$H28*INDEX('Allocation Factors'!T$9:T$126,MATCH($F28,'Allocation Factors'!$D$9:$D$126,0)) -> 2539.348683 | X28: =+$H28*INDEX('Allocation Factors'!V$9:V$126,MATCH($F28,'Allocation Factors'!$D$9:$D$126,0)) -> 4651.497997 | Z28: =+$H28*INDEX('Allocation Factors'!X$9:X$126,MATCH($F28,'Allocation Factors'!$D$9:$D$126,0)) -> 1918.608099 | AB28: =+$H28*INDEX('Allocation Factors'!Z$9:Z$126,MATCH($F28,'Allocation Factors'!$D$9:$D$126,0)) -> 0 | AD28: =+$H28*INDEX('Allocation Factors'!AB$9:AB$126,MATCH($F28,'Allocation Factors'!$D$9:$D$126,0)) -> 0 | AF28: =+$H28*INDEX('Allocation Factors'!AD$9:AD$126,MATCH($F28,'Allocation Factors'!$D$9:$D$126,0)) -> 0
A29: 25 | E29: Commodity | F29: COM | H29: =+'Classified Rate Base'!M24 -> 0 | J29: =+$H29*INDEX('Allocation Factors'!H$9:H$126,MATCH($F29,'Allocation Factors'!$D$9:$D$126,0)) -> 0 | L29: =+$H29*INDEX('Allocation Factors'!J$9:J$126,MATCH($F29,'Allocation Factors'!$D$9:$D$126,0)) -> 0 | N29: =+$H29*INDEX('Allocation Factors'!L$9:L$126,MATCH($F29,'Allocation Factors'!$D$9:$D$126,0)) -> 0 | P29: =+$H29*INDEX('Allocation Factors'!N$9:N$126,MATCH($F29,'Allocation Factors'!$D$9:$D$126,0)) -> 0 | R29: =+$H29*INDEX('Allocation Factors'!P$9:P$126,MATCH($F29,'Allocation Factors'!$D$9:$D$126,0)) -> 0 | T29: =+$H29*INDEX('Allocation Factors'!R$9:R$126,MATCH($F29,'Allocation Factors'!$D$9:$D$126,0)) -> 0 | V29: =+$H29*INDEX('Allocation Factors'!T$9:T$126,MATCH($F29,'Allocation Factors'!$D$9:$D$126,0)) -> 0 | X29: =+$H29*INDEX('Allocation Factors'!V$9:V$126,MATCH($F29,'Allocation Factors'!$D$9:$D$126,0)) -> 0 | Z29: =+$H29*INDEX('Allocation Factors'!X$9:X$126,MATCH($F29,'Allocation Factors'!$D$9:$D$126,0)) -> 0 | AB29: =+$H29*INDEX('Allocation Factors'!Z$9:Z$126,MATCH($F29,'Allocation Factors'!$D$9:$D$126,0)) -> 0 | AD29: =+$H29*INDEX('Allocation Factors'!AB$9:AB$126,MATCH($F29,'Allocation Factors'!$D$9:$D$126,0)) -> 0 | AF29: =+$H29*INDEX('Allocation Factors'!AD$9:AD$126,MATCH($F29,'Allocation Factors'!$D$9:$D$126,0)) -> 0
A30: 26 | E30: Total Structures and Improvements | H30: =+H27+H28+H29 -> 114218.05 | J30: =+J27+J28+J29 -> 71235.64102 | L30: =+L27+L28+L29 -> 28626.8645 | N30: =+N27+N28+N29 -> 762.922364 | P30: =+P27+P28+P29 -> 4422.714826 | R30: =+R27+R28+R29 -> 0 | T30: =+T27+T28+T29 -> 0 | V30: =+V27+V28+V29 -> 2564.231913 | X30: =+X27+X28+X29 -> 4681.571594 | Z30: =+Z27+Z28+Z29 -> 1924.103782 | AB30: =+AB27+AB28+AB29 -> 0 | AD30: =+AD27+AD28+AD29 -> 0 | AF30: =+AF27+AF28+AF29 -> 0
A31: 27 | C31: 376 | E31: Distribution Mains-Allocated
A32: 28 | E32: Customer | F32: CUS | H32: ='Classified Rate Base'!I25 -> 47163394.42 | J32: =+$H32*INDEX('Allocation Factors'!H$9:H$126,MATCH($F32,'Allocation Factors'!$D$9:$D$126,0)) -> 43720968.66 | L32: =+$H32*INDEX('Allocation Factors'!J$9:J$126,MATCH($F32,'Allocation Factors'!$D$9:$D$126,0)) -> 3001172.369 | N32: =+$H32*INDEX('Allocation Factors'!L$9:L$126,MATCH($F32,'Allocation Factors'!$D$9:$D$126,0)) -> 26988.1184 | P32: =+$H32*INDEX('Allocation Factors'!N$9:N$126,MATCH($F32,'Allocation Factors'!$D$9:$D$126,0)) -> 365507.1795 | R32: =+$H32*INDEX('Allocation Factors'!P$9:P$126,MATCH($F32,'Allocation Factors'!$D$9:$D$126,0)) -> 0 | T32: =+$H32*INDEX('Allocation Factors'!R$9:R$126,MATCH($F32,'Allocation Factors'!$D$9:$D$126,0)) -> 0 | V32: =+$H32*INDEX('Allocation Factors'!T$9:T$126,MATCH($F32,'Allocation Factors'!$D$9:$D$126,0)) -> 20069.61993 | X32: =+$H32*INDEX('Allocation Factors'!V$9:V$126,MATCH($F32,'Allocation Factors'!$D$9:$D$126,0)) -> 24255.92102 | Z32: =+$H32*INDEX('Allocation Factors'!X$9:X$126,MATCH($F32,'Allocation Factors'!$D$9:$D$126,0)) -> 4432.554096 | AB32: =+$H32*INDEX('Allocation Factors'!Z$9:Z$126,MATCH($F32,'Allocation Factors'!$D$9:$D$126,0)) -> 0 | AD32: =+$H32*INDEX('Allocation Factors'!AB$9:AB$126,MATCH($F32,'Allocation Factors'!$D$9:$D$126,0)) -> 0 | AF32: =+$H32*INDEX('Allocation Factors'!AD$9:AD$126,MATCH($F32,'Allocation Factors'!$D$9:$D$126,0)) -> 0
A33: 29 | E33: Demand | F33: DEM | H33: ='Classified Rate Base'!K25 -> 36962068.38 | J33: =+$H33*INDEX('Allocation Factors'!H$9:H$126,MATCH($F33,'Allocation Factors'!$D$9:$D$126,0)) -> 11291241.58 | L33: =+$H33*INDEX('Allocation Factors'!J$9:J$126,MATCH($F33,'Allocation Factors'!$D$9:$D$126,0)) -> 16514668.86 | N33: =+$H33*INDEX('Allocation Factors'!L$9:L$126,MATCH($F33,'Allocation Factors'!$D$9:$D$126,0)) -> 483693.571 | P33: =+$H33*INDEX('Allocation Factors'!N$9:N$126,MATCH($F33,'Allocation Factors'!$D$9:$D$126,0)) -> 2632137.187 | R33: =+$H33*INDEX('Allocation Factors'!P$9:P$126,MATCH($F33,'Allocation Factors'!$D$9:$D$126,0)) -> 0 | T33: =+$H33*INDEX('Allocation Factors'!R$9:R$126,MATCH($F33,'Allocation Factors'!$D$9:$D$126,0)) -> 0 | V33: =+$H33*INDEX('Allocation Factors'!T$9:T$126,MATCH($F33,'Allocation Factors'!$D$9:$D$126,0)) -> 1683799.664 | X33: =+$H33*INDEX('Allocation Factors'!V$9:V$126,MATCH($F33,'Allocation Factors'!$D$9:$D$126,0)) -> 3084330.568 | Z33: =+$H33*INDEX('Allocation Factors'!X$9:X$126,MATCH($F33,'Allocation Factors'!$D$9:$D$126,0)) -> 1272196.959 | AB33: =+$H33*INDEX('Allocation Factors'!Z$9:Z$126,MATCH($F33,'Allocation Factors'!$D$9:$D$126,0)) -> 0 | AD33: =+$H33*INDEX('Allocation Factors'!AB$9:AB$126,MATCH($F33,'Allocation Factors'!$D$9:$D$126,0)) -> 0 | AF33: =+$H33*INDEX('Allocation Factors'!AD$9:AD$126,MATCH($F33,'Allocation Factors'!$D$9:$D$126,0)) -> 0
A34: 30 | E34: Commodity | F34: COM | H34: ='Classified Rate Base'!M25 -> 0 | J34: =+$H34*INDEX('Allocation Factors'!H$9:H$126,MATCH($F34,'Allocation Factors'!$D$9:$D$126,0)) -> 0 | L34: =+$H34*INDEX('Allocation Factors'!J$9:J$126,MATCH($F34,'Allocation Factors'!$D$9:$D$126,0)) -> 0 | N34: =+$H34*INDEX('Allocation Factors'!L$9:L$126,MATCH($F34,'Allocation Factors'!$D$9:$D$126,0)) -> 0 | P34: =+$H34*INDEX('Allocation Factors'!N$9:N$126,MATCH($F34,'Allocation Factors'!$D$9:$D$126,0)) -> 0 | R34: =+$H34*INDEX('Allocation Factors'!P$9:P$126,MATCH($F34,'Allocation Factors'!$D$9:$D$126,0)) -> 0 | T34: =+$H34*INDEX('Allocation Factors'!R$9:R$126,MATCH($F34,'Allocation Factors'!$D$9:$D$126,0)) -> 0 | V34: =+$H34*INDEX('Allocation Factors'!T$9:T$126,MATCH($F34,'Allocation Factors'!$D$9:$D$126,0)) -> 0 | X34: =+$H34*INDEX('Allocation Factors'!V$9:V$126,MATCH($F34,'Allocation Factors'!$D$9:$D$126,0)) -> 0 | Z34: =+$H34*INDEX('Allocation Factors'!X$9:X$126,MATCH($F34,'Allocation Factors'!$D$9:$D$126,0)) -> 0 | AB34: =+$H34*INDEX('Allocation Factors'!Z$9:Z$126,MATCH($F34,'Allocation Factors'!$D$9:$D$126,0)) -> 0 | AD34: =+$H34*INDEX('Allocation Factors'!AB$9:AB$126,MATCH($F34,'Allocation Factors'!$D$9:$D$126,0)) -> 0 | AF34: =+$H34*INDEX('Allocation Factors'!AD$9:AD$126,MATCH($F34,'Allocation Factors'!$D$9:$D$126,0)) -> 0
A35: 31 | E35: Total Distribution Mains - Allocated | H35: =SUM(H32:H34) -> 84125462.8 | J35: =SUM(J32:J34) -> 55012210.23 | L35: =SUM(L32:L34) -> 19515841.23 | N35: =SUM(N32:N34) -> 510681.6894 | P35: =SUM(P32:P34) -> 2997644.367 | R35: =SUM(R32:R34) -> 0 | T35: =SUM(T32:T34) -> 0 | V35: =SUM(V32:V34) -> 1703869.284 | X35: =SUM(X32:X34) -> 3108586.489 | Z35: =SUM(Z32:Z34) -> 1276629.513 | AB35: =SUM(AB32:AB34) -> 0 | AD35: =SUM(AD32:AD34) -> 0 | AF35: =SUM(AF32:AF34) -> 0
A36: 32 | C36: 376 | E36: Odorization
A37: 33 | E37: Customer | F37: CUS | H37: ='Classified Rate Base'!I27 -> 0 | J37: =+$H37*INDEX('Allocation Factors'!H$9:H$126,MATCH($F37,'Allocation Factors'!$D$9:$D$126,0)) -> 0 | L37: =+$H37*INDEX('Allocation Factors'!J$9:J$126,MATCH($F37,'Allocation Factors'!$D$9:$D$126,0)) -> 0 | N37: =+$H37*INDEX('Allocation Factors'!L$9:L$126,MATCH($F37,'Allocation Factors'!$D$9:$D$126,0)) -> 0 | P37: =+$H37*INDEX('Allocation Factors'!N$9:N$126,MATCH($F37,'Allocation Factors'!$D$9:$D$126,0)) -> 0 | R37: =+$H37*INDEX('Allocation Factors'!P$9:P$126,MATCH($F37,'Allocation Factors'!$D$9:$D$126,0)) -> 0 | T37: =+$H37*INDEX('Allocation Factors'!R$9:R$126,MATCH($F37,'Allocation Factors'!$D$9:$D$126,0)) -> 0 | V37: =+$H37*INDEX('Allocation Factors'!T$9:T$126,MATCH($F37,'Allocation Factors'!$D$9:$D$126,0)) -> 0 | X37: =+$H37*INDEX('Allocation Factors'!V$9:V$126,MATCH($F37,'Allocation Factors'!$D$9:$D$126,0)) -> 0 | Z37: =+$H37*INDEX('Allocation Factors'!X$9:X$126,MATCH($F37,'Allocation Factors'!$D$9:$D$126,0)) -> 0 | AB37: =+$H37*INDEX('Allocation Factors'!Z$9:Z$126,MATCH($F37,'Allocation Factors'!$D$9:$D$126,0)) -> 0 | AD37: =+$H37*INDEX('Allocation Factors'!AB$9:AB$126,MATCH($F37,'Allocation Factors'!$D$9:$D$126,0)) -> 0 | AF37: =+$H37*INDEX('Allocation Factors'!AD$9:AD$126,MATCH($F37,'Allocation Factors'!$D$9:$D$126,0)) -> 0
A38: 34 | E38: Demand | F38: DEM | H38: ='Classified Rate Base'!K27 -> 0 | J38: =+$H38*INDEX('Allocation Factors'!H$9:H$126,MATCH($F38,'Allocation Factors'!$D$9:$D$126,0)) -> 0 | L38: =+$H38*INDEX('Allocation Factors'!J$9:J$126,MATCH($F38,'Allocation Factors'!$D$9:$D$126,0)) -> 0 | N38: =+$H38*INDEX('Allocation Factors'!L$9:L$126,MATCH($F38,'Allocation Factors'!$D$9:$D$126,0)) -> 0 | P38: =+$H38*INDEX('Allocation Factors'!N$9:N$126,MATCH($F38,'Allocation Factors'!$D$9:$D$126,0)) -> 0 | R38: =+$H38*INDEX('Allocation Factors'!P$9:P$126,MATCH($F38,'Allocation Factors'!$D$9:$D$126,0)) -> 0 | T38: =+$H38*INDEX('Allocation Factors'!R$9:R$126,MATCH($F38,'Allocation Factors'!$D$9:$D$126,0)) -> 0 | V38: =+$H38*INDEX('Allocation Factors'!T$9:T$126,MATCH($F38,'Allocation Factors'!$D$9:$D$126,0)) -> 0 | X38: =+$H38*INDEX('Allocation Factors'!V$9:V$126,MATCH($F38,'Allocation Factors'!$D$9:$D$126,0)) -> 0 | Z38: =+$H38*INDEX('Allocation Factors'!X$9:X$126,MATCH($F38,'Allocation Factors'!$D$9:$D$126,0)) -> 0 | AB38: =+$H38*INDEX('Allocation Factors'!Z$9:Z$126,MATCH($F38,'Allocation Factors'!$D$9:$D$126,0)) -> 0 | AD38: =+$H38*INDEX('Allocation Factors'!AB$9:AB$126,MATCH($F38,'Allocation Factors'!$D$9:$D$126,0)) -> 0 | AF38: =+$H38*INDEX('Allocation Factors'!AD$9:AD$126,MATCH($F38,'Allocation Factors'!$D$9:$D$126,0)) -> 0
A39: 35 | E39: Commodity | F39: COM | H39: ='Classified Rate Base'!M27 -> 0 | J39: =+$H39*INDEX('Allocation Factors'!H$9:H$126,MATCH($F39,'Allocation Factors'!$D$9:$D$126,0)) -> 0 | L39: =+$H39*INDEX('Allocation Factors'!J$9:J$126,MATCH($F39,'Allocation Factors'!$D$9:$D$126,0)) -> 0 | N39: =+$H39*INDEX('Allocation Factors'!L$9:L$126,MATCH($F39,'Allocation Factors'!$D$9:$D$126,0)) -> 0 | P39: =+$H39*INDEX('Allocation Factors'!N$9:N$126,MATCH($F39,'Allocation Factors'!$D$9:$D$126,0)) -> 0 | R39: =+$H39*INDEX('Allocation Factors'!P$9:P$126,MATCH($F39,'Allocation Factors'!$D$9:$D$126,0)) -> 0 | T39: =+$H39*INDEX('Allocation Factors'!R$9:R$126,MATCH($F39,'Allocation Factors'!$D$9:$D$126,0)) -> 0 | V39: =+$H39*INDEX('Allocation Factors'!T$9:T$126,MATCH($F39,'Allocation Factors'!$D$9:$D$126,0)) -> 0 | X39: =+$H39*INDEX('Allocation Factors'!V$9:V$126,MATCH($F39,'Allocation Factors'!$D$9:$D$126,0)) -> 0 | Z39: =+$H39*INDEX('Allocation Factors'!X$9:X$126,MATCH($F39,'Allocation Factors'!$D$9:$D$126,0)) -> 0 | AB39: =+$H39*INDEX('Allocation Factors'!Z$9:Z$126,MATCH($F39,'Allocation Factors'!$D$9:$D$126,0)) -> 0 | AD39: =+$H39*INDEX('Allocation Factors'!AB$9:AB$126,MATCH($F39,'Allocation Factors'!$D$9:$D$126,0)) -> 0 | AF39: =+$H39*INDEX('Allocation Factors'!AD$9:AD$126,MATCH($F39,'Allocation Factors'!$D$9:$D$126,0)) -> 0
A40: 36 | E40: Total Odorization | H40: =SUM(H37:H39) -> 0 | J40: =SUM(J37:J39) -> 0 | L40: =SUM(L37:L39) -> 0 | N40: =SUM(N37:N39) -> 0 | P40: =SUM(P37:P39) -> 0 | R40: =SUM(R37:R39) -> 0 | T40: =SUM(T37:T39) -> 0 | V40: =SUM(V37:V39) -> 0 | X40: =SUM(X37:X39) -> 0 | Z40: =SUM(Z37:Z39) -> 0 | AB40: =SUM(AB37:AB39) -> 0 | AD40: =SUM(AD37:AD39) -> 0 | AF40: =SUM(AF37:AF39) -> 0
A41: 37 | E41: Distribution Mains - Directly Assn.
A42: 38 | E42: Customer | F42: CUS-DA | H42: ='Classified Rate Base'!I26 -> 0 | J42: =+$H42*INDEX('Allocation Factors'!H$9:H$126,MATCH($F42,'Allocation Factors'!$D$9:$D$126,0)) -> 0 | L42: =+$H42*INDEX('Allocation Factors'!J$9:J$126,MATCH($F42,'Allocation Factors'!$D$9:$D$126,0)) -> 0 | N42: =+$H42*INDEX('Allocation Factors'!L$9:L$126,MATCH($F42,'Allocation Factors'!$D$9:$D$126,0)) -> 0 | P42: =+$H42*INDEX('Allocation Factors'!N$9:N$126,MATCH($F42,'Allocation Factors'!$D$9:$D$126,0)) -> 0 | R42: =+$H42*INDEX('Allocation Factors'!P$9:P$126,MATCH($F42,'Allocation Factors'!$D$9:$D$126,0)) -> 0 | T42: =+$H42*INDEX('Allocation Factors'!R$9:R$126,MATCH($F42,'Allocation Factors'!$D$9:$D$126,0)) -> 0 | V42: =+$H42*INDEX('Allocation Factors'!T$9:T$126,MATCH($F42,'Allocation Factors'!$D$9:$D$126,0)) -> 0 | X42: =+$H42*INDEX('Allocation Factors'!V$9:V$126,MATCH($F42,'Allocation Factors'!$D$9:$D$126,0)) -> 0 | Z42: =+$H42*INDEX('Allocation Factors'!X$9:X$126,MATCH($F42,'Allocation Factors'!$D$9:$D$126,0)) -> 0 | AB42: =+$H42*INDEX('Allocation Factors'!Z$9:Z$126,MATCH($F42,'Allocation Factors'!$D$9:$D$126,0)) -> 0 | AD42: =+$H42*INDEX('Allocation Factors'!AB$9:AB$126,MATCH($F42,'Allocation Factors'!$D$9:$D$126,0)) -> 0 | AF42: =+$H42*INDEX('Allocation Factors'!AD$9:AD$126,MATCH($F42,'Allocation Factors'!$D$9:$D$126,0)) -> 0
A43: 39 | E43: Demand | F43: DEM-DA | H43: ='Classified Rate Base'!K26 -> 0 | J43: =+$H43*INDEX('Allocation Factors'!H$9:H$126,MATCH($F43,'Allocation Factors'!$D$9:$D$126,0)) -> 0 | L43: =+$H43*INDEX('Allocation Factors'!J$9:J$126,MATCH($F43,'Allocation Factors'!$D$9:$D$126,0)) -> 0 | N43: =+$H43*INDEX('Allocation Factors'!L$9:L$126,MATCH($F43,'Allocation Factors'!$D$9:$D$126,0)) -> 0 | P43: =+$H43*INDEX('Allocation Factors'!N$9:N$126,MATCH($F43,'Allocation Factors'!$D$9:$D$126,0)) -> 0 | R43: =+$H43*INDEX('Allocation Factors'!P$9:P$126,MATCH($F43,'Allocation Factors'!$D$9:$D$126,0)) -> 0 | T43: =+$H43*INDEX('Allocation Factors'!R$9:R$126,MATCH($F43,'Allocation Factors'!$D$9:$D$126,0)) -> 0 | V43: =+$H43*INDEX('Allocation Factors'!T$9:T$126,MATCH($F43,'Allocation Factors'!$D$9:$D$126,0)) -> 0 | X43: =+$H43*INDEX('Allocation Factors'!V$9:V$126,MATCH($F43,'Allocation Factors'!$D$9:$D$126,0)) -> 0 | Z43: =+$H43*INDEX('Allocation Factors'!X$9:X$126,MATCH($F43,'Allocation Factors'!$D$9:$D$126,0)) -> 0 | AB43: =+$H43*INDEX('Allocation Factors'!Z$9:Z$126,MATCH($F43,'Allocation Factors'!$D$9:$D$126,0)) -> 0 | AD43: =+$H43*INDEX('Allocation Factors'!AB$9:AB$126,MATCH($F43,'Allocation Factors'!$D$9:$D$126,0)) -> 0 | AF43: =+$H43*INDEX('Allocation Factors'!AD$9:AD$126,MATCH($F43,'Allocation Factors'!$D$9:$D$126,0)) -> 0
A44: 40 | E44: Commodity | F44: COM-DA | H44: ='Classified Rate Base'!M26 -> 0 | J44: =+$H44*INDEX('Allocation Factors'!H$9:H$126,MATCH($F44,'Allocation Factors'!$D$9:$D$126,0)) -> 0 | L44: =+$H44*INDEX('Allocation Factors'!J$9:J$126,MATCH($F44,'Allocation Factors'!$D$9:$D$126,0)) -> 0 | N44: =+$H44*INDEX('Allocation Factors'!L$9:L$126,MATCH($F44,'Allocation Factors'!$D$9:$D$126,0)) -> 0 | P44: =+$H44*INDEX('Allocation Factors'!N$9:N$126,MATCH($F44,'Allocation Factors'!$D$9:$D$126,0)) -> 0 | R44: =+$H44*INDEX('Allocation Factors'!P$9:P$126,MATCH($F44,'Allocation Factors'!$D$9:$D$126,0)) -> 0 | T44: =+$H44*INDEX('Allocation Factors'!R$9:R$126,MATCH($F44,'Allocation Factors'!$D$9:$D$126,0)) -> 0 | V44: =+$H44*INDEX('Allocation Factors'!T$9:T$126,MATCH($F44,'Allocation Factors'!$D$9:$D$126,0)) -> 0 | X44: =+$H44*INDEX('Allocation Factors'!V$9:V$126,MATCH($F44,'Allocation Factors'!$D$9:$D$126,0)) -> 0 | Z44: =+$H44*INDEX('Allocation Factors'!X$9:X$126,MATCH($F44,'Allocation Factors'!$D$9:$D$126,0)) -> 0 | AB44: =+$H44*INDEX('Allocation Factors'!Z$9:Z$126,MATCH($F44,'Allocation Factors'!$D$9:$D$126,0)) -> 0 | AD44: =+$H44*INDEX('Allocation Factors'!AB$9:AB$126,MATCH($F44,'Allocation Factors'!$D$9:$D$126,0)) -> 0 | AF44: =+$H44*INDEX('Allocation Factors'!AD$9:AD$126,MATCH($F44,'Allocation Factors'!$D$9:$D$126,0)) -> 0
A45: 41 | E45: Total Distribution Mains - Dir. Assn. | H45: =SUM(H42:H44) -> 0 | J45: =SUM(J42:J44) -> 0 | L45: =SUM(L42:L44) -> 0 | N45: =SUM(N42:N44) -> 0 | P45: =SUM(P42:P44) -> 0 | R45: =SUM(R42:R44) -> 0 | T45: =SUM(T42:T44) -> 0 | V45: =SUM(V42:V44) -> 0 | X45: =SUM(X42:X44) -> 0 | Z45: =SUM(Z42:Z44) -> 0 | AB45: =SUM(AB42:AB44) -> 0 | AD45: =SUM(AD42:AD44) -> 0 | AF45: =SUM(AF42:AF44) -> 0
A46: 42 | C46: 377 | E46: Compressor Station Equipment
A47: 43 | E47: Customer | F47: CUS | H47: ='Classified Rate Base'!I28 -> 0 | J47: =+$H47*INDEX('Allocation Factors'!H$9:H$126,MATCH($F47,'Allocation Factors'!$D$9:$D$126,0)) -> 0 | L47: =+$H47*INDEX('Allocation Factors'!J$9:J$126,MATCH($F47,'Allocation Factors'!$D$9:$D$126,0)) -> 0 | N47: =+$H47*INDEX('Allocation Factors'!L$9:L$126,MATCH($F47,'Allocation Factors'!$D$9:$D$126,0)) -> 0 | P47: =+$H47*INDEX('Allocation Factors'!N$9:N$126,MATCH($F47,'Allocation Factors'!$D$9:$D$126,0)) -> 0 | R47: =+$H47*INDEX('Allocation Factors'!P$9:P$126,MATCH($F47,'Allocation Factors'!$D$9:$D$126,0)) -> 0 | T47: =+$H47*INDEX('Allocation Factors'!R$9:R$126,MATCH($F47,'Allocation Factors'!$D$9:$D$126,0)) -> 0 | V47: =+$H47*INDEX('Allocation Factors'!T$9:T$126,MATCH($F47,'Allocation Factors'!$D$9:$D$126,0)) -> 0 | X47: =+$H47*INDEX('Allocation Factors'!V$9:V$126,MATCH($F47,'Allocation Factors'!$D$9:$D$126,0)) -> 0 | Z47: =+$H47*INDEX('Allocation Factors'!X$9:X$126,MATCH($F47,'Allocation Factors'!$D$9:$D$126,0)) -> 0 | AB47: =+$H47*INDEX('Allocation Factors'!Z$9:Z$126,MATCH($F47,'Allocation Factors'!$D$9:$D$126,0)) -> 0 | AD47: =+$H47*INDEX('Allocation Factors'!AB$9:AB$126,MATCH($F47,'Allocation Factors'!$D$9:$D$126,0)) -> 0 | AF47: =+$H47*INDEX('Allocation Factors'!AD$9:AD$126,MATCH($F47,'Allocation Factors'!$D$9:$D$126,0)) -> 0
A48: 44 | E48: Demand | F48: DEM | H48: ='Classified Rate Base'!K28 -> 0 | J48: =+$H48*INDEX('Allocation Factors'!H$9:H$126,MATCH($F48,'Allocation Factors'!$D$9:$D$126,0)) -> 0 | L48: =+$H48*INDEX('Allocation Factors'!J$9:J$126,MATCH($F48,'Allocation Factors'!$D$9:$D$126,0)) -> 0 | N48: =+$H48*INDEX('Allocation Factors'!L$9:L$126,MATCH($F48,'Allocation Factors'!$D$9:$D$126,0)) -> 0 | P48: =+$H48*INDEX('Allocation Factors'!N$9:N$126,MATCH($F48,'Allocation Factors'!$D$9:$D$126,0)) -> 0 | R48: =+$H48*INDEX('Allocation Factors'!P$9:P$126,MATCH($F48,'Allocation Factors'!$D$9:$D$126,0)) -> 0 | T48: =+$H48*INDEX('Allocation Factors'!R$9:R$126,MATCH($F48,'Allocation Factors'!$D$9:$D$126,0)) -> 0 | V48: =+$H48*INDEX('Allocation Factors'!T$9:T$126,MATCH($F48,'Allocation Factors'!$D$9:$D$126,0)) -> 0 | X48: =+$H48*INDEX('Allocation Factors'!V$9:V$126,MATCH($F48,'Allocation Factors'!$D$9:$D$126,0)) -> 0 | Z48: =+$H48*INDEX('Allocation Factors'!X$9:X$126,MATCH($F48,'Allocation Factors'!$D$9:$D$126,0)) -> 0 | AB48: =+$H48*INDEX('Allocation Factors'!Z$9:Z$126,MATCH($F48,'Allocation Factors'!$D$9:$D$126,0)) -> 0 | AD48: =+$H48*INDEX('Allocation Factors'!AB$9:AB$126,MATCH($F48,'Allocation Factors'!$D$9:$D$126,0)) -> 0 | AF48: =+$H48*INDEX('Allocation Factors'!AD$9:AD$126,MATCH($F48,'Allocation Factors'!$D$9:$D$126,0)) -> 0
A49: 45 | E49: Commodity | F49: COM | H49: ='Classified Rate Base'!M28 -> 0 | J49: =+$H49*INDEX('Allocation Factors'!H$9:H$126,MATCH($F49,'Allocation Factors'!$D$9:$D$126,0)) -> 0 | L49: =+$H49*INDEX('Allocation Factors'!J$9:J$126,MATCH($F49,'Allocation Factors'!$D$9:$D$126,0)) -> 0 | N49: =+$H49*INDEX('Allocation Factors'!L$9:L$126,MATCH($F49,'Allocation Factors'!$D$9:$D$126,0)) -> 0 | P49: =+$H49*INDEX('Allocation Factors'!N$9:N$126,MATCH($F49,'Allocation Factors'!$D$9:$D$126,0)) -> 0 | R49: =+$H49*INDEX('Allocation Factors'!P$9:P$126,MATCH($F49,'Allocation Factors'!$D$9:$D$126,0)) -> 0 | T49: =+$H49*INDEX('Allocation Factors'!R$9:R$126,MATCH($F49,'Allocation Factors'!$D$9:$D$126,0)) -> 0 | V49: =+$H49*INDEX('Allocation Factors'!T$9:T$126,MATCH($F49,'Allocation Factors'!$D$9:$D$126,0)) -> 0 | X49: =+$H49*INDEX('Allocation Factors'!V$9:V$126,MATCH($F49,'Allocation Factors'!$D$9:$D$126,0)) -> 0 | Z49: =+$H49*INDEX('Allocation Factors'!X$9:X$126,MATCH($F49,'Allocation Factors'!$D$9:$D$126,0)) -> 0 | AB49: =+$H49*INDEX('Allocation Factors'!Z$9:Z$126,MATCH($F49,'Allocation Factors'!$D$9:$D$126,0)) -> 0 | AD49: =+$H49*INDEX('Allocation Factors'!AB$9:AB$126,MATCH($F49,'Allocation Factors'!$D$9:$D$126,0)) -> 0 | AF49: =+$H49*INDEX('Allocation Factors'!AD$9:AD$126,MATCH($F49,'Allocation Factors'!$D$9:$D$126,0)) -> 0
A50: 46 | E50: Total Compressor Station Equipment | H50: =SUM(H47:H49) -> 0 | J50: =SUM(J47:J49) -> 0 | L50: =SUM(L47:L49) -> 0 | N50: =SUM(N47:N49) -> 0 | P50: =SUM(P47:P49) -> 0 | R50: =SUM(R47:R49) -> 0 | T50: =SUM(T47:T49) -> 0 | V50: =SUM(V47:V49) -> 0 | X50: =SUM(X47:X49) -> 0 | Z50: =SUM(Z47:Z49) -> 0 | AB50: =SUM(AB47:AB49) -> 0 | AD50: =SUM(AD47:AD49) -> 0 | AF50: =SUM(AF47:AF49) -> 0
A51: 47 | C51: ='Classified Rate Base'!B30 -> 378 | E51: Meas. & Reg. Sta. Equip.- Gen.-Alloc.
A52: 48 | E52: Customer | F52: CUS | H52: ='Classified Rate Base'!I29 -> 0 | J52: =+$H52*INDEX('Allocation Factors'!H$9:H$126,MATCH($F52,'Allocation Factors'!$D$9:$D$126,0)) -> 0 | L52: =+$H52*INDEX('Allocation Factors'!J$9:J$126,MATCH($F52,'Allocation Factors'!$D$9:$D$126,0)) -> 0 | N52: =+$H52*INDEX('Allocation Factors'!L$9:L$126,MATCH($F52,'Allocation Factors'!$D$9:$D$126,0)) -> 0 | P52: =+$H52*INDEX('Allocation Factors'!N$9:N$126,MATCH($F52,'Allocation Factors'!$D$9:$D$126,0)) -> 0 | R52: =+$H52*INDEX('Allocation Factors'!P$9:P$126,MATCH($F52,'Allocation Factors'!$D$9:$D$126,0)) -> 0 | T52: =+$H52*INDEX('Allocation Factors'!R$9:R$126,MATCH($F52,'Allocation Factors'!$D$9:$D$126,0)) -> 0 | V52: =+$H52*INDEX('Allocation Factors'!T$9:T$126,MATCH($F52,'Allocation Factors'!$D$9:$D$126,0)) -> 0 | X52: =+$H52*INDEX('Allocation Factors'!V$9:V$126,MATCH($F52,'Allocation Factors'!$D$9:$D$126,0)) -> 0 | Z52: =+$H52*INDEX('Allocation Factors'!X$9:X$126,MATCH($F52,'Allocation Factors'!$D$9:$D$126,0)) -> 0 | AB52: =+$H52*INDEX('Allocation Factors'!Z$9:Z$126,MATCH($F52,'Allocation Factors'!$D$9:$D$126,0)) -> 0 | AD52: =+$H52*INDEX('Allocation Factors'!AB$9:AB$126,MATCH($F52,'Allocation Factors'!$D$9:$D$126,0)) -> 0 | AF52: =+$H52*INDEX('Allocation Factors'!AD$9:AD$126,MATCH($F52,'Allocation Factors'!$D$9:$D$126,0)) -> 0
A53: 49 | E53: Demand | F53: DEM | H53: ='Classified Rate Base'!K29 -> 4788436.92 | J53: =+$H53*INDEX('Allocation Factors'!H$9:H$126,MATCH($F53,'Allocation Factors'!$D$9:$D$126,0)) -> 1462780.64 | L53: =+$H53*INDEX('Allocation Factors'!J$9:J$126,MATCH($F53,'Allocation Factors'!$D$9:$D$126,0)) -> 2139475.78 | N53: =+$H53*INDEX('Allocation Factors'!L$9:L$126,MATCH($F53,'Allocation Factors'!$D$9:$D$126,0)) -> 62662.5147 | P53: =+$H53*INDEX('Allocation Factors'!N$9:N$126,MATCH($F53,'Allocation Factors'!$D$9:$D$126,0)) -> 340993.441 | R53: =+$H53*INDEX('Allocation Factors'!P$9:P$126,MATCH($F53,'Allocation Factors'!$D$9:$D$126,0)) -> 0 | T53: =+$H53*INDEX('Allocation Factors'!R$9:R$126,MATCH($F53,'Allocation Factors'!$D$9:$D$126,0)) -> 0 | V53: =+$H53*INDEX('Allocation Factors'!T$9:T$126,MATCH($F53,'Allocation Factors'!$D$9:$D$126,0)) -> 218136.2903 | X53: =+$H53*INDEX('Allocation Factors'!V$9:V$126,MATCH($F53,'Allocation Factors'!$D$9:$D$126,0)) -> 399575.1053 | Z53: =+$H53*INDEX('Allocation Factors'!X$9:X$126,MATCH($F53,'Allocation Factors'!$D$9:$D$126,0)) -> 164813.1491 | AB53: =+$H53*INDEX('Allocation Factors'!Z$9:Z$126,MATCH($F53,'Allocation Factors'!$D$9:$D$126,0)) -> 0 | AD53: =+$H53*INDEX('Allocation Factors'!AB$9:AB$126,MATCH($F53,'Allocation Factors'!$D$9:$D$126,0)) -> 0 | AF53: =+$H53*INDEX('Allocation Factors'!AD$9:AD$126,MATCH($F53,'Allocation Factors'!$D$9:$D$126,0)) -> 0
A54: 50 | E54: Commodity | F54: COM | H54: ='Classified Rate Base'!M29 -> 0 | J54: =+$H54*INDEX('Allocation Factors'!H$9:H$126,MATCH($F54,'Allocation Factors'!$D$9:$D$126,0)) -> 0 | L54: =+$H54*INDEX('Allocation Factors'!J$9:J$126,MATCH($F54,'Allocation Factors'!$D$9:$D$126,0)) -> 0 | N54: =+$H54*INDEX('Allocation Factors'!L$9:L$126,MATCH($F54,'Allocation Factors'!$D$9:$D$126,0)) -> 0 | P54: =+$H54*INDEX('Allocation Factors'!N$9:N$126,MATCH($F54,'Allocation Factors'!$D$9:$D$126,0)) -> 0 | R54: =+$H54*INDEX('Allocation Factors'!P$9:P$126,MATCH($F54,'Allocation Factors'!$D$9:$D$126,0)) -> 0 | T54: =+$H54*INDEX('Allocation Factors'!R$9:R$126,MATCH($F54,'Allocation Factors'!$D$9:$D$126,0)) -> 0 | V54: =+$H54*INDEX('Allocation Factors'!T$9:T$126,MATCH($F54,'Allocation Factors'!$D$9:$D$126,0)) -> 0 | X54: =+$H54*INDEX('Allocation Factors'!V$9:V$126,MATCH($F54,'Allocation Factors'!$D$9:$D$126,0)) -> 0 | Z54: =+$H54*INDEX('Allocation Factors'!X$9:X$126,MATCH($F54,'Allocation Factors'!$D$9:$D$126,0)) -> 0 | AB54: =+$H54*INDEX('Allocation Factors'!Z$9:Z$126,MATCH($F54,'Allocation Factors'!$D$9:$D$126,0)) -> 0 | AD54: =+$H54*INDEX('Allocation Factors'!AB$9:AB$126,MATCH($F54,'Allocation Factors'!$D$9:$D$126,0)) -> 0 | AF54: =+$H54*INDEX('Allocation Factors'!AD$9:AD$126,MATCH($F54,'Allocation Factors'!$D$9:$D$126,0)) -> 0
A55: 51 | E55: Total Meas. & Reg. Sta. Equip.- Gen.-Alloc. | H55: =SUM(H52:H54) -> 4788436.92 | J55: =SUM(J52:J54) -> 1462780.64 | L55: =SUM(L52:L54) -> 2139475.78 | N55: =SUM(N52:N54) -> 62662.5147 | P55: =SUM(P52:P54) -> 340993.441 | R55: =SUM(R52:R54) -> 0 | T55: =SUM(T52:T54) -> 0 | V55: =SUM(V52:V54) -> 218136.2903 | X55: =SUM(X52:X54) -> 399575.1053 | Z55: =SUM(Z52:Z54) -> 164813.1491 | AB55: =SUM(AB52:AB54) -> 0 | AD55: =SUM(AD52:AD54) -> 0 | AF55: =SUM(AF52:AF54) -> 0
A56: 52 | C56: 378 | E56: Meas. & Reg. Sta. Equip.- Gen.- DA
A57: 53 | E57: Customer | F57: CUS-DA | H57: ='Classified Rate Base'!I30 -> 0 | J57: =+$H57*INDEX('Allocation Factors'!H$9:H$126,MATCH($F57,'Allocation Factors'!$D$9:$D$126,0)) -> 0 | L57: =+$H57*INDEX('Allocation Factors'!J$9:J$126,MATCH($F57,'Allocation Factors'!$D$9:$D$126,0)) -> 0 | N57: =+$H57*INDEX('Allocation Factors'!L$9:L$126,MATCH($F57,'Allocation Factors'!$D$9:$D$126,0)) -> 0 | P57: =+$H57*INDEX('Allocation Factors'!N$9:N$126,MATCH($F57,'Allocation Factors'!$D$9:$D$126,0)) -> 0 | R57: =+$H57*INDEX('Allocation Factors'!P$9:P$126,MATCH($F57,'Allocation Factors'!$D$9:$D$126,0)) -> 0 | T57: =+$H57*INDEX('Allocation Factors'!R$9:R$126,MATCH($F57,'Allocation Factors'!$D$9:$D$126,0)) -> 0 | V57: =+$H57*INDEX('Allocation Factors'!T$9:T$126,MATCH($F57,'Allocation Factors'!$D$9:$D$126,0)) -> 0 | X57: =+$H57*INDEX('Allocation Factors'!V$9:V$126,MATCH($F57,'Allocation Factors'!$D$9:$D$126,0)) -> 0 | Z57: =+$H57*INDEX('Allocation Factors'!X$9:X$126,MATCH($F57,'Allocation Factors'!$D$9:$D$126,0)) -> 0 | AB57: =+$H57*INDEX('Allocation Factors'!Z$9:Z$126,MATCH($F57,'Allocation Factors'!$D$9:$D$126,0)) -> 0 | AD57: =+$H57*INDEX('Allocation Factors'!AB$9:AB$126,MATCH($F57,'Allocation Factors'!$D$9:$D$126,0)) -> 0 | AF57: =+$H57*INDEX('Allocation Factors'!AD$9:AD$126,MATCH($F57,'Allocation Factors'!$D$9:$D$126,0)) -> 0
A58: 54 | E58: Demand | F58: DEM-DA | H58: ='Classified Rate Base'!K30 -> 0 | J58: =+$H58*INDEX('Allocation Factors'!H$9:H$126,MATCH($F58,'Allocation Factors'!$D$9:$D$126,0)) -> 0 | L58: =+$H58*INDEX('Allocation Factors'!J$9:J$126,MATCH($F58,'Allocation Factors'!$D$9:$D$126,0)) -> 0 | N58: =+$H58*INDEX('Allocation Factors'!L$9:L$126,MATCH($F58,'Allocation Factors'!$D$9:$D$126,0)) -> 0 | P58: =+$H58*INDEX('Allocation Factors'!N$9:N$126,MATCH($F58,'Allocation Factors'!$D$9:$D$126,0)) -> 0 | R58: =+$H58*INDEX('Allocation Factors'!P$9:P$126,MATCH($F58,'Allocation Factors'!$D$9:$D$126,0)) -> 0 | T58: =+$H58*INDEX('Allocation Factors'!R$9:R$126,MATCH($F58,'Allocation Factors'!$D$9:$D$126,0)) -> 0 | V58: =+$H58*INDEX('Allocation Factors'!T$9:T$126,MATCH($F58,'Allocation Factors'!$D$9:$D$126,0)) -> 0 | X58: =+$H58*INDEX('Allocation Factors'!V$9:V$126,MATCH($F58,'Allocation Factors'!$D$9:$D$126,0)) -> 0 | Z58: =+$H58*INDEX('Allocation Factors'!X$9:X$126,MATCH($F58,'Allocation Factors'!$D$9:$D$126,0)) -> 0 | AB58: =+$H58*INDEX('Allocation Factors'!Z$9:Z$126,MATCH($F58,'Allocation Factors'!$D$9:$D$126,0)) -> 0 | AD58: =+$H58*INDEX('Allocation Factors'!AB$9:AB$126,MATCH($F58,'Allocation Factors'!$D$9:$D$126,0)) -> 0 | AF58: =+$H58*INDEX('Allocation Factors'!AD$9:AD$126,MATCH($F58,'Allocation Factors'!$D$9:$D$126,0)) -> 0
A59: 55 | E59: Commodity | F59: COM-DA | H59: ='Classified Rate Base'!M30 -> 0 | J59: =+$H59*INDEX('Allocation Factors'!H$9:H$126,MATCH($F59,'Allocation Factors'!$D$9:$D$126,0)) -> 0 | L59: =+$H59*INDEX('Allocation Factors'!J$9:J$126,MATCH($F59,'Allocation Factors'!$D$9:$D$126,0)) -> 0 | N59: =+$H59*INDEX('Allocation Factors'!L$9:L$126,MATCH($F59,'Allocation Factors'!$D$9:$D$126,0)) -> 0 | P59: =+$H59*INDEX('Allocation Factors'!N$9:N$126,MATCH($F59,'Allocation Factors'!$D$9:$D$126,0)) -> 0 | R59: =+$H59*INDEX('Allocation Factors'!P$9:P$126,MATCH($F59,'Allocation Factors'!$D$9:$D$126,0)) -> 0 | T59: =+$H59*INDEX('Allocation Factors'!R$9:R$126,MATCH($F59,'Allocation Factors'!$D$9:$D$126,0)) -> 0 | V59: =+$H59*INDEX('Allocation Factors'!T$9:T$126,MATCH($F59,'Allocation Factors'!$D$9:$D$126,0)) -> 0 | X59: =+$H59*INDEX('Allocation Factors'!V$9:V$126,MATCH($F59,'Allocation Factors'!$D$9:$D$126,0)) -> 0 | Z59: =+$H59*INDEX('Allocation Factors'!X$9:X$126,MATCH($F59,'Allocation Factors'!$D$9:$D$126,0)) -> 0 | AB59: =+$H59*INDEX('Allocation Factors'!Z$9:Z$126,MATCH($F59,'Allocation Factors'!$D$9:$D$126,0)) -> 0 | AD59: =+$H59*INDEX('Allocation Factors'!AB$9:AB$126,MATCH($F59,'Allocation Factors'!$D$9:$D$126,0)) -> 0 | AF59: =+$H59*INDEX('Allocation Factors'!AD$9:AD$126,MATCH($F59,'Allocation Factors'!$D$9:$D$126,0)) -> 0
A60: 56 | E60: Total Meas. & Reg. Sta. Equip.-Gen. - DA | H60: =SUM(H57:H59) -> 0 | J60: =SUM(J57:J59) -> 0 | L60: =SUM(L57:L59) -> 0 | N60: =SUM(N57:N59) -> 0 | P60: =SUM(P57:P59) -> 0 | R60: =SUM(R57:R59) -> 0 | T60: =SUM(T57:T59) -> 0 | V60: =SUM(V57:V59) -> 0 | X60: =SUM(X57:X59) -> 0 | Z60: =SUM(Z57:Z59) -> 0 | AB60: =SUM(AB57:AB59) -> 0 | AD60: =SUM(AD57:AD59) -> 0 | AF60: =SUM(AF57:AF59) -> 0
A61: 57 | C61: 378 | E61: Odorization
A62: 58 | E62: Customer | F62: CUS | H62: =+'Classified Rate Base'!I31 -> 0 | J62: =+$H62*INDEX('Allocation Factors'!H$9:H$126,MATCH($F62,'Allocation Factors'!$D$9:$D$126,0)) -> 0 | L62: =+$H62*INDEX('Allocation Factors'!J$9:J$126,MATCH($F62,'Allocation Factors'!$D$9:$D$126,0)) -> 0 | N62: =+$H62*INDEX('Allocation Factors'!L$9:L$126,MATCH($F62,'Allocation Factors'!$D$9:$D$126,0)) -> 0 | P62: =+$H62*INDEX('Allocation Factors'!N$9:N$126,MATCH($F62,'Allocation Factors'!$D$9:$D$126,0)) -> 0 | R62: =+$H62*INDEX('Allocation Factors'!P$9:P$126,MATCH($F62,'Allocation Factors'!$D$9:$D$126,0)) -> 0 | T62: =+$H62*INDEX('Allocation Factors'!R$9:R$126,MATCH($F62,'Allocation Factors'!$D$9:$D$126,0)) -> 0 | V62: =+$H62*INDEX('Allocation Factors'!T$9:T$126,MATCH($F62,'Allocation Factors'!$D$9:$D$126,0)) -> 0 | X62: =+$H62*INDEX('Allocation Factors'!V$9:V$126,MATCH($F62,'Allocation Factors'!$D$9:$D$126,0)) -> 0 | Z62: =+$H62*INDEX('Allocation Factors'!X$9:X$126,MATCH($F62,'Allocation Factors'!$D$9:$D$126,0)) -> 0 | AB62: =+$H62*INDEX('Allocation Factors'!Z$9:Z$126,MATCH($F62,'Allocation Factors'!$D$9:$D$126,0)) -> 0 | AD62: =+$H62*INDEX('Allocation Factors'!AB$9:AB$126,MATCH($F62,'Allocation Factors'!$D$9:$D$126,0)) -> 0 | AF62: =+$H62*INDEX('Allocation Factors'!AD$9:AD$126,MATCH($F62,'Allocation Factors'!$D$9:$D$126,0)) -> 0
A63: 59 | E63: Demand | F63: DEM | H63: =+'Classified Rate Base'!K31 -> 0 | J63: =+$H63*INDEX('Allocation Factors'!H$9:H$126,MATCH($F63,'Allocation Factors'!$D$9:$D$126,0)) -> 0 | L63: =+$H63*INDEX('Allocation Factors'!J$9:J$126,MATCH($F63,'Allocation Factors'!$D$9:$D$126,0)) -> 0 | N63: =+$H63*INDEX('Allocation Factors'!L$9:L$126,MATCH($F63,'Allocation Factors'!$D$9:$D$126,0)) -> 0 | P63: =+$H63*INDEX('Allocation Factors'!N$9:N$126,MATCH($F63,'Allocation Factors'!$D$9:$D$126,0)) -> 0 | R63: =+$H63*INDEX('Allocation Factors'!P$9:P$126,MATCH($F63,'Allocation Factors'!$D$9:$D$126,0)) -> 0 | T63: =+$H63*INDEX('Allocation Factors'!R$9:R$126,MATCH($F63,'Allocation Factors'!$D$9:$D$126,0)) -> 0 | V63: =+$H63*INDEX('Allocation Factors'!T$9:T$126,MATCH($F63,'Allocation Factors'!$D$9:$D$126,0)) -> 0 | X63: =+$H63*INDEX('Allocation Factors'!V$9:V$126,MATCH($F63,'Allocation Factors'!$D$9:$D$126,0)) -> 0 | Z63: =+$H63*INDEX('Allocation Factors'!X$9:X$126,MATCH($F63,'Allocation Factors'!$D$9:$D$126,0)) -> 0 | AB63: =+$H63*INDEX('Allocation Factors'!Z$9:Z$126,MATCH($F63,'Allocation Factors'!$D$9:$D$126,0)) -> 0 | AD63: =+$H63*INDEX('Allocation Factors'!AB$9:AB$126,MATCH($F63,'Allocation Factors'!$D$9:$D$126,0)) -> 0 | AF63: =+$H63*INDEX('Allocation Factors'!AD$9:AD$126,MATCH($F63,'Allocation Factors'!$D$9:$D$126,0)) -> 0
A64: 60 | E64: Commodity | F64: COM | H64: =+'Classified Rate Base'!M31 -> 79345.37 | J64: =+$H64*INDEX('Allocation Factors'!H$9:H$126,MATCH($F64,'Allocation Factors'!$D$9:$D$126,0)) -> 12946.69068 | L64: =+$H64*INDEX('Allocation Factors'!J$9:J$126,MATCH($F64,'Allocation Factors'!$D$9:$D$126,0)) -> 36285.59096 | N64: =+$H64*INDEX('Allocation Factors'!L$9:L$126,MATCH($F64,'Allocation Factors'!$D$9:$D$126,0)) -> 4226.972097 | P64: =+$H64*INDEX('Allocation Factors'!N$9:N$126,MATCH($F64,'Allocation Factors'!$D$9:$D$126,0)) -> 2698.058512 | R64: =+$H64*INDEX('Allocation Factors'!P$9:P$126,MATCH($F64,'Allocation Factors'!$D$9:$D$126,0)) -> 0 | T64: =+$H64*INDEX('Allocation Factors'!R$9:R$126,MATCH($F64,'Allocation Factors'!$D$9:$D$126,0)) -> 0 | V64: =+$H64*INDEX('Allocation Factors'!T$9:T$126,MATCH($F64,'Allocation Factors'!$D$9:$D$126,0)) -> 8192.210764 | X64: =+$H64*INDEX('Allocation Factors'!V$9:V$126,MATCH($F64,'Allocation Factors'!$D$9:$D$126,0)) -> 13372.78743 | Z64: =+$H64*INDEX('Allocation Factors'!X$9:X$126,MATCH($F64,'Allocation Factors'!$D$9:$D$126,0)) -> 1623.059552 | AB64: =+$H64*INDEX('Allocation Factors'!Z$9:Z$126,MATCH($F64,'Allocation Factors'!$D$9:$D$126,0)) -> 0 | AD64: =+$H64*INDEX('Allocation Factors'!AB$9:AB$126,MATCH($F64,'Allocation Factors'!$D$9:$D$126,0)) -> 0 | AF64: =+$H64*INDEX('Allocation Factors'!AD$9:AD$126,MATCH($F64,'Allocation Factors'!$D$9:$D$126,0)) -> 0
A65: 61 | E65: Total Odorization | H65: =SUM(H62:H64) -> 79345.37 | J65: =SUM(J62:J64) -> 12946.69068 | L65: =SUM(L62:L64) -> 36285.59096 | N65: =SUM(N62:N64) -> 4226.972097 | P65: =SUM(P62:P64) -> 2698.058512 | R65: =SUM(R62:R64) -> 0 | T65: =SUM(T62:T64) -> 0 | V65: =SUM(V62:V64) -> 8192.210764 | X65: =SUM(X62:X64) -> 13372.78743 | Z65: =SUM(Z62:Z64) -> 1623.059552 | AB65: =SUM(AB62:AB64) -> 0 | AD65: =SUM(AD62:AD64) -> 0 | AF65: =SUM(AF62:AF64) -> 0
A66: 62 | C66: ='Classified Rate Base'!B33 -> 379 | E66: Meas. & Reg. Station - City Gate
A67: 63 | E67: Customer | F67: CUS | H67: ='Classified Rate Base'!I32 -> 0 | J67: =+$H67*INDEX('Allocation Factors'!H$9:H$126,MATCH($F67,'Allocation Factors'!$D$9:$D$126,0)) -> 0 | L67: =+$H67*INDEX('Allocation Factors'!J$9:J$126,MATCH($F67,'Allocation Factors'!$D$9:$D$126,0)) -> 0 | N67: =+$H67*INDEX('Allocation Factors'!L$9:L$126,MATCH($F67,'Allocation Factors'!$D$9:$D$126,0)) -> 0 | P67: =+$H67*INDEX('Allocation Factors'!N$9:N$126,MATCH($F67,'Allocation Factors'!$D$9:$D$126,0)) -> 0 | R67: =+$H67*INDEX('Allocation Factors'!P$9:P$126,MATCH($F67,'Allocation Factors'!$D$9:$D$126,0)) -> 0 | T67: =+$H67*INDEX('Allocation Factors'!R$9:R$126,MATCH($F67,'Allocation Factors'!$D$9:$D$126,0)) -> 0 | V67: =+$H67*INDEX('Allocation Factors'!T$9:T$126,MATCH($F67,'Allocation Factors'!$D$9:$D$126,0)) -> 0 | X67: =+$H67*INDEX('Allocation Factors'!V$9:V$126,MATCH($F67,'Allocation Factors'!$D$9:$D$126,0)) -> 0 | Z67: =+$H67*INDEX('Allocation Factors'!X$9:X$126,MATCH($F67,'Allocation Factors'!$D$9:$D$126,0)) -> 0 | AB67: =+$H67*INDEX('Allocation Factors'!Z$9:Z$126,MATCH($F67,'Allocation Factors'!$D$9:$D$126,0)) -> 0 | AD67: =+$H67*INDEX('Allocation Factors'!AB$9:AB$126,MATCH($F67,'Allocation Factors'!$D$9:$D$126,0)) -> 0 | AF67: =+$H67*INDEX('Allocation Factors'!AD$9:AD$126,MATCH($F67,'Allocation Factors'!$D$9:$D$126,0)) -> 0
A68: 64 | E68: Demand | F68: DEM | H68: ='Classified Rate Base'!K32 -> 3208903.09 | J68: =+$H68*INDEX('Allocation Factors'!H$9:H$126,MATCH($F68,'Allocation Factors'!$D$9:$D$126,0)) -> 980261.6998 | L68: =+$H68*INDEX('Allocation Factors'!J$9:J$126,MATCH($F68,'Allocation Factors'!$D$9:$D$126,0)) -> 1433739.351 | N68: =+$H68*INDEX('Allocation Factors'!L$9:L$126,MATCH($F68,'Allocation Factors'!$D$9:$D$126,0)) -> 41992.39551 | P68: =+$H68*INDEX('Allocation Factors'!N$9:N$126,MATCH($F68,'Allocation Factors'!$D$9:$D$126,0)) -> 228511.9184 | R68: =+$H68*INDEX('Allocation Factors'!P$9:P$126,MATCH($F68,'Allocation Factors'!$D$9:$D$126,0)) -> 0 | T68: =+$H68*INDEX('Allocation Factors'!R$9:R$126,MATCH($F68,'Allocation Factors'!$D$9:$D$126,0)) -> 0 | V68: =+$H68*INDEX('Allocation Factors'!T$9:T$126,MATCH($F68,'Allocation Factors'!$D$9:$D$126,0)) -> 146180.9412 | X68: =+$H68*INDEX('Allocation Factors'!V$9:V$126,MATCH($F68,'Allocation Factors'!$D$9:$D$126,0)) -> 267769.5898 | Z68: =+$H68*INDEX('Allocation Factors'!X$9:X$126,MATCH($F68,'Allocation Factors'!$D$9:$D$126,0)) -> 110447.1944 | AB68: =+$H68*INDEX('Allocation Factors'!Z$9:Z$126,MATCH($F68,'Allocation Factors'!$D$9:$D$126,0)) -> 0 | AD68: =+$H68*INDEX('Allocation Factors'!AB$9:AB$126,MATCH($F68,'Allocation Factors'!$D$9:$D$126,0)) -> 0 | AF68: =+$H68*INDEX('Allocation Factors'!AD$9:AD$126,MATCH($F68,'Allocation Factors'!$D$9:$D$126,0)) -> 0
A69: 65 | E69: Commodity | F69: COM | H69: ='Classified Rate Base'!M32 -> 0 | J69: =+$H69*INDEX('Allocation Factors'!H$9:H$126,MATCH($F69,'Allocation Factors'!$D$9:$D$126,0)) -> 0 | L69: =+$H69*INDEX('Allocation Factors'!J$9:J$126,MATCH($F69,'Allocation Factors'!$D$9:$D$126,0)) -> 0 | N69: =+$H69*INDEX('Allocation Factors'!L$9:L$126,MATCH($F69,'Allocation Factors'!$D$9:$D$126,0)) -> 0 | P69: =+$H69*INDEX('Allocation Factors'!N$9:N$126,MATCH($F69,'Allocation Factors'!$D$9:$D$126,0)) -> 0 | R69: =+$H69*INDEX('Allocation Factors'!P$9:P$126,MATCH($F69,'Allocation Factors'!$D$9:$D$126,0)) -> 0 | T69: =+$H69*INDEX('Allocation Factors'!R$9:R$126,MATCH($F69,'Allocation Factors'!$D$9:$D$126,0)) -> 0 | V69: =+$H69*INDEX('Allocation Factors'!T$9:T$126,MATCH($F69,'Allocation Factors'!$D$9:$D$126,0)) -> 0 | X69: =+$H69*INDEX('Allocation Factors'!V$9:V$126,MATCH($F69,'Allocation Factors'!$D$9:$D$126,0)) -> 0 | Z69: =+$H69*INDEX('Allocation Factors'!X$9:X$126,MATCH($F69,'Allocation Factors'!$D$9:$D$126,0)) -> 0 | AB69: =+$H69*INDEX('Allocation Factors'!Z$9:Z$126,MATCH($F69,'Allocation Factors'!$D$9:$D$126,0)) -> 0 | AD69: =+$H69*INDEX('Allocation Factors'!AB$9:AB$126,MATCH($F69,'Allocation Factors'!$D$9:$D$126,0)) -> 0 | AF69: =+$H69*INDEX('Allocation Factors'!AD$9:AD$126,MATCH($F69,'Allocation Factors'!$D$9:$D$126,0)) -> 0
A70: =+A69+1 -> 66 | E70: Total Meas. & Reg. Equip.-City Gate | H70: =SUM(H67:H69) -> 3208903.09 | J70: =SUM(J67:J69) -> 980261.6998 | L70: =SUM(L67:L69) -> 1433739.351 | N70: =SUM(N67:N69) -> 41992.39551 | P70: =SUM(P67:P69) -> 228511.9184 | R70: =SUM(R67:R69) -> 0 | T70: =SUM(T67:T69) -> 0 | V70: =SUM(V67:V69) -> 146180.9412 | X70: =SUM(X67:X69) -> 267769.5898 | Z70: =SUM(Z67:Z69) -> 110447.1944 | AB70: =SUM(AB67:AB69) -> 0 | AD70: =SUM(AD67:AD69) -> 0 | AF70: =SUM(AF67:AF69) -> 0
A71: 67 | C71: 379 | E71: Odorization
A72: 68 | E72: Customer | F72: CUS | H72: =+'Classified Rate Base'!I33 -> 0 | J72: =+$H72*INDEX('Allocation Factors'!H$9:H$126,MATCH($F72,'Allocation Factors'!$D$9:$D$126,0)) -> 0 | L72: =+$H72*INDEX('Allocation Factors'!J$9:J$126,MATCH($F72,'Allocation Factors'!$D$9:$D$126,0)) -> 0 | N72: =+$H72*INDEX('Allocation Factors'!L$9:L$126,MATCH($F72,'Allocation Factors'!$D$9:$D$126,0)) -> 0 | P72: =+$H72*INDEX('Allocation Factors'!N$9:N$126,MATCH($F72,'Allocation Factors'!$D$9:$D$126,0)) -> 0 | R72: =+$H72*INDEX('Allocation Factors'!P$9:P$126,MATCH($F72,'Allocation Factors'!$D$9:$D$126,0)) -> 0 | T72: =+$H72*INDEX('Allocation Factors'!R$9:R$126,MATCH($F72,'Allocation Factors'!$D$9:$D$126,0)) -> 0 | V72: =+$H72*INDEX('Allocation Factors'!T$9:T$126,MATCH($F72,'Allocation Factors'!$D$9:$D$126,0)) -> 0 | X72: =+$H72*INDEX('Allocation Factors'!V$9:V$126,MATCH($F72,'Allocation Factors'!$D$9:$D$126,0)) -> 0 | Z72: =+$H72*INDEX('Allocation Factors'!X$9:X$126,MATCH($F72,'Allocation Factors'!$D$9:$D$126,0)) -> 0 | AB72: =+$H72*INDEX('Allocation Factors'!Z$9:Z$126,MATCH($F72,'Allocation Factors'!$D$9:$D$126,0)) -> 0 | AD72: =+$H72*INDEX('Allocation Factors'!AB$9:AB$126,MATCH($F72,'Allocation Factors'!$D$9:$D$126,0)) -> 0 | AF72: =+$H72*INDEX('Allocation Factors'!AD$9:AD$126,MATCH($F72,'Allocation Factors'!$D$9:$D$126,0)) -> 0
A73: 69 | E73: Demand | F73: DEM | H73: =+'Classified Rate Base'!K33 -> 0 | J73: =+$H73*INDEX('Allocation Factors'!H$9:H$126,MATCH($F73,'Allocation Factors'!$D$9:$D$126,0)) -> 0 | L73: =+$H73*INDEX('Allocation Factors'!J$9:J$126,MATCH($F73,'Allocation Factors'!$D$9:$D$126,0)) -> 0 | N73: =+$H73*INDEX('Allocation Factors'!L$9:L$126,MATCH($F73,'Allocation Factors'!$D$9:$D$126,0)) -> 0 | P73: =+$H73*INDEX('Allocation Factors'!N$9:N$126,MATCH($F73,'Allocation Factors'!$D$9:$D$126,0)) -> 0 | R73: =+$H73*INDEX('Allocation Factors'!P$9:P$126,MATCH($F73,'Allocation Factors'!$D$9:$D$126,0)) -> 0 | T73: =+$H73*INDEX('Allocation Factors'!R$9:R$126,MATCH($F73,'Allocation Factors'!$D$9:$D$126,0)) -> 0 | V73: =+$H73*INDEX('Allocation Factors'!T$9:T$126,MATCH($F73,'Allocation Factors'!$D$9:$D$126,0)) -> 0 | X73: =+$H73*INDEX('Allocation Factors'!V$9:V$126,MATCH($F73,'Allocation Factors'!$D$9:$D$126,0)) -> 0 | Z73: =+$H73*INDEX('Allocation Factors'!X$9:X$126,MATCH($F73,'Allocation Factors'!$D$9:$D$126,0)) -> 0 | AB73: =+$H73*INDEX('Allocation Factors'!Z$9:Z$126,MATCH($F73,'Allocation Factors'!$D$9:$D$126,0)) -> 0 | AD73: =+$H73*INDEX('Allocation Factors'!AB$9:AB$126,MATCH($F73,'Allocation Factors'!$D$9:$D$126,0)) -> 0 | AF73: =+$H73*INDEX('Allocation Factors'!AD$9:AD$126,MATCH($F73,'Allocation Factors'!$D$9:$D$126,0)) -> 0
A74: 70 | E74: Commodity | F74: COM | H74: =+'Classified Rate Base'!M33 -> 17080.46 | J74: =+$H74*INDEX('Allocation Factors'!H$9:H$126,MATCH($F74,'Allocation Factors'!$D$9:$D$126,0)) -> 2786.998564 | L74: =+$H74*INDEX('Allocation Factors'!J$9:J$126,MATCH($F74,'Allocation Factors'!$D$9:$D$126,0)) -> 7811.099564 | N74: =+$H74*INDEX('Allocation Factors'!L$9:L$126,MATCH($F74,'Allocation Factors'!$D$9:$D$126,0)) -> 909.9286804 | P74: =+$H74*INDEX('Allocation Factors'!N$9:N$126,MATCH($F74,'Allocation Factors'!$D$9:$D$126,0)) -> 580.8036499 | R74: =+$H74*INDEX('Allocation Factors'!P$9:P$126,MATCH($F74,'Allocation Factors'!$D$9:$D$126,0)) -> 0 | T74: =+$H74*INDEX('Allocation Factors'!R$9:R$126,MATCH($F74,'Allocation Factors'!$D$9:$D$126,0)) -> 0 | V74: =+$H74*INDEX('Allocation Factors'!T$9:T$126,MATCH($F74,'Allocation Factors'!$D$9:$D$126,0)) -> 1763.514724 | X74: =+$H74*INDEX('Allocation Factors'!V$9:V$126,MATCH($F74,'Allocation Factors'!$D$9:$D$126,0)) -> 2878.723243 | Z74: =+$H74*INDEX('Allocation Factors'!X$9:X$126,MATCH($F74,'Allocation Factors'!$D$9:$D$126,0)) -> 349.3915745 | AB74: =+$H74*INDEX('Allocation Factors'!Z$9:Z$126,MATCH($F74,'Allocation Factors'!$D$9:$D$126,0)) -> 0 | AD74: =+$H74*INDEX('Allocation Factors'!AB$9:AB$126,MATCH($F74,'Allocation Factors'!$D$9:$D$126,0)) -> 0 | AF74: =+$H74*INDEX('Allocation Factors'!AD$9:AD$126,MATCH($F74,'Allocation Factors'!$D$9:$D$126,0)) -> 0
A75: 71 | E75: Total Odorization | H75: =SUM(H72:H74) -> 17080.46 | J75: =SUM(J72:J74) -> 2786.998564 | L75: =SUM(L72:L74) -> 7811.099564 | N75: =SUM(N72:N74) -> 909.9286804 | P75: =SUM(P72:P74) -> 580.8036499 | R75: =SUM(R72:R74) -> 0 | T75: =SUM(T72:T74) -> 0 | V75: =SUM(V72:V74) -> 1763.514724 | X75: =SUM(X72:X74) -> 2878.723243 | Z75: =SUM(Z72:Z74) -> 349.3915745 | AB75: =SUM(AB72:AB74) -> 0 | AD75: =SUM(AD72:AD74) -> 0 | AF75: =SUM(AF72:AF74) -> 0
A76: 72 | C76: ='Classified Rate Base'!B35 -> 380 | E76: Services - Allocated
A77: 73 | E77: Customer | F77: SERCUS-ALL | H77: ='Classified Rate Base'!I34 -> 74573290.68 | J77: =+$H77*INDEX('Allocation Factors'!H$9:H$126,MATCH($F77,'Allocation Factors'!$D$9:$D$126,0)) -> 68209245.42 | L77: =+$H77*INDEX('Allocation Factors'!J$9:J$126,MATCH($F77,'Allocation Factors'!$D$9:$D$126,0)) -> 5492800.571 | N77: =+$H77*INDEX('Allocation Factors'!L$9:L$126,MATCH($F77,'Allocation Factors'!$D$9:$D$126,0)) -> 55795.44234 | P77: =+$H77*INDEX('Allocation Factors'!N$9:N$126,MATCH($F77,'Allocation Factors'!$D$9:$D$126,0)) -> 695254.2267 | R77: =+$H77*INDEX('Allocation Factors'!P$9:P$126,MATCH($F77,'Allocation Factors'!$D$9:$D$126,0)) -> 0 | T77: =+$H77*INDEX('Allocation Factors'!R$9:R$126,MATCH($F77,'Allocation Factors'!$D$9:$D$126,0)) -> 0 | V77: =+$H77*INDEX('Allocation Factors'!T$9:T$126,MATCH($F77,'Allocation Factors'!$D$9:$D$126,0)) -> 49474.21187 | X77: =+$H77*INDEX('Allocation Factors'!V$9:V$126,MATCH($F77,'Allocation Factors'!$D$9:$D$126,0)) -> 59793.98612 | Z77: =+$H77*INDEX('Allocation Factors'!X$9:X$126,MATCH($F77,'Allocation Factors'!$D$9:$D$126,0)) -> 10926.8198 | AB77: =+$H77*INDEX('Allocation Factors'!Z$9:Z$126,MATCH($F77,'Allocation Factors'!$D$9:$D$126,0)) -> 0 | AD77: =+$H77*INDEX('Allocation Factors'!AB$9:AB$126,MATCH($F77,'Allocation Factors'!$D$9:$D$126,0)) -> 0 | AF77: =+$H77*INDEX('Allocation Factors'!AD$9:AD$126,MATCH($F77,'Allocation Factors'!$D$9:$D$126,0)) -> 0
A78: 74 | E78: Demand | F78: DEM | H78: ='Classified Rate Base'!K34 -> 0 | J78: =+$H78*INDEX('Allocation Factors'!H$9:H$126,MATCH($F78,'Allocation Factors'!$D$9:$D$126,0)) -> 0 | L78: =+$H78*INDEX('Allocation Factors'!J$9:J$126,MATCH($F78,'Allocation Factors'!$D$9:$D$126,0)) -> 0 | N78: =+$H78*INDEX('Allocation Factors'!L$9:L$126,MATCH($F78,'Allocation Factors'!$D$9:$D$126,0)) -> 0 | P78: =+$H78*INDEX('Allocation Factors'!N$9:N$126,MATCH($F78,'Allocation Factors'!$D$9:$D$126,0)) -> 0 | R78: =+$H78*INDEX('Allocation Factors'!P$9:P$126,MATCH($F78,'Allocation Factors'!$D$9:$D$126,0)) -> 0 | T78: =+$H78*INDEX('Allocation Factors'!R$9:R$126,MATCH($F78,'Allocation Factors'!$D$9:$D$126,0)) -> 0 | V78: =+$H78*INDEX('Allocation Factors'!T$9:T$126,MATCH($F78,'Allocation Factors'!$D$9:$D$126,0)) -> 0 | X78: =+$H78*INDEX('Allocation Factors'!V$9:V$126,MATCH($F78,'Allocation Factors'!$D$9:$D$126,0)) -> 0 | Z78: =+$H78*INDEX('Allocation Factors'!X$9:X$126,MATCH($F78,'Allocation Factors'!$D$9:$D$126,0)) -> 0 | AB78: =+$H78*INDEX('Allocation Factors'!Z$9:Z$126,MATCH($F78,'Allocation Factors'!$D$9:$D$126,0)) -> 0 | AD78: =+$H78*INDEX('Allocation Factors'!AB$9:AB$126,MATCH($F78,'Allocation Factors'!$D$9:$D$126,0)) -> 0 | AF78: =+$H78*INDEX('Allocation Factors'!AD$9:AD$126,MATCH($F78,'Allocation Factors'!$D$9:$D$126,0)) -> 0
A79: 75 | E79: Commodity | F79: COM | H79: ='Classified Rate Base'!M34 -> 0 | J79: =+$H79*INDEX('Allocation Factors'!H$9:H$126,MATCH($F79,'Allocation Factors'!$D$9:$D$126,0)) -> 0 | L79: =+$H79*INDEX('Allocation Factors'!J$9:J$126,MATCH($F79,'Allocation Factors'!$D$9:$D$126,0)) -> 0 | N79: =+$H79*INDEX('Allocation Factors'!L$9:L$126,MATCH($F79,'Allocation Factors'!$D$9:$D$126,0)) -> 0 | P79: =+$H79*INDEX('Allocation Factors'!N$9:N$126,MATCH($F79,'Allocation Factors'!$D$9:$D$126,0)) -> 0 | R79: =+$H79*INDEX('Allocation Factors'!P$9:P$126,MATCH($F79,'Allocation Factors'!$D$9:$D$126,0)) -> 0 | T79: =+$H79*INDEX('Allocation Factors'!R$9:R$126,MATCH($F79,'Allocation Factors'!$D$9:$D$126,0)) -> 0 | V79: =+$H79*INDEX('Allocation Factors'!T$9:T$126,MATCH($F79,'Allocation Factors'!$D$9:$D$126,0)) -> 0 | X79: =+$H79*INDEX('Allocation Factors'!V$9:V$126,MATCH($F79,'Allocation Factors'!$D$9:$D$126,0)) -> 0 | Z79: =+$H79*INDEX('Allocation Factors'!X$9:X$126,MATCH($F79,'Allocation Factors'!$D$9:$D$126,0)) -> 0 | AB79: =+$H79*INDEX('Allocation Factors'!Z$9:Z$126,MATCH($F79,'Allocation Factors'!$D$9:$D$126,0)) -> 0 | AD79: =+$H79*INDEX('Allocation Factors'!AB$9:AB$126,MATCH($F79,'Allocation Factors'!$D$9:$D$126,0)) -> 0 | AF79: =+$H79*INDEX('Allocation Factors'!AD$9:AD$126,MATCH($F79,'Allocation Factors'!$D$9:$D$126,0)) -> 0
A80: 76 | E80: Total Services - Allocated | H80: =SUM(H77:H79) -> 74573290.68 | J80: =SUM(J77:J79) -> 68209245.42 | L80: =SUM(L77:L79) -> 5492800.571 | N80: =SUM(N77:N79) -> 55795.44234 | P80: =SUM(P77:P79) -> 695254.2267 | R80: =SUM(R77:R79) -> 0 | T80: =SUM(T77:T79) -> 0 | V80: =SUM(V77:V79) -> 49474.21187 | X80: =SUM(X77:X79) -> 59793.98612 | Z80: =SUM(Z77:Z79) -> 10926.8198 | AB80: =SUM(AB77:AB79) -> 0 | AD80: =SUM(AD77:AD79) -> 0 | AF80: =SUM(AF77:AF79) -> 0
A81: 77 | C81: 380 | E81: Services-Directly Assigned
A82: 78 | E82: Customer | F82: CUS-DA | H82: ='Classified Rate Base'!I35 -> 0 | J82: =+$H82*INDEX('Allocation Factors'!H$9:H$126,MATCH($F82,'Allocation Factors'!$D$9:$D$126,0)) -> 0 | L82: =+$H82*INDEX('Allocation Factors'!J$9:J$126,MATCH($F82,'Allocation Factors'!$D$9:$D$126,0)) -> 0 | N82: =+$H82*INDEX('Allocation Factors'!L$9:L$126,MATCH($F82,'Allocation Factors'!$D$9:$D$126,0)) -> 0 | P82: =+$H82*INDEX('Allocation Factors'!N$9:N$126,MATCH($F82,'Allocation Factors'!$D$9:$D$126,0)) -> 0 | R82: =+$H82*INDEX('Allocation Factors'!P$9:P$126,MATCH($F82,'Allocation Factors'!$D$9:$D$126,0)) -> 0 | T82: =+$H82*INDEX('Allocation Factors'!R$9:R$126,MATCH($F82,'Allocation Factors'!$D$9:$D$126,0)) -> 0 | V82: =+$H82*INDEX('Allocation Factors'!T$9:T$126,MATCH($F82,'Allocation Factors'!$D$9:$D$126,0)) -> 0 | X82: =+$H82*INDEX('Allocation Factors'!V$9:V$126,MATCH($F82,'Allocation Factors'!$D$9:$D$126,0)) -> 0 | Z82: =+$H82*INDEX('Allocation Factors'!X$9:X$126,MATCH($F82,'Allocation Factors'!$D$9:$D$126,0)) -> 0 | AB82: =+$H82*INDEX('Allocation Factors'!Z$9:Z$126,MATCH($F82,'Allocation Factors'!$D$9:$D$126,0)) -> 0 | AD82: =+$H82*INDEX('Allocation Factors'!AB$9:AB$126,MATCH($F82,'Allocation Factors'!$D$9:$D$126,0)) -> 0 | AF82: =+$H82*INDEX('Allocation Factors'!AD$9:AD$126,MATCH($F82,'Allocation Factors'!$D$9:$D$126,0)) -> 0
A83: 79 | E83: Demand | F83: DEM-DA | H83: ='Classified Rate Base'!K35 -> 0 | J83: =+$H83*INDEX('Allocation Factors'!H$9:H$126,MATCH($F83,'Allocation Factors'!$D$9:$D$126,0)) -> 0 | L83: =+$H83*INDEX('Allocation Factors'!J$9:J$126,MATCH($F83,'Allocation Factors'!$D$9:$D$126,0)) -> 0 | N83: =+$H83*INDEX('Allocation Factors'!L$9:L$126,MATCH($F83,'Allocation Factors'!$D$9:$D$126,0)) -> 0 | P83: =+$H83*INDEX('Allocation Factors'!N$9:N$126,MATCH($F83,'Allocation Factors'!$D$9:$D$126,0)) -> 0 | R83: =+$H83*INDEX('Allocation Factors'!P$9:P$126,MATCH($F83,'Allocation Factors'!$D$9:$D$126,0)) -> 0 | T83: =+$H83*INDEX('Allocation Factors'!R$9:R$126,MATCH($F83,'Allocation Factors'!$D$9:$D$126,0)) -> 0 | V83: =+$H83*INDEX('Allocation Factors'!T$9:T$126,MATCH($F83,'Allocation Factors'!$D$9:$D$126,0)) -> 0 | X83: =+$H83*INDEX('Allocation Factors'!V$9:V$126,MATCH($F83,'Allocation Factors'!$D$9:$D$126,0)) -> 0 | Z83: =+$H83*INDEX('Allocation Factors'!X$9:X$126,MATCH($F83,'Allocation Factors'!$D$9:$D$126,0)) -> 0 | AB83: =+$H83*INDEX('Allocation Factors'!Z$9:Z$126,MATCH($F83,'Allocation Factors'!$D$9:$D$126,0)) -> 0 | AD83: =+$H83*INDEX('Allocation Factors'!AB$9:AB$126,MATCH($F83,'Allocation Factors'!$D$9:$D$126,0)) -> 0 | AF83: =+$H83*INDEX('Allocation Factors'!AD$9:AD$126,MATCH($F83,'Allocation Factors'!$D$9:$D$126,0)) -> 0
A84: 80 | E84: Commodity | F84: COM-DA | H84: ='Classified Rate Base'!M35 -> 0 | J84: =+$H84*INDEX('Allocation Factors'!H$9:H$126,MATCH($F84,'Allocation Factors'!$D$9:$D$126,0)) -> 0 | L84: =+$H84*INDEX('Allocation Factors'!J$9:J$126,MATCH($F84,'Allocation Factors'!$D$9:$D$126,0)) -> 0 | N84: =+$H84*INDEX('Allocation Factors'!L$9:L$126,MATCH($F84,'Allocation Factors'!$D$9:$D$126,0)) -> 0 | P84: =+$H84*INDEX('Allocation Factors'!N$9:N$126,MATCH($F84,'Allocation Factors'!$D$9:$D$126,0)) -> 0 | R84: =+$H84*INDEX('Allocation Factors'!P$9:P$126,MATCH($F84,'Allocation Factors'!$D$9:$D$126,0)) -> 0 | T84: =+$H84*INDEX('Allocation Factors'!R$9:R$126,MATCH($F84,'Allocation Factors'!$D$9:$D$126,0)) -> 0 | V84: =+$H84*INDEX('Allocation Factors'!T$9:T$126,MATCH($F84,'Allocation Factors'!$D$9:$D$126,0)) -> 0 | X84: =+$H84*INDEX('Allocation Factors'!V$9:V$126,MATCH($F84,'Allocation Factors'!$D$9:$D$126,0)) -> 0 | Z84: =+$H84*INDEX('Allocation Factors'!X$9:X$126,MATCH($F84,'Allocation Factors'!$D$9:$D$126,0)) -> 0 | AB84: =+$H84*INDEX('Allocation Factors'!Z$9:Z$126,MATCH($F84,'Allocation Factors'!$D$9:$D$126,0)) -> 0 | AD84: =+$H84*INDEX('Allocation Factors'!AB$9:AB$126,MATCH($F84,'Allocation Factors'!$D$9:$D$126,0)) -> 0 | AF84: =+$H84*INDEX('Allocation Factors'!AD$9:AD$126,MATCH($F84,'Allocation Factors'!$D$9:$D$126,0)) -> 0
A85: 81 | E85: Total Services - Directly Assigned | H85: =SUM(H82:H84) -> 0 | J85: =SUM(J82:J84) -> 0 | L85: =SUM(L82:L84) -> 0 | N85: =SUM(N82:N84) -> 0 | P85: =SUM(P82:P84) -> 0 | R85: =SUM(R82:R84) -> 0 | T85: =SUM(T82:T84) -> 0 | V85: =SUM(V82:V84) -> 0 | X85: =SUM(X82:X84) -> 0 | Z85: =SUM(Z82:Z84) -> 0 | AB85: =SUM(AB82:AB84) -> 0 | AD85: =SUM(AD82:AD84) -> 0 | AF85: =SUM(AF82:AF84) -> 0
A86: 82 | C86: ='Classified Rate Base'!B37 -> 381 | E86: Meters - Allocated
A87: 83 | E87: Customer | F87: METCUS-ALL | H87: ='Classified Rate Base'!I36 -> 21960475.32 | J87: =+$H87*INDEX('Allocation Factors'!H$9:H$126,MATCH($F87,'Allocation Factors'!$D$9:$D$126,0)) -> 19126778.07 | L87: =+$H87*INDEX('Allocation Factors'!J$9:J$126,MATCH($F87,'Allocation Factors'!$D$9:$D$126,0)) -> 2418726.551 | N87: =+$H87*INDEX('Allocation Factors'!L$9:L$126,MATCH($F87,'Allocation Factors'!$D$9:$D$126,0)) -> 49987.59945 | P87: =+$H87*INDEX('Allocation Factors'!N$9:N$126,MATCH($F87,'Allocation Factors'!$D$9:$D$126,0)) -> 240498.2058 | R87: =+$H87*INDEX('Allocation Factors'!P$9:P$126,MATCH($F87,'Allocation Factors'!$D$9:$D$126,0)) -> 0 | T87: =+$H87*INDEX('Allocation Factors'!R$9:R$126,MATCH($F87,'Allocation Factors'!$D$9:$D$126,0)) -> 0 | V87: =+$H87*INDEX('Allocation Factors'!T$9:T$126,MATCH($F87,'Allocation Factors'!$D$9:$D$126,0)) -> 48188.41642 | X87: =+$H87*INDEX('Allocation Factors'!V$9:V$126,MATCH($F87,'Allocation Factors'!$D$9:$D$126,0)) -> 63958.67669 | Z87: =+$H87*INDEX('Allocation Factors'!X$9:X$126,MATCH($F87,'Allocation Factors'!$D$9:$D$126,0)) -> 12337.79692 | AB87: =+$H87*INDEX('Allocation Factors'!Z$9:Z$126,MATCH($F87,'Allocation Factors'!$D$9:$D$126,0)) -> 0 | AD87: =+$H87*INDEX('Allocation Factors'!AB$9:AB$126,MATCH($F87,'Allocation Factors'!$D$9:$D$126,0)) -> 0 | AF87: =+$H87*INDEX('Allocation Factors'!AD$9:AD$126,MATCH($F87,'Allocation Factors'!$D$9:$D$126,0)) -> 0
A88: 84 | E88: Demand | F88: DEM | H88: ='Classified Rate Base'!K36 -> 0 | J88: =+$H88*INDEX('Allocation Factors'!H$9:H$126,MATCH($F88,'Allocation Factors'!$D$9:$D$126,0)) -> 0 | L88: =+$H88*INDEX('Allocation Factors'!J$9:J$126,MATCH($F88,'Allocation Factors'!$D$9:$D$126,0)) -> 0 | N88: =+$H88*INDEX('Allocation Factors'!L$9:L$126,MATCH($F88,'Allocation Factors'!$D$9:$D$126,0)) -> 0 | P88: =+$H88*INDEX('Allocation Factors'!N$9:N$126,MATCH($F88,'Allocation Factors'!$D$9:$D$126,0)) -> 0 | R88: =+$H88*INDEX('Allocation Factors'!P$9:P$126,MATCH($F88,'Allocation Factors'!$D$9:$D$126,0)) -> 0 | T88: =+$H88*INDEX('Allocation Factors'!R$9:R$126,MATCH($F88,'Allocation Factors'!$D$9:$D$126,0)) -> 0 | V88: =+$H88*INDEX('Allocation Factors'!T$9:T$126,MATCH($F88,'Allocation Factors'!$D$9:$D$126,0)) -> 0 | X88: =+$H88*INDEX('Allocation Factors'!V$9:V$126,MATCH($F88,'Allocation Factors'!$D$9:$D$126,0)) -> 0 | Z88: =+$H88*INDEX('Allocation Factors'!X$9:X$126,MATCH($F88,'Allocation Factors'!$D$9:$D$126,0)) -> 0 | AB88: =+$H88*INDEX('Allocation Factors'!Z$9:Z$126,MATCH($F88,'Allocation Factors'!$D$9:$D$126,0)) -> 0 | AD88: =+$H88*INDEX('Allocation Factors'!AB$9:AB$126,MATCH($F88,'Allocation Factors'!$D$9:$D$126,0)) -> 0 | AF88: =+$H88*INDEX('Allocation Factors'!AD$9:AD$126,MATCH($F88,'Allocation Factors'!$D$9:$D$126,0)) -> 0
A89: 85 | E89: Commodity | F89: COM | H89: ='Classified Rate Base'!M36 -> 0 | J89: =+$H89*INDEX('Allocation Factors'!H$9:H$126,MATCH($F89,'Allocation Factors'!$D$9:$D$126,0)) -> 0 | L89: =+$H89*INDEX('Allocation Factors'!J$9:J$126,MATCH($F89,'Allocation Factors'!$D$9:$D$126,0)) -> 0 | N89: =+$H89*INDEX('Allocation Factors'!L$9:L$126,MATCH($F89,'Allocation Factors'!$D$9:$D$126,0)) -> 0 | P89: =+$H89*INDEX('Allocation Factors'!N$9:N$126,MATCH($F89,'Allocation Factors'!$D$9:$D$126,0)) -> 0 | R89: =+$H89*INDEX('Allocation Factors'!P$9:P$126,MATCH($F89,'Allocation Factors'!$D$9:$D$126,0)) -> 0 | T89: =+$H89*INDEX('Allocation Factors'!R$9:R$126,MATCH($F89,'Allocation Factors'!$D$9:$D$126,0)) -> 0 | V89: =+$H89*INDEX('Allocation Factors'!T$9:T$126,MATCH($F89,'Allocation Factors'!$D$9:$D$126,0)) -> 0 | X89: =+$H89*INDEX('Allocation Factors'!V$9:V$126,MATCH($F89,'Allocation Factors'!$D$9:$D$126,0)) -> 0 | Z89: =+$H89*INDEX('Allocation Factors'!X$9:X$126,MATCH($F89,'Allocation Factors'!$D$9:$D$126,0)) -> 0 | AB89: =+$H89*INDEX('Allocation Factors'!Z$9:Z$126,MATCH($F89,'Allocation Factors'!$D$9:$D$126,0)) -> 0 | AD89: =+$H89*INDEX('Allocation Factors'!AB$9:AB$126,MATCH($F89,'Allocation Factors'!$D$9:$D$126,0)) -> 0 | AF89: =+$H89*INDEX('Allocation Factors'!AD$9:AD$126,MATCH($F89,'Allocation Factors'!$D$9:$D$126,0)) -> 0
A90: 86 | E90: Total Meters - Allocated | H90: =SUM(H87:H89) -> 21960475.32 | J90: =SUM(J87:J89) -> 19126778.07 | L90: =SUM(L87:L89) -> 2418726.551 | N90: =SUM(N87:N89) -> 49987.59945 | P90: =SUM(P87:P89) -> 240498.2058 | R90: =SUM(R87:R89) -> 0 | T90: =SUM(T87:T89) -> 0 | V90: =SUM(V87:V89) -> 48188.41642 | X90: =SUM(X87:X89) -> 63958.67669 | Z90: =SUM(Z87:Z89) -> 12337.79692 | AB90: =SUM(AB87:AB89) -> 0 | AD90: =SUM(AD87:AD89) -> 0 | AF90: =SUM(AF87:AF89) -> 0
A91: 87 | C91: 381 | E91: Meters-Directly Assigned
A92: 88 | E92: Customer | F92: CUS-DA | H92: ='Classified Rate Base'!I37 -> 0 | J92: =+$H92*INDEX('Allocation Factors'!H$9:H$126,MATCH($F92,'Allocation Factors'!$D$9:$D$126,0)) -> 0 | L92: =+$H92*INDEX('Allocation Factors'!J$9:J$126,MATCH($F92,'Allocation Factors'!$D$9:$D$126,0)) -> 0 | N92: =+$H92*INDEX('Allocation Factors'!L$9:L$126,MATCH($F92,'Allocation Factors'!$D$9:$D$126,0)) -> 0 | P92: =+$H92*INDEX('Allocation Factors'!N$9:N$126,MATCH($F92,'Allocation Factors'!$D$9:$D$126,0)) -> 0 | R92: =+$H92*INDEX('Allocation Factors'!P$9:P$126,MATCH($F92,'Allocation Factors'!$D$9:$D$126,0)) -> 0 | T92: =+$H92*INDEX('Allocation Factors'!R$9:R$126,MATCH($F92,'Allocation Factors'!$D$9:$D$126,0)) -> 0 | V92: =+$H92*INDEX('Allocation Factors'!T$9:T$126,MATCH($F92,'Allocation Factors'!$D$9:$D$126,0)) -> 0 | X92: =+$H92*INDEX('Allocation Factors'!V$9:V$126,MATCH($F92,'Allocation Factors'!$D$9:$D$126,0)) -> 0 | Z92: =+$H92*INDEX('Allocation Factors'!X$9:X$126,MATCH($F92,'Allocation Factors'!$D$9:$D$126,0)) -> 0 | AB92: =+$H92*INDEX('Allocation Factors'!Z$9:Z$126,MATCH($F92,'Allocation Factors'!$D$9:$D$126,0)) -> 0 | AD92: =+$H92*INDEX('Allocation Factors'!AB$9:AB$126,MATCH($F92,'Allocation Factors'!$D$9:$D$126,0)) -> 0 | AF92: =+$H92*INDEX('Allocation Factors'!AD$9:AD$126,MATCH($F92,'Allocation Factors'!$D$9:$D$126,0)) -> 0
A93: 89 | E93: Demand | F93: DEM-DA | H93: ='Classified Rate Base'!K37 -> 0 | J93: =+$H93*INDEX('Allocation Factors'!H$9:H$126,MATCH($F93,'Allocation Factors'!$D$9:$D$126,0)) -> 0 | L93: =+$H93*INDEX('Allocation Factors'!J$9:J$126,MATCH($F93,'Allocation Factors'!$D$9:$D$126,0)) -> 0 | N93: =+$H93*INDEX('Allocation Factors'!L$9:L$126,MATCH($F93,'Allocation Factors'!$D$9:$D$126,0)) -> 0 | P93: =+$H93*INDEX('Allocation Factors'!N$9:N$126,MATCH($F93,'Allocation Factors'!$D$9:$D$126,0)) -> 0 | R93: =+$H93*INDEX('Allocation Factors'!P$9:P$126,MATCH($F93,'Allocation Factors'!$D$9:$D$126,0)) -> 0 | T93: =+$H93*INDEX('Allocation Factors'!R$9:R$126,MATCH($F93,'Allocation Factors'!$D$9:$D$126,0)) -> 0 | V93: =+$H93*INDEX('Allocation Factors'!T$9:T$126,MATCH($F93,'Allocation Factors'!$D$9:$D$126,0)) -> 0 | X93: =+$H93*INDEX('Allocation Factors'!V$9:V$126,MATCH($F93,'Allocation Factors'!$D$9:$D$126,0)) -> 0 | Z93: =+$H93*INDEX('Allocation Factors'!X$9:X$126,MATCH($F93,'Allocation Factors'!$D$9:$D$126,0)) -> 0 | AB93: =+$H93*INDEX('Allocation Factors'!Z$9:Z$126,MATCH($F93,'Allocation Factors'!$D$9:$D$126,0)) -> 0 | AD93: =+$H93*INDEX('Allocation Factors'!AB$9:AB$126,MATCH($F93,'Allocation Factors'!$D$9:$D$126,0)) -> 0 | AF93: =+$H93*INDEX('Allocation Factors'!AD$9:AD$126,MATCH($F93,'Allocation Factors'!$D$9:$D$126,0)) -> 0
A94: 90 | E94: Commodity | F94: COM-DA | H94: ='Classified Rate Base'!M37 -> 0 | J94: =+$H94*INDEX('Allocation Factors'!H$9:H$126,MATCH($F94,'Allocation Factors'!$D$9:$D$126,0)) -> 0 | L94: =+$H94*INDEX('Allocation Factors'!J$9:J$126,MATCH($F94,'Allocation Factors'!$D$9:$D$126,0)) -> 0 | N94: =+$H94*INDEX('Allocation Factors'!L$9:L$126,MATCH($F94,'Allocation Factors'!$D$9:$D$126,0)) -> 0 | P94: =+$H94*INDEX('Allocation Factors'!N$9:N$126,MATCH($F94,'Allocation Factors'!$D$9:$D$126,0)) -> 0 | R94: =+$H94*INDEX('Allocation Factors'!P$9:P$126,MATCH($F94,'Allocation Factors'!$D$9:$D$126,0)) -> 0 | T94: =+$H94*INDEX('Allocation Factors'!R$9:R$126,MATCH($F94,'Allocation Factors'!$D$9:$D$126,0)) -> 0 | V94: =+$H94*INDEX('Allocation Factors'!T$9:T$126,MATCH($F94,'Allocation Factors'!$D$9:$D$126,0)) -> 0 | X94: =+$H94*INDEX('Allocation Factors'!V$9:V$126,MATCH($F94,'Allocation Factors'!$D$9:$D$126,0)) -> 0 | Z94: =+$H94*INDEX('Allocation Factors'!X$9:X$126,MATCH($F94,'Allocation Factors'!$D$9:$D$126,0)) -> 0 | AB94: =+$H94*INDEX('Allocation Factors'!Z$9:Z$126,MATCH($F94,'Allocation Factors'!$D$9:$D$126,0)) -> 0 | AD94: =+$H94*INDEX('Allocation Factors'!AB$9:AB$126,MATCH($F94,'Allocation Factors'!$D$9:$D$126,0)) -> 0 | AF94: =+$H94*INDEX('Allocation Factors'!AD$9:AD$126,MATCH($F94,'Allocation Factors'!$D$9:$D$126,0)) -> 0
A95: 91 | E95: Total Meters - Directly Assigned | H95: =SUM(H92:H94) -> 0 | J95: =SUM(J92:J94) -> 0 | L95: =SUM(L92:L94) -> 0 | N95: =SUM(N92:N94) -> 0 | P95: =SUM(P92:P94) -> 0 | R95: =SUM(R92:R94) -> 0 | T95: =SUM(T92:T94) -> 0 | V95: =SUM(V92:V94) -> 0 | X95: =SUM(X92:X94) -> 0 | Z95: =SUM(Z92:Z94) -> 0 | AB95: =SUM(AB92:AB94) -> 0 | AD95: =SUM(AD92:AD94) -> 0 | AF95: =SUM(AF92:AF94) -> 0
A96: 92 | C96: ='Classified Rate Base'!B38 -> 382 | E96: Meter Installations
A97: 93 | E97: Customer | F97: METCUS-ALL | H97: ='Classified Rate Base'!I38 -> 0 | J97: =+$H97*INDEX('Allocation Factors'!H$9:H$126,MATCH($F97,'Allocation Factors'!$D$9:$D$126,0)) -> 0 | L97: =+$H97*INDEX('Allocation Factors'!J$9:J$126,MATCH($F97,'Allocation Factors'!$D$9:$D$126,0)) -> 0 | N97: =+$H97*INDEX('Allocation Factors'!L$9:L$126,MATCH($F97,'Allocation Factors'!$D$9:$D$126,0)) -> 0 | P97: =+$H97*INDEX('Allocation Factors'!N$9:N$126,MATCH($F97,'Allocation Factors'!$D$9:$D$126,0)) -> 0 | R97: =+$H97*INDEX('Allocation Factors'!P$9:P$126,MATCH($F97,'Allocation Factors'!$D$9:$D$126,0)) -> 0 | T97: =+$H97*INDEX('Allocation Factors'!R$9:R$126,MATCH($F97,'Allocation Factors'!$D$9:$D$126,0)) -> 0 | V97: =+$H97*INDEX('Allocation Factors'!T$9:T$126,MATCH($F97,'Allocation Factors'!$D$9:$D$126,0)) -> 0 | X97: =+$H97*INDEX('Allocation Factors'!V$9:V$126,MATCH($F97,'Allocation Factors'!$D$9:$D$126,0)) -> 0 | Z97: =+$H97*INDEX('Allocation Factors'!X$9:X$126,MATCH($F97,'Allocation Factors'!$D$9:$D$126,0)) -> 0 | AB97: =+$H97*INDEX('Allocation Factors'!Z$9:Z$126,MATCH($F97,'Allocation Factors'!$D$9:$D$126,0)) -> 0 | AD97: =+$H97*INDEX('Allocation Factors'!AB$9:AB$126,MATCH($F97,'Allocation Factors'!$D$9:$D$126,0)) -> 0 | AF97: =+$H97*INDEX('Allocation Factors'!AD$9:AD$126,MATCH($F97,'Allocation Factors'!$D$9:$D$126,0)) -> 0
A98: 94 | E98: Demand | F98: DEM | H98: ='Classified Rate Base'!K38 -> 0 | J98: =+$H98*INDEX('Allocation Factors'!H$9:H$126,MATCH($F98,'Allocation Factors'!$D$9:$D$126,0)) -> 0 | L98: =+$H98*INDEX('Allocation Factors'!J$9:J$126,MATCH($F98,'Allocation Factors'!$D$9:$D$126,0)) -> 0 | N98: =+$H98*INDEX('Allocation Factors'!L$9:L$126,MATCH($F98,'Allocation Factors'!$D$9:$D$126,0)) -> 0 | P98: =+$H98*INDEX('Allocation Factors'!N$9:N$126,MATCH($F98,'Allocation Factors'!$D$9:$D$126,0)) -> 0 | R98: =+$H98*INDEX('Allocation Factors'!P$9:P$126,MATCH($F98,'Allocation Factors'!$D$9:$D$126,0)) -> 0 | T98: =+$H98*INDEX('Allocation Factors'!R$9:R$126,MATCH($F98,'Allocation Factors'!$D$9:$D$126,0)) -> 0 | V98: =+$H98*INDEX('Allocation Factors'!T$9:T$126,MATCH($F98,'Allocation Factors'!$D$9:$D$126,0)) -> 0 | X98: =+$H98*INDEX('Allocation Factors'!V$9:V$126,MATCH($F98,'Allocation Factors'!$D$9:$D$126,0)) -> 0 | Z98: =+$H98*INDEX('Allocation Factors'!X$9:X$126,MATCH($F98,'Allocation Factors'!$D$9:$D$126,0)) -> 0 | AB98: =+$H98*INDEX('Allocation Factors'!Z$9:Z$126,MATCH($F98,'Allocation Factors'!$D$9:$D$126,0)) -> 0 | AD98: =+$H98*INDEX('Allocation Factors'!AB$9:AB$126,MATCH($F98,'Allocation Factors'!$D$9:$D$126,0)) -> 0 | AF98: =+$H98*INDEX('Allocation Factors'!AD$9:AD$126,MATCH($F98,'Allocation Factors'!$D$9:$D$126,0)) -> 0
A99: 95 | E99: Commodity | F99: COM | H99: ='Classified Rate Base'!M38 -> 0 | J99: =+$H99*INDEX('Allocation Factors'!H$9:H$126,MATCH($F99,'Allocation Factors'!$D$9:$D$126,0)) -> 0 | L99: =+$H99*INDEX('Allocation Factors'!J$9:J$126,MATCH($F99,'Allocation Factors'!$D$9:$D$126,0)) -> 0 | N99: =+$H99*INDEX('Allocation Factors'!L$9:L$126,MATCH($F99,'Allocation Factors'!$D$9:$D$126,0)) -> 0 | P99: =+$H99*INDEX('Allocation Factors'!N$9:N$126,MATCH($F99,'Allocation Factors'!$D$9:$D$126,0)) -> 0 | R99: =+$H99*INDEX('Allocation Factors'!P$9:P$126,MATCH($F99,'Allocation Factors'!$D$9:$D$126,0)) -> 0 | T99: =+$H99*INDEX('Allocation Factors'!R$9:R$126,MATCH($F99,'Allocation Factors'!$D$9:$D$126,0)) -> 0 | V99: =+$H99*INDEX('Allocation Factors'!T$9:T$126,MATCH($F99,'Allocation Factors'!$D$9:$D$126,0)) -> 0 | X99: =+$H99*INDEX('Allocation Factors'!V$9:V$126,MATCH($F99,'Allocation Factors'!$D$9:$D$126,0)) -> 0 | Z99: =+$H99*INDEX('Allocation Factors'!X$9:X$126,MATCH($F99,'Allocation Factors'!$D$9:$D$126,0)) -> 0 | AB99: =+$H99*INDEX('Allocation Factors'!Z$9:Z$126,MATCH($F99,'Allocation Factors'!$D$9:$D$126,0)) -> 0 | AD99: =+$H99*INDEX('Allocation Factors'!AB$9:AB$126,MATCH($F99,'Allocation Factors'!$D$9:$D$126,0)) -> 0 | AF99: =+$H99*INDEX('Allocation Factors'!AD$9:AD$126,MATCH($F99,'Allocation Factors'!$D$9:$D$126,0)) -> 0
A100: 96 | E100: Total Meter Installations | H100: =SUM(H97:H99) -> 0 | J100: =SUM(J97:J99) -> 0 | L100: =SUM(L97:L99) -> 0 | N100: =SUM(N97:N99) -> 0 | P100: =SUM(P97:P99) -> 0 | R100: =SUM(R97:R99) -> 0 | T100: =SUM(T97:T99) -> 0 | V100: =SUM(V97:V99) -> 0 | X100: =SUM(X97:X99) -> 0 | Z100: =SUM(Z97:Z99) -> 0 | AB100: =SUM(AB97:AB99) -> 0 | AD100: =SUM(AD97:AD99) -> 0 | AF100: =SUM(AF97:AF99) -> 0
A101: 97 | C101: ='Classified Rate Base'!B40 -> 383 | E101: House Regulators - Allocated
A102: 98 | E102: Customer | F102: REGCUS-ALL | H102: ='Classified Rate Base'!I39 -> 5134242.96 | J102: =+$H102*INDEX('Allocation Factors'!H$9:H$126,MATCH($F102,'Allocation Factors'!$D$9:$D$126,0)) -> 4400863.284 | L102: =+$H102*INDEX('Allocation Factors'!J$9:J$126,MATCH($F102,'Allocation Factors'!$D$9:$D$126,0)) -> 581353.3878 | N102: =+$H102*INDEX('Allocation Factors'!L$9:L$126,MATCH($F102,'Allocation Factors'!$D$9:$D$126,0)) -> 21228.4296 | P102: =+$H102*INDEX('Allocation Factors'!N$9:N$126,MATCH($F102,'Allocation Factors'!$D$9:$D$126,0)) -> 70011.77032 | R102: =+$H102*INDEX('Allocation Factors'!P$9:P$126,MATCH($F102,'Allocation Factors'!$D$9:$D$126,0)) -> 0 | T102: =+$H102*INDEX('Allocation Factors'!R$9:R$126,MATCH($F102,'Allocation Factors'!$D$9:$D$126,0)) -> 0 | V102: =+$H102*INDEX('Allocation Factors'!T$9:T$126,MATCH($F102,'Allocation Factors'!$D$9:$D$126,0)) -> 23136.25305 | X102: =+$H102*INDEX('Allocation Factors'!V$9:V$126,MATCH($F102,'Allocation Factors'!$D$9:$D$126,0)) -> 31533.03819 | Z102: =+$H102*INDEX('Allocation Factors'!X$9:X$126,MATCH($F102,'Allocation Factors'!$D$9:$D$126,0)) -> 6116.796665 | AB102: =+$H102*INDEX('Allocation Factors'!Z$9:Z$126,MATCH($F102,'Allocation Factors'!$D$9:$D$126,0)) -> 0 | AD102: =+$H102*INDEX('Allocation Factors'!AB$9:AB$126,MATCH($F102,'Allocation Factors'!$D$9:$D$126,0)) -> 0 | AF102: =+$H102*INDEX('Allocation Factors'!AD$9:AD$126,MATCH($F102,'Allocation Factors'!$D$9:$D$126,0)) -> 0
A103: 99 | E103: Demand | F103: DEM | H103: ='Classified Rate Base'!K39 -> 0 | J103: =+$H103*INDEX('Allocation Factors'!H$9:H$126,MATCH($F103,'Allocation Factors'!$D$9:$D$126,0)) -> 0 | L103: =+$H103*INDEX('Allocation Factors'!J$9:J$126,MATCH($F103,'Allocation Factors'!$D$9:$D$126,0)) -> 0 | N103: =+$H103*INDEX('Allocation Factors'!L$9:L$126,MATCH($F103,'Allocation Factors'!$D$9:$D$126,0)) -> 0 | P103: =+$H103*INDEX('Allocation Factors'!N$9:N$126,MATCH($F103,'Allocation Factors'!$D$9:$D$126,0)) -> 0 | R103: =+$H103*INDEX('Allocation Factors'!P$9:P$126,MATCH($F103,'Allocation Factors'!$D$9:$D$126,0)) -> 0 | T103: =+$H103*INDEX('Allocation Factors'!R$9:R$126,MATCH($F103,'Allocation Factors'!$D$9:$D$126,0)) -> 0 | V103: =+$H103*INDEX('Allocation Factors'!T$9:T$126,MATCH($F103,'Allocation Factors'!$D$9:$D$126,0)) -> 0 | X103: =+$H103*INDEX('Allocation Factors'!V$9:V$126,MATCH($F103,'Allocation Factors'!$D$9:$D$126,0)) -> 0 | Z103: =+$H103*INDEX('Allocation Factors'!X$9:X$126,MATCH($F103,'Allocation Factors'!$D$9:$D$126,0)) -> 0 | AB103: =+$H103*INDEX('Allocation Factors'!Z$9:Z$126,MATCH($F103,'Allocation Factors'!$D$9:$D$126,0)) -> 0 | AD103: =+$H103*INDEX('Allocation Factors'!AB$9:AB$126,MATCH($F103,'Allocation Factors'!$D$9:$D$126,0)) -> 0 | AF103: =+$H103*INDEX('Allocation Factors'!AD$9:AD$126,MATCH($F103,'Allocation Factors'!$D$9:$D$126,0)) -> 0
A104: 100 | E104: Commodity | F104: COM | H104: ='Classified Rate Base'!M39 -> 0 | J104: =+$H104*INDEX('Allocation Factors'!H$9:H$126,MATCH($F104,'Allocation Factors'!$D$9:$D$126,0)) -> 0 | L104: =+$H104*INDEX('Allocation Factors'!J$9:J$126,MATCH($F104,'Allocation Factors'!$D$9:$D$126,0)) -> 0 | N104: =+$H104*INDEX('Allocation Factors'!L$9:L$126,MATCH($F104,'Allocation Factors'!$D$9:$D$126,0)) -> 0 | P104: =+$H104*INDEX('Allocation Factors'!N$9:N$126,MATCH($F104,'Allocation Factors'!$D$9:$D$126,0)) -> 0 | R104: =+$H104*INDEX('Allocation Factors'!P$9:P$126,MATCH($F104,'Allocation Factors'!$D$9:$D$126,0)) -> 0 | T104: =+$H104*INDEX('Allocation Factors'!R$9:R$126,MATCH($F104,'Allocation Factors'!$D$9:$D$126,0)) -> 0 | V104: =+$H104*INDEX('Allocation Factors'!T$9:T$126,MATCH($F104,'Allocation Factors'!$D$9:$D$126,0)) -> 0 | X104: =+$H104*INDEX('Allocation Factors'!V$9:V$126,MATCH($F104,'Allocation Factors'!$D$9:$D$126,0)) -> 0 | Z104: =+$H104*INDEX('Allocation Factors'!X$9:X$126,MATCH($F104,'Allocation Factors'!$D$9:$D$126,0)) -> 0 | AB104: =+$H104*INDEX('Allocation Factors'!Z$9:Z$126,MATCH($F104,'Allocation Factors'!$D$9:$D$126,0)) -> 0 | AD104: =+$H104*INDEX('Allocation Factors'!AB$9:AB$126,MATCH($F104,'Allocation Factors'!$D$9:$D$126,0)) -> 0 | AF104: =+$H104*INDEX('Allocation Factors'!AD$9:AD$126,MATCH($F104,'Allocation Factors'!$D$9:$D$126,0)) -> 0
A105: 101 | E105: Total House Regulators - Allocated | H105: =SUM(H102:H104) -> 5134242.96 | J105: =SUM(J102:J104) -> 4400863.284 | L105: =SUM(L102:L104) -> 581353.3878 | N105: =SUM(N102:N104) -> 21228.4296 | P105: =SUM(P102:P104) -> 70011.77032 | R105: =SUM(R102:R104) -> 0 | T105: =SUM(T102:T104) -> 0 | V105: =SUM(V102:V104) -> 23136.25305 | X105: =SUM(X102:X104) -> 31533.03819 | Z105: =SUM(Z102:Z104) -> 6116.796665 | AB105: =SUM(AB102:AB104) -> 0 | AD105: =SUM(AD102:AD104) -> 0 | AF105: =SUM(AF102:AF104) -> 0
A106: 102 | C106: 383 | E106: House Regulators - Directly Assigned
A107: 103 | E107: Customer | F107: CUS-DA | H107: ='Classified Rate Base'!I40 -> 0 | J107: =+$H107*INDEX('Allocation Factors'!H$9:H$126,MATCH($F107,'Allocation Factors'!$D$9:$D$126,0)) -> 0 | L107: =+$H107*INDEX('Allocation Factors'!J$9:J$126,MATCH($F107,'Allocation Factors'!$D$9:$D$126,0)) -> 0 | N107: =+$H107*INDEX('Allocation Factors'!L$9:L$126,MATCH($F107,'Allocation Factors'!$D$9:$D$126,0)) -> 0 | P107: =+$H107*INDEX('Allocation Factors'!N$9:N$126,MATCH($F107,'Allocation Factors'!$D$9:$D$126,0)) -> 0 | R107: =+$H107*INDEX('Allocation Factors'!P$9:P$126,MATCH($F107,'Allocation Factors'!$D$9:$D$126,0)) -> 0 | T107: =+$H107*INDEX('Allocation Factors'!R$9:R$126,MATCH($F107,'Allocation Factors'!$D$9:$D$126,0)) -> 0 | V107: =+$H107*INDEX('Allocation Factors'!T$9:T$126,MATCH($F107,'Allocation Factors'!$D$9:$D$126,0)) -> 0 | X107: =+$H107*INDEX('Allocation Factors'!V$9:V$126,MATCH($F107,'Allocation Factors'!$D$9:$D$126,0)) -> 0 | Z107: =+$H107*INDEX('Allocation Factors'!X$9:X$126,MATCH($F107,'Allocation Factors'!$D$9:$D$126,0)) -> 0 | AB107: =+$H107*INDEX('Allocation Factors'!Z$9:Z$126,MATCH($F107,'Allocation Factors'!$D$9:$D$126,0)) -> 0 | AD107: =+$H107*INDEX('Allocation Factors'!AB$9:AB$126,MATCH($F107,'Allocation Factors'!$D$9:$D$126,0)) -> 0 | AF107: =+$H107*INDEX('Allocation Factors'!AD$9:AD$126,MATCH($F107,'Allocation Factors'!$D$9:$D$126,0)) -> 0
A108: 104 | E108: Demand | F108: DEM-DA | H108: ='Classified Rate Base'!K40 -> 0 | J108: =+$H108*INDEX('Allocation Factors'!H$9:H$126,MATCH($F108,'Allocation Factors'!$D$9:$D$126,0)) -> 0 | L108: =+$H108*INDEX('Allocation Factors'!J$9:J$126,MATCH($F108,'Allocation Factors'!$D$9:$D$126,0)) -> 0 | N108: =+$H108*INDEX('Allocation Factors'!L$9:L$126,MATCH($F108,'Allocation Factors'!$D$9:$D$126,0)) -> 0 | P108: =+$H108*INDEX('Allocation Factors'!N$9:N$126,MATCH($F108,'Allocation Factors'!$D$9:$D$126,0)) -> 0 | R108: =+$H108*INDEX('Allocation Factors'!P$9:P$126,MATCH($F108,'Allocation Factors'!$D$9:$D$126,0)) -> 0 | T108: =+$H108*INDEX('Allocation Factors'!R$9:R$126,MATCH($F108,'Allocation Factors'!$D$9:$D$126,0)) -> 0 | V108: =+$H108*INDEX('Allocation Factors'!T$9:T$126,MATCH($F108,'Allocation Factors'!$D$9:$D$126,0)) -> 0 | X108: =+$H108*INDEX('Allocation Factors'!V$9:V$126,MATCH($F108,'Allocation Factors'!$D$9:$D$126,0)) -> 0 | Z108: =+$H108*INDEX('Allocation Factors'!X$9:X$126,MATCH($F108,'Allocation Factors'!$D$9:$D$126,0)) -> 0 | AB108: =+$H108*INDEX('Allocation Factors'!Z$9:Z$126,MATCH($F108,'Allocation Factors'!$D$9:$D$126,0)) -> 0 | AD108: =+$H108*INDEX('Allocation Factors'!AB$9:AB$126,MATCH($F108,'Allocation Factors'!$D$9:$D$126,0)) -> 0 | AF108: =+$H108*INDEX('Allocation Factors'!AD$9:AD$126,MATCH($F108,'Allocation Factors'!$D$9:$D$126,0)) -> 0
A109: 105 | E109: Commodity | F109: COM-DA | H109: ='Classified Rate Base'!M40 -> 0 | J109: =+$H109*INDEX('Allocation Factors'!H$9:H$126,MATCH($F109,'Allocation Factors'!$D$9:$D$126,0)) -> 0 | L109: =+$H109*INDEX('Allocation Factors'!J$9:J$126,MATCH($F109,'Allocation Factors'!$D$9:$D$126,0)) -> 0 | N109: =+$H109*INDEX('Allocation Factors'!L$9:L$126,MATCH($F109,'Allocation Factors'!$D$9:$D$126,0)) -> 0 | P109: =+$H109*INDEX('Allocation Factors'!N$9:N$126,MATCH($F109,'Allocation Factors'!$D$9:$D$126,0)) -> 0 | R109: =+$H109*INDEX('Allocation Factors'!P$9:P$126,MATCH($F109,'Allocation Factors'!$D$9:$D$126,0)) -> 0 | T109: =+$H109*INDEX('Allocation Factors'!R$9:R$126,MATCH($F109,'Allocation Factors'!$D$9:$D$126,0)) -> 0 | V109: =+$H109*INDEX('Allocation Factors'!T$9:T$126,MATCH($F109,'Allocation Factors'!$D$9:$D$126,0)) -> 0 | X109: =+$H109*INDEX('Allocation Factors'!V$9:V$126,MATCH($F109,'Allocation Factors'!$D$9:$D$126,0)) -> 0 | Z109: =+$H109*INDEX('Allocation Factors'!X$9:X$126,MATCH($F109,'Allocation Factors'!$D$9:$D$126,0)) -> 0 | AB109: =+$H109*INDEX('Allocation Factors'!Z$9:Z$126,MATCH($F109,'Allocation Factors'!$D$9:$D$126,0)) -> 0 | AD109: =+$H109*INDEX('Allocation Factors'!AB$9:AB$126,MATCH($F109,'Allocation Factors'!$D$9:$D$126,0)) -> 0 | AF109: =+$H109*INDEX('Allocation Factors'!AD$9:AD$126,MATCH($F109,'Allocation Factors'!$D$9:$D$126,0)) -> 0
A110: 106 | E110: Total House Regulators - Dir. Assigned | H110: =SUM(H107:H109) -> 0 | J110: =SUM(J107:J109) -> 0 | L110: =SUM(L107:L109) -> 0 | N110: =SUM(N107:N109) -> 0 | P110: =SUM(P107:P109) -> 0 | R110: =SUM(R107:R109) -> 0 | T110: =SUM(T107:T109) -> 0 | V110: =SUM(V107:V109) -> 0 | X110: =SUM(X107:X109) -> 0 | Z110: =SUM(Z107:Z109) -> 0 | AB110: =SUM(AB107:AB109) -> 0 | AD110: =SUM(AD107:AD109) -> 0 | AF110: =SUM(AF107:AF109) -> 0
A111: 107 | C111: ='Classified Rate Base'!B42 -> 385 | E111: Meas. & Reg. Sta. Equip. - Ind. - Allocated
A112: 108 | E112: Customer | F112: NRCUS | H112: ='Classified Rate Base'!I41 -> 0 | J112: =+$H112*INDEX('Allocation Factors'!H$9:H$126,MATCH($F112,'Allocation Factors'!$D$9:$D$126,0)) -> 0 | L112: =+$H112*INDEX('Allocation Factors'!J$9:J$126,MATCH($F112,'Allocation Factors'!$D$9:$D$126,0)) -> 0 | N112: =+$H112*INDEX('Allocation Factors'!L$9:L$126,MATCH($F112,'Allocation Factors'!$D$9:$D$126,0)) -> 0 | P112: =+$H112*INDEX('Allocation Factors'!N$9:N$126,MATCH($F112,'Allocation Factors'!$D$9:$D$126,0)) -> 0 | R112: =+$H112*INDEX('Allocation Factors'!P$9:P$126,MATCH($F112,'Allocation Factors'!$D$9:$D$126,0)) -> 0 | T112: =+$H112*INDEX('Allocation Factors'!R$9:R$126,MATCH($F112,'Allocation Factors'!$D$9:$D$126,0)) -> 0 | V112: =+$H112*INDEX('Allocation Factors'!T$9:T$126,MATCH($F112,'Allocation Factors'!$D$9:$D$126,0)) -> 0 | X112: =+$H112*INDEX('Allocation Factors'!V$9:V$126,MATCH($F112,'Allocation Factors'!$D$9:$D$126,0)) -> 0 | Z112: =+$H112*INDEX('Allocation Factors'!X$9:X$126,MATCH($F112,'Allocation Factors'!$D$9:$D$126,0)) -> 0 | AB112: =+$H112*INDEX('Allocation Factors'!Z$9:Z$126,MATCH($F112,'Allocation Factors'!$D$9:$D$126,0)) -> 0 | AD112: =+$H112*INDEX('Allocation Factors'!AB$9:AB$126,MATCH($F112,'Allocation Factors'!$D$9:$D$126,0)) -> 0 | AF112: =+$H112*INDEX('Allocation Factors'!AD$9:AD$126,MATCH($F112,'Allocation Factors'!$D$9:$D$126,0)) -> 0
A113: 109 | E113: Demand | F113: NRDEM | H113: ='Classified Rate Base'!K41 -> 3323547.49 | J113: =+$H113*INDEX('Allocation Factors'!H$9:H$126,MATCH($F113,'Allocation Factors'!$D$9:$D$126,0)) -> 0 | L113: =+$H113*INDEX('Allocation Factors'!J$9:J$126,MATCH($F113,'Allocation Factors'!$D$9:$D$126,0)) -> 2138119.144 | N113: =+$H113*INDEX('Allocation Factors'!L$9:L$126,MATCH($F113,'Allocation Factors'!$D$9:$D$126,0)) -> 62622.78055 | P113: =+$H113*INDEX('Allocation Factors'!N$9:N$126,MATCH($F113,'Allocation Factors'!$D$9:$D$126,0)) -> 340777.2179 | R113: =+$H113*INDEX('Allocation Factors'!P$9:P$126,MATCH($F113,'Allocation Factors'!$D$9:$D$126,0)) -> 0 | T113: =+$H113*INDEX('Allocation Factors'!R$9:R$126,MATCH($F113,'Allocation Factors'!$D$9:$D$126,0)) -> 0 | V113: =+$H113*INDEX('Allocation Factors'!T$9:T$126,MATCH($F113,'Allocation Factors'!$D$9:$D$126,0)) -> 217997.9706 | X113: =+$H113*INDEX('Allocation Factors'!V$9:V$126,MATCH($F113,'Allocation Factors'!$D$9:$D$126,0)) -> 399321.7357 | Z113: =+$H113*INDEX('Allocation Factors'!X$9:X$126,MATCH($F113,'Allocation Factors'!$D$9:$D$126,0)) -> 164708.6415 | AB113: =+$H113*INDEX('Allocation Factors'!Z$9:Z$126,MATCH($F113,'Allocation Factors'!$D$9:$D$126,0)) -> 0 | AD113: =+$H113*INDEX('Allocation Factors'!AB$9:AB$126,MATCH($F113,'Allocation Factors'!$D$9:$D$126,0)) -> 0 | AF113: =+$H113*INDEX('Allocation Factors'!AD$9:AD$126,MATCH($F113,'Allocation Factors'!$D$9:$D$126,0)) -> 0
A114: 110 | E114: Commodity | F114: COM | H114: ='Classified Rate Base'!M41 -> 0 | J114: =+$H114*INDEX('Allocation Factors'!H$9:H$126,MATCH($F114,'Allocation Factors'!$D$9:$D$126,0)) -> 0 | L114: =+$H114*INDEX('Allocation Factors'!J$9:J$126,MATCH($F114,'Allocation Factors'!$D$9:$D$126,0)) -> 0 | N114: =+$H114*INDEX('Allocation Factors'!L$9:L$126,MATCH($F114,'Allocation Factors'!$D$9:$D$126,0)) -> 0 | P114: =+$H114*INDEX('Allocation Factors'!N$9:N$126,MATCH($F114,'Allocation Factors'!$D$9:$D$126,0)) -> 0 | R114: =+$H114*INDEX('Allocation Factors'!P$9:P$126,MATCH($F114,'Allocation Factors'!$D$9:$D$126,0)) -> 0 | T114: =+$H114*INDEX('Allocation Factors'!R$9:R$126,MATCH($F114,'Allocation Factors'!$D$9:$D$126,0)) -> 0 | V114: =+$H114*INDEX('Allocation Factors'!T$9:T$126,MATCH($F114,'Allocation Factors'!$D$9:$D$126,0)) -> 0 | X114: =+$H114*INDEX('Allocation Factors'!V$9:V$126,MATCH($F114,'Allocation Factors'!$D$9:$D$126,0)) -> 0 | Z114: =+$H114*INDEX('Allocation Factors'!X$9:X$126,MATCH($F114,'Allocation Factors'!$D$9:$D$126,0)) -> 0 | AB114: =+$H114*INDEX('Allocation Factors'!Z$9:Z$126,MATCH($F114,'Allocation Factors'!$D$9:$D$126,0)) -> 0 | AD114: =+$H114*INDEX('Allocation Factors'!AB$9:AB$126,MATCH($F114,'Allocation Factors'!$D$9:$D$126,0)) -> 0 | AF114: =+$H114*INDEX('Allocation Factors'!AD$9:AD$126,MATCH($F114,'Allocation Factors'!$D$9:$D$126,0)) -> 0
A115: 111 | E115: Total Meas. & Reg. Sta. Equip.- Ind. - Alloc. | H115: =SUM(H112:H114) -> 3323547.49 | J115: =SUM(J112:J114) -> 0 | L115: =SUM(L112:L114) -> 2138119.144 | N115: =SUM(N112:N114) -> 62622.78055 | P115: =SUM(P112:P114) -> 340777.2179 | R115: =SUM(R112:R114) -> 0 | T115: =SUM(T112:T114) -> 0 | V115: =SUM(V112:V114) -> 217997.9706 | X115: =SUM(X112:X114) -> 399321.7357 | Z115: =SUM(Z112:Z114) -> 164708.6415 | AB115: =SUM(AB112:AB114) -> 0 | AD115: =SUM(AD112:AD114) -> 0 | AF115: =SUM(AF112:AF114) -> 0
A116: 112 | C116: 385 | E116: Meas. & Reg. Sta. Equip. - Ind. - DA
A117: 113 | E117: Customer | F117: CUS-DA | H117: ='Classified Rate Base'!I42 -> 0 | J117: =+$H117*INDEX('Allocation Factors'!H$9:H$126,MATCH($F117,'Allocation Factors'!$D$9:$D$126,0)) -> 0 | L117: =+$H117*INDEX('Allocation Factors'!J$9:J$126,MATCH($F117,'Allocation Factors'!$D$9:$D$126,0)) -> 0 | N117: =+$H117*INDEX('Allocation Factors'!L$9:L$126,MATCH($F117,'Allocation Factors'!$D$9:$D$126,0)) -> 0 | P117: =+$H117*INDEX('Allocation Factors'!N$9:N$126,MATCH($F117,'Allocation Factors'!$D$9:$D$126,0)) -> 0 | R117: =+$H117*INDEX('Allocation Factors'!P$9:P$126,MATCH($F117,'Allocation Factors'!$D$9:$D$126,0)) -> 0 | T117: =+$H117*INDEX('Allocation Factors'!R$9:R$126,MATCH($F117,'Allocation Factors'!$D$9:$D$126,0)) -> 0 | V117: =+$H117*INDEX('Allocation Factors'!T$9:T$126,MATCH($F117,'Allocation Factors'!$D$9:$D$126,0)) -> 0 | X117: =+$H117*INDEX('Allocation Factors'!V$9:V$126,MATCH($F117,'Allocation Factors'!$D$9:$D$126,0)) -> 0 | Z117: =+$H117*INDEX('Allocation Factors'!X$9:X$126,MATCH($F117,'Allocation Factors'!$D$9:$D$126,0)) -> 0 | AB117: =+$H117*INDEX('Allocation Factors'!Z$9:Z$126,MATCH($F117,'Allocation Factors'!$D$9:$D$126,0)) -> 0 | AD117: =+$H117*INDEX('Allocation Factors'!AB$9:AB$126,MATCH($F117,'Allocation Factors'!$D$9:$D$126,0)) -> 0 | AF117: =+$H117*INDEX('Allocation Factors'!AD$9:AD$126,MATCH($F117,'Allocation Factors'!$D$9:$D$126,0)) -> 0
A118: 114 | E118: Demand | F118: DEM-DA | H118: ='Classified Rate Base'!K42 -> 0 | J118: =+$H118*INDEX('Allocation Factors'!H$9:H$126,MATCH($F118,'Allocation Factors'!$D$9:$D$126,0)) -> 0 | L118: =+$H118*INDEX('Allocation Factors'!J$9:J$126,MATCH($F118,'Allocation Factors'!$D$9:$D$126,0)) -> 0 | N118: =+$H118*INDEX('Allocation Factors'!L$9:L$126,MATCH($F118,'Allocation Factors'!$D$9:$D$126,0)) -> 0 | P118: =+$H118*INDEX('Allocation Factors'!N$9:N$126,MATCH($F118,'Allocation Factors'!$D$9:$D$126,0)) -> 0 | R118: =+$H118*INDEX('Allocation Factors'!P$9:P$126,MATCH($F118,'Allocation Factors'!$D$9:$D$126,0)) -> 0 | T118: =+$H118*INDEX('Allocation Factors'!R$9:R$126,MATCH($F118,'Allocation Factors'!$D$9:$D$126,0)) -> 0 | V118: =+$H118*INDEX('Allocation Factors'!T$9:T$126,MATCH($F118,'Allocation Factors'!$D$9:$D$126,0)) -> 0 | X118: =+$H118*INDEX('Allocation Factors'!V$9:V$126,MATCH($F118,'Allocation Factors'!$D$9:$D$126,0)) -> 0 | Z118: =+$H118*INDEX('Allocation Factors'!X$9:X$126,MATCH($F118,'Allocation Factors'!$D$9:$D$126,0)) -> 0 | AB118: =+$H118*INDEX('Allocation Factors'!Z$9:Z$126,MATCH($F118,'Allocation Factors'!$D$9:$D$126,0)) -> 0 | AD118: =+$H118*INDEX('Allocation Factors'!AB$9:AB$126,MATCH($F118,'Allocation Factors'!$D$9:$D$126,0)) -> 0 | AF118: =+$H118*INDEX('Allocation Factors'!AD$9:AD$126,MATCH($F118,'Allocation Factors'!$D$9:$D$126,0)) -> 0
A119: 115 | E119: Commodity | F119: COM-DA | H119: ='Classified Rate Base'!M42 -> 0 | J119: =+$H119*INDEX('Allocation Factors'!H$9:H$126,MATCH($F119,'Allocation Factors'!$D$9:$D$126,0)) -> 0 | L119: =+$H119*INDEX('Allocation Factors'!J$9:J$126,MATCH($F119,'Allocation Factors'!$D$9:$D$126,0)) -> 0 | N119: =+$H119*INDEX('Allocation Factors'!L$9:L$126,MATCH($F119,'Allocation Factors'!$D$9:$D$126,0)) -> 0 | P119: =+$H119*INDEX('Allocation Factors'!N$9:N$126,MATCH($F119,'Allocation Factors'!$D$9:$D$126,0)) -> 0 | R119: =+$H119*INDEX('Allocation Factors'!P$9:P$126,MATCH($F119,'Allocation Factors'!$D$9:$D$126,0)) -> 0 | T119: =+$H119*INDEX('Allocation Factors'!R$9:R$126,MATCH($F119,'Allocation Factors'!$D$9:$D$126,0)) -> 0 | V119: =+$H119*INDEX('Allocation Factors'!T$9:T$126,MATCH($F119,'Allocation Factors'!$D$9:$D$126,0)) -> 0 | X119: =+$H119*INDEX('Allocation Factors'!V$9:V$126,MATCH($F119,'Allocation Factors'!$D$9:$D$126,0)) -> 0 | Z119: =+$H119*INDEX('Allocation Factors'!X$9:X$126,MATCH($F119,'Allocation Factors'!$D$9:$D$126,0)) -> 0 | AB119: =+$H119*INDEX('Allocation Factors'!Z$9:Z$126,MATCH($F119,'Allocation Factors'!$D$9:$D$126,0)) -> 0 | AD119: =+$H119*INDEX('Allocation Factors'!AB$9:AB$126,MATCH($F119,'Allocation Factors'!$D$9:$D$126,0)) -> 0 | AF119: =+$H119*INDEX('Allocation Factors'!AD$9:AD$126,MATCH($F119,'Allocation Factors'!$D$9:$D$126,0)) -> 0
A120: 116 | E120: Total Meas. & Reg. Sta. Equip.-Ind. - DA | H120: =SUM(H117:H119) -> 0 | J120: =SUM(J117:J119) -> 0 | L120: =SUM(L117:L119) -> 0 | N120: =SUM(N117:N119) -> 0 | P120: =SUM(P117:P119) -> 0 | R120: =SUM(R117:R119) -> 0 | T120: =SUM(T117:T119) -> 0 | V120: =SUM(V117:V119) -> 0 | X120: =SUM(X117:X119) -> 0 | Z120: =SUM(Z117:Z119) -> 0 | AB120: =SUM(AB117:AB119) -> 0 | AD120: =SUM(AD117:AD119) -> 0 | AF120: =SUM(AF117:AF119) -> 0
A121: 117 | C121: 385 | E121: Odorization
A122: 118 | E122: Customer | F122: CUS | H122: ='Classified Rate Base'!I43 -> 0 | J122: =+$H122*INDEX('Allocation Factors'!H$9:H$126,MATCH($F122,'Allocation Factors'!$D$9:$D$126,0)) -> 0 | L122: =+$H122*INDEX('Allocation Factors'!J$9:J$126,MATCH($F122,'Allocation Factors'!$D$9:$D$126,0)) -> 0 | N122: =+$H122*INDEX('Allocation Factors'!L$9:L$126,MATCH($F122,'Allocation Factors'!$D$9:$D$126,0)) -> 0 | P122: =+$H122*INDEX('Allocation Factors'!N$9:N$126,MATCH($F122,'Allocation Factors'!$D$9:$D$126,0)) -> 0 | R122: =+$H122*INDEX('Allocation Factors'!P$9:P$126,MATCH($F122,'Allocation Factors'!$D$9:$D$126,0)) -> 0 | T122: =+$H122*INDEX('Allocation Factors'!R$9:R$126,MATCH($F122,'Allocation Factors'!$D$9:$D$126,0)) -> 0 | V122: =+$H122*INDEX('Allocation Factors'!T$9:T$126,MATCH($F122,'Allocation Factors'!$D$9:$D$126,0)) -> 0 | X122: =+$H122*INDEX('Allocation Factors'!V$9:V$126,MATCH($F122,'Allocation Factors'!$D$9:$D$126,0)) -> 0 | Z122: =+$H122*INDEX('Allocation Factors'!X$9:X$126,MATCH($F122,'Allocation Factors'!$D$9:$D$126,0)) -> 0 | AB122: =+$H122*INDEX('Allocation Factors'!Z$9:Z$126,MATCH($F122,'Allocation Factors'!$D$9:$D$126,0)) -> 0 | AD122: =+$H122*INDEX('Allocation Factors'!AB$9:AB$126,MATCH($F122,'Allocation Factors'!$D$9:$D$126,0)) -> 0 | AF122: =+$H122*INDEX('Allocation Factors'!AD$9:AD$126,MATCH($F122,'Allocation Factors'!$D$9:$D$126,0)) -> 0
A123: 119 | E123: Demand | F123: DEM | H123: ='Classified Rate Base'!K43 -> 0 | J123: =+$H123*INDEX('Allocation Factors'!H$9:H$126,MATCH($F123,'Allocation Factors'!$D$9:$D$126,0)) -> 0 | L123: =+$H123*INDEX('Allocation Factors'!J$9:J$126,MATCH($F123,'Allocation Factors'!$D$9:$D$126,0)) -> 0 | N123: =+$H123*INDEX('Allocation Factors'!L$9:L$126,MATCH($F123,'Allocation Factors'!$D$9:$D$126,0)) -> 0 | P123: =+$H123*INDEX('Allocation Factors'!N$9:N$126,MATCH($F123,'Allocation Factors'!$D$9:$D$126,0)) -> 0 | R123: =+$H123*INDEX('Allocation Factors'!P$9:P$126,MATCH($F123,'Allocation Factors'!$D$9:$D$126,0)) -> 0 | T123: =+$H123*INDEX('Allocation Factors'!R$9:R$126,MATCH($F123,'Allocation Factors'!$D$9:$D$126,0)) -> 0 | V123: =+$H123*INDEX('Allocation Factors'!T$9:T$126,MATCH($F123,'Allocation Factors'!$D$9:$D$126,0)) -> 0 | X123: =+$H123*INDEX('Allocation Factors'!V$9:V$126,MATCH($F123,'Allocation Factors'!$D$9:$D$126,0)) -> 0 | Z123: =+$H123*INDEX('Allocation Factors'!X$9:X$126,MATCH($F123,'Allocation Factors'!$D$9:$D$126,0)) -> 0 | AB123: =+$H123*INDEX('Allocation Factors'!Z$9:Z$126,MATCH($F123,'Allocation Factors'!$D$9:$D$126,0)) -> 0 | AD123: =+$H123*INDEX('Allocation Factors'!AB$9:AB$126,MATCH($F123,'Allocation Factors'!$D$9:$D$126,0)) -> 0 | AF123: =+$H123*INDEX('Allocation Factors'!AD$9:AD$126,MATCH($F123,'Allocation Factors'!$D$9:$D$126,0)) -> 0
A124: 120 | E124: Commodity | F124: COM | H124: ='Classified Rate Base'!M43 -> 0 | J124: =+$H124*INDEX('Allocation Factors'!H$9:H$126,MATCH($F124,'Allocation Factors'!$D$9:$D$126,0)) -> 0 | L124: =+$H124*INDEX('Allocation Factors'!J$9:J$126,MATCH($F124,'Allocation Factors'!$D$9:$D$126,0)) -> 0 | N124: =+$H124*INDEX('Allocation Factors'!L$9:L$126,MATCH($F124,'Allocation Factors'!$D$9:$D$126,0)) -> 0 | P124: =+$H124*INDEX('Allocation Factors'!N$9:N$126,MATCH($F124,'Allocation Factors'!$D$9:$D$126,0)) -> 0 | R124: =+$H124*INDEX('Allocation Factors'!P$9:P$126,MATCH($F124,'Allocation Factors'!$D$9:$D$126,0)) -> 0 | T124: =+$H124*INDEX('Allocation Factors'!R$9:R$126,MATCH($F124,'Allocation Factors'!$D$9:$D$126,0)) -> 0 | V124: =+$H124*INDEX('Allocation Factors'!T$9:T$126,MATCH($F124,'Allocation Factors'!$D$9:$D$126,0)) -> 0 | X124: =+$H124*INDEX('Allocation Factors'!V$9:V$126,MATCH($F124,'Allocation Factors'!$D$9:$D$126,0)) -> 0 | Z124: =+$H124*INDEX('Allocation Factors'!X$9:X$126,MATCH($F124,'Allocation Factors'!$D$9:$D$126,0)) -> 0 | AB124: =+$H124*INDEX('Allocation Factors'!Z$9:Z$126,MATCH($F124,'Allocation Factors'!$D$9:$D$126,0)) -> 0 | AD124: =+$H124*INDEX('Allocation Factors'!AB$9:AB$126,MATCH($F124,'Allocation Factors'!$D$9:$D$126,0)) -> 0 | AF124: =+$H124*INDEX('Allocation Factors'!AD$9:AD$126,MATCH($F124,'Allocation Factors'!$D$9:$D$126,0)) -> 0
A125: 121 | E125: Total Odorization | H125: =SUM(H122:H124) -> 0 | J125: =SUM(J122:J124) -> 0 | L125: =SUM(L122:L124) -> 0 | N125: =SUM(N122:N124) -> 0 | P125: =SUM(P122:P124) -> 0 | R125: =SUM(R122:R124) -> 0 | T125: =SUM(T122:T124) -> 0 | V125: =SUM(V122:V124) -> 0 | X125: =SUM(X122:X124) -> 0 | Z125: =SUM(Z122:Z124) -> 0 | AB125: =SUM(AB122:AB124) -> 0 | AD125: =SUM(AD122:AD124) -> 0 | AF125: =SUM(AF122:AF124) -> 0
A126: 122 | C126: ='Classified Rate Base'!B44 -> 386 | E126: Other Prop.-Customer Premises
A127: 123 | E127: Customer | F127: CUS | H127: =+'Classified Rate Base'!I44 -> 6144.09 | J127: =+$H127*INDEX('Allocation Factors'!H$9:H$126,MATCH($F127,'Allocation Factors'!$D$9:$D$126,0)) -> 5695.636831 | L127: =+$H127*INDEX('Allocation Factors'!J$9:J$126,MATCH($F127,'Allocation Factors'!$D$9:$D$126,0)) -> 390.9700175 | N127: =+$H127*INDEX('Allocation Factors'!L$9:L$126,MATCH($F127,'Allocation Factors'!$D$9:$D$126,0)) -> 3.515807766 | P127: =+$H127*INDEX('Allocation Factors'!N$9:N$126,MATCH($F127,'Allocation Factors'!$D$9:$D$126,0)) -> 47.61550847 | R127: =+$H127*INDEX('Allocation Factors'!P$9:P$126,MATCH($F127,'Allocation Factors'!$D$9:$D$126,0)) -> 0 | T127: =+$H127*INDEX('Allocation Factors'!R$9:R$126,MATCH($F127,'Allocation Factors'!$D$9:$D$126,0)) -> 0 | V127: =+$H127*INDEX('Allocation Factors'!T$9:T$126,MATCH($F127,'Allocation Factors'!$D$9:$D$126,0)) -> 2.614518159 | X127: =+$H127*INDEX('Allocation Factors'!V$9:V$126,MATCH($F127,'Allocation Factors'!$D$9:$D$126,0)) -> 3.159877775 | Z127: =+$H127*INDEX('Allocation Factors'!X$9:X$126,MATCH($F127,'Allocation Factors'!$D$9:$D$126,0)) -> 0.5774395934 | AB127: =+$H127*INDEX('Allocation Factors'!Z$9:Z$126,MATCH($F127,'Allocation Factors'!$D$9:$D$126,0)) -> 0 | AD127: =+$H127*INDEX('Allocation Factors'!AB$9:AB$126,MATCH($F127,'Allocation Factors'!$D$9:$D$126,0)) -> 0 | AF127: =+$H127*INDEX('Allocation Factors'!AD$9:AD$126,MATCH($F127,'Allocation Factors'!$D$9:$D$126,0)) -> 0
A128: 124 | E128: Demand | F128: DEM | H128: =+'Classified Rate Base'!K44 -> 0 | J128: =+$H128*INDEX('Allocation Factors'!H$9:H$126,MATCH($F128,'Allocation Factors'!$D$9:$D$126,0)) -> 0 | L128: =+$H128*INDEX('Allocation Factors'!J$9:J$126,MATCH($F128,'Allocation Factors'!$D$9:$D$126,0)) -> 0 | N128: =+$H128*INDEX('Allocation Factors'!L$9:L$126,MATCH($F128,'Allocation Factors'!$D$9:$D$126,0)) -> 0 | P128: =+$H128*INDEX('Allocation Factors'!N$9:N$126,MATCH($F128,'Allocation Factors'!$D$9:$D$126,0)) -> 0 | R128: =+$H128*INDEX('Allocation Factors'!P$9:P$126,MATCH($F128,'Allocation Factors'!$D$9:$D$126,0)) -> 0 | T128: =+$H128*INDEX('Allocation Factors'!R$9:R$126,MATCH($F128,'Allocation Factors'!$D$9:$D$126,0)) -> 0 | V128: =+$H128*INDEX('Allocation Factors'!T$9:T$126,MATCH($F128,'Allocation Factors'!$D$9:$D$126,0)) -> 0 | X128: =+$H128*INDEX('Allocation Factors'!V$9:V$126,MATCH($F128,'Allocation Factors'!$D$9:$D$126,0)) -> 0 | Z128: =+$H128*INDEX('Allocation Factors'!X$9:X$126,MATCH($F128,'Allocation Factors'!$D$9:$D$126,0)) -> 0 | AB128: =+$H128*INDEX('Allocation Factors'!Z$9:Z$126,MATCH($F128,'Allocation Factors'!$D$9:$D$126,0)) -> 0 | AD128: =+$H128*INDEX('Allocation Factors'!AB$9:AB$126,MATCH($F128,'Allocation Factors'!$D$9:$D$126,0)) -> 0 | AF128: =+$H128*INDEX('Allocation Factors'!AD$9:AD$126,MATCH($F128,'Allocation Factors'!$D$9:$D$126,0)) -> 0
A129: 125 | E129: Commodity | F129: COM | H129: =+'Classified Rate Base'!M44 -> 0 | J129: =+$H129*INDEX('Allocation Factors'!H$9:H$126,MATCH($F129,'Allocation Factors'!$D$9:$D$126,0)) -> 0 | L129: =+$H129*INDEX('Allocation Factors'!J$9:J$126,MATCH($F129,'Allocation Factors'!$D$9:$D$126,0)) -> 0 | N129: =+$H129*INDEX('Allocation Factors'!L$9:L$126,MATCH($F129,'Allocation Factors'!$D$9:$D$126,0)) -> 0 | P129: =+$H129*INDEX('Allocation Factors'!N$9:N$126,MATCH($F129,'Allocation Factors'!$D$9:$D$126,0)) -> 0 | R129: =+$H129*INDEX('Allocation Factors'!P$9:P$126,MATCH($F129,'Allocation Factors'!$D$9:$D$126,0)) -> 0 | T129: =+$H129*INDEX('Allocation Factors'!R$9:R$126,MATCH($F129,'Allocation Factors'!$D$9:$D$126,0)) -> 0 | V129: =+$H129*INDEX('Allocation Factors'!T$9:T$126,MATCH($F129,'Allocation Factors'!$D$9:$D$126,0)) -> 0 | X129: =+$H129*INDEX('Allocation Factors'!V$9:V$126,MATCH($F129,'Allocation Factors'!$D$9:$D$126,0)) -> 0 | Z129: =+$H129*INDEX('Allocation Factors'!X$9:X$126,MATCH($F129,'Allocation Factors'!$D$9:$D$126,0)) -> 0 | AB129: =+$H129*INDEX('Allocation Factors'!Z$9:Z$126,MATCH($F129,'Allocation Factors'!$D$9:$D$126,0)) -> 0 | AD129: =+$H129*INDEX('Allocation Factors'!AB$9:AB$126,MATCH($F129,'Allocation Factors'!$D$9:$D$126,0)) -> 0 | AF129: =+$H129*INDEX('Allocation Factors'!AD$9:AD$126,MATCH($F129,'Allocation Factors'!$D$9:$D$126,0)) -> 0
A130: 126 | E130: Total Other Prop.- Cust. Premises | H130: =+H127+H128+H129 -> 6144.09 | J130: =+J127+J128+J129 -> 5695.636831 | L130: =+L127+L128+L129 -> 390.9700175 | N130: =+N127+N128+N129 -> 3.515807766 | P130: =+P127+P128+P129 -> 47.61550847 | R130: =+R127+R128+R129 -> 0 | T130: =+T127+T128+T129 -> 0 | V130: =+V127+V128+V129 -> 2.614518159 | X130: =+X127+X128+X129 -> 3.159877775 | Z130: =+Z127+Z128+Z129 -> 0.5774395934 | AB130: =+AB127+AB128+AB129 -> 0 | AD130: =+AD127+AD128+AD129 -> 0 | AF130: =+AF127+AF128+AF129 -> 0
A131: 127 | C131: ='Classified Rate Base'!B45 -> 387 | E131: Other Equipment
A132: 128 | E132: Customer | F132: CUS | H132: =+'Classified Rate Base'!I45 -> 0 | J132: =+$H132*INDEX('Allocation Factors'!H$9:H$126,MATCH($F132,'Allocation Factors'!$D$9:$D$126,0)) -> 0 | L132: =+$H132*INDEX('Allocation Factors'!J$9:J$126,MATCH($F132,'Allocation Factors'!$D$9:$D$126,0)) -> 0 | N132: =+$H132*INDEX('Allocation Factors'!L$9:L$126,MATCH($F132,'Allocation Factors'!$D$9:$D$126,0)) -> 0 | P132: =+$H132*INDEX('Allocation Factors'!N$9:N$126,MATCH($F132,'Allocation Factors'!$D$9:$D$126,0)) -> 0 | R132: =+$H132*INDEX('Allocation Factors'!P$9:P$126,MATCH($F132,'Allocation Factors'!$D$9:$D$126,0)) -> 0 | T132: =+$H132*INDEX('Allocation Factors'!R$9:R$126,MATCH($F132,'Allocation Factors'!$D$9:$D$126,0)) -> 0 | V132: =+$H132*INDEX('Allocation Factors'!T$9:T$126,MATCH($F132,'Allocation Factors'!$D$9:$D$126,0)) -> 0 | X132: =+$H132*INDEX('Allocation Factors'!V$9:V$126,MATCH($F132,'Allocation Factors'!$D$9:$D$126,0)) -> 0 | Z132: =+$H132*INDEX('Allocation Factors'!X$9:X$126,MATCH($F132,'Allocation Factors'!$D$9:$D$126,0)) -> 0 | AB132: =+$H132*INDEX('Allocation Factors'!Z$9:Z$126,MATCH($F132,'Allocation Factors'!$D$9:$D$126,0)) -> 0 | AD132: =+$H132*INDEX('Allocation Factors'!AB$9:AB$126,MATCH($F132,'Allocation Factors'!$D$9:$D$126,0)) -> 0 | AF132: =+$H132*INDEX('Allocation Factors'!AD$9:AD$126,MATCH($F132,'Allocation Factors'!$D$9:$D$126,0)) -> 0
A133: 129 | E133: Demand | F133: DEM | H133: =+'Classified Rate Base'!K45 -> 0 | J133: =+$H133*INDEX('Allocation Factors'!H$9:H$126,MATCH($F133,'Allocation Factors'!$D$9:$D$126,0)) -> 0 | L133: =+$H133*INDEX('Allocation Factors'!J$9:J$126,MATCH($F133,'Allocation Factors'!$D$9:$D$126,0)) -> 0 | N133: =+$H133*INDEX('Allocation Factors'!L$9:L$126,MATCH($F133,'Allocation Factors'!$D$9:$D$126,0)) -> 0 | P133: =+$H133*INDEX('Allocation Factors'!N$9:N$126,MATCH($F133,'Allocation Factors'!$D$9:$D$126,0)) -> 0 | R133: =+$H133*INDEX('Allocation Factors'!P$9:P$126,MATCH($F133,'Allocation Factors'!$D$9:$D$126,0)) -> 0 | T133: =+$H133*INDEX('Allocation Factors'!R$9:R$126,MATCH($F133,'Allocation Factors'!$D$9:$D$126,0)) -> 0 | V133: =+$H133*INDEX('Allocation Factors'!T$9:T$126,MATCH($F133,'Allocation Factors'!$D$9:$D$126,0)) -> 0 | X133: =+$H133*INDEX('Allocation Factors'!V$9:V$126,MATCH($F133,'Allocation Factors'!$D$9:$D$126,0)) -> 0 | Z133: =+$H133*INDEX('Allocation Factors'!X$9:X$126,MATCH($F133,'Allocation Factors'!$D$9:$D$126,0)) -> 0 | AB133: =+$H133*INDEX('Allocation Factors'!Z$9:Z$126,MATCH($F133,'Allocation Factors'!$D$9:$D$126,0)) -> 0 | AD133: =+$H133*INDEX('Allocation Factors'!AB$9:AB$126,MATCH($F133,'Allocation Factors'!$D$9:$D$126,0)) -> 0 | AF133: =+$H133*INDEX('Allocation Factors'!AD$9:AD$126,MATCH($F133,'Allocation Factors'!$D$9:$D$126,0)) -> 0
A134: =+A133+1 -> 130 | E134: Commodity | F134: COM | H134: =+'Classified Rate Base'!M45 -> 0 | J134: =+$H134*INDEX('Allocation Factors'!H$9:H$126,MATCH($F134,'Allocation Factors'!$D$9:$D$126,0)) -> 0 | L134: =+$H134*INDEX('Allocation Factors'!J$9:J$126,MATCH($F134,'Allocation Factors'!$D$9:$D$126,0)) -> 0 | N134: =+$H134*INDEX('Allocation Factors'!L$9:L$126,MATCH($F134,'Allocation Factors'!$D$9:$D$126,0)) -> 0 | P134: =+$H134*INDEX('Allocation Factors'!N$9:N$126,MATCH($F134,'Allocation Factors'!$D$9:$D$126,0)) -> 0 | R134: =+$H134*INDEX('Allocation Factors'!P$9:P$126,MATCH($F134,'Allocation Factors'!$D$9:$D$126,0)) -> 0 | T134: =+$H134*INDEX('Allocation Factors'!R$9:R$126,MATCH($F134,'Allocation Factors'!$D$9:$D$126,0)) -> 0 | V134: =+$H134*INDEX('Allocation Factors'!T$9:T$126,MATCH($F134,'Allocation Factors'!$D$9:$D$126,0)) -> 0 | X134: =+$H134*INDEX('Allocation Factors'!V$9:V$126,MATCH($F134,'Allocation Factors'!$D$9:$D$126,0)) -> 0 | Z134: =+$H134*INDEX('Allocation Factors'!X$9:X$126,MATCH($F134,'Allocation Factors'!$D$9:$D$126,0)) -> 0 | AB134: =+$H134*INDEX('Allocation Factors'!Z$9:Z$126,MATCH($F134,'Allocation Factors'!$D$9:$D$126,0)) -> 0 | AD134: =+$H134*INDEX('Allocation Factors'!AB$9:AB$126,MATCH($F134,'Allocation Factors'!$D$9:$D$126,0)) -> 0 | AF134: =+$H134*INDEX('Allocation Factors'!AD$9:AD$126,MATCH($F134,'Allocation Factors'!$D$9:$D$126,0)) -> 0
A135: 131 | E135: Total Other Equipment | H135: =+H132+H133+H134 -> 0 | J135: =+J132+J133+J134 -> 0 | L135: =+L132+L133+L134 -> 0 | N135: =+N132+N133+N134 -> 0 | P135: =+P132+P133+P134 -> 0 | R135: =+R132+R133+R134 -> 0 | T135: =+T132+T133+T134 -> 0 | V135: =+V132+V133+V134 -> 0 | X135: =+X132+X133+X134 -> 0 | Z135: =+Z132+Z133+Z134 -> 0 | AB135: =+AB132+AB133+AB134 -> 0 | AD135: =+AD132+AD133+AD134 -> 0 | AF135: =+AF132+AF133+AF134 -> 0
A136: 132 | E136: Total Distribution Plant
A137: 133 | E137: Customer | H137: =+H17+H27+H32+H52+H67+H72+H77+H87+H97+H102+H112+H127+H132+H62+H47+H117+H107+H92+H82+H57+H42+H22 -> 148916730.6 | J137: =+J17+J27+J32+J52+J67+J72+J77+J87+J97+J102+J112+J127+J132+J62+J47+J117+J107+J92+J82+J57+J42+J22 -> 135536954.7 | L137: =+L17+L27+L32+L52+L67+L72+L77+L87+L97+L102+L112+L127+L132+L62+L47+L117+L107+L92+L82+L57+L42+L22 -> 11499482.55 | N137: =+N17+N27+N32+N52+N67+N72+N77+N87+N97+N102+N112+N127+N132+N62+N47+N117+N107+N92+N82+N57+N42+N22 -> 154048.4163 | P137: =+P17+P27+P32+P52+P67+P72+P77+P87+P97+P102+P112+P127+P132+P62+P47+P117+P107+P92+P82+P57+P42+P22 -> 1371932.652 | R137: =+R17+R27+R32+R52+R67+R72+R77+R87+R97+R102+R112+R127+R132+R62+R47+R117+R107+R92+R82+R57+R42+R22 -> 0 | T137: =+T17+T27+T32+T52+T67+T72+T77+T87+T97+T102+T112+T127+T132+T62+T47+T117+T107+T92+T82+T57+T42+T22 -> 0 | V137: =+V17+V27+V32+V52+V67+V72+V77+V87+V97+V102+V112+V127+V132+V62+V47+V117+V107+V92+V82+V57+V42+V22 -> 140904.8109 | X137: =+X17+X27+X32+X52+X67+X72+X77+X87+X97+X102+X112+X127+X132+X62+X47+X117+X107+X92+X82+X57+X42+X22 -> 179585.5055 | Z137: =+Z17+Z27+Z32+Z52+Z67+Z72+Z77+Z87+Z97+Z102+Z112+Z127+Z132+Z62+Z47+Z117+Z107+Z92+Z82+Z57+Z42+Z22 -> 33821.98679 | AB137: =+AB17+AB27+AB32+AB52+AB67+AB72+AB77+AB87+AB97+AB102+AB112+AB127+AB132+AB62+AB47+AB117+AB107+AB92+AB82+AB57+AB42+AB22 -> 0 | AD137: =+AD17+AD27+AD32+AD52+AD67+AD72+AD77+AD87+AD97+AD102+AD112+AD127+AD132+AD62+AD47+AD117+AD107+AD92+AD82+AD57+AD42+AD22 -> 0 | AF137: =+AF17+AF27+AF32+AF52+AF67+AF72+AF77+AF87+AF97+AF102+AF112+AF127+AF132+AF62+AF47+AF117+AF107+AF92+AF82+AF57+AF42+AF22 -> 0
A138: 134 | E138: Demand | H138: =+H18+H28+H33+H53+H68+H73+H78+H88+H98+H103+H113+H128+H133+H63+H48+H118+H108+H93+H83+H58+H43+H23 -> 48358438.76 | J138: =+J18+J28+J33+J53+J68+J73+J78+J88+J98+J103+J113+J128+J133+J63+J48+J118+J108+J93+J83+J58+J43+J23 -> 13757342.56 | L138: =+L18+L28+L33+L53+L68+L73+L78+L88+L98+L103+L113+L128+L133+L63+L48+L118+L108+L93+L83+L58+L43+L23 -> 22259728.91 | N138: =+N18+N28+N33+N53+N68+N73+N78+N88+N98+N103+N113+N128+N133+N63+N48+N118+N108+N93+N83+N58+N43+N23 -> 651959.0469 | P138: =+P18+P28+P33+P53+P68+P73+P78+P88+P98+P103+P113+P128+P133+P63+P48+P118+P108+P93+P83+P58+P43+P23 -> 3547795.04 | R138: =+R18+R28+R33+R53+R68+R73+R78+R88+R98+R103+R113+R128+R133+R63+R48+R118+R108+R93+R83+R58+R43+R23 -> 0 | T138: =+T18+T28+T33+T53+T68+T73+T78+T88+T98+T103+T113+T128+T133+T63+T48+T118+T108+T93+T83+T58+T43+T23 -> 0 | V138: =+V18+V28+V33+V53+V68+V73+V78+V88+V98+V103+V113+V128+V133+V63+V48+V118+V108+V93+V83+V58+V43+V23 -> 2269553.474 | X138: =+X18+X28+X33+X53+X68+X73+X78+X88+X98+X103+X113+X128+X133+X63+X48+X118+X108+X93+X83+X58+X43+X23 -> 4157295.73 | Z138: =+Z18+Z28+Z33+Z53+Z68+Z73+Z78+Z88+Z98+Z103+Z113+Z128+Z133+Z63+Z48+Z118+Z108+Z93+Z83+Z58+Z43+Z23 -> 1714763.988 | AB138: =+AB18+AB28+AB33+AB53+AB68+AB73+AB78+AB88+AB98+AB103+AB113+AB128+AB133+AB63+AB48+AB118+AB108+AB93+AB83+AB58+AB43+AB23 -> 0 | AD138: =+AD18+AD28+AD33+AD53+AD68+AD73+AD78+AD88+AD98+AD103+AD113+AD128+AD133+AD63+AD48+AD118+AD108+AD93+AD83+AD58+AD43+AD23 -> 0 | AF138: =+AF18+AF28+AF33+AF53+AF68+AF73+AF78+AF88+AF98+AF103+AF113+AF128+AF133+AF63+AF48+AF118+AF108+AF93+AF83+AF58+AF43+AF23 -> 0
A139: 135 | E139: Commodity | H139: =+H19+H29+H34+H54+H69+H74+H79+H89+H99+H104+H114+H129+H134+H64+H49+H119+H109+H84+H59+H44+H24 -> 96425.83 | J139: =+J19+J29+J34+J54+J69+J74+J79+J89+J99+J104+J114+J129+J134+J64+J49+J119+J109+J84+J59+J44+J24 -> 15733.68924 | L139: =+L19+L29+L34+L54+L69+L74+L79+L89+L99+L104+L114+L129+L134+L64+L49+L119+L109+L84+L59+L44+L24 -> 44096.69053 | N139: =+N19+N29+N34+N54+N69+N74+N79+N89+N99+N104+N114+N129+N134+N64+N49+N119+N109+N84+N59+N44+N24 -> 5136.900777 | P139: =+P19+P29+P34+P54+P69+P74+P79+P89+P99+P104+P114+P129+P134+P64+P49+P119+P109+P84+P59+P44+P24 -> 3278.862162 | R139: =+R19+R29+R34+R54+R69+R74+R79+R89+R99+R104+R114+R129+R134+R64+R49+R119+R109+R84+R59+R44+R24 -> 0 | T139: =+T19+T29+T34+T54+T69+T74+T79+T89+T99+T104+T114+T129+T134+T64+T49+T119+T109+T84+T59+T44+T24 -> 0 | V139: =+V19+V29+V34+V54+V69+V74+V79+V89+V99+V104+V114+V129+V134+V64+V49+V119+V109+V84+V59+V44+V24 -> 9955.725488 | X139: =+X19+X29+X34+X54+X69+X74+X79+X89+X99+X104+X114+X129+X134+X64+X49+X119+X109+X84+X59+X44+X24 -> 16251.51067 | Z139: =+Z19+Z29+Z34+Z54+Z69+Z74+Z79+Z89+Z99+Z104+Z114+Z129+Z134+Z64+Z49+Z119+Z109+Z84+Z59+Z44+Z24 -> 1972.451127 | AB139: =+AB19+AB29+AB34+AB54+AB69+AB74+AB79+AB89+AB99+AB104+AB114+AB129+AB134+AB64+AB49+AB119+AB109+AB84+AB59+AB44+AB24 -> 0 | AD139: =+AD19+AD29+AD34+AD54+AD69+AD74+AD79+AD89+AD99+AD104+AD114+AD129+AD134+AD64+AD49+AD119+AD109+AD84+AD59+AD44+AD24 -> 0 | AF139: =+AF19+AF29+AF34+AF54+AF69+AF74+AF79+AF89+AF99+AF104+AF114+AF129+AF134+AF64+AF49+AF119+AF109+AF84+AF59+AF44+AF24 -> 0
A140: 136 | E140: Total Distribution Plant | H140: =SUM(H137:H139) -> 197371595.2 | J140: =SUM(J137:J139) -> 149310031 | L140: =SUM(L137:L139) -> 33803308.16 | N140: =SUM(N137:N139) -> 811144.3639 | P140: =SUM(P137:P139) -> 4923006.554 | R140: =SUM(R137:R139) -> 0 | T140: =SUM(T137:T139) -> 0 | V140: =SUM(V137:V139) -> 2420414.01 | X140: =SUM(X137:X139) -> 4353132.746 | Z140: =SUM(Z137:Z139) -> 1750558.426 | AB140: =SUM(AB137:AB139) -> 0 | AD140: =SUM(AD137:AD139) -> 0 | AF140: =SUM(AF137:AF139) -> 0
A141: 137 | E141: General Plant
A142: 138 | E142: General Plant - Allocated
A143: 139 | E143: Customer | F143: GENPTCUS | H143: =+'Classified Rate Base'!I62-H148 -> 32417177.24 | J143: =+$H143*INDEX('Allocation Factors'!H$9:H$126,MATCH($F143,'Allocation Factors'!$D$9:$D$126,0)) -> 29784538.28 | L143: =+$H143*INDEX('Allocation Factors'!J$9:J$126,MATCH($F143,'Allocation Factors'!$D$9:$D$126,0)) -> 2277639.264 | N143: =+$H143*INDEX('Allocation Factors'!L$9:L$126,MATCH($F143,'Allocation Factors'!$D$9:$D$126,0)) -> 25858.00787 | P143: =+$H143*INDEX('Allocation Factors'!N$9:N$126,MATCH($F143,'Allocation Factors'!$D$9:$D$126,0)) -> 274356.4215 | R143: =+$H143*INDEX('Allocation Factors'!P$9:P$126,MATCH($F143,'Allocation Factors'!$D$9:$D$126,0)) -> 0 | T143: =+$H143*INDEX('Allocation Factors'!R$9:R$126,MATCH($F143,'Allocation Factors'!$D$9:$D$126,0)) -> 0 | V143: =+$H143*INDEX('Allocation Factors'!T$9:T$126,MATCH($F143,'Allocation Factors'!$D$9:$D$126,0)) -> 22026.46955 | X143: =+$H143*INDEX('Allocation Factors'!V$9:V$126,MATCH($F143,'Allocation Factors'!$D$9:$D$126,0)) -> 27607.20263 | Z143: =+$H143*INDEX('Allocation Factors'!X$9:X$126,MATCH($F143,'Allocation Factors'!$D$9:$D$126,0)) -> 5151.599539 | AB143: =+$H143*INDEX('Allocation Factors'!Z$9:Z$126,MATCH($F143,'Allocation Factors'!$D$9:$D$126,0)) -> 0 | AD143: =+$H143*INDEX('Allocation Factors'!AB$9:AB$126,MATCH($F143,'Allocation Factors'!$D$9:$D$126,0)) -> 0 | AF143: =+$H143*INDEX('Allocation Factors'!AD$9:AD$126,MATCH($F143,'Allocation Factors'!$D$9:$D$126,0)) -> 0
A144: 140 | E144: Demand | F144: DISPLTDEM | H144: =+'Classified Rate Base'!K62-H149 -> 7465269.77 | J144: =+$H144*INDEX('Allocation Factors'!H$9:H$126,MATCH($F144,'Allocation Factors'!$D$9:$D$126,0)) -> 2123771.49 | L144: =+$H144*INDEX('Allocation Factors'!J$9:J$126,MATCH($F144,'Allocation Factors'!$D$9:$D$126,0)) -> 3436316.093 | N144: =+$H144*INDEX('Allocation Factors'!L$9:L$126,MATCH($F144,'Allocation Factors'!$D$9:$D$126,0)) -> 100645.3121 | P144: =+$H144*INDEX('Allocation Factors'!N$9:N$126,MATCH($F144,'Allocation Factors'!$D$9:$D$126,0)) -> 547686.1482 | R144: =+$H144*INDEX('Allocation Factors'!P$9:P$126,MATCH($F144,'Allocation Factors'!$D$9:$D$126,0)) -> 0 | T144: =+$H144*INDEX('Allocation Factors'!R$9:R$126,MATCH($F144,'Allocation Factors'!$D$9:$D$126,0)) -> 0 | V144: =+$H144*INDEX('Allocation Factors'!T$9:T$126,MATCH($F144,'Allocation Factors'!$D$9:$D$126,0)) -> 350359.3038 | X144: =+$H144*INDEX('Allocation Factors'!V$9:V$126,MATCH($F144,'Allocation Factors'!$D$9:$D$126,0)) -> 641777.008 | Z144: =+$H144*INDEX('Allocation Factors'!X$9:X$126,MATCH($F144,'Allocation Factors'!$D$9:$D$126,0)) -> 264714.4137 | AB144: =+$H144*INDEX('Allocation Factors'!Z$9:Z$126,MATCH($F144,'Allocation Factors'!$D$9:$D$126,0)) -> 0 | AD144: =+$H144*INDEX('Allocation Factors'!AB$9:AB$126,MATCH($F144,'Allocation Factors'!$D$9:$D$126,0)) -> 0 | AF144: =+$H144*INDEX('Allocation Factors'!AD$9:AD$126,MATCH($F144,'Allocation Factors'!$D$9:$D$126,0)) -> 0
A145: 141 | E145: Commodity | F145: COM | H145: =+'Classified Rate Base'!M62-H150 -> 82960.87947 | J145: =+$H145*INDEX('Allocation Factors'!H$9:H$126,MATCH($F145,'Allocation Factors'!$D$9:$D$126,0)) -> 13536.6291 | L145: =+$H145*INDEX('Allocation Factors'!J$9:J$126,MATCH($F145,'Allocation Factors'!$D$9:$D$126,0)) -> 37939.00688 | N145: =+$H145*INDEX('Allocation Factors'!L$9:L$126,MATCH($F145,'Allocation Factors'!$D$9:$D$126,0)) -> 4419.581415 | P145: =+$H145*INDEX('Allocation Factors'!N$9:N$126,MATCH($F145,'Allocation Factors'!$D$9:$D$126,0)) -> 2821.00023 | R145: =+$H145*INDEX('Allocation Factors'!P$9:P$126,MATCH($F145,'Allocation Factors'!$D$9:$D$126,0)) -> 0 | T145: =+$H145*INDEX('Allocation Factors'!R$9:R$126,MATCH($F145,'Allocation Factors'!$D$9:$D$126,0)) -> 0 | V145: =+$H145*INDEX('Allocation Factors'!T$9:T$126,MATCH($F145,'Allocation Factors'!$D$9:$D$126,0)) -> 8565.503063 | X145: =+$H145*INDEX('Allocation Factors'!V$9:V$126,MATCH($F145,'Allocation Factors'!$D$9:$D$126,0)) -> 13982.1417 | Z145: =+$H145*INDEX('Allocation Factors'!X$9:X$126,MATCH($F145,'Allocation Factors'!$D$9:$D$126,0)) -> 1697.017077 | AB145: =+$H145*INDEX('Allocation Factors'!Z$9:Z$126,MATCH($F145,'Allocation Factors'!$D$9:$D$126,0)) -> 0 | AD145: =+$H145*INDEX('Allocation Factors'!AB$9:AB$126,MATCH($F145,'Allocation Factors'!$D$9:$D$126,0)) -> 0 | AF145: =+$H145*INDEX('Allocation Factors'!AD$9:AD$126,MATCH($F145,'Allocation Factors'!$D$9:$D$126,0)) -> 0
A146: 142 | E146: Total General Plant - Allocated | H146: =SUM(H143:H145) -> 39965407.89 | J146: =SUM(J143:J145) -> 31921846.39 | L146: =SUM(L143:L145) -> 5751894.364 | N146: =SUM(N143:N145) -> 130922.9014 | P146: =SUM(P143:P145) -> 824863.57 | R146: =SUM(R143:R145) -> 0 | T146: =SUM(T143:T145) -> 0 | V146: =SUM(V143:V145) -> 380951.2765 | X146: =SUM(X143:X145) -> 683366.3523 | Z146: =SUM(Z143:Z145) -> 271563.0303 | AB146: =SUM(AB143:AB145) -> 0 | AD146: =SUM(AD143:AD145) -> 0 | AF146: =SUM(AF143:AF145) -> 0
A147: 143 | E147: Total General Plant - Directly Assigned
A148: 144 | E148: Customer | F148: CUS-DA | H148: ='Classified Rate Base'!I60+'Classified Rate Base'!I55 -> 0 | J148: =+$H148*INDEX('Allocation Factors'!H$9:H$126,MATCH($F148,'Allocation Factors'!$D$9:$D$126,0)) -> 0 | L148: =+$H148*INDEX('Allocation Factors'!J$9:J$126,MATCH($F148,'Allocation Factors'!$D$9:$D$126,0)) -> 0 | N148: =+$H148*INDEX('Allocation Factors'!L$9:L$126,MATCH($F148,'Allocation Factors'!$D$9:$D$126,0)) -> 0 | P148: =+$H148*INDEX('Allocation Factors'!N$9:N$126,MATCH($F148,'Allocation Factors'!$D$9:$D$126,0)) -> 0 | R148: =+$H148*INDEX('Allocation Factors'!P$9:P$126,MATCH($F148,'Allocation Factors'!$D$9:$D$126,0)) -> 0 | T148: =+$H148*INDEX('Allocation Factors'!R$9:R$126,MATCH($F148,'Allocation Factors'!$D$9:$D$126,0)) -> 0 | V148: =+$H148*INDEX('Allocation Factors'!T$9:T$126,MATCH($F148,'Allocation Factors'!$D$9:$D$126,0)) -> 0 | X148: =+$H148*INDEX('Allocation Factors'!V$9:V$126,MATCH($F148,'Allocation Factors'!$D$9:$D$126,0)) -> 0 | Z148: =+$H148*INDEX('Allocation Factors'!X$9:X$126,MATCH($F148,'Allocation Factors'!$D$9:$D$126,0)) -> 0 | AB148: =+$H148*INDEX('Allocation Factors'!Z$9:Z$126,MATCH($F148,'Allocation Factors'!$D$9:$D$126,0)) -> 0 | AD148: =+$H148*INDEX('Allocation Factors'!AB$9:AB$126,MATCH($F148,'Allocation Factors'!$D$9:$D$126,0)) -> 0 | AF148: =+$H148*INDEX('Allocation Factors'!AD$9:AD$126,MATCH($F148,'Allocation Factors'!$D$9:$D$126,0)) -> 0
A149: 145 | E149: Demand | F149: DEM-DA | H149: ='Classified Rate Base'!K60+'Classified Rate Base'!K55 -> 0 | J149: =+$H149*INDEX('Allocation Factors'!H$9:H$126,MATCH($F149,'Allocation Factors'!$D$9:$D$126,0)) -> 0 | L149: =+$H149*INDEX('Allocation Factors'!J$9:J$126,MATCH($F149,'Allocation Factors'!$D$9:$D$126,0)) -> 0 | N149: =+$H149*INDEX('Allocation Factors'!L$9:L$126,MATCH($F149,'Allocation Factors'!$D$9:$D$126,0)) -> 0 | P149: =+$H149*INDEX('Allocation Factors'!N$9:N$126,MATCH($F149,'Allocation Factors'!$D$9:$D$126,0)) -> 0 | R149: =+$H149*INDEX('Allocation Factors'!P$9:P$126,MATCH($F149,'Allocation Factors'!$D$9:$D$126,0)) -> 0 | T149: =+$H149*INDEX('Allocation Factors'!R$9:R$126,MATCH($F149,'Allocation Factors'!$D$9:$D$126,0)) -> 0 | V149: =+$H149*INDEX('Allocation Factors'!T$9:T$126,MATCH($F149,'Allocation Factors'!$D$9:$D$126,0)) -> 0 | X149: =+$H149*INDEX('Allocation Factors'!V$9:V$126,MATCH($F149,'Allocation Factors'!$D$9:$D$126,0)) -> 0 | Z149: =+$H149*INDEX('Allocation Factors'!X$9:X$126,MATCH($F149,'Allocation Factors'!$D$9:$D$126,0)) -> 0 | AB149: =+$H149*INDEX('Allocation Factors'!Z$9:Z$126,MATCH($F149,'Allocation Factors'!$D$9:$D$126,0)) -> 0 | AD149: =+$H149*INDEX('Allocation Factors'!AB$9:AB$126,MATCH($F149,'Allocation Factors'!$D$9:$D$126,0)) -> 0 | AF149: =+$H149*INDEX('Allocation Factors'!AD$9:AD$126,MATCH($F149,'Allocation Factors'!$D$9:$D$126,0)) -> 0
A150: 146 | E150: Commodity | F150: COM-DA | H150: ='Classified Rate Base'!M60+'Classified Rate Base'!M55 -> 0 | J150: =+$H150*INDEX('Allocation Factors'!H$9:H$126,MATCH($F150,'Allocation Factors'!$D$9:$D$126,0)) -> 0 | L150: =+$H150*INDEX('Allocation Factors'!J$9:J$126,MATCH($F150,'Allocation Factors'!$D$9:$D$126,0)) -> 0 | N150: =+$H150*INDEX('Allocation Factors'!L$9:L$126,MATCH($F150,'Allocation Factors'!$D$9:$D$126,0)) -> 0 | P150: =+$H150*INDEX('Allocation Factors'!N$9:N$126,MATCH($F150,'Allocation Factors'!$D$9:$D$126,0)) -> 0 | R150: =+$H150*INDEX('Allocation Factors'!P$9:P$126,MATCH($F150,'Allocation Factors'!$D$9:$D$126,0)) -> 0 | T150: =+$H150*INDEX('Allocation Factors'!R$9:R$126,MATCH($F150,'Allocation Factors'!$D$9:$D$126,0)) -> 0 | V150: =+$H150*INDEX('Allocation Factors'!T$9:T$126,MATCH($F150,'Allocation Factors'!$D$9:$D$126,0)) -> 0 | X150: =+$H150*INDEX('Allocation Factors'!V$9:V$126,MATCH($F150,'Allocation Factors'!$D$9:$D$126,0)) -> 0 | Z150: =+$H150*INDEX('Allocation Factors'!X$9:X$126,MATCH($F150,'Allocation Factors'!$D$9:$D$126,0)) -> 0 | AB150: =+$H150*INDEX('Allocation Factors'!Z$9:Z$126,MATCH($F150,'Allocation Factors'!$D$9:$D$126,0)) -> 0 | AD150: =+$H150*INDEX('Allocation Factors'!AB$9:AB$126,MATCH($F150,'Allocation Factors'!$D$9:$D$126,0)) -> 0 | AF150: =+$H150*INDEX('Allocation Factors'!AD$9:AD$126,MATCH($F150,'Allocation Factors'!$D$9:$D$126,0)) -> 0
A151: 147 | E151: Total General Plant - Directly Assigned | H151: =SUM(H148:H150) -> 0 | J151: =SUM(J148:J150) -> 0 | L151: =SUM(L148:L150) -> 0 | N151: =SUM(N148:N150) -> 0 | P151: =SUM(P148:P150) -> 0 | R151: =SUM(R148:R150) -> 0 | T151: =SUM(T148:T150) -> 0 | V151: =SUM(V148:V150) -> 0 | X151: =SUM(X148:X150) -> 0 | Z151: =SUM(Z148:Z150) -> 0 | AB151: =SUM(AB148:AB150) -> 0 | AD151: =SUM(AD148:AD150) -> 0 | AF151: =SUM(AF148:AF150) -> 0
A152: 148 | E152: Total General Plant
A153: 149 | E153: Customer | H153: =H148+H143 -> 32417177.24 | J153: =J148+J143 -> 29784538.28 | L153: =L148+L143 -> 2277639.264 | N153: =N148+N143 -> 25858.00787 | P153: =P148+P143 -> 274356.4215 | R153: =R148+R143 -> 0 | T153: =T148+T143 -> 0 | V153: =V148+V143 -> 22026.46955 | X153: =X148+X143 -> 27607.20263 | Z153: =Z148+Z143 -> 5151.599539 | AB153: =AB148+AB143 -> 0 | AD153: =AD148+AD143 -> 0 | AF153: =AF148+AF143 -> 0
A154: 150 | E154: Demand | H154: =H149+H144 -> 7465269.77 | J154: =J149+J144 -> 2123771.49 | L154: =L149+L144 -> 3436316.093 | N154: =N149+N144 -> 100645.3121 | P154: =P149+P144 -> 547686.1482 | R154: =R149+R144 -> 0 | T154: =T149+T144 -> 0 | V154: =V149+V144 -> 350359.3038 | X154: =X149+X144 -> 641777.008 | Z154: =Z149+Z144 -> 264714.4137 | AB154: =AB149+AB144 -> 0 | AD154: =AD149+AD144 -> 0 | AF154: =AF149+AF144 -> 0
A155: 151 | E155: Commodity | H155: =H150+H145 -> 82960.87947 | J155: =J150+J145 -> 13536.6291 | L155: =L150+L145 -> 37939.00688 | N155: =N150+N145 -> 4419.581415 | P155: =P150+P145 -> 2821.00023 | R155: =R150+R145 -> 0 | T155: =T150+T145 -> 0 | V155: =V150+V145 -> 8565.503063 | X155: =X150+X145 -> 13982.1417 | Z155: =Z150+Z145 -> 1697.017077 | AB155: =AB150+AB145 -> 0 | AD155: =AD150+AD145 -> 0 | AF155: =AF150+AF145 -> 0
A156: 152 | E156: Total General Plant | H156: =SUM(H153:H155) -> 39965407.89 | J156: =SUM(J153:J155) -> 31921846.39 | L156: =SUM(L153:L155) -> 5751894.364 | N156: =SUM(N153:N155) -> 130922.9014 | P156: =SUM(P153:P155) -> 824863.57 | R156: =SUM(R153:R155) -> 0 | T156: =SUM(T153:T155) -> 0 | V156: =SUM(V153:V155) -> 380951.2765 | X156: =SUM(X153:X155) -> 683366.3523 | Z156: =SUM(Z153:Z155) -> 271563.0303 | AB156: =SUM(AB153:AB155) -> 0 | AD156: =SUM(AD153:AD155) -> 0 | AF156: =SUM(AF153:AF155) -> 0
A157: 153 | E157: Total Plant in Service
A158: 154 | E158: Customer | H158: =+H137+H11+H143+H6+H148 -> 181333907.9 | J158: =+J137+J11+J143+J6+J148 -> 165321493 | L158: =+L137+L11+L143+L6+L148 -> 13777121.82 | N158: =+N137+N11+N143+N6+N148 -> 179906.4241 | P158: =+P137+P11+P143+P6+P148 -> 1646289.074 | R158: =+R137+R11+R143+R6+R148 -> 0 | T158: =+T137+T11+T143+T6+T148 -> 0 | V158: =+V137+V11+V143+V6+V148 -> 162931.2805 | X158: =+X137+X11+X143+X6+X148 -> 207192.7081 | Z158: =+Z137+Z11+Z143+Z6+Z148 -> 38973.58633 | AB158: =+AB137+AB11+AB143+AB6+AB148 -> 0 | AD158: =+AD137+AD11+AD143+AD6+AD148 -> 0 | AF158: =+AF137+AF11+AF143+AF6+AF148 -> 0
A159: 155 | E159: Demand | H159: =+H138+H12+H144+H7+H149 -> 105733064.7 | J159: =+J138+J12+J144+J7+J149 -> 31127517.25 | L159: =+L138+L12+L144+L7+L149 -> 47995567.9 | N159: =+N138+N12+N144+N7+N149 -> 1405728.921 | P159: =+P138+P12+P144+P7+P149 -> 7649618.663 | R159: =+R138+R12+R144+R7+R149 -> 0 | T159: =+T138+T12+T144+T7+T149 -> 0 | V159: =+V138+V12+V144+V7+V149 -> 4893523.559 | X159: =+X138+X12+X144+X7+X149 -> 8963800.516 | Z159: =+Z138+Z12+Z144+Z7+Z149 -> 3697307.894 | AB159: =+AB138+AB12+AB144+AB7+AB149 -> 0 | AD159: =+AD138+AD12+AD144+AD7+AD149 -> 0 | AF159: =+AF138+AF12+AF144+AF7+AF149 -> 0
A160: 156 | E160: Commodity | H160: =+H139+H13+H145+H8+H150 -> 365178.1095 | J160: =+J139+J13+J145+J8+J150 -> 59585.68252 | L160: =+L139+L13+L145+L8+L150 -> 167000.3367 | N160: =+N139+N13+N145+N8+N150 -> 19454.16196 | P160: =+P139+P13+P145+P8+P150 -> 12417.50976 | R160: =+R139+R13+R145+R8+R150 -> 0 | T160: =+T139+T13+T145+T8+T150 -> 0 | V160: =+V139+V13+V145+V8+V150 -> 37703.72536 | X160: =+X139+X13+X145+X8+X150 -> 61546.74473 | Z160: =+Z139+Z13+Z145+Z8+Z150 -> 7469.948389 | AB160: =+AB139+AB13+AB145+AB8+AB150 -> 0 | AD160: =+AD139+AD13+AD145+AD8+AD150 -> 0 | AF160: =+AF139+AF13+AF145+AF8+AF150 -> 0
A161: 157 | E161: Total Plant in Service | H161: =SUM(H158:H160) -> 287432150.7 | J161: =SUM(J158:J160) -> 196508595.9 | L161: =SUM(L158:L160) -> 61939690.06 | N161: =SUM(N158:N160) -> 1605089.507 | P161: =SUM(P158:P160) -> 9308325.246 | R161: =SUM(R158:R160) -> 0 | T161: =SUM(T158:T160) -> 0 | V161: =SUM(V158:V160) -> 5094158.565 | X161: =SUM(X158:X160) -> 9232539.968 | Z161: =SUM(Z158:Z160) -> 3743751.429 | AB161: =SUM(AB158:AB160) -> 0 | AD161: =SUM(AD158:AD160) -> 0 | AF161: =SUM(AF158:AF160) -> 0
A162: 158 | E162: Depreciation & Amort. Reserve
A163: 159 | E163: Intangible Plant
A164: 160 | E164: Customer | F164: NONINCUS | H164: =+'Classified Rate Base'!I67 -> 0 | J164: =+$H164*INDEX('Allocation Factors'!H$9:H$126,MATCH($F164,'Allocation Factors'!$D$9:$D$126,0)) -> 0 | L164: =+$H164*INDEX('Allocation Factors'!J$9:J$126,MATCH($F164,'Allocation Factors'!$D$9:$D$126,0)) -> 0 | N164: =+$H164*INDEX('Allocation Factors'!L$9:L$126,MATCH($F164,'Allocation Factors'!$D$9:$D$126,0)) -> 0 | P164: =+$H164*INDEX('Allocation Factors'!N$9:N$126,MATCH($F164,'Allocation Factors'!$D$9:$D$126,0)) -> 0 | R164: =+$H164*INDEX('Allocation Factors'!P$9:P$126,MATCH($F164,'Allocation Factors'!$D$9:$D$126,0)) -> 0 | T164: =+$H164*INDEX('Allocation Factors'!R$9:R$126,MATCH($F164,'Allocation Factors'!$D$9:$D$126,0)) -> 0 | V164: =+$H164*INDEX('Allocation Factors'!T$9:T$126,MATCH($F164,'Allocation Factors'!$D$9:$D$126,0)) -> 0 | X164: =+$H164*INDEX('Allocation Factors'!V$9:V$126,MATCH($F164,'Allocation Factors'!$D$9:$D$126,0)) -> 0 | Z164: =+$H164*INDEX('Allocation Factors'!X$9:X$126,MATCH($F164,'Allocation Factors'!$D$9:$D$126,0)) -> 0 | AB164: =+$H164*INDEX('Allocation Factors'!Z$9:Z$126,MATCH($F164,'Allocation Factors'!$D$9:$D$126,0)) -> 0 | AD164: =+$H164*INDEX('Allocation Factors'!AB$9:AB$126,MATCH($F164,'Allocation Factors'!$D$9:$D$126,0)) -> 0 | AF164: =+$H164*INDEX('Allocation Factors'!AD$9:AD$126,MATCH($F164,'Allocation Factors'!$D$9:$D$126,0)) -> 0
A165: 161 | E165: Demand | F165: NONINDEM | H165: =+'Classified Rate Base'!K67 -> 0 | J165: =+$H165*INDEX('Allocation Factors'!H$9:H$126,MATCH($F165,'Allocation Factors'!$D$9:$D$126,0)) -> 0 | L165: =+$H165*INDEX('Allocation Factors'!J$9:J$126,MATCH($F165,'Allocation Factors'!$D$9:$D$126,0)) -> 0 | N165: =+$H165*INDEX('Allocation Factors'!L$9:L$126,MATCH($F165,'Allocation Factors'!$D$9:$D$126,0)) -> 0 | P165: =+$H165*INDEX('Allocation Factors'!N$9:N$126,MATCH($F165,'Allocation Factors'!$D$9:$D$126,0)) -> 0 | R165: =+$H165*INDEX('Allocation Factors'!P$9:P$126,MATCH($F165,'Allocation Factors'!$D$9:$D$126,0)) -> 0 | T165: =+$H165*INDEX('Allocation Factors'!R$9:R$126,MATCH($F165,'Allocation Factors'!$D$9:$D$126,0)) -> 0 | V165: =+$H165*INDEX('Allocation Factors'!T$9:T$126,MATCH($F165,'Allocation Factors'!$D$9:$D$126,0)) -> 0 | X165: =+$H165*INDEX('Allocation Factors'!V$9:V$126,MATCH($F165,'Allocation Factors'!$D$9:$D$126,0)) -> 0 | Z165: =+$H165*INDEX('Allocation Factors'!X$9:X$126,MATCH($F165,'Allocation Factors'!$D$9:$D$126,0)) -> 0 | AB165: =+$H165*INDEX('Allocation Factors'!Z$9:Z$126,MATCH($F165,'Allocation Factors'!$D$9:$D$126,0)) -> 0 | AD165: =+$H165*INDEX('Allocation Factors'!AB$9:AB$126,MATCH($F165,'Allocation Factors'!$D$9:$D$126,0)) -> 0 | AF165: =+$H165*INDEX('Allocation Factors'!AD$9:AD$126,MATCH($F165,'Allocation Factors'!$D$9:$D$126,0)) -> 0
A166: 162 | E166: Commodity | F166: COM | H166: =+'Classified Rate Base'!M67 -> 0 | J166: =+$H166*INDEX('Allocation Factors'!H$9:H$126,MATCH($F166,'Allocation Factors'!$D$9:$D$126,0)) -> 0 | L166: =+$H166*INDEX('Allocation Factors'!J$9:J$126,MATCH($F166,'Allocation Factors'!$D$9:$D$126,0)) -> 0 | N166: =+$H166*INDEX('Allocation Factors'!L$9:L$126,MATCH($F166,'Allocation Factors'!$D$9:$D$126,0)) -> 0 | P166: =+$H166*INDEX('Allocation Factors'!N$9:N$126,MATCH($F166,'Allocation Factors'!$D$9:$D$126,0)) -> 0 | R166: =+$H166*INDEX('Allocation Factors'!P$9:P$126,MATCH($F166,'Allocation Factors'!$D$9:$D$126,0)) -> 0 | T166: =+$H166*INDEX('Allocation Factors'!R$9:R$126,MATCH($F166,'Allocation Factors'!$D$9:$D$126,0)) -> 0 | V166: =+$H166*INDEX('Allocation Factors'!T$9:T$126,MATCH($F166,'Allocation Factors'!$D$9:$D$126,0)) -> 0 | X166: =+$H166*INDEX('Allocation Factors'!V$9:V$126,MATCH($F166,'Allocation Factors'!$D$9:$D$126,0)) -> 0 | Z166: =+$H166*INDEX('Allocation Factors'!X$9:X$126,MATCH($F166,'Allocation Factors'!$D$9:$D$126,0)) -> 0 | AB166: =+$H166*INDEX('Allocation Factors'!Z$9:Z$126,MATCH($F166,'Allocation Factors'!$D$9:$D$126,0)) -> 0 | AD166: =+$H166*INDEX('Allocation Factors'!AB$9:AB$126,MATCH($F166,'Allocation Factors'!$D$9:$D$126,0)) -> 0 | AF166: =+$H166*INDEX('Allocation Factors'!AD$9:AD$126,MATCH($F166,'Allocation Factors'!$D$9:$D$126,0)) -> 0
A167: 163 | E167: Total Intangible Plant | H167: =SUM(H164:H166) -> 0 | J167: =SUM(J164:J166) -> 0 | L167: =SUM(L164:L166) -> 0 | N167: =SUM(N164:N166) -> 0 | P167: =SUM(P164:P166) -> 0 | R167: =SUM(R164:R166) -> 0 | T167: =SUM(T164:T166) -> 0 | V167: =SUM(V164:V166) -> 0 | X167: =SUM(X164:X166) -> 0 | Z167: =SUM(Z164:Z166) -> 0 | AB167: =SUM(AB164:AB166) -> 0 | AD167: =SUM(AD164:AD166) -> 0 | AF167: =SUM(AF164:AF166) -> 0
A168: 164 | E168: Transmission Plant
A169: 165 | E169: Customer | F169: CUS | H169: =+'Classified Rate Base'!I68 -> 0 | J169: =+$H169*INDEX('Allocation Factors'!H$9:H$126,MATCH($F169,'Allocation Factors'!$D$9:$D$126,0)) -> 0 | L169: =+$H169*INDEX('Allocation Factors'!J$9:J$126,MATCH($F169,'Allocation Factors'!$D$9:$D$126,0)) -> 0 | N169: =+$H169*INDEX('Allocation Factors'!L$9:L$126,MATCH($F169,'Allocation Factors'!$D$9:$D$126,0)) -> 0 | P169: =+$H169*INDEX('Allocation Factors'!N$9:N$126,MATCH($F169,'Allocation Factors'!$D$9:$D$126,0)) -> 0 | R169: =+$H169*INDEX('Allocation Factors'!P$9:P$126,MATCH($F169,'Allocation Factors'!$D$9:$D$126,0)) -> 0 | T169: =+$H169*INDEX('Allocation Factors'!R$9:R$126,MATCH($F169,'Allocation Factors'!$D$9:$D$126,0)) -> 0 | V169: =+$H169*INDEX('Allocation Factors'!T$9:T$126,MATCH($F169,'Allocation Factors'!$D$9:$D$126,0)) -> 0 | X169: =+$H169*INDEX('Allocation Factors'!V$9:V$126,MATCH($F169,'Allocation Factors'!$D$9:$D$126,0)) -> 0 | Z169: =+$H169*INDEX('Allocation Factors'!X$9:X$126,MATCH($F169,'Allocation Factors'!$D$9:$D$126,0)) -> 0 | AB169: =+$H169*INDEX('Allocation Factors'!Z$9:Z$126,MATCH($F169,'Allocation Factors'!$D$9:$D$126,0)) -> 0 | AD169: =+$H169*INDEX('Allocation Factors'!AB$9:AB$126,MATCH($F169,'Allocation Factors'!$D$9:$D$126,0)) -> 0 | AF169: =+$H169*INDEX('Allocation Factors'!AD$9:AD$126,MATCH($F169,'Allocation Factors'!$D$9:$D$126,0)) -> 0
A170: 166 | E170: Demand | F170: DEM | H170: =+'Classified Rate Base'!K68 -> -2718742.584 | J170: =+$H170*INDEX('Allocation Factors'!H$9:H$126,MATCH($F170,'Allocation Factors'!$D$9:$D$126,0)) -> -830526.5545 | L170: =+$H170*INDEX('Allocation Factors'!J$9:J$126,MATCH($F170,'Allocation Factors'!$D$9:$D$126,0)) -> -1214735.415 | N170: =+$H170*INDEX('Allocation Factors'!L$9:L$126,MATCH($F170,'Allocation Factors'!$D$9:$D$126,0)) -> -35578.04979 | P170: =+$H170*INDEX('Allocation Factors'!N$9:N$126,MATCH($F170,'Allocation Factors'!$D$9:$D$126,0)) -> -193606.6831 | R170: =+$H170*INDEX('Allocation Factors'!P$9:P$126,MATCH($F170,'Allocation Factors'!$D$9:$D$126,0)) -> 0 | T170: =+$H170*INDEX('Allocation Factors'!R$9:R$126,MATCH($F170,'Allocation Factors'!$D$9:$D$126,0)) -> 0 | V170: =+$H170*INDEX('Allocation Factors'!T$9:T$126,MATCH($F170,'Allocation Factors'!$D$9:$D$126,0)) -> -123851.777 | X170: =+$H170*INDEX('Allocation Factors'!V$9:V$126,MATCH($F170,'Allocation Factors'!$D$9:$D$126,0)) -> -226867.7384 | Z170: =+$H170*INDEX('Allocation Factors'!X$9:X$126,MATCH($F170,'Allocation Factors'!$D$9:$D$126,0)) -> -93576.36625 | AB170: =+$H170*INDEX('Allocation Factors'!Z$9:Z$126,MATCH($F170,'Allocation Factors'!$D$9:$D$126,0)) -> 0 | AD170: =+$H170*INDEX('Allocation Factors'!AB$9:AB$126,MATCH($F170,'Allocation Factors'!$D$9:$D$126,0)) -> 0 | AF170: =+$H170*INDEX('Allocation Factors'!AD$9:AD$126,MATCH($F170,'Allocation Factors'!$D$9:$D$126,0)) -> 0
A171: 167 | E171: Commodity | F171: COM | H171: ='Classified Rate Base'!M68+'Classified Rate Base'!M69 -> -36620.95577 | J171: =+$H171*INDEX('Allocation Factors'!H$9:H$126,MATCH($F171,'Allocation Factors'!$D$9:$D$126,0)) -> -5975.398271 | L171: =+$H171*INDEX('Allocation Factors'!J$9:J$126,MATCH($F171,'Allocation Factors'!$D$9:$D$126,0)) -> -16747.20304 | N171: =+$H171*INDEX('Allocation Factors'!L$9:L$126,MATCH($F171,'Allocation Factors'!$D$9:$D$126,0)) -> -1950.911038 | P171: =+$H171*INDEX('Allocation Factors'!N$9:N$126,MATCH($F171,'Allocation Factors'!$D$9:$D$126,0)) -> -1245.258311 | R171: =+$H171*INDEX('Allocation Factors'!P$9:P$126,MATCH($F171,'Allocation Factors'!$D$9:$D$126,0)) -> 0 | T171: =+$H171*INDEX('Allocation Factors'!R$9:R$126,MATCH($F171,'Allocation Factors'!$D$9:$D$126,0)) -> 0 | V171: =+$H171*INDEX('Allocation Factors'!T$9:T$126,MATCH($F171,'Allocation Factors'!$D$9:$D$126,0)) -> -3781.021981 | X171: =+$H171*INDEX('Allocation Factors'!V$9:V$126,MATCH($F171,'Allocation Factors'!$D$9:$D$126,0)) -> -6172.058395 | Z171: =+$H171*INDEX('Allocation Factors'!X$9:X$126,MATCH($F171,'Allocation Factors'!$D$9:$D$126,0)) -> -749.1047312 | AB171: =+$H171*INDEX('Allocation Factors'!Z$9:Z$126,MATCH($F171,'Allocation Factors'!$D$9:$D$126,0)) -> 0 | AD171: =+$H171*INDEX('Allocation Factors'!AB$9:AB$126,MATCH($F171,'Allocation Factors'!$D$9:$D$126,0)) -> 0 | AF171: =+$H171*INDEX('Allocation Factors'!AD$9:AD$126,MATCH($F171,'Allocation Factors'!$D$9:$D$126,0)) -> 0
A172: 168 | E172: Total Transmission Plant | H172: =SUM(H169:H171) -> -2755363.54 | J172: =SUM(J169:J171) -> -836501.9527 | L172: =SUM(L169:L171) -> -1231482.618 | N172: =SUM(N169:N171) -> -37528.96082 | P172: =SUM(P169:P171) -> -194851.9414 | R172: =SUM(R169:R171) -> 0 | T172: =SUM(T169:T171) -> 0 | V172: =SUM(V169:V171) -> -127632.799 | X172: =SUM(X169:X171) -> -233039.7968 | Z172: =SUM(Z169:Z171) -> -94325.47098 | AB172: =SUM(AB169:AB171) -> 0 | AD172: =SUM(AD169:AD171) -> 0 | AF172: =SUM(AF169:AF171) -> 0
A173: 169 | E173: Distribution Plant - Allocated
A174: 170 | E174: Customer | F174: DISPLTCUS | H174: =+'Classified Rate Base'!I70 -> -22513367.12 | J174: =+$H174*INDEX('Allocation Factors'!H$9:H$126,MATCH($F174,'Allocation Factors'!$D$9:$D$126,0)) -> -20490600.4 | L174: =+$H174*INDEX('Allocation Factors'!J$9:J$126,MATCH($F174,'Allocation Factors'!$D$9:$D$126,0)) -> -1738502.258 | N174: =+$H174*INDEX('Allocation Factors'!L$9:L$126,MATCH($F174,'Allocation Factors'!$D$9:$D$126,0)) -> -23289.18004 | P174: =+$H174*INDEX('Allocation Factors'!N$9:N$126,MATCH($F174,'Allocation Factors'!$D$9:$D$126,0)) -> -207410.0293 | R174: =+$H174*INDEX('Allocation Factors'!P$9:P$126,MATCH($F174,'Allocation Factors'!$D$9:$D$126,0)) -> 0 | T174: =+$H174*INDEX('Allocation Factors'!R$9:R$126,MATCH($F174,'Allocation Factors'!$D$9:$D$126,0)) -> 0 | V174: =+$H174*INDEX('Allocation Factors'!T$9:T$126,MATCH($F174,'Allocation Factors'!$D$9:$D$126,0)) -> -21302.1178 | X174: =+$H174*INDEX('Allocation Factors'!V$9:V$126,MATCH($F174,'Allocation Factors'!$D$9:$D$126,0)) -> -27149.90047 | Z174: =+$H174*INDEX('Allocation Factors'!X$9:X$126,MATCH($F174,'Allocation Factors'!$D$9:$D$126,0)) -> -5113.238802 | AB174: =+$H174*INDEX('Allocation Factors'!Z$9:Z$126,MATCH($F174,'Allocation Factors'!$D$9:$D$126,0)) -> 0 | AD174: =+$H174*INDEX('Allocation Factors'!AB$9:AB$126,MATCH($F174,'Allocation Factors'!$D$9:$D$126,0)) -> 0 | AF174: =+$H174*INDEX('Allocation Factors'!AD$9:AD$126,MATCH($F174,'Allocation Factors'!$D$9:$D$126,0)) -> 0
A175: 171 | E175: Demand | F175: DISPLTDEM | H175: =+'Classified Rate Base'!K70 -> -6492746.319 | J175: =+$H175*INDEX('Allocation Factors'!H$9:H$126,MATCH($F175,'Allocation Factors'!$D$9:$D$126,0)) -> -1847101.304 | L175: =+$H175*INDEX('Allocation Factors'!J$9:J$126,MATCH($F175,'Allocation Factors'!$D$9:$D$126,0)) -> -2988656.72 | N175: =+$H175*INDEX('Allocation Factors'!L$9:L$126,MATCH($F175,'Allocation Factors'!$D$9:$D$126,0)) -> -87533.94052 | P175: =+$H175*INDEX('Allocation Factors'!N$9:N$126,MATCH($F175,'Allocation Factors'!$D$9:$D$126,0)) -> -476337.4041 | R175: =+$H175*INDEX('Allocation Factors'!P$9:P$126,MATCH($F175,'Allocation Factors'!$D$9:$D$126,0)) -> 0 | T175: =+$H175*INDEX('Allocation Factors'!R$9:R$126,MATCH($F175,'Allocation Factors'!$D$9:$D$126,0)) -> 0 | V175: =+$H175*INDEX('Allocation Factors'!T$9:T$126,MATCH($F175,'Allocation Factors'!$D$9:$D$126,0)) -> -304716.9293 | X175: =+$H175*INDEX('Allocation Factors'!V$9:V$126,MATCH($F175,'Allocation Factors'!$D$9:$D$126,0)) -> -558170.7607 | Z175: =+$H175*INDEX('Allocation Factors'!X$9:X$126,MATCH($F175,'Allocation Factors'!$D$9:$D$126,0)) -> -230229.2601 | AB175: =+$H175*INDEX('Allocation Factors'!Z$9:Z$126,MATCH($F175,'Allocation Factors'!$D$9:$D$126,0)) -> 0 | AD175: =+$H175*INDEX('Allocation Factors'!AB$9:AB$126,MATCH($F175,'Allocation Factors'!$D$9:$D$126,0)) -> 0 | AF175: =+$H175*INDEX('Allocation Factors'!AD$9:AD$126,MATCH($F175,'Allocation Factors'!$D$9:$D$126,0)) -> 0
A176: 172 | E176: Commodity | F176: COM | H176: =+'Classified Rate Base'!M70 -> -678.2559965 | J176: =+$H176*INDEX('Allocation Factors'!H$9:H$126,MATCH($F176,'Allocation Factors'!$D$9:$D$126,0)) -> -110.670233 | L176: =+$H176*INDEX('Allocation Factors'!J$9:J$126,MATCH($F176,'Allocation Factors'!$D$9:$D$126,0)) -> -310.1746158 | N176: =+$H176*INDEX('Allocation Factors'!L$9:L$126,MATCH($F176,'Allocation Factors'!$D$9:$D$126,0)) -> -36.13278471 | P176: =+$H176*INDEX('Allocation Factors'!N$9:N$126,MATCH($F176,'Allocation Factors'!$D$9:$D$126,0)) -> -23.06340452 | R176: =+$H176*INDEX('Allocation Factors'!P$9:P$126,MATCH($F176,'Allocation Factors'!$D$9:$D$126,0)) -> 0 | T176: =+$H176*INDEX('Allocation Factors'!R$9:R$126,MATCH($F176,'Allocation Factors'!$D$9:$D$126,0)) -> 0 | V176: =+$H176*INDEX('Allocation Factors'!T$9:T$126,MATCH($F176,'Allocation Factors'!$D$9:$D$126,0)) -> -70.02823322 | X176: =+$H176*INDEX('Allocation Factors'!V$9:V$126,MATCH($F176,'Allocation Factors'!$D$9:$D$126,0)) -> -114.3125713 | Z176: =+$H176*INDEX('Allocation Factors'!X$9:X$126,MATCH($F176,'Allocation Factors'!$D$9:$D$126,0)) -> -13.87415389 | AB176: =+$H176*INDEX('Allocation Factors'!Z$9:Z$126,MATCH($F176,'Allocation Factors'!$D$9:$D$126,0)) -> 0 | AD176: =+$H176*INDEX('Allocation Factors'!AB$9:AB$126,MATCH($F176,'Allocation Factors'!$D$9:$D$126,0)) -> 0 | AF176: =+$H176*INDEX('Allocation Factors'!AD$9:AD$126,MATCH($F176,'Allocation Factors'!$D$9:$D$126,0)) -> 0
A177: 173 | E177: Total Distribution Plant - Allocated | H177: =SUM(H174:H176) -> -29006791.7 | J177: =SUM(J174:J176) -> -22337812.38 | L177: =SUM(L174:L176) -> -4727469.153 | N177: =SUM(N174:N176) -> -110859.2533 | P177: =SUM(P174:P176) -> -683770.4968 | R177: =SUM(R174:R176) -> 0 | T177: =SUM(T174:T176) -> 0 | V177: =SUM(V174:V176) -> -326089.0753 | X177: =SUM(X174:X176) -> -585434.9738 | Z177: =SUM(Z174:Z176) -> -235356.373 | AB177: =SUM(AB174:AB176) -> 0 | AD177: =SUM(AD174:AD176) -> 0 | AF177: =SUM(AF174:AF176) -> 0
A178: 174 | E178: Distribution Plant - Dir. Assn.
A179: 175 | E179: Customer | F179: CUS-DA | H179: ='Classified Rate Base'!I71+'Classified Rate Base'!I72+'Classified Rate Base'!I73+'Classified Rate Base'!I74+'Classified Rate Base'!I75+'Classified Rate Base'!I76+'Classified Rate Base'!I77+'Classified Rate Base'!I79 -> 0 | J179: =+$H179*INDEX('Allocation Factors'!H$9:H$126,MATCH($F179,'Allocation Factors'!$D$9:$D$126,0)) -> 0 | L179: =+$H179*INDEX('Allocation Factors'!J$9:J$126,MATCH($F179,'Allocation Factors'!$D$9:$D$126,0)) -> 0 | N179: =+$H179*INDEX('Allocation Factors'!L$9:L$126,MATCH($F179,'Allocation Factors'!$D$9:$D$126,0)) -> 0 | P179: =+$H179*INDEX('Allocation Factors'!N$9:N$126,MATCH($F179,'Allocation Factors'!$D$9:$D$126,0)) -> 0 | R179: =+$H179*INDEX('Allocation Factors'!P$9:P$126,MATCH($F179,'Allocation Factors'!$D$9:$D$126,0)) -> 0 | T179: =+$H179*INDEX('Allocation Factors'!R$9:R$126,MATCH($F179,'Allocation Factors'!$D$9:$D$126,0)) -> 0 | V179: =+$H179*INDEX('Allocation Factors'!T$9:T$126,MATCH($F179,'Allocation Factors'!$D$9:$D$126,0)) -> 0 | X179: =+$H179*INDEX('Allocation Factors'!V$9:V$126,MATCH($F179,'Allocation Factors'!$D$9:$D$126,0)) -> 0 | Z179: =+$H179*INDEX('Allocation Factors'!X$9:X$126,MATCH($F179,'Allocation Factors'!$D$9:$D$126,0)) -> 0 | AB179: =+$H179*INDEX('Allocation Factors'!Z$9:Z$126,MATCH($F179,'Allocation Factors'!$D$9:$D$126,0)) -> 0 | AD179: =+$H179*INDEX('Allocation Factors'!AB$9:AB$126,MATCH($F179,'Allocation Factors'!$D$9:$D$126,0)) -> 0 | AF179: =+$H179*INDEX('Allocation Factors'!AD$9:AD$126,MATCH($F179,'Allocation Factors'!$D$9:$D$126,0)) -> 0
A180: 176 | E180: Demand | F180: DEM-DA | H180: ='Classified Rate Base'!K71+'Classified Rate Base'!K72+'Classified Rate Base'!K73+'Classified Rate Base'!K74+'Classified Rate Base'!K75+'Classified Rate Base'!K76+'Classified Rate Base'!K77+'Classified Rate Base'!K79 -> 0 | J180: =+$H180*INDEX('Allocation Factors'!H$9:H$126,MATCH($F180,'Allocation Factors'!$D$9:$D$126,0)) -> 0 | L180: =+$H180*INDEX('Allocation Factors'!J$9:J$126,MATCH($F180,'Allocation Factors'!$D$9:$D$126,0)) -> 0 | N180: =+$H180*INDEX('Allocation Factors'!L$9:L$126,MATCH($F180,'Allocation Factors'!$D$9:$D$126,0)) -> 0 | P180: =+$H180*INDEX('Allocation Factors'!N$9:N$126,MATCH($F180,'Allocation Factors'!$D$9:$D$126,0)) -> 0 | R180: =+$H180*INDEX('Allocation Factors'!P$9:P$126,MATCH($F180,'Allocation Factors'!$D$9:$D$126,0)) -> 0 | T180: =+$H180*INDEX('Allocation Factors'!R$9:R$126,MATCH($F180,'Allocation Factors'!$D$9:$D$126,0)) -> 0 | V180: =+$H180*INDEX('Allocation Factors'!T$9:T$126,MATCH($F180,'Allocation Factors'!$D$9:$D$126,0)) -> 0 | X180: =+$H180*INDEX('Allocation Factors'!V$9:V$126,MATCH($F180,'Allocation Factors'!$D$9:$D$126,0)) -> 0 | Z180: =+$H180*INDEX('Allocation Factors'!X$9:X$126,MATCH($F180,'Allocation Factors'!$D$9:$D$126,0)) -> 0 | AB180: =+$H180*INDEX('Allocation Factors'!Z$9:Z$126,MATCH($F180,'Allocation Factors'!$D$9:$D$126,0)) -> 0 | AD180: =+$H180*INDEX('Allocation Factors'!AB$9:AB$126,MATCH($F180,'Allocation Factors'!$D$9:$D$126,0)) -> 0 | AF180: =+$H180*INDEX('Allocation Factors'!AD$9:AD$126,MATCH($F180,'Allocation Factors'!$D$9:$D$126,0)) -> 0
A181: 177 | E181: Commodity | F181: COM-DA | H181: ='Classified Rate Base'!M71+'Classified Rate Base'!M72+'Classified Rate Base'!M73+'Classified Rate Base'!M74+'Classified Rate Base'!M75+'Classified Rate Base'!M76+'Classified Rate Base'!M77+'Classified Rate Base'!M79 -> 0 | J181: =+$H181*INDEX('Allocation Factors'!H$9:H$126,MATCH($F181,'Allocation Factors'!$D$9:$D$126,0)) -> 0 | L181: =+$H181*INDEX('Allocation Factors'!J$9:J$126,MATCH($F181,'Allocation Factors'!$D$9:$D$126,0)) -> 0 | N181: =+$H181*INDEX('Allocation Factors'!L$9:L$126,MATCH($F181,'Allocation Factors'!$D$9:$D$126,0)) -> 0 | P181: =+$H181*INDEX('Allocation Factors'!N$9:N$126,MATCH($F181,'Allocation Factors'!$D$9:$D$126,0)) -> 0 | R181: =+$H181*INDEX('Allocation Factors'!P$9:P$126,MATCH($F181,'Allocation Factors'!$D$9:$D$126,0)) -> 0 | T181: =+$H181*INDEX('Allocation Factors'!R$9:R$126,MATCH($F181,'Allocation Factors'!$D$9:$D$126,0)) -> 0 | V181: =+$H181*INDEX('Allocation Factors'!T$9:T$126,MATCH($F181,'Allocation Factors'!$D$9:$D$126,0)) -> 0 | X181: =+$H181*INDEX('Allocation Factors'!V$9:V$126,MATCH($F181,'Allocation Factors'!$D$9:$D$126,0)) -> 0 | Z181: =+$H181*INDEX('Allocation Factors'!X$9:X$126,MATCH($F181,'Allocation Factors'!$D$9:$D$126,0)) -> 0 | AB181: =+$H181*INDEX('Allocation Factors'!Z$9:Z$126,MATCH($F181,'Allocation Factors'!$D$9:$D$126,0)) -> 0 | AD181: =+$H181*INDEX('Allocation Factors'!AB$9:AB$126,MATCH($F181,'Allocation Factors'!$D$9:$D$126,0)) -> 0 | AF181: =+$H181*INDEX('Allocation Factors'!AD$9:AD$126,MATCH($F181,'Allocation Factors'!$D$9:$D$126,0)) -> 0
A182: 178 | E182: Total Distribution Plant - Dir. Assn. | H182: =SUM(H179:H181) -> 0 | J182: =SUM(J179:J181) -> 0 | L182: =SUM(L179:L181) -> 0 | N182: =SUM(N179:N181) -> 0 | P182: =SUM(P179:P181) -> 0 | R182: =SUM(R179:R181) -> 0 | T182: =SUM(T179:T181) -> 0 | V182: =SUM(V179:V181) -> 0 | X182: =SUM(X179:X181) -> 0 | Z182: =SUM(Z179:Z181) -> 0 | AB182: =SUM(AB179:AB181) -> 0 | AD182: =SUM(AD179:AD181) -> 0 | AF182: =SUM(AF179:AF181) -> 0
A183: 179 | E183: General Plant - Allocated
A184: 180 | E184: Customer | F184: GENPTCUS | H184: ='Classified Rate Base'!I78 -> -11134077 | J184: =+$H184*INDEX('Allocation Factors'!H$9:H$126,MATCH($F184,'Allocation Factors'!$D$9:$D$126,0)) -> -10229864.87 | L184: =+$H184*INDEX('Allocation Factors'!J$9:J$126,MATCH($F184,'Allocation Factors'!$D$9:$D$126,0)) -> -782283.1318 | N184: =+$H184*INDEX('Allocation Factors'!L$9:L$126,MATCH($F184,'Allocation Factors'!$D$9:$D$126,0)) -> -8881.249854 | P184: =+$H184*INDEX('Allocation Factors'!N$9:N$126,MATCH($F184,'Allocation Factors'!$D$9:$D$126,0)) -> -94231.07692 | R184: =+$H184*INDEX('Allocation Factors'!P$9:P$126,MATCH($F184,'Allocation Factors'!$D$9:$D$126,0)) -> 0 | T184: =+$H184*INDEX('Allocation Factors'!R$9:R$126,MATCH($F184,'Allocation Factors'!$D$9:$D$126,0)) -> 0 | V184: =+$H184*INDEX('Allocation Factors'!T$9:T$126,MATCH($F184,'Allocation Factors'!$D$9:$D$126,0)) -> -7565.26104 | X184: =+$H184*INDEX('Allocation Factors'!V$9:V$126,MATCH($F184,'Allocation Factors'!$D$9:$D$126,0)) -> -9482.032241 | Z184: =+$H184*INDEX('Allocation Factors'!X$9:X$126,MATCH($F184,'Allocation Factors'!$D$9:$D$126,0)) -> -1769.380027 | AB184: =+$H184*INDEX('Allocation Factors'!Z$9:Z$126,MATCH($F184,'Allocation Factors'!$D$9:$D$126,0)) -> 0 | AD184: =+$H184*INDEX('Allocation Factors'!AB$9:AB$126,MATCH($F184,'Allocation Factors'!$D$9:$D$126,0)) -> 0 | AF184: =+$H184*INDEX('Allocation Factors'!AD$9:AD$126,MATCH($F184,'Allocation Factors'!$D$9:$D$126,0)) -> 0
A185: 181 | E185: Demand | F185: DISPLTDEM | H185: ='Classified Rate Base'!K78 -> -2160440.794 | J185: =+$H185*INDEX('Allocation Factors'!H$9:H$126,MATCH($F185,'Allocation Factors'!$D$9:$D$126,0)) -> -614617.1146 | L185: =+$H185*INDEX('Allocation Factors'!J$9:J$126,MATCH($F185,'Allocation Factors'!$D$9:$D$126,0)) -> -994466.0673 | N185: =+$H185*INDEX('Allocation Factors'!L$9:L$126,MATCH($F185,'Allocation Factors'!$D$9:$D$126,0)) -> -29126.64174 | P185: =+$H185*INDEX('Allocation Factors'!N$9:N$126,MATCH($F185,'Allocation Factors'!$D$9:$D$126,0)) -> -158499.764 | R185: =+$H185*INDEX('Allocation Factors'!P$9:P$126,MATCH($F185,'Allocation Factors'!$D$9:$D$126,0)) -> 0 | T185: =+$H185*INDEX('Allocation Factors'!R$9:R$126,MATCH($F185,'Allocation Factors'!$D$9:$D$126,0)) -> 0 | V185: =+$H185*INDEX('Allocation Factors'!T$9:T$126,MATCH($F185,'Allocation Factors'!$D$9:$D$126,0)) -> -101393.5941 | X185: =+$H185*INDEX('Allocation Factors'!V$9:V$126,MATCH($F185,'Allocation Factors'!$D$9:$D$126,0)) -> -185729.5545 | Z185: =+$H185*INDEX('Allocation Factors'!X$9:X$126,MATCH($F185,'Allocation Factors'!$D$9:$D$126,0)) -> -76608.05783 | AB185: =+$H185*INDEX('Allocation Factors'!Z$9:Z$126,MATCH($F185,'Allocation Factors'!$D$9:$D$126,0)) -> 0 | AD185: =+$H185*INDEX('Allocation Factors'!AB$9:AB$126,MATCH($F185,'Allocation Factors'!$D$9:$D$126,0)) -> 0 | AF185: =+$H185*INDEX('Allocation Factors'!AD$9:AD$126,MATCH($F185,'Allocation Factors'!$D$9:$D$126,0)) -> 0
A186: 182 | E186: Commodity | F186: COM | H186: ='Classified Rate Base'!M78 -> -16045.4688 | J186: =+$H186*INDEX('Allocation Factors'!H$9:H$126,MATCH($F186,'Allocation Factors'!$D$9:$D$126,0)) -> -2618.120267 | L186: =+$H186*INDEX('Allocation Factors'!J$9:J$126,MATCH($F186,'Allocation Factors'!$D$9:$D$126,0)) -> -7337.785652 | N186: =+$H186*INDEX('Allocation Factors'!L$9:L$126,MATCH($F186,'Allocation Factors'!$D$9:$D$126,0)) -> -854.7915131 | P186: =+$H186*INDEX('Allocation Factors'!N$9:N$126,MATCH($F186,'Allocation Factors'!$D$9:$D$126,0)) -> -545.6098279 | R186: =+$H186*INDEX('Allocation Factors'!P$9:P$126,MATCH($F186,'Allocation Factors'!$D$9:$D$126,0)) -> 0 | T186: =+$H186*INDEX('Allocation Factors'!R$9:R$126,MATCH($F186,'Allocation Factors'!$D$9:$D$126,0)) -> 0 | V186: =+$H186*INDEX('Allocation Factors'!T$9:T$126,MATCH($F186,'Allocation Factors'!$D$9:$D$126,0)) -> -1656.654474 | X186: =+$H186*INDEX('Allocation Factors'!V$9:V$126,MATCH($F186,'Allocation Factors'!$D$9:$D$126,0)) -> -2704.286884 | Z186: =+$H186*INDEX('Allocation Factors'!X$9:X$126,MATCH($F186,'Allocation Factors'!$D$9:$D$126,0)) -> -328.2201771 | AB186: =+$H186*INDEX('Allocation Factors'!Z$9:Z$126,MATCH($F186,'Allocation Factors'!$D$9:$D$126,0)) -> 0 | AD186: =+$H186*INDEX('Allocation Factors'!AB$9:AB$126,MATCH($F186,'Allocation Factors'!$D$9:$D$126,0)) -> 0 | AF186: =+$H186*INDEX('Allocation Factors'!AD$9:AD$126,MATCH($F186,'Allocation Factors'!$D$9:$D$126,0)) -> 0
A187: 183 | E187: Total General Plant - Allocated | H187: =SUM(H184:H186) -> -13310563.26 | J187: =SUM(J184:J186) -> -10847100.1 | L187: =SUM(L184:L186) -> -1784086.985 | N187: =SUM(N184:N186) -> -38862.68311 | P187: =SUM(P184:P186) -> -253276.4508 | R187: =SUM(R184:R186) -> 0 | T187: =SUM(T184:T186) -> 0 | V187: =SUM(V184:V186) -> -110615.5096 | X187: =SUM(X184:X186) -> -197915.8737 | Z187: =SUM(Z184:Z186) -> -78705.65803 | AB187: =SUM(AB184:AB186) -> 0 | AD187: =SUM(AD184:AD186) -> 0 | AF187: =SUM(AF184:AF186) -> 0
A188: 184 | E188: General Plant - Directly Assigned
A189: 185 | E189: Customer | F189: CUS-DA | H189: ='Classified Rate Base'!I79 -> 0 | J189: =+$H189*INDEX('Allocation Factors'!H$9:H$126,MATCH($F189,'Allocation Factors'!$D$9:$D$126,0)) -> 0 | L189: =+$H189*INDEX('Allocation Factors'!J$9:J$126,MATCH($F189,'Allocation Factors'!$D$9:$D$126,0)) -> 0 | N189: =+$H189*INDEX('Allocation Factors'!L$9:L$126,MATCH($F189,'Allocation Factors'!$D$9:$D$126,0)) -> 0 | P189: =+$H189*INDEX('Allocation Factors'!N$9:N$126,MATCH($F189,'Allocation Factors'!$D$9:$D$126,0)) -> 0 | R189: =+$H189*INDEX('Allocation Factors'!P$9:P$126,MATCH($F189,'Allocation Factors'!$D$9:$D$126,0)) -> 0 | T189: =+$H189*INDEX('Allocation Factors'!R$9:R$126,MATCH($F189,'Allocation Factors'!$D$9:$D$126,0)) -> 0 | V189: =+$H189*INDEX('Allocation Factors'!T$9:T$126,MATCH($F189,'Allocation Factors'!$D$9:$D$126,0)) -> 0 | X189: =+$H189*INDEX('Allocation Factors'!V$9:V$126,MATCH($F189,'Allocation Factors'!$D$9:$D$126,0)) -> 0 | Z189: =+$H189*INDEX('Allocation Factors'!X$9:X$126,MATCH($F189,'Allocation Factors'!$D$9:$D$126,0)) -> 0 | AB189: =+$H189*INDEX('Allocation Factors'!Z$9:Z$126,MATCH($F189,'Allocation Factors'!$D$9:$D$126,0)) -> 0 | AD189: =+$H189*INDEX('Allocation Factors'!AB$9:AB$126,MATCH($F189,'Allocation Factors'!$D$9:$D$126,0)) -> 0 | AF189: =+$H189*INDEX('Allocation Factors'!AD$9:AD$126,MATCH($F189,'Allocation Factors'!$D$9:$D$126,0)) -> 0
A190: 186 | E190: Demand | F190: DEM-DA | H190: ='Classified Rate Base'!K79 -> 0 | J190: =+$H190*INDEX('Allocation Factors'!H$9:H$126,MATCH($F190,'Allocation Factors'!$D$9:$D$126,0)) -> 0 | L190: =+$H190*INDEX('Allocation Factors'!J$9:J$126,MATCH($F190,'Allocation Factors'!$D$9:$D$126,0)) -> 0 | N190: =+$H190*INDEX('Allocation Factors'!L$9:L$126,MATCH($F190,'Allocation Factors'!$D$9:$D$126,0)) -> 0 | P190: =+$H190*INDEX('Allocation Factors'!N$9:N$126,MATCH($F190,'Allocation Factors'!$D$9:$D$126,0)) -> 0 | R190: =+$H190*INDEX('Allocation Factors'!P$9:P$126,MATCH($F190,'Allocation Factors'!$D$9:$D$126,0)) -> 0 | T190: =+$H190*INDEX('Allocation Factors'!R$9:R$126,MATCH($F190,'Allocation Factors'!$D$9:$D$126,0)) -> 0 | V190: =+$H190*INDEX('Allocation Factors'!T$9:T$126,MATCH($F190,'Allocation Factors'!$D$9:$D$126,0)) -> 0 | X190: =+$H190*INDEX('Allocation Factors'!V$9:V$126,MATCH($F190,'Allocation Factors'!$D$9:$D$126,0)) -> 0 | Z190: =+$H190*INDEX('Allocation Factors'!X$9:X$126,MATCH($F190,'Allocation Factors'!$D$9:$D$126,0)) -> 0 | AB190: =+$H190*INDEX('Allocation Factors'!Z$9:Z$126,MATCH($F190,'Allocation Factors'!$D$9:$D$126,0)) -> 0 | AD190: =+$H190*INDEX('Allocation Factors'!AB$9:AB$126,MATCH($F190,'Allocation Factors'!$D$9:$D$126,0)) -> 0 | AF190: =+$H190*INDEX('Allocation Factors'!AD$9:AD$126,MATCH($F190,'Allocation Factors'!$D$9:$D$126,0)) -> 0
A191: 187 | E191: Commodity | F191: COM-DA | H191: ='Classified Rate Base'!M79 -> 0 | J191: =+$H191*INDEX('Allocation Factors'!H$9:H$126,MATCH($F191,'Allocation Factors'!$D$9:$D$126,0)) -> 0 | L191: =+$H191*INDEX('Allocation Factors'!J$9:J$126,MATCH($F191,'Allocation Factors'!$D$9:$D$126,0)) -> 0 | N191: =+$H191*INDEX('Allocation Factors'!L$9:L$126,MATCH($F191,'Allocation Factors'!$D$9:$D$126,0)) -> 0 | P191: =+$H191*INDEX('Allocation Factors'!N$9:N$126,MATCH($F191,'Allocation Factors'!$D$9:$D$126,0)) -> 0 | R191: =+$H191*INDEX('Allocation Factors'!P$9:P$126,MATCH($F191,'Allocation Factors'!$D$9:$D$126,0)) -> 0 | T191: =+$H191*INDEX('Allocation Factors'!R$9:R$126,MATCH($F191,'Allocation Factors'!$D$9:$D$126,0)) -> 0 | V191: =+$H191*INDEX('Allocation Factors'!T$9:T$126,MATCH($F191,'Allocation Factors'!$D$9:$D$126,0)) -> 0 | X191: =+$H191*INDEX('Allocation Factors'!V$9:V$126,MATCH($F191,'Allocation Factors'!$D$9:$D$126,0)) -> 0 | Z191: =+$H191*INDEX('Allocation Factors'!X$9:X$126,MATCH($F191,'Allocation Factors'!$D$9:$D$126,0)) -> 0 | AB191: =+$H191*INDEX('Allocation Factors'!Z$9:Z$126,MATCH($F191,'Allocation Factors'!$D$9:$D$126,0)) -> 0 | AD191: =+$H191*INDEX('Allocation Factors'!AB$9:AB$126,MATCH($F191,'Allocation Factors'!$D$9:$D$126,0)) -> 0 | AF191: =+$H191*INDEX('Allocation Factors'!AD$9:AD$126,MATCH($F191,'Allocation Factors'!$D$9:$D$126,0)) -> 0
A192: 188 | E192: Total General Plant - Directly Assn. | H192: =SUM(H189:H191) -> 0 | J192: =SUM(J189:J191) -> 0 | L192: =SUM(L189:L191) -> 0 | N192: =SUM(N189:N191) -> 0 | P192: =SUM(P189:P191) -> 0 | R192: =SUM(R189:R191) -> 0 | T192: =SUM(T189:T191) -> 0 | V192: =SUM(V189:V191) -> 0 | X192: =SUM(X189:X191) -> 0 | Z192: =SUM(Z189:Z191) -> 0 | AB192: =SUM(AB189:AB191) -> 0 | AD192: =SUM(AD189:AD191) -> 0 | AF192: =SUM(AF189:AF191) -> 0
A193: 189 | E193: Total Depr. & Amort. Reserve
A194: 190 | E194: Customer | H194: =H164+H169+H174+H179+H184+H189 -> -33647444.12 | J194: =J164+J169+J174+J179+J184+J189 -> -30720465.27 | L194: =L164+L169+L174+L179+L184+L189 -> -2520785.39 | N194: =N164+N169+N174+N179+N184+N189 -> -32170.42989 | P194: =P164+P169+P174+P179+P184+P189 -> -301641.1062 | R194: =R164+R169+R174+R179+R184+R189 -> 0 | T194: =T164+T169+T174+T179+T184+T189 -> 0 | V194: =V164+V169+V174+V179+V184+V189 -> -28867.37884 | X194: =X164+X169+X174+X179+X184+X189 -> -36631.93271 | Z194: =Z164+Z169+Z174+Z179+Z184+Z189 -> -6882.618829 | AB194: =AB164+AB169+AB174+AB179+AB184+AB189 -> 0 | AD194: =AD164+AD169+AD174+AD179+AD184+AD189 -> 0 | AF194: =AF164+AF169+AF174+AF179+AF184+AF189 -> 0
A195: 191 | E195: Demand | H195: =H165+H170+H175+H180+H185+H190 -> -11371929.7 | J195: =J165+J170+J175+J180+J185+J190 -> -3292244.973 | L195: =L165+L170+L175+L180+L185+L190 -> -5197858.203 | N195: =N165+N170+N175+N180+N185+N190 -> -152238.632 | P195: =P165+P170+P175+P180+P185+P190 -> -828443.8512 | R195: =R165+R170+R175+R180+R185+R190 -> 0 | T195: =T165+T170+T175+T180+T185+T190 -> 0 | V195: =V165+V170+V175+V180+V185+V190 -> -529962.3003 | X195: =X165+X170+X175+X180+X185+X190 -> -970768.0536 | Z195: =Z165+Z170+Z175+Z180+Z185+Z190 -> -400413.6841 | AB195: =AB165+AB170+AB175+AB180+AB185+AB190 -> 0 | AD195: =AD165+AD170+AD175+AD180+AD185+AD190 -> 0 | AF195: =AF165+AF170+AF175+AF180+AF185+AF190 -> 0
A196: 192 | E196: Commodity | H196: =H166+H171+H176+H181+H186+H191 -> -53344.68056 | J196: =J166+J171+J176+J181+J186+J191 -> -8704.188771 | L196: =L166+L171+L176+L181+L186+L191 -> -24395.16331 | N196: =N166+N171+N176+N181+N186+N191 -> -2841.835336 | P196: =P166+P171+P176+P181+P186+P191 -> -1813.931543 | R196: =R166+R171+R176+R181+R186+R191 -> 0 | T196: =T166+T171+T176+T181+T186+T191 -> 0 | V196: =V166+V171+V176+V181+V186+V191 -> -5507.704688 | X196: =X166+X171+X176+X181+X186+X191 -> -8990.657851 | Z196: =Z166+Z171+Z176+Z181+Z186+Z191 -> -1091.199062 | AB196: =AB166+AB171+AB176+AB181+AB186+AB191 -> 0 | AD196: =AD166+AD171+AD176+AD181+AD186+AD191 -> 0 | AF196: =AF166+AF171+AF176+AF181+AF186+AF191 -> 0
A197: 193 | E197: Total Depr. & Amortization Reserve | H197: =+H194+H195+H196 -> -45072718.5 | J197: =+J194+J195+J196 -> -34021414.43 | L197: =+L194+L195+L196 -> -7743038.756 | N197: =+N194+N195+N196 -> -187250.8973 | P197: =+P194+P195+P196 -> -1131898.889 | R197: =+R194+R195+R196 -> 0 | T197: =+T194+T195+T196 -> 0 | V197: =+V194+V195+V196 -> -564337.3839 | X197: =+X194+X195+X196 -> -1016390.644 | Z197: =+Z194+Z195+Z196 -> -408387.502 | AB197: =+AB194+AB195+AB196 -> 0 | AD197: =+AD194+AD195+AD196 -> 0 | AF197: =+AF194+AF195+AF196 -> 0
A198: =+A197+1 -> 194 | E198: Net Plant in Service
A199: 195 | E199: Customer | H199: =+H158+H194 -> 147686463.8 | J199: =+J158+J194 -> 134601027.7 | L199: =+L158+L194 -> 11256336.43 | N199: =+N158+N194 -> 147735.9942 | P199: =+P158+P194 -> 1344647.967 | R199: =+R158+R194 -> 0 | T199: =+T158+T194 -> 0 | V199: =+V158+V194 -> 134063.9016 | X199: =+X158+X194 -> 170560.7754 | Z199: =+Z158+Z194 -> 32090.9675 | AB199: =+AB158+AB194 -> 0 | AD199: =+AD158+AD194 -> 0 | AF199: =+AF158+AF194 -> 0
A200: 196 | E200: Demand | H200: =+H159+H195 -> 94361135.01 | J200: =+J159+J195 -> 27835272.28 | L200: =+L159+L195 -> 42797709.7 | N200: =+N159+N195 -> 1253490.289 | P200: =+P159+P195 -> 6821174.811 | R200: =+R159+R195 -> 0 | T200: =+T159+T195 -> 0 | V200: =+V159+V195 -> 4363561.259 | X200: =+X159+X195 -> 7993032.462 | Z200: =+Z159+Z195 -> 3296894.21 | AB200: =+AB159+AB195 -> 0 | AD200: =+AD159+AD195 -> 0 | AF200: =+AF159+AF195 -> 0
... 62 more rows

Sheet Allocated Cost of Service
A1: CLASS COST OF SERVICE STUDY: ALLOCATED COST OF SERVICE
A3: LINE | E3: =+'Allocated Rate Base'!F2 -> ALLOCATION | O3: ='Allocated Rate Base'!P2 -> PUBLIC | S3: ELECTRIC | U3: ='Allocated Rate Base'!V2 -> COM. | W3: ='Allocated Rate Base'!X2 -> IND. | Y3: ='Allocated Rate Base'!Z2 -> PUB. AUTH. | AA3: ='Allocated Rate Base'!AB2 -> CNG | AC3: ='Allocated Rate Base'!AD2 -> ELEC. GEN. | AE3: ='Allocated Rate Base'!AF2 -> FORT
A4: NO. | B4: ='Allocated Rate Base'!C3 -> ACCT. | D4: ='Allocated Rate Base'!E3 -> DESCRIPTION | E4: ='Allocated Rate Base'!F3 -> FACTOR | G4: ='Allocated Rate Base'!H3 -> TOTAL | I4: ='Allocated Rate Base'!J3 -> RESIDENTIAL | K4: ='Allocated Rate Base'!L3 -> COMMERCIAL | M4: ='Allocated Rate Base'!N3 -> INDUSTRIAL | O4: ='Allocated Rate Base'!P3 -> AUTHORITY | Q4: ='Allocated Rate Base'!R3 -> CNG | S4: GENERATION | U4: ='Allocated Rate Base'!V3 -> TRANS. | W4: ='Allocated Rate Base'!X3 -> TRANS. | Y4: ='Allocated Rate Base'!Z3 -> TRANS. | AA4: ='Allocated Rate Base'!AB3 -> TRANS. | AC4: ='Allocated Rate Base'!AD3 -> TRANS. | AE4: ='Allocated Rate Base'!AF3 -> BLISS
B5: ='Allocated Rate Base'!C4 -> (a) | D5: ='Allocated Rate Base'!E4 -> (b) | E5: ='Allocated Rate Base'!F4 -> (c) | G5: ='Allocated Rate Base'!H4 -> (d) | I5: ='Allocated Rate Base'!J4 -> (e) | K5: ='Allocated Rate Base'!L4 -> (f) | M5: ='Allocated Rate Base'!N4 -> (g) | O5: ='Allocated Rate Base'!P4 -> (h) | Q5: ='Allocated Rate Base'!R4 -> (i) | S5: ='Allocated Rate Base'!T4 -> (j) | U5: ='Allocated Rate Base'!V4 -> (k) | W5: ='Allocated Rate Base'!X4 -> (l) | Y5: ='Allocated Rate Base'!Z4 -> (m) | AA5: (n) | AC5: (o) | AE5: (p)
A6: 1 | D6: Transmission and Distribution Op. Exp.
A7: =+A6+1 -> 2 | B7: 814-865 | D7: Transmission Expenses
A8: 3 | D8: Customer | E8: CUS | G8: =+'Classified Cost of Service'!I6 -> 0 | I8: =$G8*INDEX('Allocation Factors'!H$9:H$126,MATCH($E8,'Allocation Factors'!$D$9:$D$126,0)) -> 0 | K8: =$G8*INDEX('Allocation Factors'!J$9:J$126,MATCH($E8,'Allocation Factors'!$D$9:$D$126,0)) -> 0 | M8: =$G8*INDEX('Allocation Factors'!L$9:L$126,MATCH($E8,'Allocation Factors'!$D$9:$D$126,0)) -> 0 | O8: =$G8*INDEX('Allocation Factors'!N$9:N$126,MATCH($E8,'Allocation Factors'!$D$9:$D$126,0)) -> 0 | Q8: =$G8*INDEX('Allocation Factors'!P$9:P$126,MATCH($E8,'Allocation Factors'!$D$9:$D$126,0)) -> 0 | S8: =$G8*INDEX('Allocation Factors'!R$9:R$126,MATCH($E8,'Allocation Factors'!$D$9:$D$126,0)) -> 0 | U8: =$G8*INDEX('Allocation Factors'!T$9:T$126,MATCH($E8,'Allocation Factors'!$D$9:$D$126,0)) -> 0 | W8: =$G8*INDEX('Allocation Factors'!V$9:V$126,MATCH($E8,'Allocation Factors'!$D$9:$D$126,0)) -> 0 | Y8: =$G8*INDEX('Allocation Factors'!X$9:X$126,MATCH($E8,'Allocation Factors'!$D$9:$D$126,0)) -> 0 | AA8: =$G8*INDEX('Allocation Factors'!Z$9:Z$126,MATCH($E8,'Allocation Factors'!$D$9:$D$126,0)) -> 0 | AC8: =$G8*INDEX('Allocation Factors'!AB$9:AB$126,MATCH($E8,'Allocation Factors'!$D$9:$D$126,0)) -> 0 | AE8: =$G8*INDEX('Allocation Factors'!AD$9:AD$126,MATCH($E8,'Allocation Factors'!$D$9:$D$126,0)) -> 0
A9: 4 | D9: Demand | E9: DEM | G9: =+'Classified Cost of Service'!K6 -> 5488388.461 | I9: =$G9*INDEX('Allocation Factors'!H$9:H$126,MATCH($E9,'Allocation Factors'!$D$9:$D$126,0)) -> 1676603.142 | K9: =$G9*INDEX('Allocation Factors'!J$9:J$126,MATCH($E9,'Allocation Factors'!$D$9:$D$126,0)) -> 2452214.445 | M9: =$G9*INDEX('Allocation Factors'!L$9:L$126,MATCH($E9,'Allocation Factors'!$D$9:$D$126,0)) -> 71822.23099 | O9: =$G9*INDEX('Allocation Factors'!N$9:N$126,MATCH($E9,'Allocation Factors'!$D$9:$D$126,0)) -> 390838.2836 | Q9: =$G9*INDEX('Allocation Factors'!P$9:P$126,MATCH($E9,'Allocation Factors'!$D$9:$D$126,0)) -> 0 | S9: =$G9*INDEX('Allocation Factors'!R$9:R$126,MATCH($E9,'Allocation Factors'!$D$9:$D$126,0)) -> 0 | U9: =$G9*INDEX('Allocation Factors'!T$9:T$126,MATCH($E9,'Allocation Factors'!$D$9:$D$126,0)) -> 250022.4433 | W9: =$G9*INDEX('Allocation Factors'!V$9:V$126,MATCH($E9,'Allocation Factors'!$D$9:$D$126,0)) -> 457983.1443 | Y9: =$G9*INDEX('Allocation Factors'!X$9:X$126,MATCH($E9,'Allocation Factors'!$D$9:$D$126,0)) -> 188904.7723 | AA9: =$G9*INDEX('Allocation Factors'!Z$9:Z$126,MATCH($E9,'Allocation Factors'!$D$9:$D$126,0)) -> 0 | AC9: =$G9*INDEX('Allocation Factors'!AB$9:AB$126,MATCH($E9,'Allocation Factors'!$D$9:$D$126,0)) -> 0 | AE9: =$G9*INDEX('Allocation Factors'!AD$9:AD$126,MATCH($E9,'Allocation Factors'!$D$9:$D$126,0)) -> 0
A10: 5 | D10: Commodity | E10: COM | G10: =+'Classified Cost of Service'!M6 -> 0 | I10: =$G10*INDEX('Allocation Factors'!H$9:H$126,MATCH($E10,'Allocation Factors'!$D$9:$D$126,0)) -> 0 | K10: =$G10*INDEX('Allocation Factors'!J$9:J$126,MATCH($E10,'Allocation Factors'!$D$9:$D$126,0)) -> 0 | M10: =$G10*INDEX('Allocation Factors'!L$9:L$126,MATCH($E10,'Allocation Factors'!$D$9:$D$126,0)) -> 0 | O10: =$G10*INDEX('Allocation Factors'!N$9:N$126,MATCH($E10,'Allocation Factors'!$D$9:$D$126,0)) -> 0 | Q10: =$G10*INDEX('Allocation Factors'!P$9:P$126,MATCH($E10,'Allocation Factors'!$D$9:$D$126,0)) -> 0 | S10: =$G10*INDEX('Allocation Factors'!R$9:R$126,MATCH($E10,'Allocation Factors'!$D$9:$D$126,0)) -> 0 | U10: =$G10*INDEX('Allocation Factors'!T$9:T$126,MATCH($E10,'Allocation Factors'!$D$9:$D$126,0)) -> 0 | W10: =$G10*INDEX('Allocation Factors'!V$9:V$126,MATCH($E10,'Allocation Factors'!$D$9:$D$126,0)) -> 0 | Y10: =$G10*INDEX('Allocation Factors'!X$9:X$126,MATCH($E10,'Allocation Factors'!$D$9:$D$126,0)) -> 0 | AA10: =$G10*INDEX('Allocation Factors'!Z$9:Z$126,MATCH($E10,'Allocation Factors'!$D$9:$D$126,0)) -> 0 | AC10: =$G10*INDEX('Allocation Factors'!AB$9:AB$126,MATCH($E10,'Allocation Factors'!$D$9:$D$126,0)) -> 0 | AE10: =$G10*INDEX('Allocation Factors'!AD$9:AD$126,MATCH($E10,'Allocation Factors'!$D$9:$D$126,0)) -> 0
A11: 6 | D11: Total Transmission Expense | G11: =SUM(G8:G10) -> 5488388.461 | I11: =SUM(I8:I10) -> 1676603.142 | K11: =SUM(K8:K10) -> 2452214.445 | M11: =SUM(M8:M10) -> 71822.23099 | O11: =SUM(O8:O10) -> 390838.2836 | Q11: =SUM(Q8:Q10) -> 0 | S11: =SUM(S8:S10) -> 0 | U11: =SUM(U8:U10) -> 250022.4433 | W11: =SUM(W8:W10) -> 457983.1443 | Y11: =SUM(Y8:Y10) -> 188904.7723 | AA11: =SUM(AA8:AA10) -> 0 | AC11: =SUM(AC8:AC10) -> 0 | AE11: =SUM(AE8:AE10) -> 0
A12: 7 | B12: 8650 | D12: Odorization
A13: 8 | D13: Customer | E13: CUS | G13: ='Classified Cost of Service'!I7 -> 0 | I13: =$G13*INDEX('Allocation Factors'!H$9:H$126,MATCH($E13,'Allocation Factors'!$D$9:$D$126,0)) -> 0 | K13: =$G13*INDEX('Allocation Factors'!J$9:J$126,MATCH($E13,'Allocation Factors'!$D$9:$D$126,0)) -> 0 | M13: =$G13*INDEX('Allocation Factors'!L$9:L$126,MATCH($E13,'Allocation Factors'!$D$9:$D$126,0)) -> 0 | O13: =$G13*INDEX('Allocation Factors'!N$9:N$126,MATCH($E13,'Allocation Factors'!$D$9:$D$126,0)) -> 0 | Q13: =$G13*INDEX('Allocation Factors'!P$9:P$126,MATCH($E13,'Allocation Factors'!$D$9:$D$126,0)) -> 0 | S13: =$G13*INDEX('Allocation Factors'!R$9:R$126,MATCH($E13,'Allocation Factors'!$D$9:$D$126,0)) -> 0 | U13: =$G13*INDEX('Allocation Factors'!T$9:T$126,MATCH($E13,'Allocation Factors'!$D$9:$D$126,0)) -> 0 | W13: =$G13*INDEX('Allocation Factors'!V$9:V$126,MATCH($E13,'Allocation Factors'!$D$9:$D$126,0)) -> 0 | Y13: =$G13*INDEX('Allocation Factors'!X$9:X$126,MATCH($E13,'Allocation Factors'!$D$9:$D$126,0)) -> 0 | AA13: =$G13*INDEX('Allocation Factors'!Z$9:Z$126,MATCH($E13,'Allocation Factors'!$D$9:$D$126,0)) -> 0 | AC13: =$G13*INDEX('Allocation Factors'!AB$9:AB$126,MATCH($E13,'Allocation Factors'!$D$9:$D$126,0)) -> 0 | AE13: =$G13*INDEX('Allocation Factors'!AD$9:AD$126,MATCH($E13,'Allocation Factors'!$D$9:$D$126,0)) -> 0
